Workbook

Sheet LDC Info
Z3: 1 | AA3: Alectra Utilities Corporation
Z4: 2 | AA4: Alectra Utilities Corporation - Brampton service territory
Z5: 3 | AA5: Alectra Utilities Corporation - Horizon Utilities service territory
Z6: 4 | AA6: Alectra Utilities Corporation - Mississauga service territory
Z7: 5 | AA7: Alectra Utilities Corporation - PowerStream service territory
Z8: 6 | AA8: Algoma Power Inc.
Z9: 7 | AA9: Atikokan Hydro Inc.
Z10: 8 | AA10: Attawapiskat Power Corporation
Z11: 9 | AA11: Bluewater Power Distribution Corporation
Z12: 10 | AA12: Brantford Power Inc.
Z13: 11 | AA13: Burlington Hydro Inc.
D14: Utility Name | E14: ENWIN Utilities Ltd. | Z14: 12 | AA14: Canadian Niagara Power Inc. (Eastern Ontario Power/Fort Erie/Port Colborne)
Z15: 13 | AA15: Centre Wellington Hydro Ltd.
D16: Assigned EB Number | E16: EB-2019-0032 | Z16: 14 | AA16: Chapleau Public Utilities Corporation
Z17: 15 | AA17: COLLUS PowerStream Corp.
D18: Name of Contact and Title | E18: Paul Gleason | Z18: 16 | AA18: Cooperative Hydro Embrun Inc.
Z19: 17 | AA19: E.L.K. Energy Inc.
D20: Phone Number | E20: 519-255-2888 ext 325 | Z20: 18 | AA20: Energy + Inc.
Z21: 19 | AA21: Enersource Hydro Mississauga Inc.
D22: Email Address | E22: regulatory@enwin.com | Z22: 20 | AA22: Entegrus Powerlines Inc.
Z23: 21 | AA23: ENWIN Utilities Ltd.
D24: Test Year | E24: 2020 | Z24: 22 | AA24: Erie Thames Powerlines Corporation
Z25: 23 | AA25: Espanola Regional Hydro Distribution Corporation
D26: Bridge Year | E26: =IF(ISBLANK(E24), "", E24-1) -> 2019 | Z26: 24 | AA26: Essex Powerlines Corporation
Z27: 25 | AA27: Festival Hydro Inc.
D28: Last Rebasing Year | E28: 2009 | Z28: 26 | AA28: Fort Albany Power Corporation
Z29: 27 | AA29: Fort Frances Power Corporation
A30: Identify the accounting standard used for the test year | Z30: 28 | AA30: Greater Sudbury Hydro Inc.
E31: MIFRS | Z31: 29 | AA31: Grimsby Power Inc.
Z32: 30 | AA32: Guelph Hydro Electric Systems Inc.
A33: Did you update your depreciation and capitalization policies and reflect the changes in policies in a prior rebasing application? | Z33: 31 | AA33: Halton Hills Hydro Inc.
E34: Yes | Z34: 32 | AA34: Hearst Power Distribution Company Limited
Z35: 33 | AA35: Hydro 2000 Inc.
A36: When did you update your actual depreciation and capitalization policies? | Z36: 34 | AA36: Hydro Hawkesbury Inc.
E37: 2001-01-01 | F37: 2012 | Z37: 35 | AA37: Hydro One Networks Inc.
Z38: 36 | AA38: Hydro One Networks Inc. - Norfolk, Haldimand, Woodstock
A39: Identify the year the applicant adopted IFRS for financial reporting purposes | Z39: 37 | AA39: Hydro One Remote Communities Inc.
E40: 2012 | Z40: 38 | AA40: Hydro Ottawa Limited
Z41: 39 | AA41: Innpower Corporation
Z42: 40 | AA42: Kashechewan Power Corporation
A43: Are you applying for cost recovery for the test and/or future year(s) for Green Energy initiatives? | Z43: 41 | AA43: Kenora Hydro Electric Corporation Ltd.
E44: No | Z44: 42 | AA44: Kingston Hydro Corporation
Z45: 43 | AA45: Kitchener-Wilmot Hydro Inc.
A46: ="Is " & E14 & " an embedded distributor?" -> Is ENWIN Utilities Ltd. an embedded distributor? | E46: No | Z46: 44 | AA46: Lakefront Utilities Inc.
Z47: 45 | AA47: Lakeland Power Distribution Ltd.
Z48: 46 | AA48: London Hydro Inc.
B49: Notes | Z49: 47 | AA49: Midland Power Utility Corporation
Z50: 48 | AA50: Milton Hydro Distribution Inc.
C51: Pale green cells represent input cells. | Z51: 49 | AA51: Newmarket-Tay Power Distribution Ltd.
Z52: 50 | AA52: Niagara Peninsula Energy Inc.
C53: Pale blue cells represent drop-down lists. The applicant should select the appropriate item from the drop-down list. | Z53: 51 | AA53: Niagara-on-the-Lake Hydro Inc.
Z54: 52 | AA54: North Bay Hydro Distribution Limited
C55: White cells contain fixed values, automatically generated values or formulae. | N55: =IF(LEN($G55)>1, (SUMPRODUCT(--($C$78:$C$1000=$C55),--($A$78:$A$1000=$D55), --($B$78:$B$1000=$B55&"_TOTAL"), $L$78:$L$1000)), "") ->  | O55: =IF(LEN($G55)>1, (SUMPRODUCT(--($C$78:$C$1000=$C55),--($A$78:$A$1000=$D55), --($B$78:$B$1000=$B55&"_TOTAL"), $M$78:$M$1000)), "") ->  | Z55: 53 | AA55: Northern Ontario Wires Inc.
N56: =IF(LEN($G56)>1, (SUMPRODUCT(--($C$78:$C$1000=$C56),--($A$78:$A$1000=$D56), --($B$78:$B$1000=$B56&"_TOTAL"), $L$78:$L$1000)), "") ->  | O56: =IF(LEN($G56)>1, (SUMPRODUCT(--($C$78:$C$1000=$C56),--($A$78:$A$1000=$D56), --($B$78:$B$1000=$B56&"_TOTAL"), $M$78:$M$1000)), "") ->  | Z56: 54 | AA56: Oakville Hydro Electricity Distribution Inc.
Z57: 55 | AA57: Orangeville Hydro Limited
Z58: 56 | AA58: Orillia Power Distribution Corporation
Z59: 57 | AA59: Oshawa PUC Networks Inc.
Z60: 58 | AA60: Ottawa River Power Corporation
Z61: 59 | AA61: Peterborough Distribution Inc.
Z62: 60 | AA62: PUC Distribution Inc.
Z63: 61 | AA63: Renfrew Hydro Inc.
Z64: 62 | AA64: Rideau St. Lawrence Distribution Inc.
Z65: 63 | AA65: Sioux Lookout Hydro Inc.
Z66: 64 | AA66: St. Thomas Energy Inc.
Z67: 65 | AA67: Thunder Bay Hydro Electricity Distribution Inc.
Z68: 66 | AA68: Tillsonburg Hydro Inc.
Z69: 67 | AA69: Toronto Hydro-Electric System Limited
Z70: 68 | AA70: Veridian Connections Inc.
Z71: 69 | AA71: Wasaga Distribution Inc.
Z72: 70 | AA72: Waterloo North Hydro Inc.
Z73: 71 | AA73: Welland Hydro-Electric System Corp.
Z74: 72 | AA74: Wellington North Power Inc.
Z75: 73 | AA75: West Coast Huron Energy Inc.
Z76: 74 | AA76: Westario Power Inc.
Z77: 75 | AA77: Whitby Hydro Electric Corporation

Sheet Index
A15: 1 | B15: LDC Information Sheet | E15: 20 | F15: App.2-G: Service Reliability Indicators
A16: 2 | B16: Index | E16: 21 | F16: App.2-H: Other Operating Revenue (TO BE UPDATED AT THE DRAFT RATE ORDER STAGE)
A17: 3 | B17: Cost of Service Application Flowchart | E17: 22 | F17: App.2-I: Load Forecast CDM Adjustment Workform
A18: 4 | B18: List of Key References | E18: 23 | F18: App.2-IA: Load Forecast Data Instructions
A19: 5 | B19: App.2-A: List of Requested Approvals | E19: 24 | F19: App.2-IB: Actual and Forecast Load and Customer Data
A20: 6 | B20: App.2-AA: Capital Projects Table | E20: 25 | F20: App.2-JA: OM&A Summary Analysis (TO BE UPDATED AT THE DRAFT RATE ORDER STAGE)
A21: 7 | B21: App.2-AB: Capital Expenditures (TO BE UPDATED AT THE DRAFT RATE ORDER STAGE) | E21: 26 | F21: App.2-JB: Recoverable OM&A Cost Driver Table
A22: 8 | B22: App. 2-AC: Customer Engagement Worksheet | E22: 27 | F22: App.2-JC: OM&A Programs Table
A23: 9 | B23: App.2-B: General Accounting Instructions | E23: 28 | F23: App.2-K: Employee Costs (TO BE UPDATED AT THE DRAFT RATE ORDER STAGE)
A24: 10 | B24: App.2-BA: Fixed Asset Continuity Schedule | E24: 29 | F24: App.2-L: Recoverable OM&A Cost per Customer and per FTE
A25: 11 | B25: Appendix 2-BB: Service Life Comparison | E25: 30 | F25: App.2-M: Regulatory Costs Schedule (TO BE UPDATED AT THE DRAFT RATE ORDER STAGE)
A26: 12 | B26: App.2-C_DepExp: Depreciation and Amortization Expense | E26: 31 | F26: App.2-N: Shared Services and Corporate Cost Allocation
A27: 13 | B27: App.2-D: Overhead Expenses | E27: 32 | F27: App.2-OA: Capital Structure and Cost of Capital
A28: 14 | B28: App.2-EA: Account 1575 PP&E Deferral Account (2015 IFRS Adopters) - CONTACT OEB STAFF IF TAB REQUIRED | E28: 33 | F28: App.2-OB: Debt Instruments
A29: 15 | B29: App.2-EB: Account 1576 - Accounting Changes Under CGAAP (2012 Changes) - CONTACT OEB STAFF IF TAB REQUIRED | E29: 34 | F29: App.2-Q: Cost of Serving Embedded Distributor(s)
A30: 16 | B30: App.2-EC: Account 1576 - Accounting Changes Under CGAAP (2013 Changes) - CONTACT OEB STAFF IF TAB REQUIRED | E30: 35 | F30: App.2-R: Loss Factors
A31: 17 | B31: App.2-FA: Renewable Generation Connection Investment Summary (TO BE UPDATED AT THE DRAFT RATE ORDER STAGE) | E31: 36 | F31: App.2-S: Stranded Meter Treatment
A32: 18 | B32: App.2-FB: Calculation of Renewable Generation Connection Direct Benefits/Provincial Amount: Renewable Enabling Improvement Investments (TO BE UPDATED AT THE DRAFT RATE ORDER STAGE) | E32: 37 | F32: App.2-Y: Transition to MIFRS Summary Impact - CONTACT OEB STAFF IF TAB REQUIRED
A33: 19 | B33: App.2-FC: Calculation of Renewable Generation Connection Direct Benefits/Provincial Amount: Renewable Expansion Investments (TO BE UPDATED AT THE DRAFT RATE ORDER STAGE) | E33: 38 | F33: App.2-YA: One-Time Incremental IFRS Transition Costs - CONTACT OEB STAFF IF TAB REQUIRED
E34: 39 | F34: App.2-Z: Commodity Expense
A42: Note: | B42: Appendices for the Tariff of Rates and Charges at Current and Proposed Rates, and for the Bill Impacts are now in a separate spreadsheet model. These appendices were formerly 2-Z and 2-W.

Sheet COS Flowchart
B4: Cost of Service Rate Application Schematic
B6: The Cost of Service Rate Application Schematic is a flowchart that is included as a guide for the components of an application. The schematic demonstrates how demand and costs interrelate to derive the revenue requirement and how the revenue requirement is allocated between classes and through fixed/variable splits to derive rates that will be compensatory for the annual revenue requirement, based on the the forecasted demand. There is no form to be filled out; therefore, this Schedule is not required to be filed.

Sheet List of Key References
B2: List of Key References
A4: A list of key references for understanding the Filing Requirements has been embedded in the document below. To access the list of references and associated hyperlinks double-click the icon below.

Sheet App.2-AA_Capital Projects
N1: File Number: | O1: =EBNUMBER -> EB-2019-0032
N2: Exhibit:
N3: Tab:
N4: Schedule:
N5: Page:
N7: Date: | O7: 2019-09-24
A9: Appendix 2-AA
A10: Capital Projects Table
A13: Projects | B13: 2009 | C13: 2010 | D13: 2011 | E13: 2011 | F13: 2012 | G13: 2013 | H13: =I13-1 -> 2014 | I13: =J13-1 -> 2015 | J13: =K13-1 -> 2016 | K13: =L13-1 -> 2017 | L13: =BridgeYear - 1 -> 2018 | M13: =BridgeYear & " Bridge Year" -> 2019 Bridge Year | N13: =TestYear & " Test Year" -> 2020 Test Year
A14: Reporting Basis | B14: CGAAP | C14: CGAAP | D14: CGAAP | E14: MIFRS | F14: MIFRS | G14: MIFRS | H14: MIFRS | I14: MIFRS | J14: MIFRS | K14: MIFRS | L14: MIFRS | M14: MIFRS | N14: MIFRS
A15: System Access
A16: Overhead customer connections | B16: 517019.23 | C16: 536232 | D16: 475238 | E16: 475238 | F16: 358751 | G16: 561507.07 | H16: 738242 | I16: 859451 | J16: 881637 | K16: 464048 | L16: 725210 | M16: 525000 | N16: 535500
A17: Underground customer connections | B17: 317524.44 | C17: 219646 | D17: 318004 | E17: 318004 | F17: 543922 | G17: 943511.49 | H17: 322463 | I17: 682178 | J17: 1107193 | K17: 1269433 | L17: 1613642 | M17: 750000 | N17: 525000
A18: Bridge Plaza | B18: 0 | C18: 0 | D18: 0 | E18: 0 | F18: 0 | G18: 0 | H18: 0 | I18: 128336 | J18: 1067769 | K18: 1050168 | L18: 225202 | M18: 1700000 | N18: 1000000
A19: Windsor-Essex Parkway | B19: 0 | C19: 0 | D19: 599974 | E19: 599974 | F19: 1307485 | G19: 2252949 | H19: 2504867 | I19: 706675 | J19: -9320 | K19: 0 | L19: 0 | M19: 0 | N19: 0
A20: City driven road work | B20: 532354.74 | C20: 867290 | D20: 86393 | E20: 86393 | F20: 2318762 | G20: 214793 | H20: 1338 | I20: 7098 | J20: 438733 | K20: 598995 | L20: 506297 | M20: 3886000 | N20: 3250000
A21: Wholesale metering: Keith TS feeders | B21: 0 | C21: 0 | D21: 0 | E21: 0 | F21: 0 | G21: 0 | H21: 0 | I21: 0 | J21: 0 | K21: 0 | L21: 0 | M21: 0
A22: Meter work - new customers | B22: 118559.64 | C22: 236541 | D22: 206121 | E22: 206121 | F22: 588110 | G22: 743474 | H22: 795630 | I22: 337035 | J22: 459611 | K22: 580797 | L22: 707889 | M22: 406000 | N22: 417000
A23: Smart meters | B23: 96703.94 | C23: 6199730 | D23: 3211161 | E23: 3211161 | F23: 192910 | G23: 0 | H23: 0 | I23: 0 | J23: 0 | K23: 0 | L23: 0 | M23: 0 | N23: 0
A24: Wholesale meters | B24: 25457.85 | C24: 383717 | D24: 201840 | E24: 201840 | F24: 560208 | G24: 187071 | H24: 0 | I24: 41343 | J24: 0 | K24: 0 | L24: 0 | M24: 0 | N24: 0
A25: Sub-Total | B25: =SUM(B16:B24) -> 1607619.84 | C25: 8443156 | D25: 5098731 | E25: 5098731 | F25: 5870148 | G25: 4903305.56 | H25: =SUM(H16:H24) -> 4362540 | I25: 2762116 | J25: 3945623 | K25: 3963441 | L25: 3778240 | M25: 7267000 | N25: 5727500
A26: System Renewal
A27: 4 kV Conversion | B27: 5239545.91 | C27: 5283768 | D27: 5453919 | E27: 4973310.49 | F27: 3920134.19 | G27: 3612271.988 | H27: 2258878.434 | I27: 210618.0993 | J27: 25895.75711 | K27: 0 | L27: 0 | M27: 0 | N27: 0
A28: 27.6 kV Pole replacements | B28: 556477.23 | C28: 660866 | D28: 1218716 | E28: 1111320.7 | F28: 1389391.68 | G28: 1435487.187 | H28: 2548351.811 | I28: 3740966.943 | J28: 2659645.718 | K28: 2350615.017 | L28: 2151326 | M28: 2240000 | N28: 492000
A29: Planned cable replacements | B29: 912190.5 | C29: 5711 | D29: 328115 | E29: 299200.95 | F29: 743404.33 | G29: 691287.9505 | H29: 91438.98991 | I29: 0 | J29: 0 | K29: 41907.92993 | L29: 84444 | M29: 120000 | N29: 512000
A30: Planned & reactive transformers | B30: 372856.91 | C30: 208109 | D30: 342797 | E30: 312589.15 | F30: 280604.36 | G30: 769849.4544 | H30: 788478.3269 | I30: 815513.7292 | J30: 701444.0758 | K30: 1104210.875 | L30: 1744654 | M30: 1350000 | N30: 1325000
A31: Reactive pole replacements | B31: 89523.78 | C31: 222613 | D31: 131549 | E31: 119956.68 | F31: 294595.51 | G31: 192482.365 | H31: 295675.0809 | I31: 276518.1218 | J31: 394600.5259 | K31: 315267.6117 | L31: 245388 | M31: 100000 | N31: 100000
A32: Reactive equipment replacements | B32: 13233.37 | C32: 4057 | D32: 78565 | E32: 71641.72 | F32: 33982.34 | G32: 46978.0754 | H32: 97628.0445 | I32: 597795.5983 | J32: 282854.6346 | K32: 194261.8663 | L32: 223584 | M32: 280000 | N32: 280000
A33: Reactive conductor replacements | B33: 24039.05 | C33: 98699 | D33: 326584 | E33: 297804.87 | F33: 67733.02 | G33: 112050.8801 | H33: 5943.299431 | I33: 11246.95745 | J33: 69634.6305 | K33: 190110.2447 | L33: 78010 | M33: 90000 | N33: 90000
A34: Manhole rebuilds | B34: 262873.95 | C34: 318772 | D34: 252696 | E34: 230428 | F34: 678723.91 | G34: 819375.3424 | H34: 29911.65566 | I34: 138412.1001 | J34: 25447.52068 | K34: 100103.2735 | L34: 184313 | M34: 150000 | N34: 150000
A35: Switching units | B35: 37823.68 | C35: 118712 | D35: 0 | E35: 0 | F35: 160638.56 | G35: 338500.9998 | H35: 622780.6205 | I35: 666285.2726 | J35: 498465.5391 | K35: 271844.3169 | L35: 548634 | M35: 825000 | N35: 1025000
A36: Station equipment | B36: 251015.15 | C36: 0 | D36: 0 | E36: 0 | F36: 0 | G36: 0 | H36: 0 | I36: 782628.3556 | J36: 1572.501549 | K36: 463165.5662 | L36: 2658 | M36: 0 | N36: 0
A37: Other renewal | B37: 88732.35 | C37: 0 | D37: 0 | E37: 0 | F37: 0 | G37: 108064.5301 | H37: 212907.092 | I37: 981118.8755 | J37: 815321.8456 | K37: 424201.0118 | L37: 1089524 | M37: 1424000 | N37: 1635000
A38: Sub-Total | B38: =SUM(B27:B37) -> 7848311.88 | C38: 6921307 | D38: 8132941 | E38: 7416252.56 | F38: 7569207.9 | G38: 8126348.772 | H38: =SUM(H27:H37) -> 6951993.355 | I38: =SUM(I27:I37) -> 8221104.053 | J38: 5474882.749 | K38: 5455687.713 | L38: 6352535 | M38: 6579000 | N38: 5609000
A39: System Service
A40: Conductor upgrades | B40: 0 | C40: 0 | D40: 0 | E40: 0 | F40: 225053.82 | G40: 554406.83 | H40: 1308604.67 | I40: 1382703.73 | J40: 147389.87 | K40: 713200.78 | L40: 799136 | M40: 712000 | N40: 200000
A41: Feeder reliability improvement | B41: 0 | C41: 0 | D41: 43372 | E41: 39549.99 | F41: 0 | G41: 0 | H41: 13763.19 | I41: 3105248.64 | J41: 209816.9 | K41: 864032.9 | L41: 1379842 | M41: 1250000 | N41: 1224000
A42: New switches and sectionalizers | B42: 40423 | C42: 0 | D42: 0 | E42: 0 | F42: 2619.97 | G42: 467265.85 | H42: 783537.02 | I42: 701798.93 | J42: 658422.56 | K42: 478149.1 | L42: 956239 | M42: 504000 | N42: 144000
A43: New tie connections | B43: 0 | C43: 0 | D43: 231106 | E43: 210740.55 | F43: 2213.39 | G43: 125764.69 | H43: 163316.05 | I43: 611083.73 | J43: 218062.43 | K43: 254112.34 | L43: 41695 | M43: 155000 | N43: 169000
A44: Padmounted SU automation | B44: 191058 | C44: 0 | D44: 0 | E44: 0 | F44: 269623.02 | G44: 43970.89 | H44: 0 | I44: 0 | J44: 1060072.71 | K44: 524898.29 | L44: 827601 | M44: 550000 | N44: 550000
A45: Radial branch back-ups | B45: 0 | C45: 0 | D45: 0 | E45: 0 | F45: 0 | G45: 0 | H45: 250582.62 | I45: 6745.13 | J45: 12293.44 | K45: 467673.96 | L45: 400115 | M45: 400000 | N45: 400000
A46: SCADA improvements | B46: 112704 | C46: 25783 | D46: 452155 | E46: 412310.34 | F46: 210969.64 | G46: 79362.92 | H46: 74411.41 | I46: 207682.79 | J46: 194254.46 | K46: 446853.33 | L46: 529850 | M46: 595000 | N46: 265000
A47: Transformer station upgrades | B47: 0 | C47: 0 | D47: 0 | E47: 0 | F47: 0 | G47: 7870 | H47: 0 | I47: 409732.59 | J47: 380335.04 | K47: 177557.91 | L47: 114980 | M47: 50000 | N47: 200000
A48: Other | B48: -91182 | C48: 0 | D48: 0 | E48: 0 | F48: 272457.91 | G48: 25620.72 | H48: 0 | I48: 7892.45 | J48: 50523.96 | K48: 49089.36 | L48: 0 | M48: 5000 | N48: 385000
A49: Sub-Total | B49: =SUM(B40:B48) -> 253003 | C49: 25783 | D49: 726633 | E49: 662600.88 | F49: 982937.75 | G49: 1304261.9 | H49: =SUM(H40:H48) -> 2594214.96 | I49: 6432887.99 | J49: 2931171.37 | K49: 3975567.97 | L49: 5049458 | M49: 4221000 | N49: 3537000
A50: General Plant
A51: Building | B51: 515522 | C51: 581138 | D51: 470405 | E51: 470405 | F51: 504553 | G51: 194885 | H51: 574788 | I51: 357412 | J51: 191140 | K51: 351588 | L51: 189779 | M51: 392330 | N51: 3721000
A52: Information Technology | B52: 786130 | C52: 659742.63 | D52: 326625 | E52: 326625 | F52: 741602 | G52: 650970 | H52: 2434000 | I52: 1055463 | J52: 704337 | K52: 888462 | L52: 659193 | M52: 0 | N52: 0
A53: Fleet & Welding | B53: 213097 | C53: 25900 | D53: 41157 | E53: 41157 | F53: 56098 | G53: 32204 | H53: 40909 | I53: 30102 | J53: 81999 | K53: 87479 | L53: 14527 | M53: 70500 | N53: 74500
A54: Tools | B54: 202244 | C54: 105287 | D54: 150221 | E54: 150221 | F54: 141802 | G54: 242892 | H54: 144424 | I54: 119993 | J54: 135286 | K54: 231272 | L54: 131590 | M54: 187000 | N54: 102000
A55: GIS | B55: 0 | C55: 479432 | D55: 196492 | E55: 196492 | F55: 23880 | G55: 0 | H55: 0 | I55: 1935870 | J55: 774857 | K55: 0 | L55: 227853 | M55: 2005400 | N55: 1719000
A56: ERP | B56: 6349583 | C56: 7601892.37 | D56: 2539787 | E56: 2539787 | F56: -4203 | G56: 0 | H56: 0 | I56: 0 | J56: 365793 | K56: 498746 | L56: 0 | M56: 0 | N56: 0
A57: CIS | B57: 0 | C57: 0 | D57: 0 | E57: 0 | F57: 1196656 | G57: 3558982 | H57: 1691004 | I57: 0 | J57: 0 | K57: 0 | L57: 263810 | M57: 0 | N57: 0
A58: Sub-Total | B58: =SUM(B51:B57) -> 8066576 | C58: 9453392 | D58: 3724687 | E58: 3724687 | F58: 2660388 | G58: 4679933 | H58: =SUM(H51:H57) -> 4885125 | I58: =SUM(I51:I57) -> 3498840 | J58: 2253412 | K58: 2057547 | L58: 1486752 | M58: 2655230 | N58: 5616500
A59: Miscellaneous
A60: Total | B60: =SUMPRODUCT(--($A15:$A59="Sub-Total"), B$15:B$59)+B59 -> 17775510.72 | C60: =SUMPRODUCT(--($A15:$A59="Sub-Total"), C$15:C$59)+C59 -> 24843638 | D60: =SUMPRODUCT(--($A15:$A59="Sub-Total"), D$15:D$59)+D59 -> 17682992 | E60: 16902271.44 | F60: 17082681.65 | G60: 19013849.23 | H60: =SUMPRODUCT(--($A15:$A59="Sub-Total"), H$15:H$59)+H59 -> 18793873.32 | I60: 20914948.04 | J60: 14605089.12 | K60: 15452243.68 | L60: 16666985 | M60: 20722230 | N60: 20490000
A61: Less Renewable Generation Facility Assets and Other Non-Rate-Regulated Utility Assets (input as negative)
A62: Vehicles | B62: 0 | C62: 0 | D62: 0 | E62: 0 | F62: 0 | G62: 0 | H62: 0 | I62: 0 | J62: 0 | K62: 0 | L62: 3093253 | M62: 2652178 | N62: 1104576
A63: Customer Contributions | B63: -520301.33 | C63: -224159 | D63: -321196 | E63: -321196 | F63: -1495683 | G63: -757276 | H63: -2403163.42 | I63: -4322469 | J63: -411579 | K63: -2216539 | L63: -3227478 | M63: -4898000 | N63: -3251860
A64: Total | B64: =B60+B61+B62+B63 -> 17255209.39 | C64: =C60+C61+C62+C63 -> 24619479 | D64: 17361796 | E64: 16581075.44 | F64: 15586998.65 | G64: 18256573.23 | H64: 16390709.9 | I64: 16592479.04 | J64: 14193510.12 | K64: 13235704.68 | L64: 16532760 | M64: 18476408 | N64: 18342716
A66: Notes:
A68: 1 Please provide a breakdown of the major components of each capital project undertaken in each year. Please ensure that all projects below the materiality threshold are included in the miscellaneous line. Add more projects as required.
A69: 2 The applicant should group projects appropriately and avoid presentations that result in classification of significant components of the capital budget in the miscellaneous category.

Sheet App.2-A_Requested_Approvals
G1: File Number: | H1: =EBNUMBER -> EB-2019-0032
G2: Exhibit:
G3: Tab:
G4: Schedule:
G5: Page:
G7: Date: | H7: 2019-09-24
B9: Appendix 2-A
B10: List of Requested Approvals
B12: The distributor must fill out the following sheet with the complete list of specific approvals requested and relevant section(s) of the legislation must be provided. All approvals, including accounting orders (deferral and variance accounts) new rate classes, revised specific service charges or retail service charges which the applicant is seeking, must be separately identified, as well being clearly documented in the appropriate sections of the application.
B14: Additional requests may be added by copying and pasting blank input rows, as needed.
B16: If additional requests arise, or requested approvals are removed, during the processing of the application, the distributor should update this list.
B18: =CONCATENATE('LDC Info'!E14," is seeking the following approvals in this application:") -> ENWIN Utilities Ltd. is seeking the following approvals in this application:
B20: 1 | F20: Approval to change the rate year to January 1 to December 31 from May 1 to April 30, in order to align with financial and other reporting.
B22: 2 | F22: Approval to charge distribution rates effective January 1, 2020 to recover a service revenue requirement of $55,462,418 which includes a revenue deficiency of $438,894.
B24: 3 | F24: Approval of the consolidated Distribution System Plan (“DSP”) as outlined in Exhibit 2, Attachment 2-A.
B26: 4 | F26: Approval to eliminate the General Service 3,000 to 4,999 kW rate class and move the three (3) existing customers to the General Service > 50 kW to 4,999 kW rate class, as discussed in Exhibit 7.
B28: 5 | F28: Approval to eliminate the Large Use – Ford Annex rate class, and move the one (1) existing customer to the Large Use – 3TS rate class, as discussed in Exhibit 7.
B30: 6 | F30: Approval to adjust the Retail Transmission Rates – Network and Connection as detailed in the Settlement Proposal.
B32: 7 | F32: Approval to use gross load billing for Retail Transmission Rates – Line and Transformation Connection Service Rates for customers who have eligible load displacement generation as described in Exhibit 8.
B34: 8 | F34: Approval of the proposed loss factors as detailed in Exhibit 8.
B36: 9 | F36: Approval to continue to use the Transformer Allowance as described in Exhibit 8.
B38: 10 | F38: Approval to charge the Smart Metering Entity Charge, Wholesale Market Service Rate, Rural or Remote Electricity Rate Protection Charge, Standard Supply Service Charge, and microFIT monthly service charge as detailed in Exhibit 8.
B40: 11 | F40: Approval to charge the Specific Service Charges, including the new Cellular Meter Read Charge, as detailed in Exhibit 8.
B42: 12 | F42: Approval to charge Retail Service Charges as detailed in Exhibit 8.
B44: 13 | F44: Approval of the rate riders for disposition of the Group 1 and Group 2 and Other Deferral and Variance Accounts as detailed in Exhibit 9. Included in the Deferral and Variance Accounts to be approved are accounts that are either new accounts or specifically directed by the OEB to be established by ENWIN.
B46: 14 | F46: Approval of the rate rider for a one year disposition of the Lost Revenue Adjustment Mechanism Variance Account (“LRAMVA”) for lost revenue as presented in Exhibits 4 and 9 of this Application.
B48: 15 | F48: Approval to charge the Board’s updated Pole Attachment Charge, effective January 1, 2020.
B50: 16 | F50: In accordance with Section 2.1.5 of the Filing Requirements, and pursuant to Section 84 of the Ontario Energy Board Act, 1998, the Applicant hereby requests that the OEB continues to deem ENWIN’s high voltage assets identified in Section 1.5.3 of the Application as distribution assets.

Sheet App.2-AB_Capital Expenditures
AK1: File Number: | AM1: =EBNUMBER -> EB-2019-0032
AK2: Exhibit:
AK3: Tab:
AK4: Schedule:
A5: TO BE UPDATED AT THE DRAFT RATE ORDER STAGE | AK5: Page:
AK7: Date: | AM7: 2019-09-24
A9: Appendix 2-AB
A10: Table 2 - Capital Expenditure Summary from Chapter 5 Consolidated Distribution System Plan Filing Requirements
A11: First year of Forecast Period:
A12: =TestYear -> 2020
A13: CATEGORY | B13: Historical Period (previous plan1 & actual) | AI13: Forecast Period (planned)
B14: =E14-1 -> 2009 | E14: =H14-1 -> 2010 | H14: =K14-1 -> 2011 | K14: =N14-1 -> 2012 | N14: =Q14-1 -> 2013 | Q14: =T14-1 -> 2014 | T14: =W14-1 -> 2015 | W14: =Z14-1 -> 2016 | Z14: =AC14-1 -> 2017 | AC14: =AF14-1 -> 2018 | AF14: =AI14-1 -> 2019 | AI14: =A12 -> 2020 | AJ14: =AI14+1 -> 2021 | AK14: =AJ14+1 -> 2022 | AL14: =AK14+1 -> 2023 | AM14: =AL14+1 -> 2024
B15: Plan | C15: Actual | D15: Var | E15: Plan | F15: Actual | G15: Var | H15: Plan | I15: Actual | J15: Var | K15: Plan | L15: Actual | M15: Var | N15: Plan | O15: Actual | P15: Var | Q15: Plan | R15: Actual | S15: Var | T15: Plan | U15: Actual | V15: Var | W15: Plan | X15: Actual | Y15: Var | Z15: Plan | AA15: Actual | AB15: Var | AC15: Plan | AD15: Actual | AE15: Var | AF15: Plan | AG15: Forecast | AH15: Var
B16: $ '000 | D16: % | E16: $ '000 | G16: % | H16: $ '000 | J16: % | K16: $ '000 | M16: % | N16: $ '000 | P16: % | Q16: $ '000 | S16: % | T16: $ '000 | V16: % | W16: $ '000 | Y16: % | Z16: $ '000 | AB16: % | AC16: $ '000 | AE16: % | AF16: $ '000 | AH16: % | AI16: $ '000
A17: System Access | B17: 2876 | C17: 1608 | D17: =IF(ISERROR((C17-B17)/B17),"--",(C17-B17)/B17) -> -0.4408901252 | E17: 15061 | F17: 8443 | G17: =IF(ISERROR((F17-E17)/E17),"--",(F17-E17)/E17) -> -0.4394130536 | H17: 5187 | I17: 5099 | J17: =IF(ISERROR((I17-H17)/H17),"--",(I17-H17)/H17) -> -0.01696549065 | K17: 5097 | L17: 5870 | M17: =IF(ISERROR((L17-K17)/K17),"--",(L17-K17)/K17) -> 0.1516578379 | N17: 3079 | O17: 4903 | P17: =IF(ISERROR((O17-N17)/N17),"--",(O17-N17)/N17) -> 0.5924001299 | Q17: 6638 | R17: 4363 | S17: =IF(ISERROR((R17-Q17)/Q17),"--",(R17-Q17)/Q17) -> -0.342723712 | T17: 6258 | U17: 2762 | V17: =IF(ISERROR((U17-T17)/T17),"--",(U17-T17)/T17) -> -0.5586449345 | W17: 3638 | X17: 3946 | Y17: =IF(ISERROR((X17-W17)/W17),"--",(X17-W17)/W17) -> 0.08466190214 | Z17: 3325 | AA17: 3963 | AB17: =IF(ISERROR((AA17-Z17)/Z17),"--",(AA17-Z17)/Z17) -> 0.1918796992 | AC17: 5269 | AD17: 3778 | AE17: =IF(ISERROR((AD17-AC17)/AC17),"--",(AD17-AC17)/AC17) -> -0.2829758968 | AF17: 7267 | AG17: 7267 | AH17: =IF(ISERROR((AG17-AF17)/AF17),"--",(AG17-AF17)/AF17) -> 0 | AI17: 5727.5 | AJ17: 3476 | AK17: 3526 | AL17: 3577 | AM17: 3628
A18: System Renewal | B18: 6789 | C18: 7848 | D18: =IF(ISERROR((C18-B18)/B18),"--",(C18-B18)/B18) -> 0.155987627 | E18: 6380 | F18: 6921 | G18: =IF(ISERROR((F18-E18)/E18),"--",(F18-E18)/E18) -> 0.08479623824 | H18: 8874 | I18: 8133 | J18: =IF(ISERROR((I18-H18)/H18),"--",(I18-H18)/H18) -> -0.08350236646 | K18: 9483 | L18: 7569 | M18: =IF(ISERROR((L18-K18)/K18),"--",(L18-K18)/K18) -> -0.2018348624 | N18: 10766 | O18: 8126 | P18: =IF(ISERROR((O18-N18)/N18),"--",(O18-N18)/N18) -> -0.2452164221 | Q18: 8109 | R18: 6952 | S18: =IF(ISERROR((R18-Q18)/Q18),"--",(R18-Q18)/Q18) -> -0.1426809718 | T18: 6719 | U18: 8221 | V18: =IF(ISERROR((U18-T18)/T18),"--",(U18-T18)/T18) -> 0.2235451704 | W18: 5501 | X18: 5475 | Y18: =IF(ISERROR((X18-W18)/W18),"--",(X18-W18)/W18) -> -0.004726413379 | Z18: 6883 | AA18: 5456 | AB18: =IF(ISERROR((AA18-Z18)/Z18),"--",(AA18-Z18)/Z18) -> -0.2073223885 | AC18: 6482 | AD18: 6353 | AE18: =IF(ISERROR((AD18-AC18)/AC18),"--",(AD18-AC18)/AC18) -> -0.01990126504 | AF18: 7289 | AG18: 6579 | AH18: =IF(ISERROR((AG18-AF18)/AF18),"--",(AG18-AF18)/AF18) -> -0.09740705172 | AI18: 5609 | AJ18: =8009-687 -> 7322 | AK18: =7605-658 -> 6947 | AL18: =7850-694 -> 7156 | AM18: =7366-665 -> 6701
A19: System Service | B19: 604 | C19: 253 | D19: -0.5811258278 | E19: 173 | F19: 26 | G19: -0.8497109827 | H19: 910 | I19: 727 | J19: -0.2010989011 | K19: 904 | L19: 983 | M19: 0.08738938053 | N19: 1645 | O19: 1304 | P19: -0.2072948328 | Q19: 2643 | R19: 2594 | S19: -0.0185395384 | T19: 6363 | U19: 6433 | V19: 0.01100110011 | W19: 5196 | X19: 2931 | Y19: -0.4359122402 | Z19: 5979 | AA19: 3976 | AB19: -0.3350058538 | AC19: 6135 | AD19: 5049 | AE19: -0.1770171149 | AF19: 4221 | AG19: 4221 | AH19: 0 | AI19: 3537 | AJ19: 3622 | AK19: 3610 | AL19: 3986 | AM19: 3623
A20: General Plant | B20: 8965 | C20: 8067 | D20: -0.1001673173 | E20: 12635 | F20: 9453 | G20: -0.2518401266 | H20: 17123 | I20: 3725 | J20: -0.7824563453 | K20: 3698 | L20: 2660 | M20: -0.2806922661 | N20: 8985 | O20: 4680 | P20: -0.4791318865 | Q20: 6387 | R20: 4885 | S20: -0.2351651793 | T20: 3273 | U20: 3499 | V20: 0.06904980141 | W20: 5369 | X20: 2253 | Y20: -0.5803687838 | Z20: 4652 | AA20: 2058 | AB20: -0.5576096303 | AC20: 2399 | AD20: =1487+3093 -> 4580 | AE20: 0.9091288037 | AF20: 7507 | AG20: 5307 | AH20: -0.2930598108 | AI20: 6721 | AJ20: 4283 | AK20: 3856 | AL20: 4174 | AM20: 4213
A21: TOTAL EXPENDITURE | B21: =SUM(B17:B20) -> 19234 | C21: =SUM(C17:C20) -> 17776 | D21: -0.07580326505 | E21: =SUM(E17:E20) -> 34249 | F21: =SUM(F17:F20) -> 24843 | G21: -0.2746357558 | H21: =SUM(H17:H20) -> 32094 | I21: =SUM(I17:I20) -> 17684 | J21: -0.4489935814 | K21: =SUM(K17:K20) -> 19182 | L21: =SUM(L17:L20) -> 17082 | M21: -0.1094776353 | N21: =SUM(N17:N20) -> 24475 | O21: =SUM(O17:O20) -> 19013 | P21: -0.2231664964 | Q21: =SUM(Q17:Q20) -> 23777 | R21: =SUM(R17:R20) -> 18794 | S21: -0.2095722757 | T21: =SUM(T17:T20) -> 22613 | U21: =SUM(U17:U20) -> 20915 | V21: -0.07508955026 | W21: 19704 | X21: 14605 | Y21: -0.2587799432 | Z21: 20839 | AA21: 15453 | AB21: -0.2584576995 | AC21: 20285 | AD21: 19760 | AE21: -0.025881193 | AF21: 26284 | AG21: 23374 | AH21: -0.1107137422 | AI21: 21594.5 | AJ21: 18703 | AK21: 17939 | AL21: 18893 | AM21: =SUM(AM17:AM20) -> 18165
A22: Capital Contributions | B22: 0 | C22: -520 | D22: -- | E22: 0 | F22: -224 | G22: -- | H22: 0 | I22: -321 | J22: -- | K22: 0 | L22: -1496 | M22: -- | N22: 0 | O22: -757 | P22: -- | Q22: -3131 | R22: -2403 | S22: -0.2325135739 | T22: -3485 | U22: -4322 | V22: 0.2401721664 | W22: -1874 | X22: -412 | Y22: -0.780149413 | Z22: -1234 | AA22: -2217 | AB22: 0.7965964344 | AC22: -2921 | AD22: -3227 | AE22: 0.1047586443 | AF22: -4898 | AG22: -4898 | AH22: 0 | AI22: -3251.86 | AJ22: -813 | AK22: -823 | AL22: -834 | AM22: -844
A23: Net Capital Expenditures | B23: =+B21+B22 -> 19234 | C23: =+C21+C22-1 -> 17255 | D23: -0.1028907144 | E23: =+E21+E22 -> 34249 | F23: =+F21+F22 -> 24619 | G23: -0.2811760927 | H23: =+H21+H22 -> 32094 | I23: =+I21+I22-1 -> 17362 | J23: -0.4590266093 | K23: =+K21+K22 -> 19182 | L23: =+L21+L22+1 -> 15587 | M23: -0.1874152852 | N23: =+N21+N22 -> 24475 | O23: =+O21+O22+1 -> 18257 | P23: -0.2540551583 | Q23: =+Q21+Q22 -> 20646 | R23: =+R21+R22 -> 16391 | S23: -0.20609319 | T23: =+T21+T22 -> 19128 | U23: =+U21+U22-1 -> 16592 | V23: -0.1325805102 | W23: =+W21+W22 -> 17830 | X23: =+X21+X22+1 -> 14194 | Y23: -0.2039259675 | Z23: =+Z21+Z22 -> 19605 | AA23: =+AA21+AA22 -> 13236 | AB23: -0.3248661056 | AC23: =+AC21+AC22 -> 17364 | AD23: =+AD21+AD22 -> 16533 | AE23: -0.04785763649 | AF23: =+AF21+AF22 -> 21386 | AG23: =+AG21+AG22 -> 18476 | AH23: -0.1360703264 | AI23: =+AI21+AI22 -> 18342.64 | AJ23: =+AJ21+AJ22 -> 17890 | AK23: =+AK21+AK22 -> 17116 | AL23: =+AL21+AL22 -> 18059 | AM23: =+AM21+AM22 -> 17321
A24: System O&M | B24: 5309 | C24: 4956 | D24: -0.06649086457 | E24: 5515 | F24: 4754 | G24: -0.1379873073 | H24: 5134 | I24: 4252 | J24: -0.1717958707 | K24: 4434 | L24: 4157 | M24: -0.06247180875 | N24: 4729 | O24: 4229 | P24: -0.1057305984 | Q24: 4332 | R24: 4460 | S24: 0.02954755309 | T24: 4518 | U24: 4398 | V24: -0.02656042497 | W24: 4764 | X24: 4631 | Y24: -0.0279177162 | Z24: 8813 | AA24: 9757 | AB24: 0.10711449 | AC24: 9488 | AD24: 9686 | AE24: 0.02086846543 | AF24: 10942 | AG24: 10942 | AH24: 0 | AI24: 10903.67801 | AJ24: 11048.733 | AK24: 11068.192 | AL24: 11102.059 | AM24: 11095.941
A26: Notes to the Table:
A27: 1. Historical “previous plan” data is not required unless a plan has previously been filed. However, use the last Board-approved, at least on a Total (Capital) Expenditure basis for the last cost of service rebasing year, and the applicant should include their planned budget in each subsequent historical year up to and including the Bridge Year.
A28: 2. Indicate the number of months of 'actual' data included in the last year of the Historical Period (normally a 'bridge' year):
A30: Explanatory Notes on Variances (complete only if applicable)
A31: Notes on shifts in forecast vs. historical budgets by category
A34: Notes on year over year Plan vs. Actual variances for Total Expenditures
A37: Notes on Plan vs. Actual variance trends for individual expenditure categories

Sheet Hidden_CAPEX (hidden)
A1: Utility Name | B1: EB Number | C1: Test Year | D1: Bridge Year | E1: Last Rebasing Year | F1: Category | G1: Year | H1: Plan | I1: Actual
A2: ='LDC Info'!$E$14 -> ENWIN Utilities Ltd. | B2: =EBNUMBER -> EB-2019-0032 | C2: =TestYear -> 2020 | D2: =BridgeYear -> 2019 | E2: =RebaseYear -> 2009 | F2: System Access | G2: 2009 | H2: ='App.2-AB_Capital Expenditures'!$B17 -> 2876 | I2: ='App.2-AB_Capital Expenditures'!$C17 -> 1608
A3: ='LDC Info'!$E$14 -> ENWIN Utilities Ltd. | B3: EB-2019-0032 | C3: 2020 | D3: 2019 | E3: 2009 | F3: System Renewal | G3: 2009 | H3: ='App.2-AB_Capital Expenditures'!$B18 -> 6789 | I3: ='App.2-AB_Capital Expenditures'!$C18 -> 7848
A4: ='LDC Info'!$E$14 -> ENWIN Utilities Ltd. | B4: EB-2019-0032 | C4: 2020 | D4: 2019 | E4: 2009 | F4: System Service | G4: 2009 | H4: ='App.2-AB_Capital Expenditures'!$B19 -> 604 | I4: ='App.2-AB_Capital Expenditures'!$C19 -> 253
A5: ='LDC Info'!$E$14 -> ENWIN Utilities Ltd. | B5: EB-2019-0032 | C5: 2020 | D5: 2019 | E5: 2009 | F5: General Plant | G5: 2009 | H5: ='App.2-AB_Capital Expenditures'!$B20 -> 8965 | I5: ='App.2-AB_Capital Expenditures'!$C20 -> 8067
A6: ='LDC Info'!$E$14 -> ENWIN Utilities Ltd. | B6: EB-2019-0032 | C6: 2020 | D6: 2019 | E6: 2009 | F6: Total Expenditure | G6: 2009 | H6: ='App.2-AB_Capital Expenditures'!$B21 -> 19234 | I6: ='App.2-AB_Capital Expenditures'!$C21 -> 17776
A7: ='LDC Info'!$E$14 -> ENWIN Utilities Ltd. | B7: EB-2019-0032 | C7: 2020 | D7: 2019 | E7: 2009 | F7: Capital Contributions | G7: 2009 | H7: ='App.2-AB_Capital Expenditures'!$B22 -> 0 | I7: ='App.2-AB_Capital Expenditures'!$C22 -> -520
A8: ='LDC Info'!$E$14 -> ENWIN Utilities Ltd. | B8: EB-2019-0032 | C8: 2020 | D8: 2019 | E8: 2009 | F8: Net Capital Expenditures | G8: 2009 | H8: ='App.2-AB_Capital Expenditures'!$B23 -> 19234 | I8: ='App.2-AB_Capital Expenditures'!$C23 -> 17255
A9: ='LDC Info'!$E$14 -> ENWIN Utilities Ltd. | B9: EB-2019-0032 | C9: 2020 | D9: 2019 | E9: 2009 | F9: System O&M | G9: 2009 | H9: ='App.2-AB_Capital Expenditures'!$B24 -> 5309 | I9: ='App.2-AB_Capital Expenditures'!$C24 -> 4956
A10: ='LDC Info'!$E$14 -> ENWIN Utilities Ltd. | B10: =EBNUMBER -> EB-2019-0032 | C10: =TestYear -> 2020 | D10: =BridgeYear -> 2019 | E10: =RebaseYear -> 2009 | F10: System Access | G10: 2010 | H10: ='App.2-AB_Capital Expenditures'!E17 -> 15061 | I10: ='App.2-AB_Capital Expenditures'!F17 -> 8443
A11: ='LDC Info'!$E$14 -> ENWIN Utilities Ltd. | B11: EB-2019-0032 | C11: 2020 | D11: 2019 | E11: 2009 | F11: System Renewal | G11: 2010 | H11: ='App.2-AB_Capital Expenditures'!E18 -> 6380 | I11: ='App.2-AB_Capital Expenditures'!F18 -> 6921
A12: ='LDC Info'!$E$14 -> ENWIN Utilities Ltd. | B12: EB-2019-0032 | C12: 2020 | D12: 2019 | E12: 2009 | F12: System Service | G12: 2010 | H12: ='App.2-AB_Capital Expenditures'!E19 -> 173 | I12: ='App.2-AB_Capital Expenditures'!F19 -> 26
A13: ='LDC Info'!$E$14 -> ENWIN Utilities Ltd. | B13: EB-2019-0032 | C13: 2020 | D13: 2019 | E13: 2009 | F13: General Plant | G13: 2010 | H13: ='App.2-AB_Capital Expenditures'!E20 -> 12635 | I13: ='App.2-AB_Capital Expenditures'!F20 -> 9453
A14: ='LDC Info'!$E$14 -> ENWIN Utilities Ltd. | B14: EB-2019-0032 | C14: 2020 | D14: 2019 | E14: 2009 | F14: Total Expenditure | G14: 2010 | H14: ='App.2-AB_Capital Expenditures'!E21 -> 34249 | I14: ='App.2-AB_Capital Expenditures'!F21 -> 24843
A15: ='LDC Info'!$E$14 -> ENWIN Utilities Ltd. | B15: EB-2019-0032 | C15: 2020 | D15: 2019 | E15: 2009 | F15: Capital Contributions | G15: 2010 | H15: ='App.2-AB_Capital Expenditures'!E22 -> 0 | I15: ='App.2-AB_Capital Expenditures'!F22 -> -224
A16: ='LDC Info'!$E$14 -> ENWIN Utilities Ltd. | B16: EB-2019-0032 | C16: 2020 | D16: 2019 | E16: 2009 | F16: Net Capital Expenditures | G16: 2010 | H16: ='App.2-AB_Capital Expenditures'!E23 -> 34249 | I16: ='App.2-AB_Capital Expenditures'!F23 -> 24619
A17: ='LDC Info'!$E$14 -> ENWIN Utilities Ltd. | B17: EB-2019-0032 | C17: 2020 | D17: 2019 | E17: 2009 | F17: System O&M | G17: 2010 | H17: ='App.2-AB_Capital Expenditures'!E24 -> 5515 | I17: ='App.2-AB_Capital Expenditures'!F24 -> 4754
A18: ='LDC Info'!$E$14 -> ENWIN Utilities Ltd. | B18: EB-2019-0032 | C18: 2020 | D18: 2019 | E18: 2009 | F18: System Access | G18: 2011 | H18: ='App.2-AB_Capital Expenditures'!H17 -> 5187 | I18: ='App.2-AB_Capital Expenditures'!I17 -> 5099
A19: ='LDC Info'!$E$14 -> ENWIN Utilities Ltd. | B19: EB-2019-0032 | C19: 2020 | D19: 2019 | E19: 2009 | F19: System Renewal | G19: 2011 | H19: ='App.2-AB_Capital Expenditures'!H18 -> 8874 | I19: ='App.2-AB_Capital Expenditures'!I18 -> 8133
A20: ='LDC Info'!$E$14 -> ENWIN Utilities Ltd. | B20: EB-2019-0032 | C20: 2020 | D20: 2019 | E20: 2009 | F20: System Service | G20: 2011 | H20: ='App.2-AB_Capital Expenditures'!H19 -> 910 | I20: ='App.2-AB_Capital Expenditures'!I19 -> 727
A21: ='LDC Info'!$E$14 -> ENWIN Utilities Ltd. | B21: EB-2019-0032 | C21: 2020 | D21: 2019 | E21: 2009 | F21: General Plant | G21: 2011 | H21: ='App.2-AB_Capital Expenditures'!H20 -> 17123 | I21: ='App.2-AB_Capital Expenditures'!I20 -> 3725
A22: ='LDC Info'!$E$14 -> ENWIN Utilities Ltd. | B22: EB-2019-0032 | C22: 2020 | D22: 2019 | E22: 2009 | F22: Total Expenditure | G22: 2011 | H22: ='App.2-AB_Capital Expenditures'!H21 -> 32094 | I22: ='App.2-AB_Capital Expenditures'!I21 -> 17684
A23: ='LDC Info'!$E$14 -> ENWIN Utilities Ltd. | B23: EB-2019-0032 | C23: 2020 | D23: 2019 | E23: 2009 | F23: Capital Contributions | G23: 2011 | H23: ='App.2-AB_Capital Expenditures'!H22 -> 0 | I23: ='App.2-AB_Capital Expenditures'!I22 -> -321
A24: ='LDC Info'!$E$14 -> ENWIN Utilities Ltd. | B24: EB-2019-0032 | C24: 2020 | D24: 2019 | E24: 2009 | F24: Net Capital Expenditures | G24: 2011 | H24: ='App.2-AB_Capital Expenditures'!H23 -> 32094 | I24: ='App.2-AB_Capital Expenditures'!I23 -> 17362
A25: ='LDC Info'!$E$14 -> ENWIN Utilities Ltd. | B25: EB-2019-0032 | C25: 2020 | D25: 2019 | E25: 2009 | F25: System O&M | G25: 2011 | H25: ='App.2-AB_Capital Expenditures'!H24 -> 5134 | I25: ='App.2-AB_Capital Expenditures'!I24 -> 4252
A26: ='LDC Info'!$E$14 -> ENWIN Utilities Ltd. | B26: EB-2019-0032 | C26: 2020 | D26: 2019 | E26: 2009 | F26: System Access | G26: 2012 | H26: ='App.2-AB_Capital Expenditures'!K17 -> 5097 | I26: ='App.2-AB_Capital Expenditures'!L17 -> 5870
A27: ='LDC Info'!$E$14 -> ENWIN Utilities Ltd. | B27: EB-2019-0032 | C27: 2020 | D27: 2019 | E27: 2009 | F27: System Renewal | G27: 2012 | H27: ='App.2-AB_Capital Expenditures'!K18 -> 9483 | I27: ='App.2-AB_Capital Expenditures'!L18 -> 7569
A28: ='LDC Info'!$E$14 -> ENWIN Utilities Ltd. | B28: EB-2019-0032 | C28: 2020 | D28: 2019 | E28: 2009 | F28: System Service | G28: 2012 | H28: ='App.2-AB_Capital Expenditures'!K19 -> 904 | I28: ='App.2-AB_Capital Expenditures'!L19 -> 983
A29: ='LDC Info'!$E$14 -> ENWIN Utilities Ltd. | B29: EB-2019-0032 | C29: 2020 | D29: 2019 | E29: 2009 | F29: General Plant | G29: 2012 | H29: ='App.2-AB_Capital Expenditures'!K20 -> 3698 | I29: ='App.2-AB_Capital Expenditures'!L20 -> 2660
A30: ='LDC Info'!$E$14 -> ENWIN Utilities Ltd. | B30: EB-2019-0032 | C30: 2020 | D30: 2019 | E30: 2009 | F30: Total Expenditure | G30: 2012 | H30: ='App.2-AB_Capital Expenditures'!K21 -> 19182 | I30: ='App.2-AB_Capital Expenditures'!L21 -> 17082
A31: ='LDC Info'!$E$14 -> ENWIN Utilities Ltd. | B31: EB-2019-0032 | C31: 2020 | D31: 2019 | E31: 2009 | F31: Capital Contributions | G31: 2012 | H31: ='App.2-AB_Capital Expenditures'!K22 -> 0 | I31: ='App.2-AB_Capital Expenditures'!L22 -> -1496
A32: ='LDC Info'!$E$14 -> ENWIN Utilities Ltd. | B32: EB-2019-0032 | C32: 2020 | D32: 2019 | E32: 2009 | F32: Net Capital Expenditures | G32: 2012 | H32: ='App.2-AB_Capital Expenditures'!K23 -> 19182 | I32: ='App.2-AB_Capital Expenditures'!L23 -> 15587
A33: ='LDC Info'!$E$14 -> ENWIN Utilities Ltd. | B33: EB-2019-0032 | C33: 2020 | D33: 2019 | E33: 2009 | F33: System O&M | G33: 2012 | H33: ='App.2-AB_Capital Expenditures'!K24 -> 4434 | I33: ='App.2-AB_Capital Expenditures'!L24 -> 4157
A34: ='LDC Info'!$E$14 -> ENWIN Utilities Ltd. | B34: EB-2019-0032 | C34: 2020 | D34: 2019 | E34: 2009 | F34: System Access | G34: 2013 | H34: ='App.2-AB_Capital Expenditures'!N17 -> 3079 | I34: ='App.2-AB_Capital Expenditures'!O17 -> 4903
A35: ='LDC Info'!$E$14 -> ENWIN Utilities Ltd. | B35: EB-2019-0032 | C35: 2020 | D35: 2019 | E35: 2009 | F35: System Renewal | G35: 2013 | H35: ='App.2-AB_Capital Expenditures'!N18 -> 10766 | I35: ='App.2-AB_Capital Expenditures'!O18 -> 8126
A36: ='LDC Info'!$E$14 -> ENWIN Utilities Ltd. | B36: EB-2019-0032 | C36: 2020 | D36: 2019 | E36: 2009 | F36: System Service | G36: 2013 | H36: ='App.2-AB_Capital Expenditures'!N19 -> 1645 | I36: ='App.2-AB_Capital Expenditures'!O19 -> 1304
A37: ='LDC Info'!$E$14 -> ENWIN Utilities Ltd. | B37: EB-2019-0032 | C37: 2020 | D37: 2019 | E37: 2009 | F37: General Plant | G37: 2013 | H37: ='App.2-AB_Capital Expenditures'!N20 -> 8985 | I37: ='App.2-AB_Capital Expenditures'!O20 -> 4680
A38: ='LDC Info'!$E$14 -> ENWIN Utilities Ltd. | B38: EB-2019-0032 | C38: 2020 | D38: 2019 | E38: 2009 | F38: Total Expenditure | G38: 2013 | H38: ='App.2-AB_Capital Expenditures'!N21 -> 24475 | I38: ='App.2-AB_Capital Expenditures'!O21 -> 19013
A39: ='LDC Info'!$E$14 -> ENWIN Utilities Ltd. | B39: EB-2019-0032 | C39: 2020 | D39: 2019 | E39: 2009 | F39: Capital Contributions | G39: 2013 | H39: ='App.2-AB_Capital Expenditures'!N22 -> 0 | I39: ='App.2-AB_Capital Expenditures'!O22 -> -757
A40: ='LDC Info'!$E$14 -> ENWIN Utilities Ltd. | B40: EB-2019-0032 | C40: 2020 | D40: 2019 | E40: 2009 | F40: Net Capital Expenditures | G40: 2013 | H40: ='App.2-AB_Capital Expenditures'!N23 -> 24475 | I40: ='App.2-AB_Capital Expenditures'!O23 -> 18257
A41: ='LDC Info'!$E$14 -> ENWIN Utilities Ltd. | B41: EB-2019-0032 | C41: 2020 | D41: 2019 | E41: 2009 | F41: System O&M | G41: 2013 | H41: ='App.2-AB_Capital Expenditures'!N24 -> 4729 | I41: ='App.2-AB_Capital Expenditures'!O24 -> 4229
A42: ='LDC Info'!$E$14 -> ENWIN Utilities Ltd. | B42: =EBNUMBER -> EB-2019-0032 | C42: =TestYear -> 2020 | D42: =BridgeYear -> 2019 | E42: =RebaseYear -> 2009 | F42: System Access | G42: 2014 | H42: ='App.2-AB_Capital Expenditures'!Q17 -> 6638 | I42: ='App.2-AB_Capital Expenditures'!R17 -> 4363
A43: ='LDC Info'!$E$14 -> ENWIN Utilities Ltd. | B43: EB-2019-0032 | C43: 2020 | D43: 2019 | E43: 2009 | F43: System Renewal | G43: 2014 | H43: ='App.2-AB_Capital Expenditures'!Q18 -> 8109 | I43: ='App.2-AB_Capital Expenditures'!R18 -> 6952
A44: ='LDC Info'!$E$14 -> ENWIN Utilities Ltd. | B44: EB-2019-0032 | C44: 2020 | D44: 2019 | E44: 2009 | F44: System Service | G44: 2014 | H44: ='App.2-AB_Capital Expenditures'!Q19 -> 2643 | I44: ='App.2-AB_Capital Expenditures'!R19 -> 2594
A45: ='LDC Info'!$E$14 -> ENWIN Utilities Ltd. | B45: EB-2019-0032 | C45: 2020 | D45: 2019 | E45: 2009 | F45: General Plant | G45: 2014 | H45: ='App.2-AB_Capital Expenditures'!Q20 -> 6387 | I45: ='App.2-AB_Capital Expenditures'!R20 -> 4885
A46: ='LDC Info'!$E$14 -> ENWIN Utilities Ltd. | B46: EB-2019-0032 | C46: 2020 | D46: 2019 | E46: 2009 | F46: Total Expenditure | G46: 2014 | H46: ='App.2-AB_Capital Expenditures'!Q21 -> 23777 | I46: ='App.2-AB_Capital Expenditures'!R21 -> 18794
A47: ='LDC Info'!$E$14 -> ENWIN Utilities Ltd. | B47: EB-2019-0032 | C47: 2020 | D47: 2019 | E47: 2009 | F47: Capital Contributions | G47: 2014 | H47: ='App.2-AB_Capital Expenditures'!Q22 -> -3131 | I47: ='App.2-AB_Capital Expenditures'!R22 -> -2403
A48: ='LDC Info'!$E$14 -> ENWIN Utilities Ltd. | B48: EB-2019-0032 | C48: 2020 | D48: 2019 | E48: 2009 | F48: Net Capital Expenditures | G48: 2014 | H48: ='App.2-AB_Capital Expenditures'!Q23 -> 20646 | I48: ='App.2-AB_Capital Expenditures'!R23 -> 16391
A49: ='LDC Info'!$E$14 -> ENWIN Utilities Ltd. | B49: EB-2019-0032 | C49: 2020 | D49: 2019 | E49: 2009 | F49: System O&M | G49: 2014 | H49: ='App.2-AB_Capital Expenditures'!Q24 -> 4332 | I49: ='App.2-AB_Capital Expenditures'!R24 -> 4460
A50: ='LDC Info'!$E$14 -> ENWIN Utilities Ltd. | B50: EB-2019-0032 | C50: 2020 | D50: 2019 | E50: 2009 | F50: System Access | G50: 2015 | H50: ='App.2-AB_Capital Expenditures'!T17 -> 6258 | I50: ='App.2-AB_Capital Expenditures'!U17 -> 2762
A51: ='LDC Info'!$E$14 -> ENWIN Utilities Ltd. | B51: EB-2019-0032 | C51: 2020 | D51: 2019 | E51: 2009 | F51: System Renewal | G51: 2015 | H51: ='App.2-AB_Capital Expenditures'!T18 -> 6719 | I51: ='App.2-AB_Capital Expenditures'!U18 -> 8221
A52: ='LDC Info'!$E$14 -> ENWIN Utilities Ltd. | B52: EB-2019-0032 | C52: 2020 | D52: 2019 | E52: 2009 | F52: System Service | G52: 2015 | H52: ='App.2-AB_Capital Expenditures'!T19 -> 6363 | I52: ='App.2-AB_Capital Expenditures'!U19 -> 6433
A53: ='LDC Info'!$E$14 -> ENWIN Utilities Ltd. | B53: EB-2019-0032 | C53: 2020 | D53: 2019 | E53: 2009 | F53: General Plant | G53: 2015 | H53: ='App.2-AB_Capital Expenditures'!T20 -> 3273 | I53: ='App.2-AB_Capital Expenditures'!U20 -> 3499
A54: ='LDC Info'!$E$14 -> ENWIN Utilities Ltd. | B54: EB-2019-0032 | C54: 2020 | D54: 2019 | E54: 2009 | F54: Total Expenditure | G54: 2015 | H54: ='App.2-AB_Capital Expenditures'!T21 -> 22613 | I54: ='App.2-AB_Capital Expenditures'!U21 -> 20915
A55: ='LDC Info'!$E$14 -> ENWIN Utilities Ltd. | B55: EB-2019-0032 | C55: 2020 | D55: 2019 | E55: 2009 | F55: Capital Contributions | G55: 2015 | H55: ='App.2-AB_Capital Expenditures'!T22 -> -3485 | I55: ='App.2-AB_Capital Expenditures'!U22 -> -4322
A56: ='LDC Info'!$E$14 -> ENWIN Utilities Ltd. | B56: EB-2019-0032 | C56: 2020 | D56: 2019 | E56: 2009 | F56: Net Capital Expenditures | G56: 2015 | H56: ='App.2-AB_Capital Expenditures'!T23 -> 19128 | I56: ='App.2-AB_Capital Expenditures'!U23 -> 16592
A57: ='LDC Info'!$E$14 -> ENWIN Utilities Ltd. | B57: EB-2019-0032 | C57: 2020 | D57: 2019 | E57: 2009 | F57: System O&M | G57: 2015 | H57: ='App.2-AB_Capital Expenditures'!T24 -> 4518 | I57: ='App.2-AB_Capital Expenditures'!U24 -> 4398
A58: ='LDC Info'!$E$14 -> ENWIN Utilities Ltd. | B58: EB-2019-0032 | C58: 2020 | D58: 2019 | E58: 2009 | F58: System Access | G58: 2016 | H58: ='App.2-AB_Capital Expenditures'!W17 -> 3638 | I58: ='App.2-AB_Capital Expenditures'!X17 -> 3946
A59: ='LDC Info'!$E$14 -> ENWIN Utilities Ltd. | B59: EB-2019-0032 | C59: 2020 | D59: 2019 | E59: 2009 | F59: System Renewal | G59: 2016 | H59: ='App.2-AB_Capital Expenditures'!W18 -> 5501 | I59: ='App.2-AB_Capital Expenditures'!X18 -> 5475
A60: ='LDC Info'!$E$14 -> ENWIN Utilities Ltd. | B60: EB-2019-0032 | C60: 2020 | D60: 2019 | E60: 2009 | F60: System Service | G60: 2016 | H60: ='App.2-AB_Capital Expenditures'!W19 -> 5196 | I60: ='App.2-AB_Capital Expenditures'!X19 -> 2931
A61: ='LDC Info'!$E$14 -> ENWIN Utilities Ltd. | B61: EB-2019-0032 | C61: 2020 | D61: 2019 | E61: 2009 | F61: General Plant | G61: 2016 | H61: ='App.2-AB_Capital Expenditures'!W20 -> 5369 | I61: ='App.2-AB_Capital Expenditures'!X20 -> 2253
A62: ='LDC Info'!$E$14 -> ENWIN Utilities Ltd. | B62: EB-2019-0032 | C62: 2020 | D62: 2019 | E62: 2009 | F62: Total Expenditure | G62: 2016 | H62: ='App.2-AB_Capital Expenditures'!W21 -> 19704 | I62: ='App.2-AB_Capital Expenditures'!X21 -> 14605
A63: ='LDC Info'!$E$14 -> ENWIN Utilities Ltd. | B63: EB-2019-0032 | C63: 2020 | D63: 2019 | E63: 2009 | F63: Capital Contributions | G63: 2016 | H63: ='App.2-AB_Capital Expenditures'!W22 -> -1874 | I63: ='App.2-AB_Capital Expenditures'!X22 -> -412
A64: ='LDC Info'!$E$14 -> ENWIN Utilities Ltd. | B64: EB-2019-0032 | C64: 2020 | D64: 2019 | E64: 2009 | F64: Net Capital Expenditures | G64: 2016 | H64: ='App.2-AB_Capital Expenditures'!W23 -> 17830 | I64: ='App.2-AB_Capital Expenditures'!X23 -> 14194
A65: ='LDC Info'!$E$14 -> ENWIN Utilities Ltd. | B65: EB-2019-0032 | C65: 2020 | D65: 2019 | E65: 2009 | F65: System O&M | G65: 2016 | H65: ='App.2-AB_Capital Expenditures'!W24 -> 4764 | I65: ='App.2-AB_Capital Expenditures'!X24 -> 4631
A66: ='LDC Info'!$E$14 -> ENWIN Utilities Ltd. | B66: EB-2019-0032 | C66: 2020 | D66: 2019 | E66: 2009 | F66: System Access | G66: 2017 | H66: ='App.2-AB_Capital Expenditures'!Z17 -> 3325 | I66: ='App.2-AB_Capital Expenditures'!AA17 -> 3963
A67: ='LDC Info'!$E$14 -> ENWIN Utilities Ltd. | B67: EB-2019-0032 | C67: 2020 | D67: 2019 | E67: 2009 | F67: System Renewal | G67: 2017 | H67: ='App.2-AB_Capital Expenditures'!Z18 -> 6883 | I67: ='App.2-AB_Capital Expenditures'!AA18 -> 5456
A68: ='LDC Info'!$E$14 -> ENWIN Utilities Ltd. | B68: EB-2019-0032 | C68: 2020 | D68: 2019 | E68: 2009 | F68: System Service | G68: 2017 | H68: ='App.2-AB_Capital Expenditures'!Z19 -> 5979 | I68: ='App.2-AB_Capital Expenditures'!AA19 -> 3976
A69: ='LDC Info'!$E$14 -> ENWIN Utilities Ltd. | B69: EB-2019-0032 | C69: 2020 | D69: 2019 | E69: 2009 | F69: General Plant | G69: 2017 | H69: ='App.2-AB_Capital Expenditures'!Z20 -> 4652 | I69: ='App.2-AB_Capital Expenditures'!AA20 -> 2058
A70: ='LDC Info'!$E$14 -> ENWIN Utilities Ltd. | B70: EB-2019-0032 | C70: 2020 | D70: 2019 | E70: 2009 | F70: Total Expenditure | G70: 2017 | H70: ='App.2-AB_Capital Expenditures'!Z21 -> 20839 | I70: ='App.2-AB_Capital Expenditures'!AA21 -> 15453
A71: ='LDC Info'!$E$14 -> ENWIN Utilities Ltd. | B71: EB-2019-0032 | C71: 2020 | D71: 2019 | E71: 2009 | F71: Capital Contributions | G71: 2017 | H71: ='App.2-AB_Capital Expenditures'!Z22 -> -1234 | I71: ='App.2-AB_Capital Expenditures'!AA22 -> -2217
A72: ='LDC Info'!$E$14 -> ENWIN Utilities Ltd. | B72: EB-2019-0032 | C72: 2020 | D72: 2019 | E72: 2009 | F72: Net Capital Expenditures | G72: 2017 | H72: ='App.2-AB_Capital Expenditures'!Z23 -> 19605 | I72: ='App.2-AB_Capital Expenditures'!AA23 -> 13236
A73: ='LDC Info'!$E$14 -> ENWIN Utilities Ltd. | B73: EB-2019-0032 | C73: 2020 | D73: 2019 | E73: 2009 | F73: System O&M | G73: 2017 | H73: ='App.2-AB_Capital Expenditures'!Z24 -> 8813 | I73: ='App.2-AB_Capital Expenditures'!AA24 -> 9757
A74: ='LDC Info'!$E$14 -> ENWIN Utilities Ltd. | B74: =EBNUMBER -> EB-2019-0032 | C74: =TestYear -> 2020 | D74: =BridgeYear -> 2019 | E74: =RebaseYear -> 2009 | F74: System Access | G74: 2018 | H74: ='App.2-AB_Capital Expenditures'!AC17 -> 5269 | I74: ='App.2-AB_Capital Expenditures'!AD17 -> 3778
A75: ='LDC Info'!$E$14 -> ENWIN Utilities Ltd. | B75: EB-2019-0032 | C75: 2020 | D75: 2019 | E75: 2009 | F75: System Renewal | G75: 2018 | H75: ='App.2-AB_Capital Expenditures'!AC18 -> 6482 | I75: ='App.2-AB_Capital Expenditures'!AD18 -> 6353
A76: ='LDC Info'!$E$14 -> ENWIN Utilities Ltd. | B76: EB-2019-0032 | C76: 2020 | D76: 2019 | E76: 2009 | F76: System Service | G76: 2018 | H76: ='App.2-AB_Capital Expenditures'!AC19 -> 6135 | I76: ='App.2-AB_Capital Expenditures'!AD19 -> 5049
A77: ='LDC Info'!$E$14 -> ENWIN Utilities Ltd. | B77: EB-2019-0032 | C77: 2020 | D77: 2019 | E77: 2009 | F77: General Plant | G77: 2018 | H77: ='App.2-AB_Capital Expenditures'!AC20 -> 2399 | I77: ='App.2-AB_Capital Expenditures'!AD20 -> 4580
A78: ='LDC Info'!$E$14 -> ENWIN Utilities Ltd. | B78: EB-2019-0032 | C78: 2020 | D78: 2019 | E78: 2009 | F78: Total Expenditure | G78: 2018 | H78: ='App.2-AB_Capital Expenditures'!AC21 -> 20285 | I78: ='App.2-AB_Capital Expenditures'!AD21 -> 19760
A79: ='LDC Info'!$E$14 -> ENWIN Utilities Ltd. | B79: EB-2019-0032 | C79: 2020 | D79: 2019 | E79: 2009 | F79: Capital Contributions | G79: 2018 | H79: ='App.2-AB_Capital Expenditures'!AC22 -> -2921 | I79: ='App.2-AB_Capital Expenditures'!AD22 -> -3227
A80: ='LDC Info'!$E$14 -> ENWIN Utilities Ltd. | B80: EB-2019-0032 | C80: 2020 | D80: 2019 | E80: 2009 | F80: Net Capital Expenditures | G80: 2018 | H80: ='App.2-AB_Capital Expenditures'!AC23 -> 17364 | I80: ='App.2-AB_Capital Expenditures'!AD23 -> 16533
A81: ='LDC Info'!$E$14 -> ENWIN Utilities Ltd. | B81: EB-2019-0032 | C81: 2020 | D81: 2019 | E81: 2009 | F81: System O&M | G81: 2018 | H81: ='App.2-AB_Capital Expenditures'!AC24 -> 9488 | I81: ='App.2-AB_Capital Expenditures'!AD24 -> 9686
A82: ='LDC Info'!$E$14 -> ENWIN Utilities Ltd. | B82: EB-2019-0032 | C82: 2020 | D82: 2019 | E82: 2009 | F82: System Access | G82: 2019 | H82: ='App.2-AB_Capital Expenditures'!AF17 -> 7267 | I82: ='App.2-AB_Capital Expenditures'!AG17 -> 7267
A83: ='LDC Info'!$E$14 -> ENWIN Utilities Ltd. | B83: EB-2019-0032 | C83: 2020 | D83: 2019 | E83: 2009 | F83: System Renewal | G83: 2019 | H83: ='App.2-AB_Capital Expenditures'!AF18 -> 7289 | I83: ='App.2-AB_Capital Expenditures'!AG18 -> 6579
A84: ='LDC Info'!$E$14 -> ENWIN Utilities Ltd. | B84: EB-2019-0032 | C84: 2020 | D84: 2019 | E84: 2009 | F84: System Service | G84: 2019 | H84: ='App.2-AB_Capital Expenditures'!AF19 -> 4221 | I84: ='App.2-AB_Capital Expenditures'!AG19 -> 4221
A85: ='LDC Info'!$E$14 -> ENWIN Utilities Ltd. | B85: EB-2019-0032 | C85: 2020 | D85: 2019 | E85: 2009 | F85: General Plant | G85: 2019 | H85: ='App.2-AB_Capital Expenditures'!AF20 -> 7507 | I85: ='App.2-AB_Capital Expenditures'!AG20 -> 5307
A86: ='LDC Info'!$E$14 -> ENWIN Utilities Ltd. | B86: EB-2019-0032 | C86: 2020 | D86: 2019 | E86: 2009 | F86: Total Expenditure | G86: 2019 | H86: ='App.2-AB_Capital Expenditures'!AF21 -> 26284 | I86: ='App.2-AB_Capital Expenditures'!AG21 -> 23374
A87: ='LDC Info'!$E$14 -> ENWIN Utilities Ltd. | B87: EB-2019-0032 | C87: 2020 | D87: 2019 | E87: 2009 | F87: Capital Contributions | G87: 2019 | H87: ='App.2-AB_Capital Expenditures'!AF22 -> -4898 | I87: ='App.2-AB_Capital Expenditures'!AG22 -> -4898
A88: ='LDC Info'!$E$14 -> ENWIN Utilities Ltd. | B88: EB-2019-0032 | C88: 2020 | D88: 2019 | E88: 2009 | F88: Net Capital Expenditures | G88: 2019 | H88: ='App.2-AB_Capital Expenditures'!AF23 -> 21386 | I88: ='App.2-AB_Capital Expenditures'!AG23 -> 18476
A89: ='LDC Info'!$E$14 -> ENWIN Utilities Ltd. | B89: EB-2019-0032 | C89: 2020 | D89: 2019 | E89: 2009 | F89: System O&M | G89: 2019 | H89: ='App.2-AB_Capital Expenditures'!AF24 -> 10942 | I89: ='App.2-AB_Capital Expenditures'!AG24 -> 10942
A90: ='LDC Info'!$E$14 -> ENWIN Utilities Ltd. | B90: EB-2019-0032 | C90: 2020 | D90: 2019 | E90: 2009 | F90: System Access | G90: 2020 | H90: ='App.2-AB_Capital Expenditures'!AI17 -> 5727.5
A91: ='LDC Info'!$E$14 -> ENWIN Utilities Ltd. | B91: EB-2019-0032 | C91: 2020 | D91: 2019 | E91: 2009 | F91: System Renewal | G91: 2020 | H91: ='App.2-AB_Capital Expenditures'!AI18 -> 5609
A92: ='LDC Info'!$E$14 -> ENWIN Utilities Ltd. | B92: EB-2019-0032 | C92: 2020 | D92: 2019 | E92: 2009 | F92: System Service | G92: 2020 | H92: ='App.2-AB_Capital Expenditures'!AI19 -> 3537
A93: ='LDC Info'!$E$14 -> ENWIN Utilities Ltd. | B93: EB-2019-0032 | C93: 2020 | D93: 2019 | E93: 2009 | F93: General Plant | G93: 2020 | H93: ='App.2-AB_Capital Expenditures'!AI20 -> 6721
A94: ='LDC Info'!$E$14 -> ENWIN Utilities Ltd. | B94: EB-2019-0032 | C94: 2020 | D94: 2019 | E94: 2009 | F94: Total Expenditure | G94: 2020 | H94: ='App.2-AB_Capital Expenditures'!AI21 -> 21594.5
A95: ='LDC Info'!$E$14 -> ENWIN Utilities Ltd. | B95: EB-2019-0032 | C95: 2020 | D95: 2019 | E95: 2009 | F95: Capital Contributions | G95: 2020 | H95: ='App.2-AB_Capital Expenditures'!AI22 -> -3251.86
A96: ='LDC Info'!$E$14 -> ENWIN Utilities Ltd. | B96: EB-2019-0032 | C96: 2020 | D96: 2019 | E96: 2009 | F96: Net Capital Expenditures | G96: 2020 | H96: ='App.2-AB_Capital Expenditures'!AI23 -> 18342.64
A97: ='LDC Info'!$E$14 -> ENWIN Utilities Ltd. | B97: EB-2019-0032 | C97: 2020 | D97: 2019 | E97: 2009 | F97: System O&M | G97: 2020 | H97: ='App.2-AB_Capital Expenditures'!AI24 -> 10903.67801
A98: ='LDC Info'!$E$14 -> ENWIN Utilities Ltd. | B98: EB-2019-0032 | C98: 2020 | D98: 2019 | E98: 2009 | F98: System Access | G98: 2021 | H98: ='App.2-AB_Capital Expenditures'!AJ17 -> 3476
A99: ='LDC Info'!$E$14 -> ENWIN Utilities Ltd. | B99: EB-2019-0032 | C99: 2020 | D99: 2019 | E99: 2009 | F99: System Renewal | G99: 2021 | H99: ='App.2-AB_Capital Expenditures'!AJ18 -> 7322
A100: ='LDC Info'!$E$14 -> ENWIN Utilities Ltd. | B100: EB-2019-0032 | C100: 2020 | D100: 2019 | E100: 2009 | F100: System Service | G100: 2021 | H100: ='App.2-AB_Capital Expenditures'!AJ19 -> 3622
A101: ='LDC Info'!$E$14 -> ENWIN Utilities Ltd. | B101: EB-2019-0032 | C101: 2020 | D101: 2019 | E101: 2009 | F101: General Plant | G101: 2021 | H101: ='App.2-AB_Capital Expenditures'!AJ20 -> 4283
A102: ='LDC Info'!$E$14 -> ENWIN Utilities Ltd. | B102: EB-2019-0032 | C102: 2020 | D102: 2019 | E102: 2009 | F102: Total Expenditure | G102: 2021 | H102: ='App.2-AB_Capital Expenditures'!AJ21 -> 18703
A103: ='LDC Info'!$E$14 -> ENWIN Utilities Ltd. | B103: EB-2019-0032 | C103: 2020 | D103: 2019 | E103: 2009 | F103: Capital Contributions | G103: 2021 | H103: ='App.2-AB_Capital Expenditures'!AJ22 -> -813
A104: ='LDC Info'!$E$14 -> ENWIN Utilities Ltd. | B104: EB-2019-0032 | C104: 2020 | D104: 2019 | E104: 2009 | F104: Net Capital Expenditures | G104: 2021 | H104: ='App.2-AB_Capital Expenditures'!AJ23 -> 17890
A105: ='LDC Info'!$E$14 -> ENWIN Utilities Ltd. | B105: EB-2019-0032 | C105: 2020 | D105: 2019 | E105: 2009 | F105: System O&M | G105: 2021 | H105: ='App.2-AB_Capital Expenditures'!AJ24 -> 11048.733
A106: ='LDC Info'!$E$14 -> ENWIN Utilities Ltd. | B106: =EBNUMBER -> EB-2019-0032 | C106: =TestYear -> 2020 | D106: =BridgeYear -> 2019 | E106: =RebaseYear -> 2009 | F106: System Access | G106: 2022 | H106: ='App.2-AB_Capital Expenditures'!AK17 -> 3526
A107: ='LDC Info'!$E$14 -> ENWIN Utilities Ltd. | B107: EB-2019-0032 | C107: 2020 | D107: 2019 | E107: 2009 | F107: System Renewal | G107: 2022 | H107: ='App.2-AB_Capital Expenditures'!AK18 -> 6947
A108: ='LDC Info'!$E$14 -> ENWIN Utilities Ltd. | B108: EB-2019-0032 | C108: 2020 | D108: 2019 | E108: 2009 | F108: System Service | G108: 2022 | H108: ='App.2-AB_Capital Expenditures'!AK19 -> 3610
A109: ='LDC Info'!$E$14 -> ENWIN Utilities Ltd. | B109: EB-2019-0032 | C109: 2020 | D109: 2019 | E109: 2009 | F109: General Plant | G109: 2022 | H109: ='App.2-AB_Capital Expenditures'!AK20 -> 3856
A110: ='LDC Info'!$E$14 -> ENWIN Utilities Ltd. | B110: EB-2019-0032 | C110: 2020 | D110: 2019 | E110: 2009 | F110: Total Expenditure | G110: 2022 | H110: ='App.2-AB_Capital Expenditures'!AK21 -> 17939
A111: ='LDC Info'!$E$14 -> ENWIN Utilities Ltd. | B111: EB-2019-0032 | C111: 2020 | D111: 2019 | E111: 2009 | F111: Capital Contributions | G111: 2022 | H111: ='App.2-AB_Capital Expenditures'!AK22 -> -823
A112: ='LDC Info'!$E$14 -> ENWIN Utilities Ltd. | B112: EB-2019-0032 | C112: 2020 | D112: 2019 | E112: 2009 | F112: Net Capital Expenditures | G112: 2022 | H112: ='App.2-AB_Capital Expenditures'!AK23 -> 17116
A113: ='LDC Info'!$E$14 -> ENWIN Utilities Ltd. | B113: EB-2019-0032 | C113: 2020 | D113: 2019 | E113: 2009 | F113: System O&M | G113: 2022 | H113: ='App.2-AB_Capital Expenditures'!AK24 -> 11068.192
A114: ='LDC Info'!$E$14 -> ENWIN Utilities Ltd. | B114: EB-2019-0032 | C114: 2020 | D114: 2019 | E114: 2009 | F114: System Access | G114: 2023 | H114: ='App.2-AB_Capital Expenditures'!AL17 -> 3577
A115: ='LDC Info'!$E$14 -> ENWIN Utilities Ltd. | B115: EB-2019-0032 | C115: 2020 | D115: 2019 | E115: 2009 | F115: System Renewal | G115: 2023 | H115: ='App.2-AB_Capital Expenditures'!AL18 -> 7156
A116: ='LDC Info'!$E$14 -> ENWIN Utilities Ltd. | B116: EB-2019-0032 | C116: 2020 | D116: 2019 | E116: 2009 | F116: System Service | G116: 2023 | H116: ='App.2-AB_Capital Expenditures'!AL19 -> 3986
A117: ='LDC Info'!$E$14 -> ENWIN Utilities Ltd. | B117: EB-2019-0032 | C117: 2020 | D117: 2019 | E117: 2009 | F117: General Plant | G117: 2023 | H117: ='App.2-AB_Capital Expenditures'!AL20 -> 4174
A118: ='LDC Info'!$E$14 -> ENWIN Utilities Ltd. | B118: EB-2019-0032 | C118: 2020 | D118: 2019 | E118: 2009 | F118: Total Expenditure | G118: 2023 | H118: ='App.2-AB_Capital Expenditures'!AL21 -> 18893
A119: ='LDC Info'!$E$14 -> ENWIN Utilities Ltd. | B119: EB-2019-0032 | C119: 2020 | D119: 2019 | E119: 2009 | F119: Capital Contributions | G119: 2023 | H119: ='App.2-AB_Capital Expenditures'!AL22 -> -834
A120: ='LDC Info'!$E$14 -> ENWIN Utilities Ltd. | B120: EB-2019-0032 | C120: 2020 | D120: 2019 | E120: 2009 | F120: Net Capital Expenditures | G120: 2023 | H120: ='App.2-AB_Capital Expenditures'!AL23 -> 18059
A121: ='LDC Info'!$E$14 -> ENWIN Utilities Ltd. | B121: EB-2019-0032 | C121: 2020 | D121: 2019 | E121: 2009 | F121: System O&M | G121: 2023 | H121: ='App.2-AB_Capital Expenditures'!AL24 -> 11102.059
A122: ='LDC Info'!$E$14 -> ENWIN Utilities Ltd. | B122: EB-2019-0032 | C122: 2020 | D122: 2019 | E122: 2009 | F122: System Access | G122: 2024 | H122: ='App.2-AB_Capital Expenditures'!AM17 -> 3628
A123: ='LDC Info'!$E$14 -> ENWIN Utilities Ltd. | B123: EB-2019-0032 | C123: 2020 | D123: 2019 | E123: 2009 | F123: System Renewal | G123: 2024 | H123: ='App.2-AB_Capital Expenditures'!AM18 -> 6701
A124: ='LDC Info'!$E$14 -> ENWIN Utilities Ltd. | B124: EB-2019-0032 | C124: 2020 | D124: 2019 | E124: 2009 | F124: System Service | G124: 2024 | H124: ='App.2-AB_Capital Expenditures'!AM19 -> 3623
A125: ='LDC Info'!$E$14 -> ENWIN Utilities Ltd. | B125: EB-2019-0032 | C125: 2020 | D125: 2019 | E125: 2009 | F125: General Plant | G125: 2024 | H125: ='App.2-AB_Capital Expenditures'!AM20 -> 4213
A126: ='LDC Info'!$E$14 -> ENWIN Utilities Ltd. | B126: EB-2019-0032 | C126: 2020 | D126: 2019 | E126: 2009 | F126: Total Expenditure | G126: 2024 | H126: ='App.2-AB_Capital Expenditures'!AM21 -> 18165
A127: ='LDC Info'!$E$14 -> ENWIN Utilities Ltd. | B127: EB-2019-0032 | C127: 2020 | D127: 2019 | E127: 2009 | F127: Capital Contributions | G127: 2024 | H127: ='App.2-AB_Capital Expenditures'!AM22 -> -844
A128: ='LDC Info'!$E$14 -> ENWIN Utilities Ltd. | B128: EB-2019-0032 | C128: 2020 | D128: 2019 | E128: 2009 | F128: Net Capital Expenditures | G128: 2024 | H128: ='App.2-AB_Capital Expenditures'!AM23 -> 17321
A129: ='LDC Info'!$E$14 -> ENWIN Utilities Ltd. | B129: EB-2019-0032 | C129: 2020 | D129: 2019 | E129: 2009 | F129: System O&M | G129: 2024 | H129: ='App.2-AB_Capital Expenditures'!AM24 -> 11095.941

Sheet App.2-AC_Customer Engagement
B1: File Number: | C1: =EBNUMBER -> EB-2019-0032
B2: Exhibit:
B3: Tab:
B4: Schedule:
B5: Page:
B7: Date: | C7: 2019-09-24
A9: Appendix 2-AC
A10: Customer Engagement Activities Summary
A12: Provide a list of customer engagement activities | B12: Provide a list of customer needs and preferences identified through each engagement activity | C12: Actions taken to respond to identified needs and preferences. If no action was taken, explain why.
A13: Online Focus Group with an online workbook and survey available for 6 weeks.
A14: Four Town Hall Focus Groups for Low-Volume Customers (GS and Residential).
A15: Two Mid Market General Service workshops for General Service customers over 50 kW (GS > 50kW). Presentation and Q&A outlining DSP, spending decisions and rate implications and “breakout” groups with GS > 50kW customers to identify and collect their preferences and needs.
A16: Key Account Validation Interviews with four of EnWin's largest accounts were engaged through one-on-one meetings with EnWin staff.
A17: Call Centre | B17: 1. Identified need for protecting personal information 2. Identified need for electronic refund payment method 3. Identified need for timely notification of planned outages and credit process 4. Identified need for low income assistance 5. Identified need for consistent call centre assistance 6. Identified need to simplify phone menu | C17: 1. Based upon customer input, EnWin developed the use of account passwords so that customers are not required to validate drivers license or SIN on each call. 2. Provided a PAP option for FIT and MicroFIT customers for monthly refunds to increase ease and timeliness of payments to generation customers. 3. Implemented auto dialer to provide customers with advanced notice of planned outages. The dialer is also used provide advanced notice to customers in jeopardy of credit disconnection. 4. EnWin was a founding corporate sponsor of the "Keep the Heat" program to assist low income account holders prior to the introduction of mandatory donations through the LEAP program 5. Developed standardized CSR scripting to ensure accuracy and consistent delivery of information. Developed CSR training manual and implemented full cross training with Call Centre staff. 6. Made improvements to phone menu for easier navigation and to improve overall customer experience
A18: Print Media | B18: 1. Identified need for clarity in rate change information 2. Identified need for newsletters for specific period around TOU introduction | C18: 1. Updated bill insert presentation for simplification and clarity 2. Created newsletter series to introduce TOU and specific changes
A19: Digital Media | B19: 1. Identified need for more accessible access to information 2. Identified need to assist customers with billing and energy sector literacy 3. Identified need for direct-to-customer news and outage information 4. Identified need for online options to monitor usage | C19: 1. Creating a new website that will be easier to navigate, providing access to more information with fewer clicks 2. Website will have three news headlines and multiple banner options for obtaining sector and LDC news and information 3. Launched Twitter and an online Outage Map in 2016 4. Launched EnWinconnect in 2014 with options to understand and monitor energy usage 5. Created and launched YouTube channel
A20: Broadcast Media | B20: 1. Identified need for community understanding and awareness of safety during outages, emergencies, etc. | C20: 1. Local radio campaign partnership with CKLW and three Blackburn Radio Stations
A21: Town Halls and Public Meetings | B21: 1. Identified need to allow customers one-on-one interaction with the company, opportunity to ask questions, etc. | C21: 1. Initiated Powerful Partners campaign to develop stronger EnWin presence at community events - City events, Earth Hour, Safety Village, Ward meetings, etc.
A22: Community Participation | B22: 1. Identified need for more education on electrical safety; identified target audience as male, aged 35-45 DIY types (potential to reach this group through their children) 2. Identified need to train and retain skilled people available to enter the workforce | C22: 1. Continue to participate in the enhanced Safety Village Program in addition to the Public School Education program 2. Collaborated with Entegrus to produce six short safety videos targeting this audience, using humorous graphics to deliver six messages related to identified public electrical safety issues 2. Support & hire co-op students from the St. Clair College Powerline Maintainer Program
A23: Employee Fundraising & Volunteer | B23: 1. Identified need to provide support to organizations in Windsor | C23: 1. ENWIN supports employees to give back to the community through events such as food drives, participation in Dragon Boat for the Cure, United Way, Flush out Cancer, Maryvale Run, etc.
A24: Customer Surveys | B24: 1. Identified need for improved transparency | C24: 1. Provided executive compensation to Sunshine List 2. Opened up Board meetings to the public 3. Increased contact lists for media releases to include city departments, councillors, employees and influencers in the community (such as online blogs and newsletters)
A25: Home Shows | B25: 1. Identified need for regular outreach activities to promote conservation programs and new services 2. Identified need for direct interaction with multiple customer segments who may or may not engage the utility through phone and/or web | C25: 1. Targeted events to allow CDM to introduce energy conservation programming and new energy efficient technologies to our customers and discuss the importance/need of energy management, and options available to customer groups 2. Allow interaction with customers about various topics from billing to infrastructure and provide customers with contact information for the various groups within organization 3. Allows interested customers the ability to sign up for programming at the event
A26: Symposiums / Trade Shows (2013 & 2014) | B26: 1. Identified need for additional outreach in relation to conservation program promotion/assistance 2. Identified need to introduce energy efficient technologies to our customers to help them see the financial and environmental benefits of conservation | C26: 1. Able to collaborate with neighbouring utilities to bring together vendor and customers 2. Customers were able to listen to various presentations on the latest energy efficiency technology and engage with both the vendors (who supply and install said technology/equipment) and the utilities who support the various conservation programs and provide financial incentives towards the upgrades
A27: Large User Forums | B27: 1. Identified need/opportunity to keep largest customers informed on energy sector, industry trends, Provincial and EnWin specific initiatives | C27: 1. EnWin hosted a Large Electricity Account Forum (LEAF) event in 2013 2. Brought in industry experts to discuss sectoral changes, industry trends, etc.
A28: Electricity Safety and Conservation Program (Elementary Schools) | B28: 1. Identified need to teach children about electrical safety and conservation 2. Identified need to instil children with knowledge which they can then practice/promote within their home | C28: 1. EnWin in collaboration with Electricity Safety & Conservation developed an Electricity Safety & Conservation program which was administered throughout the GECDSB and the GECCSB
A29: CDM Community Events (ongoing) | B29: 1. Identified need/opportunity to interact with customers regarding various topics (conservation, billing, energy literacy, etc.) | C29: 1. Offers CDM staff the opportunity to engage customers on various topics related to energy efficiency
A30: CDM Outreach Activities (ongoing) | B30: 1. Identified need to promote the Save on Energy suite of Programs funded by the IESO 2. Identified need to promote the importance of Energy Management (customer retention, remain competitive, impact to bottom line, etc.) | C30: 1. Save on Energy programs promoted through various channels (phone, print, web, customer meetings, community events, etc.) 2. CDM staff conduct on-site visits with a large number of ICI customers annually
A31: Customer/Vendor Training Sessions | B31: 1. Identified need to increase knowledge /understanding of the importance of energy management in operation and energy consuming systems | C31: 1. Allows CDM staff to build/maintain relationships with customers/vendors and relate energy management back to conservation programs 2. Customers able to implement skills and knowledge obtained through training
A45: Note: Use "ALT-ENTER" to go to the next line within a cell

Sheet App.2-B_Acctg Instructions
A1: General Instructions to MIFRS Appendices
A2: Types of Schedules to File
A4: The purpose of this tab is to provide general instructions. The specific instructions to each appendix are listed in footnotes of each appendix.
A6: The typical applicant is expected to have made capitalization and depreciation policy changes under CGAAP as permitted by the Board on January 1, 2012 or mandated by the Board by January 1, 2013, and adopted IFRS for reporting purposes on January 1, 2015 (transition date January 1, 2014). Some distributors filing for 2018 rates have rebased with these accounting changes reflected in a prior rebasing application. If that is the case, information relating to pre-accounting policy changes is not generally required. The information to be provided by applicants will depend on when the accounting policy changes were made and when they last rebased. In general, applicants should provide the following information in the appendices:
E9: Reflecting Accounting Policy Changes in Current Application | G9: Reflected Accounting Policy Changes in Prior Application3
E10: Accounting Policy Changes in 2012 and Adopted IFRS in 2015 | F10: Accounting Policy Changes in 2013 and Adopted IFRS in 2015 | G10: Adopted IFRS in 2015
A11: Information to be filed in 2019 CoS Application | B11: 2019 | C11: Test | E11: MIFRS | F11: MIFRS | G11: MIFRS
B12: 2018 | C12: Bridge | E12: MIFRS | F12: MIFRS | G12: MIFRS
B13: 2017 | C13: Historical | E13: MIFRS | F13: MIFRS | G13: MIFRS
B14: 2016 | C14: Historical | E14: MIFRS | F14: MIFRS | G14: MIFRS
B15: 2015 | C15: Historical | E15: MIFRS and Revised CGAAP1 | F15: MIFRS and Revised CGAAP1 | G15: MIFRS and Revised CGAAP1
B16: 2014 | C16: Historical | E16: Revised CGAAP | F16: CGAAP and Revised CGAAP2 | G16: N/A
B17: 2013 | C17: Historical | E17: CGAAP and Revised CGAAP2 | F17: N/A | G17: N/A
A19: 1) For the transition year (2014), the applicant may file two appendices, one under Revised CGAAP and one under MIFRS, depending on the materiality of impacts. See the specific instructions under each appendix below for further details.
A20: 2) For applicants that are reflecting accounting policy changes for the first time in a rebasing application, the applicant must file two appendices in the year that the applicant implemented changes to its capitalization and depreciation policies (2012 or 2013), one before and one after the policy changes.
A21: 3) Applicants should provide CGAAP and Revised CGAAP schedules (i.e. as indicated in the first two columns of the above table) to support balances in Account 1576 if the account has yet to be disposed of.
A24: Appendix 2-BA - Fixed Asset Schedule
A26: Applicants are to provide Appendix 2-BA in accordance with the years and corresponding accounting standards noted in the above table to provide a year over year continuity in fixed assets.
A27: For the transition year (2014), the applicant should file two appendices, one under Revised CGAAP and one under MIFRS if the change between Revised CGAAP and MIFRS is material. If the change from the accounting standards is not material, the applicant may choose to only provide one appendix under MIFRS. However, the applicant must also indicate the fixed asset net book value balance under Revised CGAAP, the total dollar value of the change and explain why it is not material.
A31: The applicant must establish the continuity of historic cost for gross assets and accumulated depreciation by asset class by ensuring that the opening balance in the year agrees to the closing balance in the prior year.
A34: Appendix 2-Cx - Depreciation and Amortization
A36: Applicants are to provide Appendix 2-C in accordance with the years and corresponding accounting standards listed in the above table.
A37: Appendix 2-C is to be used under all three of the scenarios presented in the table above. In the appendix, the applicant will need to indicate which scenario applies. The appendix is to be duplicated for each year and accounting standard required under the scenario.
A38: Depreciation accounting policy changes were mandated by the Board by January 1, 2013. In general, no further changes to an applicant's depreciation policy (i.e. assets' service lives) are expected after the Board mandated changes by January 1, 2013. If the applicant has made any changes to its depreciation policy subsequent to the Board mandated changes, for the year of the change, applicants must complete Appendix 2-C before and after the change. Applicants must also explain the nature of the change, the reason for the change, quantify the impact of the change, and quantify the depreciation expense before and after the change.
A40: Appendix 2-E - Account 1575, IFRS-CGAAP Transitional PP&E Amounts (2-EA), Account 1576, Accounting Changes Under CGAAP (2-EB, 2-EC) CONTACT OEB STAFF IF TAB REQUIRED
A42: 1) For an applicant that has a balance in Account 1576 to dispose:
A43: · | B43: If an applicant changed capitalization and depreciation policies effective January 1, 2012, the applicant must complete Appendix 2-EB
A44: · | B44: If an applicant changed capitalization and depreciation policies effective January 1, 2013, the applicant must complete Appendix 2-EC
A46: 2) For an applicant that has a balance in Account 1575 to dispose:
A47: · | B47: The applicant must complete 2-EA
A48: If the applicant did not make any further PP&E accounting policy changes beyond the capitalization and depreciation policy changes as mandated by the Board by January 1, 2013 (i.e. no further changes made on transition to IFRS), the applicant must indicate this and does not need to complete Appendix 2-EA.
A52: Appendix 2-Y - Summary of Impacts to Revenue Requirement from Transition to MIFRS CONTACT OEB STAFF IF TAB REQUIRED
A54: An applicant must provide a summary of the dollar impacts of MIFRS to each component of the revenue requirement (e.g. rate base, operating costs, etc.), including the overall impact on the proposed revenue requirement. Accordingly, the applicant must identify financial differences and resulting revenue requirement impacts arising from the adoption of MIFRS as compared to CGAAP. If the applicant is reflecting the changes in capitalization and depreciation policies for the first time in a rebasing application, then a comparison between MIFRS and CGAAP before the change in accounting policies should be completed. If the applicant changed capitalization and depreciation policies and reflected these changes in a prior rebasing application, then a comparison between MIFRS and CGAAP after the change in accounting policies should be completed.

Sheet App.2-BA_Fixed Asset Cont
L1: File Number: | M1: =EBNUMBER -> EB-2019-0032
L2: Exhibit:
L3: Tab:
L4: Schedule:
L5: Page:
L7: Date: | M7: 2019-09-24
A9: Appendix 2-BA
A10: Fixed Asset Continuity Schedule 1
E12: Accounting Standard | F12: CGAAP
E13: Year | F13: 2009
D15: Cost | J15: Accumulated Depreciation
A16: CCA Class 2 | B16: OEB Account 3 | C16: Description 3 | D16: Opening Balance | E16: Additions 4 | F16: Disposals 6 | G16: Closing Balance | I16: Opening Balance | J16: Additions | K16: Disposals 6 | L16: Closing Balance | M16: Net Book Value
B17: 1609 | C17: Capital Contributions Paid | G17: =D17+E17+F17 -> 0 | L17: =I17+J17+K17 -> 0 | M17: =G17+L17 -> 0
A18: 12 | B18: 1611 | C18: Computer Software (Formally known as Account 1925) | D18: 13196363.44 | E18: 26204.63 | F18: -20779.98 | G18: =D18+E18+F18 -> 13201788.09 | I18: -11801258.48 | J18: -364155.86 | K18: -243973.93 | L18: =I18+J18+K18 -> -12409388.27 | M18: =G18+L18 -> 792399.82
A19: CEC | B19: 1612 | C19: Land Rights (Formally known as Account 1906) | D19: 30889.15 | E19: 0 | F19: 0 | G19: =D19+E19+F19 -> 30889.15 | I19: 0 | J19: 0 | K19: 0 | L19: =I19+J19+K19 -> 0 | M19: =G19+L19 -> 30889.15
A20: N/A | B20: 1805 | C20: Land | D20: 103434.56 | E20: 0 | F20: -2915.19 | G20: =D20+E20+F20 -> 100519.37 | I20: 0 | J20: 0 | K20: 0 | L20: =I20+J20+K20 -> 0 | M20: =G20+L20 -> 100519.37
A21: 47 | B21: 1808 | C21: Buildings | D21: 63856.99 | E21: 0 | F21: 25415.82 | G21: =D21+E21+F21 -> 89272.81 | I21: -14567.38 | J21: -6933.73 | K21: -29409.18 | L21: =I21+J21+K21 -> -50910.29 | M21: =G21+L21 -> 38362.52
A22: 13 | B22: 1810 | C22: Leasehold Improvements | D22: 0 | E22: 0 | F22: 0 | G22: 0 | I22: 0 | J22: 0 | K22: 0 | L22: 0 | M22: 0
A23: 47 | B23: 1815 | C23: Transformer Station Equipment >50 kV | D23: 30250670.62 | E23: 477099.16 | F23: -409878.29 | G23: 30317891.49 | I23: -5623099.81 | J23: -818268.66 | K23: 136232.01 | L23: -6305136.46 | M23: 24012755.03
A24: 47 | B24: 1820 | C24: Distribution Station Equipment <50 kV | D24: 2334679.62 | E24: 0 | F24: -1147.77 | G24: 2333531.85 | I24: -1040286.98 | J24: -81119.85 | K24: 482.28 | L24: -1120924.55 | M24: 1212607.3
A25: 47 | B25: 1825 | C25: Storage Battery Equipment | D25: 0 | E25: 0 | F25: 0 | G25: 0 | I25: 0 | J25: 0 | K25: 0 | L25: 0 | M25: 0
A26: 47 | B26: 1830 | C26: Poles, Towers & Fixtures | D26: 74752830.93 | E26: 3712103.28 | F26: -28864.83 | G26: 78436069.38 | I26: -24082923.9 | J26: -3381411.03 | K26: 71290.41 | L26: -27393044.52 | M26: 51043024.86
A27: 47 | B27: 1835 | C27: Overhead Conductors & Devices | D27: 0 | E27: 0 | F27: 0 | G27: 0 | I27: 0 | J27: 0 | K27: 0 | L27: 0 | M27: 0
A28: 47 | B28: 1840 | C28: Underground Conduit | D28: 67493417.42 | E28: 1319182.59 | F28: -38514.16 | G28: 68774085.85 | I28: -26543622.04 | J28: -3165847.37 | K28: 10946.85 | L28: -29698522.56 | M28: 39075563.29
A29: 47 | B29: 1845 | C29: Underground Conductors & Devices | D29: 0 | E29: 0 | F29: 0 | G29: 0 | I29: 0 | J29: 0 | K29: 0 | L29: 0 | M29: 0
A30: 47 | B30: 1850 | C30: Line Transformers | D30: 50686042.86 | E30: 2288695.49 | F30: 391734.23 | G30: 53366472.58 | I30: -17809323.18 | J30: -2638467.08 | K30: 4516.48 | L30: -20443273.78 | M30: 32923198.8
A31: 47 | B31: 1855 | C31: Services (Overhead & Underground) | D31: 851995.63 | E31: 1169831.62 | F31: 0 | G31: 2021827.25 | I31: -17216.76 | J31: -51385.5 | L31: -68602.26 | M31: 1953224.99
A32: 47 | B32: 1860 | C32: Meters | D32: 8340338.67 | E32: 208939.51 | F32: -2259.46 | G32: 8547018.72 | I32: -3219210.35 | J32: -404742.59 | K32: 42043.22 | L32: -3581909.72 | M32: 4965109
A33: 47 | B33: 1860 | C33: Meters (Smart Meters) | D33: 0 | E33: 0 | F33: 0 | G33: 0 | I33: 0 | J33: 0 | K33: 0 | L33: 0 | M33: 0
A34: N/A | B34: 1905 | C34: Land | D34: 1322514.43 | E34: 0 | F34: 0 | G34: 1322514.43 | I34: 0 | J34: 0 | K34: 0 | L34: 0 | M34: 1322514.43
A35: 47 | B35: 1908 | C35: Buildings & Fixtures | D35: 21307843.81 | E35: 114614.13 | F35: 38895.62 | G35: 21461353.56 | I35: -3661867.21 | J35: -446383.32 | K35: -11780.3 | L35: -4120030.83 | M35: 17341322.73
A36: 13 | B36: 1910 | C36: Leasehold Improvements | D36: 0 | E36: 0 | F36: 0 | G36: 0 | I36: 0 | J36: 0 | K36: 0 | L36: 0 | M36: 0
A37: 8 | B37: 1915 | C37: Office Furniture & Equipment (10 years) | D37: 1344041.65 | E37: 91671.85 | F37: -5897.69 | G37: 1429815.81 | I37: -924841.15 | J37: -90676.32 | K37: 5667.76 | L37: -1009849.71 | M37: 419966.1
A38: 8 | B38: 1915 | C38: Office Furniture & Equipment (5 years) | D38: 0 | E38: 0 | F38: 0 | G38: 0 | I38: 0 | J38: 0 | K38: 0 | L38: 0 | M38: 0
A39: 10 | B39: 1920 | C39: Computer Equipment - Hardware | D39: 1245406.99 | E39: 0 | F39: 0 | G39: 1245406.99 | I39: -1245406.99 | J39: 0 | K39: 0 | L39: -1245406.99 | M39: 0
A40: 45 | B40: 1920 | C40: Computer Equip.-Hardware(Post Mar. 22/04) | D40: 789719.2 | E40: 0 | F40: 0 | G40: 789719.2 | I40: -619167.03 | J40: -71205.65 | K40: 0 | L40: -690372.68 | M40: 99346.52
A41: 45.1 | B41: 1920 | C41: Computer Equip.-Hardware(Post Mar. 19/07) | D41: 934402.93 | E41: 424464.28 | F41: -5186.83 | G41: 1353680.38 | I41: -725410.75 | J41: -182925.37 | K41: 271052.83 | L41: -637283.29 | M41: 716397.09
A42: 10 | B42: 1930 | C42: Transportation Equipment | D42: 2621735.42 | E42: 501853.36 | F42: 5996.51 | G42: 3129585.29 | I42: -1779943.6 | J42: -144077.8 | K42: -6461.01 | L42: -1930482.41 | M42: 1199102.88
A43: 8 | B43: 1935 | C43: Stores Equipment | D43: 24072.06 | E43: 0 | F43: -2652.5 | G43: 21419.56 | I43: -18671.48 | J43: -1038.58 | K43: 2652.5 | L43: -17057.56 | M43: 4362
A44: 8 | B44: 1940 | C44: Tools, Shop & Garage Equipment | D44: 476553.16 | E44: 10975.39 | F44: -25061.39 | G44: 462467.16 | I44: -372189.52 | J44: -28924.24 | K44: 24483.47 | L44: -376630.29 | M44: 85836.87
A45: 8 | B45: 1945 | C45: Measurement & Testing Equipment | D45: 362109.75 | E45: 0 | F45: -9818.87 | G45: 352290.88 | I45: -319769.01 | J45: -10534.63 | K45: 9724.87 | L45: -320578.77 | M45: 31712.11
A46: 8 | B46: 1950 | C46: Power Operated Equipment | D46: 15142.54 | E46: 0 | F46: -2503.33 | G46: 12639.21 | I46: -14720.04 | J46: -123.65 | K46: 2503.33 | L46: -12340.36 | M46: 298.85
A47: 8 | B47: 1955 | C47: Communications Equipment | D47: 116840.09 | E47: 196767.55 | F47: -84173.23 | G47: 229434.41 | I47: -84146.04 | J47: -9178.54 | K47: 79156.82 | L47: -14167.76 | M47: 215266.65
A48: 8 | B48: 1955 | C48: Communication Equipment (Smart Meters) | D48: 0 | E48: 0 | F48: 0 | G48: 0 | I48: 0 | J48: 0 | K48: 0 | L48: 0 | M48: 0
A49: 8 | B49: 1960 | C49: Miscellaneous Equipment | D49: 2301625.51 | E49: 165588.87 | F49: -22519.06 | G49: 2444695.32 | I49: -1084622.22 | J49: -211320.63 | K49: 23342.49 | L49: -1272600.36 | M49: 1172094.96
A50: 47 | B50: 1970 | C50: Load Management Controls Customer Premises | D50: 0 | E50: 0 | F50: 0 | G50: 0 | I50: 0 | J50: 0 | K50: 0 | L50: 0 | M50: 0
A51: 47 | B51: 1975 | C51: Load Management Controls Utility Premises | D51: 0 | E51: 0 | F51: 0 | G51: 0 | I51: 0 | J51: 0 | K51: 0 | L51: 0 | M51: 0
A52: 47 | B52: 1980 | C52: System Supervisor Equipment | D52: 0 | E52: 0 | F52: 0 | G52: 0 | I52: 0 | J52: 0 | K52: 0 | L52: 0 | M52: 0
A53: 47 | B53: 1985 | C53: Miscellaneous Fixed Assets | D53: 0 | E53: 0 | F53: 0 | G53: 0 | I53: 0 | J53: 0 | K53: 0 | L53: 0 | M53: 0
A54: 47 | B54: 1990 | C54: Other Tangible Property | D54: 0 | E54: 0 | F54: 0 | G54: 0 | I54: 0 | J54: 0 | K54: 0 | L54: 0 | M54: 0
A55: 47 | B55: 1995 | C55: Contributions & Grants | D55: -11399978.94 | E55: -551052.69 | F55: 0 | G55: -11951031.63 | I55: 1797037.66 | J55: 462612.4 | K55: 0 | L55: 2259650.06 | M55: -9691381.57
A56: 47 | B56: 2440 | C56: Deferred Revenue5 | D56: 192380.5 | E56: 0 | F56: 0 | G56: 192380.5 | I56: -126652.33 | J56: -40077.07 | K56: 0 | L56: -166729.4 | M56: 25651.1
D57: 0 | E57: 0 | F57: 0 | G57: 0 | L57: 0 | M57: 0
C58: Sub-Total | D58: =SUM(D17:D57) -> 269758929 | E58: =SUM(E17:E57) -> 10156939.02 | F58: =SUM(F17:F57) -> -200130.4 | G58: =SUM(G17:G57) -> 279715737.6 | I58: =SUM(I17:I57) -> -99331878.59 | J58: =SUM(J17:J57) -> -11686185.07 | K58: =SUM(K17:K57) -> 392470.9 | L58: =SUM(L17:L57) -> -110625592.8 | M58: =SUM(M17:M57) -> 169090144.9
C59: Less Socialized Renewable Energy Generation Investments (input as negative) | G59: =D59+E59+F59 -> 0 | L59: =I59+J59+K59 -> 0 | M59: =G59+L59 -> 0
C60: Less Other Non Rate-Regulated Utility Assets (input as negative) | G60: 0 | L60: =I60+J60+K60 -> 0 | M60: 0
C61: Total PP&E | D61: =SUM(D58:D60) -> 269758929 | E61: =SUM(E58:E60) -> 10156939.02 | F61: =SUM(F58:F60) -> -200130.4 | G61: =SUM(G58:G60) -> 279715737.6 | I61: =SUM(I58:I60) -> -99331878.59 | J61: =SUM(J58:J60) -> -11686185.07 | K61: =SUM(K58:K60) -> 392470.9 | L61: =SUM(L58:L60) -> -110625592.8 | M61: =SUM(M58:M60) -> 169090144.9
C62: Depreciation Expense adj. from gain or loss on the retirement of assets (pool of like assets), if applicable6
C63: Total | J63: =J61+J62 -> -11686185.07
I65: Less: Fully Allocated Depreciation
A66: 10 | C66: Transportation | I66: Transportation | K66: =+J42 -> -144077.8
A67: 8 | C67: Stores Equipment | I67: Stores Equipment | K67: =+J43 -> -1038.58
I68: Net Depreciation | K68: =J63-K66-K67 -> -11541068.69
A70: Notes:
A72: 1 | B72: Tables in the format outlined above covering all fixed asset accounts should be submitted for the Test Year, Bridge Year and all relevant historical years. At a minimum , the applicant must provide data for the earlier of: 1) all historical years back to its last rebasing; or 2) at least three years of historical actuals, in addition to Bridge Year and Test Year forecasts.
A75: 2 | B75: The "CCA Class" for fixed assets should agree with the CCA Class used for tax purposes in Tax Returns. Fixed Assets sub-components may be used where the underlying asset components are classified under multiple CCA Classes for tax purposes. If an applicant uses any different classes from those shown in the table, an explanation should be provided. (also see note 3).
A78: 3 | B78: The table may need to be customized for a utility's asset categories or for any new asset accounts announced or authorized by the Board.
A80: 4 | B80: The additions in column (E) must not include construction work in progress (CWIP).
A82: 5 | B82: Effective on the date of IFRS adoption, customer contributions will no longer be recorded in Account 1995 Contributions & Grants, but will be recorded in Account 2440, Deferred Revenues.
A84: 6 | B84: The applicant must ensure that all asset disposals have been clearly identified in the Chapter 2 Appendices for all historic, bridge and test years. Where a distributor for general financial reporting purposes under IFRS has accounted for the amount of gain or loss on the retirement of assets in a pool of like assets as a charge or credit to income, for reporting and rate application filings, the distributor shall reclassify such gains and losses as depreciation expense, and disclose the amount separately.
E88: Accounting Standard | F88: CGAAP
E89: Year | F89: 2010
D91: Cost | J91: Accumulated Depreciation
A92: CCA Class 2 | B92: OEB Account 3 | C92: Description 3 | D92: Opening Balance | E92: Additions 4 | F92: Disposals 6 | G92: Closing Balance | I92: Opening Balance | J92: Additions | K92: Disposals 6 | L92: Closing Balance | M92: Net Book Value
B93: 1609 | C93: Capital Contributions Paid | G93: =D93+E93+F93 -> 0 | L93: =I93+J93+K93 -> 0 | M93: =G93+L93 -> 0
A94: 12 | B94: 1611 | C94: Computer Software (Formally known as Account 1925) | D94: 13201788.09 | E94: 13769462.09 | F94: -4989559.76 | G94: =D94+E94+F94 -> 21981690.42 | I94: -12409388.27 | J94: -2077131.13 | K94: 4989559.76 | L94: =I94+J94+K94 -> -9496959.64 | M94: =G94+L94 -> 12484730.78
A95: CEC | B95: 1612 | C95: Land Rights (Formally known as Account 1906) | D95: 30889.15 | E95: 0 | F95: 0 | G95: =D95+E95+F95 -> 30889.15 | I95: 0 | J95: 0 | K95: 0 | L95: =I95+J95+K95 -> 0 | M95: =G95+L95 -> 30889.15
A96: N/A | B96: 1805 | C96: Land | D96: 100519.37 | E96: 0 | F96: 0 | G96: =D96+E96+F96 -> 100519.37 | I96: 0 | J96: 0 | K96: 0 | L96: =I96+J96+K96 -> 0 | M96: =G96+L96 -> 100519.37
A97: 47 | B97: 1808 | C97: Buildings | D97: 89272.81 | E97: 0 | F97: 0 | G97: =D97+E97+F97 -> 89272.81 | I97: -50910.29 | J97: -6252.71 | K97: 0 | L97: =I97+J97+K97 -> -57163 | M97: =G97+L97 -> 32109.81
A98: 13 | B98: 1810 | C98: Leasehold Improvements | D98: 0 | E98: 0 | F98: 0 | G98: 0 | I98: 0 | J98: 0 | K98: 0 | L98: 0 | M98: 0
A99: 47 | B99: 1815 | C99: Transformer Station Equipment >50 kV | D99: 30317891.49 | E99: 0 | F99: 0 | G99: 30317891.49 | I99: -6305136.46 | J99: -821734.21 | K99: 0 | L99: -7126870.67 | M99: 23191020.82
A100: 47 | B100: 1820 | C100: Distribution Station Equipment <50 kV | D100: 2333531.85 | E100: 0 | F100: 0 | G100: 2333531.85 | I100: -1120924.55 | J100: -79196.33 | K100: 0 | L100: -1200120.88 | M100: 1133410.97
A101: 47 | B101: 1825 | C101: Storage Battery Equipment | D101: 0 | E101: 0 | F101: 0 | G101: 0 | I101: 0 | J101: 0 | K101: 0 | L101: 0 | M101: 0
A102: 47 | B102: 1830 | C102: Poles, Towers & Fixtures | D102: 78436069.38 | E102: 4072446.27 | F102: 0 | G102: 82508515.65 | I102: -27393044.52 | J102: -3470007.69 | L102: -30863052.21 | M102: 51645463.44
A103: 47 | B103: 1835 | C103: Overhead Conductors & Devices | D103: 0 | E103: 0 | F103: 0 | G103: 0 | I103: 0 | J103: 0 | K103: 0 | L103: 0 | M103: 0
A104: 47 | B104: 1840 | C104: Underground Conduit | D104: 68774085.85 | E104: 1482581.37 | F104: 0 | G104: 70256667.22 | I104: -29698522.56 | J104: -3224679.88 | K104: 0 | L104: -32923202.44 | M104: 37333464.78
A105: 47 | B105: 1845 | C105: Underground Conductors & Devices | D105: 0 | E105: 0 | F105: 0 | G105: 0 | I105: 0 | J105: 0 | K105: 0 | L105: 0 | M105: 0
A106: 47 | B106: 1850 | C106: Line Transformers | D106: 53366472.58 | E106: 2082534.22 | F106: 0 | G106: 55449006.8 | I106: -20443273.78 | J106: -2575588.61 | K106: 0 | L106: -23018862.39 | M106: 32430144.41
A107: 47 | B107: 1855 | C107: Services (Overhead & Underground) | D107: 2021827.25 | E107: 1546225.34 | F107: 0 | G107: 3568052.59 | I107: -68602.26 | J107: -102022.02 | K107: 0 | L107: -170624.28 | M107: 3397428.31
A108: 47 | B108: 1860 | C108: Meters | D108: 8547018.72 | E108: 284257.59 | F108: -2673421.46 | G108: 6157854.85 | I108: -3581909.72 | J108: -406057.14 | K108: 1183819.68 | L108: -2804147.18 | M108: 3353707.67
A109: 47 | B109: 1860 | C109: Meters (Smart Meters) | D109: 0 | E109: 0 | F109: 0 | G109: 0 | I109: 0 | J109: 0 | K109: 0 | L109: 0 | M109: 0
A110: N/A | B110: 1905 | C110: Land | D110: 1322514.43 | E110: 0 | F110: 0 | G110: 1322514.43 | I110: 0 | J110: 0 | K110: 0 | L110: 0 | M110: 1322514.43
A111: 47 | B111: 1908 | C111: Buildings & Fixtures | D111: 21461353.56 | E111: 265211.24 | F111: 20138.82 | G111: 21746703.62 | I111: -4120030.83 | J111: -431332 | K111: 0 | L111: -4551362.83 | M111: 17195340.79
A112: 13 | B112: 1910 | C112: Leasehold Improvements | D112: 0 | E112: 0 | F112: 0 | G112: 0 | I112: 0 | J112: 0 | K112: 0 | L112: 0 | M112: 0
A113: 8 | B113: 1915 | C113: Office Furniture & Equipment (10 years) | D113: 1429815.81 | E113: 41066.58 | F113: 0 | G113: 1470882.39 | I113: -1009849.71 | J113: -72190.91 | L113: -1082040.62 | M113: 388841.77
A114: 8 | B114: 1915 | C114: Office Furniture & Equipment (5 years) | D114: 0 | E114: 0 | F114: 0 | G114: 0 | I114: 0 | J114: 0 | K114: 0 | L114: 0 | M114: 0
A115: 10 | B115: 1920 | C115: Computer Equipment - Hardware | D115: 1245406.99 | E115: 0 | F115: 0 | G115: 1245406.99 | I115: -1245406.99 | J115: 0 | K115: 0 | L115: -1245406.99 | M115: 0
A116: 45 | B116: 1920 | C116: Computer Equip.-Hardware(Post Mar. 22/04) | D116: 789719.2 | E116: 0 | F116: 0 | G116: 789719.2 | I116: -690372.68 | J116: -71205.65 | K116: 0 | L116: -761578.33 | M116: 28140.87
A117: 45.1 | B117: 1920 | C117: Computer Equip.-Hardware(Post Mar. 19/07) | D117: 1353680.38 | E117: 1447004.07 | F117: -433097.87 | G117: 2367586.58 | I117: -637283.29 | J117: -377774.68 | K117: 485036.15 | L117: -530021.82 | M117: 1837564.76
A118: 10 | B118: 1930 | C118: Transportation Equipment | D118: 3129585.29 | E118: 318596 | F118: -317580.56 | G118: 3130600.73 | I118: -1930482.41 | J118: -152886.71 | K118: 248193.74 | L118: -1835175.38 | M118: 1295425.35
A119: 8 | B119: 1935 | C119: Stores Equipment | D119: 21419.56 | E119: 15510.84 | F119: 0 | G119: 36930.4 | I119: -17057.56 | J119: -532.18 | K119: 0 | L119: -17589.74 | M119: 19340.66
A120: 8 | B120: 1940 | C120: Tools, Shop & Garage Equipment | D120: 462467.16 | E120: 0 | F120: 0 | G120: 462467.16 | I120: -376630.29 | J120: -25852.3 | K120: 0 | L120: -402482.59 | M120: 59984.57
A121: 8 | B121: 1945 | C121: Measurement & Testing Equipment | D121: 352290.88 | E121: 28700.34 | F121: 1753.92 | G121: 382745.14 | I121: -320578.77 | J121: -10281.28 | K121: 0 | L121: -330860.05 | M121: 51885.09
A122: 8 | B122: 1950 | C122: Power Operated Equipment | D122: 12639.21 | E122: 0 | F122: 0 | G122: 12639.21 | I122: -12340.36 | J122: -123.66 | K122: 0 | L122: -12464.02 | M122: 175.19
A123: 8 | B123: 1955 | C123: Communications Equipment | D123: 229434.41 | E123: 196869.4 | F123: 0 | G123: 426303.81 | I123: -14167.76 | J123: -49980.64 | K123: 0 | L123: -64148.4 | M123: 362155.41
A124: 8 | B124: 1955 | C124: Communication Equipment (Smart Meters) | D124: 0 | E124: 0 | F124: 0 | G124: 0 | I124: 0 | J124: 0 | K124: 0 | L124: 0 | M124: 0
A125: 8 | B125: 1960 | C125: Miscellaneous Equipment | D125: 2444695.32 | E125: 88124.81 | F125: 0 | G125: 2532820.13 | I125: -1272600.36 | J125: -226455.44 | K125: 0 | L125: -1499055.8 | M125: 1033764.33
A126: 47 | B126: 1970 | C126: Load Management Controls Customer Premises | D126: 0 | E126: 0 | F126: 0 | G126: 0 | I126: 0 | J126: 0 | K126: 0 | L126: 0 | M126: 0
A127: 47 | B127: 1975 | C127: Load Management Controls Utility Premises | D127: 0 | E127: 0 | F127: 0 | G127: 0 | I127: 0 | J127: 0 | K127: 0 | L127: 0 | M127: 0
A128: 47 | B128: 1980 | C128: System Supervisor Equipment | D128: 0 | E128: 0 | F128: 0 | G128: 0 | I128: 0 | J128: 0 | K128: 0 | L128: 0 | M128: 0
A129: 47 | B129: 1985 | C129: Miscellaneous Fixed Assets | D129: 0 | E129: 0 | F129: 0 | G129: 0 | I129: 0 | J129: 0 | K129: 0 | L129: 0 | M129: 0
A130: 47 | B130: 1990 | C130: Other Tangible Property | D130: 0 | E130: 0 | F130: 0 | G130: 0 | I130: 0 | J130: 0 | K130: 0 | L130: 0 | M130: 0
A131: 47 | B131: 1995 | C131: Contributions & Grants | D131: -11951031.63 | E131: -221209.21 | F131: 0 | G131: -12172240.84 | I131: 2259650.06 | J131: 480268.6 | K131: 0 | L131: 2739918.66 | M131: -9432322.18
A132: 47 | B132: 2440 | C132: Deferred Revenue5 | D132: 192380.5 | E132: 0 | F132: 0 | G132: 192380.5 | I132: -166729.4 | J132: -25651.1 | K132: 0 | L132: -192380.5 | M132: 0
D133: 0 | E133: 0 | F133: 0 | G133: 0 | L133: 0 | M133: 0
C134: Sub-Total | D134: =SUM(D93:D133) -> 279715737.6 | E134: =SUM(E93:E133) -> 25417380.95 | F134: =SUM(F93:F133) -> -8391766.91 | G134: =SUM(G93:G133) -> 296741351.7 | I134: =SUM(I93:I133) -> -110625592.8 | J134: =SUM(J93:J133) -> -13726667.67 | K134: =SUM(K93:K133) -> 6906609.33 | L134: =SUM(L93:L133) -> -117445651.1 | M134: =SUM(M93:M133) -> 179295700.6
C135: Less Socialized Renewable Energy Generation Investments (input as negative) | G135: =D135+E135+F135 -> 0 | L135: =I135+J135+K135 -> 0 | M135: =G135+L135 -> 0
C136: Less Other Non Rate-Regulated Utility Assets (input as negative) | G136: =D136+E136+F136 -> 0 | L136: =I136+J136+K136 -> 0 | M136: =G136+L136 -> 0
C137: Total PP&E | D137: =SUM(D134:D136) -> 279715737.6 | E137: =SUM(E134:E136) -> 25417380.95 | F137: =SUM(F134:F136) -> -8391766.91 | G137: =SUM(G134:G136) -> 296741351.7 | I137: =SUM(I134:I136) -> -110625592.8 | J137: =SUM(J134:J136) -> -13726667.67 | K137: =SUM(K134:K136) -> 6906609.33 | L137: =SUM(L134:L136) -> -117445651.1 | M137: =SUM(M134:M136) -> 179295700.6
C138: Depreciation Expense adj. from gain or loss on the retirement of assets (pool of like assets), if applicable6
C139: Total | J139: =J137+J138 -> -13726667.67
I141: Less: Fully Allocated Depreciation
A142: 10 | C142: Transportation | I142: Transportation | K142: =+J118 -> -152886.71
A143: 8 | C143: Stores Equipment | I143: Stores Equipment | K143: =+J119 -> -532.18
I144: Net Depreciation | K144: =J139-K142-K143 -> -13573248.78
E146: Accounting Standard | F146: CGAAP
E147: Year | F147: 2011
D149: Cost | J149: Accumulated Depreciation
A150: CCA Class 2 | B150: OEB Account 3 | C150: Description 3 | D150: Opening Balance | E150: Additions 4 | F150: Disposals 6 | G150: Closing Balance | I150: Opening Balance | J150: Additions | K150: Disposals 6 | L150: Closing Balance | M150: Net Book Value
B151: 1609 | C151: Capital Contributions Paid | G151: =D151+E151+F151 -> 0 | L151: =I151+J151+K151 -> 0 | M151: =G151+L151 -> 0
A152: 12 | B152: 1611 | C152: Computer Software (Formally known as Account 1925) | D152: 21981690.42 | E152: 758990.19 | F152: 0 | G152: =D152+E152+F152 -> 22740680.61 | I152: -9496959.64 | J152: -3000853.45 | L152: =I152+J152+K152 -> -12497813.09 | M152: =G152+L152 -> 10242867.52
A153: CEC | B153: 1612 | C153: Land Rights (Formally known as Account 1906) | D153: 30889.15 | E153: 0 | F153: 0 | G153: =D153+E153+F153 -> 30889.15 | I153: 0 | J153: 0 | K153: 0 | L153: =I153+J153+K153 -> 0 | M153: =G153+L153 -> 30889.15
A154: N/A | B154: 1805 | C154: Land | D154: 100519.37 | E154: 0 | F154: -6108.06 | G154: =D154+E154+F154 -> 94411.31 | I154: 0 | J154: 0 | K154: 0 | L154: =I154+J154+K154 -> 0 | M154: =G154+L154 -> 94411.31
A155: 47 | B155: 1808 | C155: Buildings | D155: 89272.81 | E155: 31099.66 | F155: 0 | G155: =D155+E155+F155 -> 120372.47 | I155: -57163 | J155: -6366.75 | K155: 0 | L155: =I155+J155+K155 -> -63529.75 | M155: =G155+L155 -> 56842.72
A156: 13 | B156: 1810 | C156: Leasehold Improvements | D156: 0 | E156: 0 | F156: 0 | G156: 0 | I156: 0 | J156: 0 | K156: 0 | L156: 0 | M156: 0
A157: 47 | B157: 1815 | C157: Transformer Station Equipment >50 kV | D157: 30317891.49 | E157: 23637.88 | F157: 0 | G157: 30341529.37 | I157: -7126870.67 | J157: -821790.47 | K157: 0 | L157: -7948661.14 | M157: 22392868.23
A158: 47 | B158: 1820 | C158: Distribution Station Equipment <50 kV | D158: 2333531.85 | E158: 0 | F158: 0 | G158: 2333531.85 | I158: -1200120.88 | J158: -79196.34 | K158: 0 | L158: -1279317.22 | M158: 1054214.63
A159: 47 | B159: 1825 | C159: Storage Battery Equipment | D159: 0 | E159: 0 | F159: 0 | G159: 0 | I159: 0 | J159: 0 | K159: 0 | L159: 0 | M159: 0
A160: 47 | B160: 1830 | C160: Poles, Towers & Fixtures | D160: 82508515.65 | E160: 6260553.57 | F160: -52292.63 | G160: 88716776.59 | I160: -30863052.21 | J160: -3585576.65 | K160: 49953.01 | L160: -34398675.85 | M160: 54318100.74
A161: 47 | B161: 1835 | C161: Overhead Conductors & Devices | D161: 0 | E161: 0 | F161: 0 | G161: 0 | I161: 0 | J161: 0 | K161: 0 | L161: 0 | M161: 0
A162: 47 | B162: 1840 | C162: Underground Conduit | D162: 70256667.22 | E162: 1328147.49 | F162: 0 | G162: 71584814.71 | I162: -32923202.44 | J162: -3222244.32 | K162: 0 | L162: -36145446.76 | M162: 35439367.95
A163: 47 | B163: 1845 | C163: Underground Conductors & Devices | D163: 0 | E163: 0 | F163: 0 | G163: 0 | I163: 0 | J163: 0 | K163: 0 | L163: 0 | M163: 0
A164: 47 | B164: 1850 | C164: Line Transformers | D164: 55449006.8 | E164: 2310927.63 | F164: -720935.7 | G164: 57038998.73 | I164: -23018862.39 | J164: -2570977.73 | K164: 312978.94 | L164: -25276861.18 | M164: 31762137.55
A165: 47 | B165: 1855 | C165: Services (Overhead & Underground) | D165: 3568052.59 | E165: 1204770.3 | F165: 0 | G165: 4772822.89 | I165: -170624.28 | J165: -152044.68 | K165: 0 | L165: -322668.96 | M165: 4450153.93
A166: 47 | B166: 1860 | C166: Meters | D166: 6157854.85 | E166: 433745.35 | F166: -1793175.12 | G166: 4798425.08 | I166: -2804147.18 | J166: -243559.2 | K166: 796827.98 | L166: -2250878.4 | M166: 2547546.68
A167: 47 | B167: 1860 | C167: Meters (Smart Meters) | D167: 0 | E167: 1720.37 | F167: 0 | G167: 1720.37 | I167: 0 | J167: -9.57 | K167: 0 | L167: -9.57 | M167: 1710.8
A168: N/A | B168: 1905 | C168: Land | D168: 1322514.43 | E168: 0 | F168: 0 | G168: 1322514.43 | I168: 0 | J168: 0 | K168: 0 | L168: 0 | M168: 1322514.43
A169: 47 | B169: 1908 | C169: Buildings & Fixtures | D169: 21746703.62 | E169: 329273.59 | F169: 0 | G169: 22075977.21 | I169: -4551362.83 | J169: -437268.44 | K169: 0 | L169: -4988631.27 | M169: 17087345.94
A170: 13 | B170: 1910 | C170: Leasehold Improvements | D170: 0 | E170: 0 | F170: 0 | G170: 0 | I170: 0 | J170: 0 | K170: 0 | L170: 0 | M170: 0
A171: 8 | B171: 1915 | C171: Office Furniture & Equipment (10 years) | D171: 1470882.39 | E171: 39566 | F171: 0 | G171: 1510448.39 | I171: -1082040.62 | J171: -66748.07 | K171: 0 | L171: -1148788.69 | M171: 361659.7
A172: 8 | B172: 1915 | C172: Office Furniture & Equipment (5 years) | D172: 0 | E172: 0 | F172: 0 | G172: 0 | I172: 0 | J172: 0 | K172: 0 | L172: 0 | M172: 0
A173: 10 | B173: 1920 | C173: Computer Equipment - Hardware | D173: 1245406.99 | E173: 0 | F173: 0 | G173: 1245406.99 | I173: -1245406.99 | J173: 0 | K173: 0 | L173: -1245406.99 | M173: 0
A174: 45 | B174: 1920 | C174: Computer Equip.-Hardware(Post Mar. 22/04) | D174: 789719.2 | E174: 0 | F174: 0 | G174: 789719.2 | I174: -761578.33 | J174: -28140.87 | K174: 0 | L174: -789719.2 | M174: 0
A175: 45.1 | B175: 1920 | C175: Computer Equip.-Hardware(Post Mar. 19/07) | D175: 2367586.58 | E175: 209864.23 | F175: 0 | G175: 2577450.81 | I175: -530021.82 | J175: -479169.78 | K175: 0 | L175: -1009191.6 | M175: 1568259.21
A176: 10 | B176: 1930 | C176: Transportation Equipment | D176: 3130600.73 | E176: 6273.5 | F176: -104578.41 | G176: 3032295.82 | I176: -1835175.38 | J176: -153106.65 | K176: 104578 | L176: -1883704.03 | M176: 1148591.79
A177: 8 | B177: 1935 | C177: Stores Equipment | D177: 36930.4 | E177: 66918.16 | F177: 0 | G177: 103848.56 | I177: -17589.74 | J177: -4047.18 | K177: 0 | L177: -21636.92 | M177: 82211.64
A178: 8 | B178: 1940 | C178: Tools, Shop & Garage Equipment | D178: 462467.16 | E178: 21885.08 | F178: 0 | G178: 484352.24 | I178: -402482.59 | J178: -17256.27 | K178: 0 | L178: -419738.86 | M178: 64613.38
A179: 8 | B179: 1945 | C179: Measurement & Testing Equipment | D179: 382745.14 | E179: 253346.65 | F179: 0 | G179: 636091.79 | I179: -330860.05 | J179: -13281.47 | K179: 0 | L179: -344141.52 | M179: 291950.27
A180: 8 | B180: 1950 | C180: Power Operated Equipment | D180: 12639.21 | E180: 0 | F180: 0 | G180: 12639.21 | I180: -12464.02 | J180: -123.66 | K180: 0 | L180: -12587.68 | M180: 51.53
A181: 8 | B181: 1955 | C181: Communications Equipment | D181: 426303.81 | E181: 29553.62 | F181: 0 | G181: 455857.43 | I181: -64148.4 | J181: -60373.06 | K181: 0 | L181: -124521.46 | M181: 331335.97
A182: 8 | B182: 1955 | C182: Communication Equipment (Smart Meters) | D182: 0 | E182: 0 | F182: 0 | G182: 0 | I182: 0 | J182: 0 | K182: 0 | L182: 0 | M182: 0
A183: 8 | B183: 1960 | C183: Miscellaneous Equipment | D183: 2532820.13 | E183: 71932.49 | F183: 0 | G183: 2604752.62 | I183: -1499055.8 | J183: -235438.13 | K183: 0 | L183: -1734493.93 | M183: 870258.69
A184: 47 | B184: 1970 | C184: Load Management Controls Customer Premises | D184: 0 | E184: 0 | F184: 0 | G184: 0 | I184: 0 | J184: 0 | K184: 0 | L184: 0 | M184: 0
A185: 47 | B185: 1975 | C185: Load Management Controls Utility Premises | D185: 0 | E185: 0 | F185: 0 | G185: 0 | I185: 0 | J185: 0 | K185: 0 | L185: 0 | M185: 0
A186: 47 | B186: 1980 | C186: System Supervisor Equipment | D186: 0 | E186: 0 | F186: 0 | G186: 0 | I186: 0 | J186: 0 | K186: 0 | L186: 0 | M186: 0
A187: 47 | B187: 1985 | C187: Miscellaneous Fixed Assets | D187: 0 | E187: 0 | F187: 0 | G187: 0 | I187: 0 | J187: 0 | K187: 0 | L187: 0 | M187: 0
A188: 47 | B188: 1990 | C188: Other Tangible Property | D188: 0 | E188: 0 | F188: 0 | G188: 0 | I188: 0 | J188: 0 | K188: 0 | L188: 0 | M188: 0
A189: 47 | B189: 1995 | C189: Contributions & Grants | D189: -12172240.84 | E189: -332537.12 | F189: 5482.23 | G189: -12499295.73 | I189: 2739918.66 | J189: 494344.66 | K189: -182.76 | L189: 3234080.56 | M189: -9265215.17
A190: 47 | B190: 2440 | C190: Deferred Revenue5 | D190: 192380.5 | E190: 0 | F190: 0 | G190: 192380.5 | I190: -192380.5 | J190: 0 | K190: 0 | L190: -192380.5 | M190: 0
D191: 0 | E191: 0 | F191: 0 | G191: 0 | L191: 0 | M191: 0
C192: Sub-Total | D192: =SUM(D151:D191) -> 296741351.7 | E192: =SUM(E151:E191) -> 13049668.64 | F192: =SUM(F151:F191) -> -2671607.69 | G192: =SUM(G151:G191) -> 307119412.6 | I192: =SUM(I151:I191) -> -117445651.1 | J192: =SUM(J151:J191) -> -14683228.08 | K192: =SUM(K151:K191) -> 1264155.17 | L192: =SUM(L151:L191) -> -130864724 | M192: =SUM(M151:M191) -> 176254688.6
C193: Less Socialized Renewable Energy Generation Investments (input as negative) | G193: =D193+E193+F193 -> 0 | L193: =I193+J193+K193 -> 0 | M193: =G193+L193 -> 0
C194: Less Other Non Rate-Regulated Utility Assets (input as negative) | G194: =D194+E194+F194 -> 0 | L194: =I194+J194+K194 -> 0 | M194: =G194+L194 -> 0
C195: Total PP&E | D195: =SUM(D192:D194) -> 296741351.7 | E195: =SUM(E192:E194) -> 13049668.64 | F195: =SUM(F192:F194) -> -2671607.69 | G195: =SUM(G192:G194) -> 307119412.6 | I195: =SUM(I192:I194) -> -117445651.1 | J195: =SUM(J192:J194) -> -14683228.08 | K195: =SUM(K192:K194) -> 1264155.17 | L195: =SUM(L192:L194) -> -130864724 | M195: =SUM(M192:M194) -> 176254688.6
C196: Depreciation Expense adj. from gain or loss on the retirement of assets (pool of like assets), if applicable6
C197: Total | J197: =J195+J196 -> -14683228.08
I199: Less: Fully Allocated Depreciation
A200: 10 | C200: Transportation | I200: Transportation | K200: =+J176 -> -153106.65
A201: 8 | C201: Stores Equipment | I201: Stores Equipment | K201: =+J177 -> -4047.18
I202: Net Depreciation | K202: =J197-K200-K201 -> -14526074.25
F204: Accounting Standard | G204: MIFRS
F205: Year | G205: 2011
D207: Cost | J207: Accumulated Depreciation
A208: CCA Class 2 | B208: OEB Account 3 | C208: Description 3 | D208: Opening Balance | E208: Adjustments | F208: Additions 4 | G208: Disposals 6 | H208: Closing Balance | I208: Opening Balance | J208: Additions | K208: Disposals 6 | L208: Closing Balance | M208: Net Book Value
A209: 12 | B209: 1611 | C209: Computer Software (Formally known as Account 1925) | D209: 12484730.78 | E209: 0 | F209: 757427.47 | G209: 0 | H209: =D209+E209+F209+G209 -> 13242158.25 | I209: 0 | J209: -3000748.23 | K209: 0 | L209: =I209+J209+K209 -> -3000748.23 | M209: =H209+L209 -> 10241410.02
A210: CEC | B210: 1612 | C210: Land Rights (Formally known as Account 1906) | D210: 30889.15 | E210: 0 | F210: 0 | G210: 0 | H210: =D210+E210+F210+G210 -> 30889.15 | I210: 0 | J210: 0 | K210: 0 | L210: =I210+J210+K210 -> 0 | M210: 30889.15
A211: N/A | B211: 1805 | C211: Land | D211: 100519.37 | E211: 0 | F211: 0 | G211: -6108.06 | H211: 94411.31 | I211: 0 | J211: 0 | K211: 0 | L211: =I211+J211+K211 -> 0 | M211: 94411.31
A212: 47 | B212: 1808 | C212: Buildings | D212: 32109.81 | E212: 0 | F212: 30637.54 | G212: 0 | H212: 62747.35 | I212: 0 | J212: -4420.64 | K212: 0 | L212: =I212+J212+K212 -> -4420.64 | M212: 58326.71
A213: 13 | B213: 1810 | C213: Leasehold Improvements | D213: 0 | E213: 0 | F213: 0 | G213: 0 | H213: 0 | I213: 0 | J213: 0 | K213: 0 | L213: 0 | M213: 0
A214: 47 | B214: 1815 | C214: Transformer Station Equipment >50 kV | D214: 23191020.82 | E214: -960904.47 | F214: 21484.13 | G214: 0 | H214: 22251600.48 | I214: 0 | J214: =-1151812.73-154816.75 -> -1306629.48 | L214: -1306629.48 | M214: 20944971
A215: 47 | B215: 1820 | C215: Distribution Station Equipment <50 kV | D215: 1133410.97 | E215: 0 | F215: 0 | G215: 0 | H215: 1133410.97 | I215: 0 | J215: -34045.27 | K215: 0 | L215: -34045.27 | M215: 1099365.7
A216: 47 | B216: 1825 | C216: Storage Battery Equipment | D216: 0 | E216: 0 | F216: 0 | G216: 0 | H216: 0 | I216: 0 | J216: 0 | K216: 0 | L216: 0 | M216: 0
A217: 47 | B217: 1830 | C217: Poles, Towers & Fixtures | D217: 51645463.44 | E217: 0 | F217: 5190796.35 | G217: -4284.37 | H217: 56831975.42 | I217: 0 | J217: =-1258846.95-34176.07+8674.67 -> -1284348.35 | K217: 115.51 | L217: -1284232.84 | M217: 55547742.58
A218: 47 | B218: 1835 | C218: Overhead Conductors & Devices | D218: 0 | E218: 0 | F218: 0 | G218: 0 | H218: 0 | I218: 0 | J218: 0 | K218: 0 | L218: 0 | M218: 0
A219: 47 | B219: 1840 | C219: Underground Conduit | D219: 37333464.78 | E219: 0 | F219: 1275039 | G219: 0 | H219: 38608503.78 | I219: 0 | J219: =-1128018.39-91307.14 -> -1219325.53 | K219: 0 | L219: -1219325.53 | M219: 37389178.25
A220: 47 | B220: 1845 | C220: Underground Conductors & Devices | D220: 0 | E220: 0 | F220: 0 | G220: 0 | H220: 0 | I220: 0 | J220: 0 | K220: 0 | L220: 0 | M220: 0
A221: 47 | B221: 1850 | C221: Line Transformers | D221: 32430144.41 | E221: 0 | F221: 2211689.2 | G221: -427680.89 | H221: 34214152.72 | I221: 0 | J221: =-881835.97-197732.77 -> -1079568.74 | K221: 8553.04 | L221: -1071015.7 | M221: 33143137.02
A222: 47 | B222: 1855 | C222: Services (Overhead & Underground) | D222: 3397428.31 | E222: 0 | F222: 1187589.41 | G222: 0 | H222: 4585017.72 | I222: 0 | J222: -61447.8 | K222: 0 | L222: -61447.8 | M222: 4523569.92
A223: 47 | B223: 1860 | C223: Meters | D223: 3353707.67 | E223: 121169.62 | F223: 406713.2 | G223: -1039013.59 | H223: 2842576.9 | I223: 0 | J223: -207099.28 | K223: 28089.9 | L223: -179009.38 | M223: 2663567.52
A224: 47 | B224: 1860 | C224: Meters (Smart Meters) | D224: 0 | E224: 0 | F224: 0 | G224: 0 | H224: 0 | I224: 0 | J224: 0 | K224: 0 | L224: 0 | M224: 0
... 531 more rows

Sheet Appendix 2-BB Service Life
N1: File Number: | P1: ='LDC Info'!E16 -> EB-2019-0032
N2: Exhibit:
N3: Tab:
N4: Schedule:
N5: Page:
N7: Date: | P7: 2019-09-24
A9: Appendix 2-BB
A10: Service Life Comparison
A11: Table F-1 from Kinetrics Report1
C15: Asset Details | F15: Useful Life | J15: USoA Account Number | K15: USoA Account Description | L15: Current | N15: Proposed | P15: Outside Range of Min, Max TUL?
A16: Parent* | B16: # | C16: Category| Component | Type | F16: MIN UL | G16: TUL | H16: MAX UL | L16: Years | M16: Rate | N16: Years | O16: Rate | P16: Below Min TUL | Q16: Above Max TUL
A17: OH | B17: 1 | C17: Fully Dressed Wood Poles | D17: Overall | F17: 35 | G17: 45 | H17: 75 | J17: 1830 | K17: Poles, Towers and Fixtures | L17: 45 | M17: =IF(ISERROR(1/L17), "", 1/L17) -> 0.02222222222 | N17: 45 | O17: =IF(ISERROR(1/N17), "", 1/N17) -> 0.02222222222 | P17: =IF(ISBLANK(N17),"",IF(N17<F17,"Yes","No")) -> No | Q17: =IF(ISBLANK(N17),"",IF(N17>H17,"Yes","No")) -> No
D18: Cross Arm | E18: Wood | F18: 20 | G18: 40 | H18: 55 | M18: =IF(ISERROR(1/L18), "", 1/L18) ->  | O18: =IF(ISERROR(1/N18), "", 1/N18) ->  | P18: =IF(ISBLANK(N18),"",IF(N18<F18,"Yes","No")) ->  | Q18: =IF(ISBLANK(N18),"",IF(N18>H18,"Yes","No")) -> 
E19: Steel | F19: 30 | G19: 70 | H19: 95
B20: 2 | C20: Fully Dressed Concrete Poles | D20: Overall | F20: 50 | G20: 60 | H20: 80 | J20: 1830 | K20: Poles, Towers and Fixtures | L20: 50 | M20: 0.02 | N20: 50 | O20: 0.02 | P20: No | Q20: No
D21: Cross Arm | E21: Wood | F21: 20 | G21: 40 | H21: 55
E22: Steel | F22: 30 | G22: 70 | H22: 95
B23: 3 | C23: Fully Dressed Steel Poles | D23: Overall | F23: 60 | G23: 60 | H23: 80
D24: Cross Arm | E24: Wood | F24: 20 | G24: 40 | H24: 55
E25: Steel | F25: 30 | G25: 70 | H25: 95
C26: Fully Dressed Composite Poles | D26: Overall | F26: - | G26: - | H26: - | J26: 1830 | K26: Poles, Towers and Fixtures | L26: 80 | M26: 0.0125 | N26: 80 | O26: 0.0125 | P26: N/A | Q26: N/A
B27: 4 | C27: OH Line Switch | F27: 30 | G27: 45 | H27: 55 | J27: 1830 | K27: Poles, Towers and Fixtures | L27: 45 | M27: 0.02222222222 | N27: 45 | O27: 0.02222222222 | P27: No | Q27: No
B28: 5 | C28: OH Line Switch Motor | F28: 15 | G28: 25 | H28: 25
B29: 6 | C29: OH Line Switch RTU | F29: 15 | G29: 20 | H29: 20
B30: 7 | C30: OH Integral Switches | F30: 35 | G30: 45 | H30: 60
B31: 8 | C31: OH Conductors | F31: 50 | G31: 60 | H31: 75 | J31: 1830 | K31: Poles, Towers and Fixtures | L31: 60 | M31: 0.01666666667 | N31: 60 | O31: 0.01666666667 | P31: No | Q31: No
J32: 1855 | K32: Services | L32: 60 | M32: 0.01666666667 | N32: 60 | O32: =IF(ISERROR(1/N32), "", 1/N32) -> 0.01666666667 | P32: =IF(ISBLANK(N32),"",IF(N32<F32,"Yes","No")) -> No | Q32: =IF(ISBLANK(N32),"",IF(N32>H31,"Yes","No")) -> No
B33: 9 | C33: OH Transformers & Voltage Regulators | F33: 30 | G33: 40 | H33: 60
B34: 10 | C34: OH Shunt Capacitor Banks | F34: 25 | G34: 30 | H34: 40
B35: 11 | C35: Reclosers | F35: 25 | G35: 40 | H35: 55
A36: TS & MS | B36: 12 | C36: Power Transformers | D36: Overall | F36: 30 | G36: 45 | H36: 60 | J36: 1815 | K36: Trans. Station Equip-Norm Pri. > 50 kV | L36: 45 | M36: 0.02222222222 | N36: 45 | O36: 0.02222222222 | P36: No | Q36: No
J37: 1820 | K37: Dist. Station Equip-Norm Pri.< 50 kV | L37: 45 | M37: 0.02222222222 | N37: 45 | O37: 0.02222222222 | P37: No | Q37: =IF(ISBLANK(N37),"",IF(N37>H36,"Yes","No")) -> No
J38: 1850 | K38: Line Transformers | L38: 40 | M38: =IF(ISERROR(1/L38), "", 1/L38) -> 0.025 | N38: 40 | O38: =IF(ISERROR(1/N38), "", 1/N38) -> 0.025 | P38: =IF(ISBLANK(N38),"",IF(N38<F38,"Yes","No")) -> No | Q38: =IF(ISBLANK(N38),"",IF(N38>H36,"Yes","No")) -> No
D39: Bushing | F39: 10 | G39: 20 | H39: 30
D40: Tap Changer | F40: 20 | G40: 30 | H40: 60
B41: 13 | C41: Station Service Transformer | F41: 30 | G41: 45 | H41: 55
B42: 14 | C42: Station Grounding Transformer | F42: 30 | G42: 40 | H42: 40
B43: 15 | C43: Station DC System | D43: Overall | F43: 10 | G43: 20 | H43: 30
D44: Battery Bank | F44: 10 | G44: 15 | H44: 15 | J44: 1815 | K44: Trans. Station Equip-Norm Pri. > 50 kV | L44: 8 | M44: 0.125 | N44: 8 | O44: 0.125 | P44: Yes | Q44: No
J45: 1820 | K45: Dist. Station Equip-Norm Pri.< 50 kV | L45: 8 | M45: =IF(ISERROR(1/L45), "", 1/L45) -> 0.125 | N45: 8 | O45: =IF(ISERROR(1/N45), "", 1/N45) -> 0.125 | P45: =IF(ISBLANK(N45),"",IF(N45<F44,"Yes","No")) -> Yes | Q45: =IF(ISBLANK(N45),"",IF(N45>H44,"Yes","No")) -> No
D46: Charger | F46: 20 | G46: 20 | H46: 30
B47: 16 | C47: Station Metal Clad Switchgear | D47: Overall | F47: 30 | G47: 40 | H47: 60
D48: Removable Breaker | F48: 25 | G48: 40 | H48: 60
B49: 17 | C49: Station Independent Breakers | F49: 35 | G49: 45 | H49: 65
B50: 18 | C50: Station Switch | F50: 30 | G50: 50 | H50: 60
B51: 19 | C51: Electromechanical Relays | F51: 25 | G51: 35 | H51: 50
B52: 20 | C52: Solid State Relays | F52: 10 | G52: 30 | H52: 45
B53: 21 | C53: Digital & Numeric Relays | F53: 15 | G53: 20 | H53: 20 | J53: 1815 | K53: Trans. Station Equip-Norm Pri. > 50 kV | L53: 20 | M53: 0.05 | N53: 20 | O53: 0.05 | P53: No | Q53: No
B54: 22 | C54: Rigid Busbars | F54: 30 | G54: 55 | H54: 60
B55: 23 | C55: Steel Structure | F55: 35 | G55: 50 | H55: 90
A56: UG | B56: 24 | C56: Primary Paper Insulated Lead Covered (PILC) Cables | F56: 60 | G56: 65 | H56: 75
B57: 25 | C57: Primary Ethylene-Propylene Rubber (EPR) Cables | F57: 20 | G57: 25 | H57: 25
B58: 26 | C58: Primary Non-Tree Retardant (TR) Cross Linked Polyethylene (XLPE) Cables Direct Buried | F58: 20 | G58: 25 | H58: 30
B59: 27 | C59: Primary Non-TR XLPE Cables in Duct | F59: 20 | G59: 25 | H59: 30
B60: 29 | C60: Primary TR XLPE Cables in Duct | F60: 35 | G60: 40 | H60: 55 | J60: 1840 | K60: Underground Conduit | L60: 40 | M60: =IF(ISERROR(1/L60), "", 1/L60) -> 0.025 | N60: 40 | O60: =IF(ISERROR(1/N60), "", 1/N60) -> 0.025 | P60: =IF(ISBLANK(N60),"",IF(N60<F60,"Yes","No")) -> No | Q60: =IF(ISBLANK(N60),"",IF(N60>H60,"Yes","No")) -> No
B61: 30 | C61: Secondary PILC Cables | F61: 70 | G61: 75 | H61: 80
B62: 31 | C62: Secondary Cables Direct Buried | F62: 25 | G62: 35 | H62: 40 | J62: 1855 | K62: Services | L62: 35 | M62: 0.02857142857 | N62: 35 | O62: 0.02857142857 | P62: No | Q62: No
B63: 32 | C63: Secondary Cables in Duct | F63: 35 | G63: 40 | H63: 60
B64: 33 | C64: Network Tranformers | D64: Overall | F64: 20 | G64: 35 | H64: 50
D65: Protector | F65: 20 | G65: 35 | H65: 40
B66: 34 | C66: Pad-Mounted Transformers | F66: 25 | G66: 40 | H66: 45 | J66: 1850 | K66: Line Transformers | L66: 40 | M66: 0.025 | N66: 40 | O66: 0.025 | P66: No | Q66: No
B67: 35 | C67: Submersible/Vault Transformers | F67: 25 | G67: 35 | H67: 45 | J67: 1850 | K67: Line Transformers | L67: 35 | M67: 0.02857142857 | N67: 35 | O67: 0.02857142857 | P67: No | Q67: No
B68: 36 | C68: UG Foundation | F68: 35 | G68: 55 | H68: 70
B69: 37 | C69: UG Vaults | D69: Overall | F69: 40 | G69: 60 | H69: 80
D70: Roof | F70: 20 | G70: 30 | H70: 45
B71: 38 | C71: UG Vault Switches | F71: 20 | G71: 35 | H71: 50 | J71: 1840 | K71: Underground Conduit | L71: 30 | M71: 0.03333333333 | N71: 30 | O71: 0.03333333333 | P71: No | Q71: No
B72: 39 | C72: Pad-Mounted Switchgear | F72: 20 | G72: 30 | H72: 45
B73: 40 | C73: Ducts | F73: 30 | G73: 50 | H73: 85
B74: 41 | C74: Concrete Encased Duct Banks | F74: 35 | G74: 55 | H74: 80
B75: 42 | C75: Cable Chambers | F75: 50 | G75: 60 | H75: 80 | J75: 1840 | K75: Underground Conduit | L75: 50 | M75: 0.02 | N75: 50 | O75: 0.02 | P75: No | Q75: No
A76: S | B76: 43 | C76: Remote SCADA | F76: 15 | G76: 20 | H76: 30 | J76: 1945 | K76: Measurement and Testing Equipment | L76: 15 | M76: 0.06666666667 | N76: 15 | O76: 0.06666666667 | P76: No | Q76: No
A79: Table F-2 from Kinetrics Report1
C81: Asset Details | F81: Useful Life Range | J81: USoA Account Number | K81: USoA Account Description | L81: Current | N81: Proposed | P81: Outside Range of Min, Max TUL?
B82: # | C82: Category| Component | Type | L82: Years | M82: Rate | N82: Years | O82: Rate | P82: Below Min Range | Q82: Above Max Range
B83: 1 | C83: Office Equipment | F83: 5 | G83: 15 | J83: 1915 | K83: Office Furniture and Equipment | L83: 10 | M83: =IF(ISERROR(1/L83), "", 1/L83) -> 0.1 | N83: 10 | O83: =IF(ISERROR(1/N83), "", 1/N83) -> 0.1 | P83: =IF(ISBLANK(N83),"",IF(N83<F83,"Yes","No")) -> No | Q83: =IF(ISBLANK(N83),"",IF(N83>G83,"Yes","No")) -> No
B84: 2 | C84: Vehicles | D84: Trucks & Buckets | F84: 5 | G84: 15 | J84: 1930 | K84: Transportation Equipment - Class 6 | L84: 7 | M84: =IF(ISERROR(1/L84), "", 1/L84) -> 0.1428571429 | N84: 7 | O84: =IF(ISERROR(1/N84), "", 1/N84) -> 0.1428571429 | P84: =IF(ISBLANK(N84),"",IF(N84<F84,"Yes","No")) -> No | Q84: =IF(ISBLANK(N84),"",IF(N84>G84,"Yes","No")) -> No
J85: 1930 | K85: Transportation Equipment - Class 8 | L85: 10 | M85: =IF(ISERROR(1/L85), "", 1/L85) -> 0.1 | N85: 10 | O85: =IF(ISERROR(1/N85), "", 1/N85) -> 0.1 | P85: =IF(ISBLANK(N85),"",IF(N85<F85,"Yes","No")) -> No | Q85: =IF(ISBLANK(N85),"",IF(N85>G84,"Yes","No")) -> No
J86: 1930 | K86: Transportation Equipment - Backhoes | L86: 6 | M86: 0.1666666667 | N86: 6 | O86: 0.1666666667 | P86: No | Q86: =IF(ISBLANK(N86),"",IF(N86>G84,"Yes","No")) -> No
J87: 1930 | K87: Transportation Equipment - Class 7 | L87: 9 | M87: 0.1111111111 | N87: 9 | O87: 0.1111111111 | P87: No | Q87: =IF(ISBLANK(N87),"",IF(N87>G84,"Yes","No")) -> No
D88: Trailers | F88: 5 | G88: 20 | J88: 1930 | K88: Transportation Equipment - Class 9 | L88: 15 | M88: 0.06666666667 | N88: 15 | O88: 0.06666666667 | P88: No | Q88: No
D89: Vans | F89: 5 | G89: 10 | J89: 1930 | K89: Transportation Equipment - Class 4 & 5 | L89: 7 | M89: 0.1428571429 | N89: 7 | O89: 0.1428571429 | P89: No | Q89: No
B90: 3 | C90: Administrative Buildings | F90: 50 | G90: 75 | J90: 1908 | K90: Buildings and Fixtures | L90: 50 | M90: 0.02 | N90: 50 | O90: 0.02 | P90: No | Q90: No
B91: 4 | C91: Leasehold Improvements | F91: Lease dependent | J91: 1910 | K91: Leasehold Improvements | L91: 20 | M91: 0.05 | N91: 20 | O91: 0.05 | P91: No | Q91: No
J92: 1910 | K92: Leasehold Improvements | L92: 10 | M92: =IF(ISERROR(1/L92), "", 1/L92) -> 0.1 | N92: 10 | O92: =IF(ISERROR(1/N92), "", 1/N92) -> 0.1 | P92: No | Q92: No
B93: 5 | C93: Station Buildings | D93: Station Buildings | F93: 50 | G93: 75 | J93: 1808 | K93: Buildings and Fixtures | L93: 50 | M93: 0.02 | N93: 50 | O93: 0.02 | P93: No | Q93: No
D94: Parking | F94: 25 | G94: 30
D95: Fence | F95: 25 | G95: 60
D96: Roof | F96: 20 | G96: 30 | J96: 1808 | K96: Buildings and Fixtures | L96: 20 | M96: 0.05 | N96: 20 | O96: 0.05 | P96: No | Q96: No
J97: 1908 | K97: Buildings and Fixtures | L97: 20 | M97: =IF(ISERROR(1/L97), "", 1/L97) -> 0.05 | N97: 20 | O97: =IF(ISERROR(1/N97), "", 1/N97) -> 0.05 | P97: =IF(ISBLANK(N97),"",IF(N97<F97,"Yes","No")) -> No | Q97: =IF(ISBLANK(N97),"",IF(N97>G96,"Yes","No")) -> No
B98: 6 | C98: Computer Equipment | D98: Hardware | F98: 3 | G98: 5 | J98: 1920 | K98: Computer Hardware - 5 years | L98: 5 | M98: 0.2 | N98: 5 | O98: 0.2 | P98: No | Q98: No
J99: 1920 | K99: Computer Hardware - 10 year | L99: 10 | M99: =IF(ISERROR(1/L99), "", 1/L99) -> 0.1 | N99: 10 | O99: =IF(ISERROR(1/N99), "", 1/N99) -> 0.1 | P99: =IF(ISBLANK(N99),"",IF(N99<F99,"Yes","No")) -> No | Q99: =IF(ISBLANK(N99),"",IF(N99>G99,"Yes","No")) -> Yes
D100: Software | F100: 2 | G100: 5 | J100: 1611 | K100: Computer Software - 5 years | L100: 5 | M100: 0.2 | N100: 5 | O100: 0.2 | P100: No | Q100: No
J101: 1611 | K101: Computer Software - 10 years | L101: 10 | M101: =IF(ISERROR(1/L101), "", 1/L101) -> 0.1 | N101: 10 | O101: =IF(ISERROR(1/N101), "", 1/N101) -> 0.1 | P101: =IF(ISBLANK(N101),"",IF(N101<F101,"Yes","No")) -> No | Q101: =IF(ISBLANK(N101),"",IF(N101>G101,"Yes","No")) -> Yes
B102: 7 | C102: Equipment | D102: Power Operated | F102: 5 | G102: 10 | J102: 1950 | K102: Power Operated Equipment | L102: 10 | M102: 0.1 | N102: 10 | O102: 0.1 | P102: No | Q102: No
D103: Stores | F103: 5 | G103: 10 | J103: 1935 | K103: Stores Equipment | L103: 10 | M103: 0.1 | N103: 10 | O103: 0.1 | P103: No | Q103: No
D104: Tools, Shop, Garage Equipment | F104: 5 | G104: 10 | J104: 1930 | K104: Transportation Equipment | L104: 20 | M104: 0.05 | N104: 20 | O104: 0.05 | P104: No | Q104: Yes
J105: 1940 | K105: Tools, Shop and Garage Equipment | L105: 10 | M105: =IF(ISERROR(1/L105), "", 1/L105) -> 0.1 | N105: 10 | O105: =IF(ISERROR(1/N105), "", 1/N105) -> 0.1 | P105: =IF(ISBLANK(N105),"",IF(N105<F105,"Yes","No")) -> No | Q105: =IF(ISBLANK(N105),"",IF(N105>G104,"Yes","No")) -> No
J106: 1960 | K106: Miscellaneous Equipment | L106: 10 | M106: 0.1 | N106: 10 | O106: 0.1 | P106: No | Q106: =IF(ISBLANK(N106),"",IF(N106>G104,"Yes","No")) -> No
D107: Measurement & Testing Equipment | F107: 5 | G107: 10 | J107: 1945 | K107: Measurement and Testing Equipment | L107: 10 | M107: 0.1 | N107: 10 | O107: 0.1 | P107: No | Q107: No
B108: 8 | C108: Communication | D108: Towers | F108: 60 | G108: 70
D109: Wireless | F109: 2 | G109: 10 | J109: 1955 | K109: Communication Equipment | L109: 8 | M109: 0.125 | N109: 8 | O109: 0.125 | P109: No | Q109: No
B110: 9 | C110: Residential Energy Meters | F110: 25 | G110: 35 | J110: 1860 | K110: Meters | L110: 25 | M110: 0.04 | N110: 25 | O110: 0.04 | P110: No | Q110: No
B111: 10 | C111: Industrial/Commercial Energy Meters | F111: 25 | G111: 35 | J111: 1860 | K111: Meters | L111: 25 | M111: 0.04 | N111: 25 | O111: 0.04 | P111: No | Q111: No
B112: 11 | C112: Wholesale Energy Meters | F112: 15 | G112: 30 | J112: 1860 | K112: Meters | L112: 15 | M112: 0.06666666667 | N112: 15 | O112: 0.06666666667 | P112: No | Q112: No
B113: 12 | C113: Current & Potential Transformer (CT & PT) | F113: 35 | G113: 50
B114: 13 | C114: Smart Meters | F114: 5 | G114: 15 | J114: 1860 | K114: Meters | L114: 15 | M114: 0.06666666667 | N114: 15 | O114: 0.06666666667 | P114: No | Q114: No
B115: 14 | C115: Repeaters - Smart Metering | F115: 10 | G115: 15
B116: 15 | C116: Data Collectors - Smart Metering | F116: 15 | G116: 20
A119: * TS & MS = Transformer and Municipal Stations UG = Underground Systems S = Monitoring and Control Systems
A121: Note 1: | B121: Tables F-1 and F-2 above are to be used as a reference in order to complete columns J, K, L and N.
B122: See pages 17-19 of Kinetrics Report

Sheet App.2-C_DepExp
S6: 2019-09-24
A9: Appendix 2-C | Y9: CGAAP
A10: Depreciation and Amortization Expense | Y10: Revised CGAAP
Y11: MIFRS
A12: This appendix is to be completed in conjunction with the accounting instructions in Appendix 2-B
A14: Scenario that applies | C14: Applicable Years and Accounting Standard | R14: Year Reflected in Schedule Below | S14: Accounting Standard Reflected in Schedule Below | Y14: 2011
A15: Rebasing for the first time with depreciation policy changes made in 2012. | C15: This appendix must be duplicated and completed for the years 2012 to 2018. The appendix for 2012 is to be completed under CGAAP (prior to changes in depreciation policies). The appendix for 2012 to 2014 must be completed under Revised CGAAP (after changes in depreciation policies). The appendix for 2014 to 2018 is to be completed under MIFRS (2014 if changes to MIFRS are material). | R15: 2011 | S15: CGAAP | Y15: 2012
A16: Rebasing for the first time with depreciation policy changes made in 2013. | C16: This appendix must be duplicated and completed for the years 2013 to 2018. The appendix for 2013 is to be completed under CGAAP (prior to changes in depreciation policies). The appendix for 2013 to 2014 must be completed under Revised CGAAP (after changes in depreciation policies). The appendix for 2014 to 2018 is to be completed under MIFRS (2014 if changes to MIFRS are material). | Y16: 2013
A17: Already rebased with depreciation policy changes in a prior rate application | C17: This appendix must be completed for 2014 to 2018. The appendix for 2014 is to be completed under Revised CGAAP (after changes in depreciation policies). The appendix for 2014 to 2018 is to be completed under MIFRS (2014 if changes to MIFRS are material). | Y17: 2014
Y18: 2015
Y19: 2016
C20: Book Values | J20: Service Lives | N20: Depreciation Expense | Y20: 2017
A21: Account | B21: Description | C21: Opening Net Book Value of Existing Assets as at Date of Policy Change (Jan. 1) 1 | D21: Less Fully Depreciated 7 | E21: Net Amount of Existing Assets Before Policy Change to be Depreciated | F21: Opening Gross Book Value of Assets Acquired After Policy Change 2 | G21: Less Fully Depreciated 8 | H21: Net Amount of Assets Acquired After Policy Change to be Depreciated | I21: Current Year Additions | J21: Average Remaining Life of Assets Existing Before Policy Change 3 | K21: Depreciation Rate Assets Acquired After Policy Change | L21: Life of Assets Acquired After Policy Change 4 | M21: Depreciation Rate on New Additions | N21: Depreciation Expense on Assets Existing Before Policy Change | O21: Depreciation Expense on Assets Acquired After Policy Change | P21: Depreciation Expense on Current Year Additions 5 | Q21: Total Current Year Depreciation Expense | R21: Depreciation Expense per Appendix 2-BA Fixed Assets, Column J | S21: Variance 6 | Y21: 2018
C22: a | D22: b | E22: c = a-b | F22: d | G22: e | H22: f = d- e | I22: g | J22: h | K22: i = 1/h | L22: j | M22: k = 1/j | N22: l = c/h | O22: m = f/j | P22: n = g*0.5/j | Q22: o = l+m+n | R22: p | S22: q = p-o
A23: 1611 | B23: Computer Software (Formally known as Account 1925) | C23: 12484730.78 | D23: 28249.46 | E23: =C23-D23 -> 12456481.32 | H23: =F23-G23 -> 0 | I23: 758990.19 | J23: 4.42 | K23: =IF(J23=0,0,1/J23) -> 0.2262443439 | L23: 5 | M23: =IF(L23=0,0,1/L23) -> 0.2 | N23: =IF(J23=0,0,+E23/J23) -> 2818208.443 | O23: =IF(L23=0,0,+H23/L23) -> 0 | P23: =IF(L23=0,0,+(I23*0.5)/L23) -> 75899.019 | Q23: =IF(ISERROR(+N23+O23+P23), 0, +N23+O23+P23) -> 2894107.462 | R23: 3000853.45 | S23: =IF(ISERROR(+R23-122), 0, +R23-Q23) -> 106745.9876
A24: 1612 | B24: Land Rights (Formally known as Account 1906) | C24: 30889.15 | D24: 0 | E24: =C24-D24 -> 30889.15 | H24: =F24-G24 -> 0 | I24: 0 | J24: 0 | K24: =IF(J24=0,0,1/J24) -> 0 | L24: 0 | M24: =IF(L24=0,0,1/L24) -> 0 | N24: =IF(J24=0,0,+E24/J24) -> 0 | O24: =IF(L24=0,0,+H24/L24) -> 0 | P24: =IF(L24=0,0,+(I24*0.5)/L24) -> 0 | Q24: =IF(ISERROR(+N24+O24+P24), 0, +N24+O24+P24) -> 0 | R24: 0 | S24: =IF(ISERROR(+R24-122), 0, +R24-Q24) -> 0
A25: 1805 | B25: Land | C25: 100519.37 | D25: 6108.06 | E25: 94411.31 | H25: 0 | I25: 0 | J25: 0 | K25: 0 | L25: 0 | M25: 0 | N25: 0 | O25: =IF(L25=0,0,+H25/L25) -> 0 | P25: 0 | Q25: 0 | R25: 0 | S25: 0
A26: 1808 | B26: Buildings | C26: 32109.81 | D26: 408.05 | E26: 31701.76 | H26: 0 | I26: 31099.66 | J26: 6.94 | K26: 0.144092219 | L26: 50 | M26: 0.02 | N26: 4567.976945 | O26: 0 | P26: 310.9966 | Q26: 4878.973545 | R26: 6366.75 | S26: 1487.776455
A27: 1810 | B27: Leasehold Improvements | C27: 0 | D27: 0 | E27: 0 | H27: 0 | I27: 0 | J27: 0 | K27: 0 | L27: 0 | M27: 0 | N27: 0 | O27: 0 | P27: 0 | Q27: 0 | R27: 0 | S27: 0
A28: 1815 | B28: Transformer Station Equipment >50 kV | C28: 23191020.82 | D28: 0 | E28: 23191020.82 | H28: 0 | I28: 23637.88 | J28: 28.49 | K28: 0.0351000351 | L28: 40 | M28: 0.025 | N28: 814005.6448 | O28: 0 | P28: 295.4735 | Q28: 814301.1183 | R28: 821790.47 | S28: 7489.351712
A29: 1820 | B29: Distribution Station Equipment <50 kV | C29: 1133410.97 | D29: 5398.67 | E29: 1128012.3 | H29: 0 | I29: 0 | J29: 16.02 | K29: 0.06242197253 | L29: 25 | M29: 0.04 | N29: 70412.75281 | O29: 0 | P29: 0 | Q29: 70412.75281 | R29: 79196.34 | S29: 8783.587191
A30: 1825 | B30: Storage Battery Equipment | C30: 0 | D30: 0 | E30: 0 | H30: 0 | I30: 0 | J30: 0 | K30: 0 | L30: 0 | M30: 0 | N30: 0 | O30: 0 | P30: 0 | Q30: 0 | R30: 0 | S30: 0
A31: 1830 | B31: Poles, Towers & Fixtures | C31: 51645463.44 | D31: 53254.37 | E31: 51592209.07 | H31: 0 | I31: 6260553.57 | J31: 15.7 | K31: 0.06369426752 | L31: 25 | M31: 0.04 | N31: 3286127.966 | O31: 0 | P31: 125211.0714 | Q31: 3411339.038 | R31: 3585576.65 | S31: 174237.6124
A32: 1835 | B32: Overhead Conductors & Devices | C32: 0 | D32: 0 | E32: 0 | H32: 0 | I32: 0 | J32: 0 | K32: 0 | L32: 0 | M32: 0 | N32: 0 | O32: 0 | P32: 0 | Q32: 0 | R32: 0 | S32: 0
A33: 1840 | B33: Underground Conduit | C33: 37333464.78 | D33: 41963.58 | E33: 37291501.2 | H33: 0 | I33: 1328147.49 | J33: 12.47 | K33: 0.08019246191 | L33: 25 | M33: 0.04 | N33: 2990497.289 | O33: 0 | P33: 26562.9498 | Q33: 3017060.239 | R33: 3222244.32 | S33: 205184.0807
A34: 1845 | B34: Underground Conductors & Devices | E34: 0 | H34: 0 | I34: 0 | J34: 0 | K34: 0 | L34: 0 | M34: 0 | N34: 0 | O34: 0 | P34: 0 | Q34: 0 | R34: 0 | S34: 0
A35: 1850 | B35: Line Transformers | C35: 32430144.41 | D35: 520877.76 | E35: 31909266.65 | H35: 0 | I35: 2310927.63 | J35: 14.11 | K35: 0.07087172218 | L35: 25 | M35: 0.04 | N35: 2261464.681 | O35: 0 | P35: 46218.5526 | Q35: 2307683.234 | R35: 2570977.73 | S35: 263294.4963
A36: 1855 | B36: Services (Overhead & Underground) | C36: 3397428.31 | D36: 0 | E36: 3397428.31 | H36: 0 | I36: 1204770.3 | J36: 23.8 | K36: 0.04201680672 | L36: 25 | M36: 0.04 | N36: 142749.0887 | O36: 0 | P36: 24095.406 | Q36: 166844.4947 | R36: 152044.68 | S36: -14799.81466
A37: 1860 | B37: Meters | C37: 3353707.67 | D37: 1010861.39 | E37: 2342846.28 | H37: 0 | I37: 433745.35 | J37: 12.83 | K37: 0.07794232268 | L37: 25 | M37: 0.04 | N37: 182606.8807 | O37: 0 | P37: 8674.907 | Q37: 191281.7877 | R37: 243559.2 | S37: 52277.41225
A38: 1860 | B38: Meters (Smart Meters) | C38: 0 | D38: 0 | E38: 0 | H38: 0 | I38: 1720.37 | J38: 0 | K38: 0 | L38: 25 | M38: 0.04 | N38: 0 | O38: 0 | P38: 34.4074 | Q38: 34.4074 | R38: 9.57 | S38: -24.8374
A39: 1905 | B39: Land | C39: 1322514.43 | D39: 0 | E39: 1322514.43 | H39: 0 | I39: 0 | J39: 0 | K39: 0 | L39: 0 | M39: 0 | N39: 0 | O39: 0 | P39: 0 | Q39: 0 | R39: 0 | S39: 0
A40: 1908 | B40: Buildings & Fixtures | C40: 17195340.79 | D40: 0 | E40: 17195340.79 | H40: 0 | I40: 329273.59 | J40: 39.65 | K40: 0.02522068096 | L40: 50 | M40: 0.02 | N40: 433678.204 | O40: 0 | P40: 3292.7359 | Q40: 436970.9399 | R40: 437268.44 | S40: 297.5000647
A41: 1910 | B41: Leasehold Improvements | C41: 0 | D41: 0 | E41: 0 | H41: 0 | I41: 0 | J41: 0 | K41: 0 | L41: 0 | M41: 0 | N41: 0 | O41: 0 | P41: 0 | Q41: 0 | R41: 0 | S41: 0
A42: 1915 | B42: Office Furniture & Equipment (10 years) | C42: 388841.77 | D42: 2951.36 | E42: 385890.41 | H42: 0 | I42: 39566 | J42: 5.66 | K42: 0.1766784452 | L42: 10 | M42: 0.1 | N42: 68178.51767 | O42: 0 | P42: 1978.3 | Q42: 70156.81767 | R42: 66748.07 | S42: -3408.747668
A43: 1915 | B43: Office Furniture & Equipment (5 years) | C43: 0 | D43: 0 | E43: 0 | H43: 0 | I43: 0 | J43: 0 | K43: 0 | L43: 0 | M43: 0 | N43: 0 | O43: 0 | P43: 0 | Q43: 0 | R43: 0 | S43: 0
A44: 1920 | B44: Computer Equipment - Hardware | C44: 0 | D44: 0 | E44: 0 | H44: 0 | I44: 0 | J44: 0 | K44: 0 | L44: 5 | M44: 0.2 | N44: 0 | O44: 0 | P44: 0 | Q44: 0 | R44: 0 | S44: 0
A45: 1920 | B45: Computer Equip.-Hardware(Post Mar. 22/04) | C45: 28140.87 | D45: 28140.87 | E45: 0 | H45: 0 | I45: 0 | J45: 0.69 | K45: 1.449275362 | L45: 5 | M45: 0.2 | N45: 0 | O45: 0 | P45: 0 | Q45: 0 | R45: 28140.87 | S45: 28140.87
A46: 1920 | B46: Computer Equip.-Hardware(Post Mar. 19/07) | C46: 1837564.74 | D46: 0 | E46: 1837564.74 | H46: 0 | I46: 209864.23 | J46: 3.92 | K46: 0.2551020408 | L46: 5 | M46: 0.2 | N46: 468766.5153 | O46: 0 | P46: 20986.423 | Q46: 489752.9383 | R46: 479169.78 | S46: -10583.15831
A47: 1930 | B47: Transportation Equipment (Class 4,5,6,7) | C47: 0 | D47: 0 | E47: 0 | H47: 0 | I47: 5 | J47: 0 | K47: 0 | L47: 5 | M47: 0.2 | N47: 0 | O47: 0 | P47: 0.5 | Q47: 0.5 | R47: 0 | S47: -0.5
A48: 1930 | B48: Transportation Equipment (Class 9) | C48: 190357.17 | D48: 0 | E48: =C48-D48 -> 190357.17 | H48: =F48-G48 -> 0 | I48: 0 | J48: 4.88 | K48: =IF(J48=0,0,1/J48) -> 0.2049180328 | L48: 8 | M48: =IF(L48=0,0,1/L48) -> 0.125 | N48: =IF(J48=0,0,+E48/J48) -> 39007.6168 | O48: =IF(L48=0,0,+H48/L48) -> 0 | P48: =IF(L48=0,0,+(I48*0.5)/L48) -> 0 | Q48: =IF(ISERROR(+N48+O48+P48), 0, +N48+O48+P48) -> 39007.6168 | R48: 38971.78 | S48: =IF(ISERROR(+R48-122), 0, +R48-Q48) -> -35.83680328
A49: 1930 | B49: Transportation Equipment (Specialty Equip) | C49: 1105069.03 | D49: 0 | E49: 1105069.03 | H49: 0 | I49: 6266.5 | J49: 16.06 | K49: 0.06226650062 | L49: 30 | M49: 0.03333333333 | N49: 68808.78144 | O49: 0 | P49: 104.4416667 | Q49: 68913.22311 | R49: 114134.87 | S49: 45221.64689
A50: 1935 | B50: Stores Equipment | C50: 19340.66 | D50: 0 | E50: 19340.66 | H50: 0 | I50: 66918.16 | J50: 9.22 | K50: 0.1084598698 | L50: 10 | M50: 0.1 | N50: 2097.685466 | O50: 0 | P50: 3345.908 | Q50: 5443.593466 | R50: 4047.18 | S50: -1396.413466
A51: 1940 | B51: Tools, Shop & Garage Equipment | C51: 59984.57 | D51: 2046.56 | E51: 57938.01 | H51: 0 | I51: 21885.08 | J51: 3.43 | K51: 0.2915451895 | L51: 10 | M51: 0.1 | N51: 16891.5481 | O51: 0 | P51: 1094.254 | Q51: 17985.8021 | R51: 17256.27 | S51: -729.532105
A52: 1945 | B52: Measurement & Testing Equipment | C52: 51885.09 | D52: 1089.97 | E52: 50795.12 | H52: 0 | I52: 253346.65 | J52: 7.56 | K52: 0.1322751323 | L52: 10 | M52: 0.1 | N52: 6718.931217 | O52: 0 | P52: 12667.3325 | Q52: 19386.26372 | R52: 13281.47 | S52: -6104.793717
A53: 1950 | B53: Power Operated Equipment | C53: 175.19 | D53: 0 | E53: 175.19 | H53: 0 | I53: 0 | J53: 1.42 | K53: 0.7042253521 | L53: 10 | M53: 0.1 | N53: 123.3732394 | O53: 0 | P53: 0 | Q53: 123.3732394 | R53: 123.66 | S53: 0.2867605634
A54: 1955 | B54: Communications Equipment | C54: 362155.41 | D54: 0 | E54: 362155.41 | H54: 0 | I54: 29553.62 | J54: 6.89 | K54: 0.145137881 | L54: 8 | M54: 0.125 | N54: 52562.4688 | O54: 0 | P54: 1847.10125 | Q54: 54409.57005 | R54: 60373.09 | S54: 5963.519955
A55: 1955 | B55: Communication Equipment (Smart Meters) | C55: 0 | D55: 0 | E55: 0 | H55: 0 | I55: 0 | J55: 0 | K55: 0 | L55: 0 | M55: 0 | N55: 0 | O55: 0 | P55: 0 | Q55: 0 | R55: 0 | S55: 0
A56: 1960 | B56: Miscellaneous Equipment | C56: 1033764.33 | D56: 30582.15 | E56: 1003182.18 | H56: 0 | I56: 71932.49 | J56: 3.31 | K56: 0.3021148036 | L56: 10 | M56: 0.1 | N56: 303076.1873 | O56: 0 | P56: 3596.6245 | Q56: 306672.8118 | R56: 235438.13 | S56: -71234.68181
A57: 1970 | B57: Load Management Controls Customer Premises | C57: 0 | D57: 0 | E57: 0 | H57: 0 | I57: 0 | J57: 0 | K57: 0 | L57: 0 | M57: 0 | N57: 0 | O57: 0 | P57: 0 | Q57: 0 | R57: 0 | S57: 0
A58: 1975 | B58: Load Management Controls Utility Premises | C58: 0 | D58: 0 | E58: 0 | H58: 0 | I58: 0 | J58: 0 | K58: 0 | L58: 0 | M58: 0 | N58: 0 | O58: 0 | P58: 0 | Q58: 0 | R58: 0 | S58: 0
A59: 1980 | B59: System Supervisor Equipment | C59: 0 | D59: 0 | E59: 0 | H59: 0 | I59: 0 | J59: 0 | K59: 0 | L59: 0 | M59: 0 | N59: 0 | O59: 0 | P59: 0 | Q59: 0 | R59: 0 | S59: 0
A60: 1985 | B60: Miscellaneous Fixed Assets | C60: 0 | D60: 0 | E60: 0 | H60: 0 | I60: 0 | J60: 0 | K60: 0 | L60: 0 | M60: 0 | N60: 0 | O60: 0 | P60: 0 | Q60: 0 | R60: 0 | S60: 0
A61: 1990 | B61: Other Tangible Property | C61: 0 | D61: 0 | E61: 0 | H61: 0 | I61: 0 | J61: 0 | K61: 0 | L61: 0 | M61: 0 | N61: 0 | O61: 0 | P61: 0 | Q61: 0 | R61: 0 | S61: 0
A62: 1995 | B62: Contributions & Grants | C62: -9432322.18 | D62: -5299.47 | E62: -9427022.71 | H62: 0 | I62: -332537.12 | J62: 19.37 | K62: 0.05162622612 | L62: 25 | M62: 0.04 | N62: -486681.6061 | O62: 0 | P62: -6650.7424 | Q62: -493332.3485 | R62: -494344.66 | S62: -1012.311508
B63: Total | C63: =SUM(C23:C62) -> 179295701.4 | D63: 1726632.78 | E63: 177569068.6 | F63: 0 | G63: 0 | H63: 0 | I63: 13049666.64 | N63: =SUM(N23:N62) -> 13543868.95 | O63: 0 | P63: 349565.6617 | Q63: 13893434.61 | R63: 14683228.11 | S63: 789793.5008
A66: General: | B66: Applicants are to complete this appendix to show the reasonability of the depreciation expense that is included in rate base via. Accumulated depreciation and the revenue requirement.
B67: Applicants must provide a breakdown of depreciation and amortization expense in the above format for all relevant accounts. Balances presented in the table should exclude asset retirement obligations (AROs) and the related depreciation and accretion expense. These should be disclosed separately consistent with the Notes of historical Audited Financial Statements.
A70: Notes:
A71: 1 | B71: This is the net book value of assets that existed as at the date of the utility's change in depreciation policies (i.e. as at Jan. 1, 2012 or Jan. 1, 2013). These assets are to be depreciated at the average remaining service life. This amount will not change in years subsequent to the date of the utility's change in depreciation policies. This column is expected to be used until the assets that existed as at the date of the utility's change in depreciation policies are fully depreciated.
A72: 2 | B72: This is the opening gross book value of assets that have been acquired after the date of the utilities change in depreciation policies (i.e. additions starting in 2012/2013 for those who changed policies Jan. 1, 2012/2013). These assets are to be depreciated at the revised service life. The amount is expected to be equal to the gross book value of the prior year plus the prior year's additions.
A73: 3 | B73: A recalculation should be performed to determine the average remaining life of opening balance of assets (i.e. excluding current year's additions) under the change in policies under CGAAP. For example, Asset A had a useful life of 20 years under CGAAP without the change in policies. On January 1 of the year of policy changes, Asset A was 3 years depreciated. As a result, Asset A would have a remaining service life of 17 years (20 years less 3 years) as at January 1 of the year of policy changes. Due to making the change in policies under CGAAP, management re-assessed the asset useful lives and concluded that the revised useful life of Asset A is now 30 years. Therefore, the average remaining useful life of the opening balance of Asset A is determined to be 27 years (30 years less 3 years) under the revised CGAAP as at January 1 of the year of policy changes.
A74: 4 | B74: The useful life used should be consistent with the OEB's regulatory accounting policies as set out in the Accounting Procedures Handbook for Electricity Distributors, effective Jan. 1, 2012 and also with the Report of the Board, Transition to International Financial Reporting Standards, EB-2008-0408, and the Kinectrics Report.
A75: 5 | B75: Board policy of the "half-year" rule - the applicant must ensure that additions in the year attract a half-year depreciation expense in the first year. Deviations from this standard practice must be supported in the application.
A76: 6 | B76: The applicant must provide an explanation of material variances in evidence.
A77: 7 | B77: This should include assets in column a (excel column C) that become fully depreciated since the date of the policy change. The amount input in b (excel column D) should equal the net book value of the asset as at the date of depreciation policy change
A78: 8 | B78: This should include assets in column d (excel column f) that have become fully depreciated. The amount input in e (excel column G) should equal the gross book value of the asset
A80: Scenario that applies | C80: Applicable Years and Accounting Standard | R80: Year Reflected in Schedule Below | S80: Accounting Standard Reflected in Schedule Below | Y80: 2011
A81: Rebasing for the first time with depreciation policy changes made in 2012. | C81: This appendix must be duplicated and completed for the years 2012 to 2018. The appendix for 2012 is to be completed under CGAAP (prior to changes in depreciation policies). The appendix for 2012 to 2014 must be completed under Revised CGAAP (after changes in depreciation policies). The appendix for 2014 to 2018 is to be completed under MIFRS (2014 if changes to MIFRS are material). | R81: 2011 | S81: MIFRS | Y81: 2012
A82: Rebasing for the first time with depreciation policy changes made in 2013. | C82: This appendix must be duplicated and completed for the years 2013 to 2018. The appendix for 2013 is to be completed under CGAAP (prior to changes in depreciation policies). The appendix for 2013 to 2014 must be completed under Revised CGAAP (after changes in depreciation policies). The appendix for 2014 to 2018 is to be completed under MIFRS (2014 if changes to MIFRS are material). | Y82: 2013
A83: Already rebased with depreciation policy changes in a prior rate application | C83: This appendix must be completed for 2014 to 2018. The appendix for 2014 is to be completed under Revised CGAAP (after changes in depreciation policies). The appendix for 2014 to 2018 is to be completed under MIFRS (2014 if changes to MIFRS are material). | Y83: 2014
Y84: 2015
Y85: 2016
C86: Book Values | J86: Service Lives | N86: Depreciation Expense | Y86: 2017
A87: Account | B87: Description | C87: Opening Net Book Value of Existing Assets as at Date of Policy Change (Jan. 1) 1 | D87: Less Fully Depreciated 7 | E87: Net Amount of Existing Assets Before Policy Change to be Depreciated | F87: Opening Gross Book Value of Assets Acquired After Policy Change 2 | G87: Less Fully Depreciated 8 | H87: Net Amount of Assets Acquired After Policy Change to be Depreciated | I87: Current Year Additions | J87: Average Remaining Life of Assets Existing Before Policy Change 3 | K87: Depreciation Rate Assets Acquired After Policy Change | L87: Life of Assets Acquired After Policy Change 4 | M87: Depreciation Rate on New Additions | N87: Depreciation Expense on Assets Existing Before Policy Change | O87: Depreciation Expense on Assets Acquired After Policy Change | P87: Depreciation Expense on Current Year Additions 5 | Q87: Total Current Year Depreciation Expense | R87: Depreciation Expense per Appendix 2-BA Fixed Assets, Column J | S87: Variance 6 | Y87: 2018
C88: a | D88: b | E88: c = a-b | F88: d | G88: e | H88: f = d- e | I88: g | J88: h | K88: i = 1/h | L88: j | M88: k = 1/j | N88: l = c/h | O88: m = f/j | P88: n = g*0.5/j | Q88: o = l+m+n | R88: p | S88: q = p-o
A89: 1611 | B89: Computer Software (Formally known as Account 1925) | C89: 12484730.78 | D89: 28249.46 | E89: =C89-D89 -> 12456481.32 | H89: =F89-G89 -> 0 | I89: 757427.47 | J89: 4.15 | K89: =IF(J89=0,0,1/J89) -> 0.2409638554 | L89: 5 | M89: =IF(L89=0,0,1/L89) -> 0.2 | N89: =IF(J89=0,0,+E89/J89) -> 3001561.764 | O89: =IF(L89=0,0,+H89/L89) -> 0 | P89: =IF(L89=0,0,+(I89*0.5)/L89) -> 75742.747 | Q89: =IF(ISERROR(+N89+O89+P89), 0, +N89+O89+P89) -> 3077304.511 | R89: 3000748.23 | S89: =IF(ISERROR(+R89-122), 0, +R89-Q89) -> -76556.28086
A90: 1612 | B90: Land Rights (Formally known as Account 1906) | C90: 30889.4 | D90: 0 | E90: =C90-D90 -> 30889.4 | H90: =F90-G90 -> 0 | I90: 0 | J90: 0 | K90: =IF(J90=0,0,1/J90) -> 0 | L90: 0 | M90: =IF(L90=0,0,1/L90) -> 0 | N90: =IF(J90=0,0,+E90/J90) -> 0 | O90: =IF(L90=0,0,+H90/L90) -> 0 | P90: =IF(L90=0,0,+(I90*0.5)/L90) -> 0 | Q90: =IF(ISERROR(+N90+O90+P90), 0, +N90+O90+P90) -> 0 | R90: 0 | S90: =IF(ISERROR(+R90-122), 0, +R90-Q90) -> 0
A91: 1805 | B91: Land | C91: 100519.4 | D91: 6108.06 | E91: 94411.34 | H91: 0 | I91: 0 | J91: 0 | K91: 0 | L91: 0 | M91: 0 | N91: 0 | O91: =IF(L91=0,0,+H91/L91) -> 0 | P91: 0 | Q91: 0 | R91: 0 | S91: 0
A92: 1808 | B92: Buildings - Fixtures | C92: 0 | D92: 0 | E92: 0 | H92: 0 | I92: 24089.71 | J92: 0 | K92: 0 | L92: 10 | M92: 0.1 | N92: 0 | O92: 0 | P92: 1204.4855 | Q92: 1204.4855 | R92: 2323 | S92: 1118.5145
A93: 1808 | B93: Buildings - Roof | C93: 7385.26 | D93: 93.85 | E93: =C93-D93 -> 7291.41 | H93: =F93-G93 -> 0 | I93: 0 | J93: 9 | K93: =IF(J93=0,0,1/J93) -> 0.1111111111 | L93: 20 | M93: =IF(L93=0,0,1/L93) -> 0.05 | N93: =IF(J93=0,0,+E93/J93) -> 810.1566667 | O93: =IF(L93=0,0,+H93/L93) -> 0 | P93: =IF(L93=0,0,+(I93*0.5)/L93) -> 0 | Q93: =IF(ISERROR(+N93+O93+P93), 0, +N93+O93+P93) -> 810.1566667 | R93: 1330.05 | S93: =IF(ISERROR(+R93-122), 0, +R93-Q93) -> 519.8933333
A94: 1808 | B94: Buildings - Structure | C94: 24724.55 | D94: 0 | E94: 24724.55 | H94: 0 | I94: 6547.83 | J94: 39 | K94: 0.02564102564 | L94: 50 | M94: 0.02 | N94: 633.9628205 | O94: 0 | P94: 65.4783 | Q94: 699.4411205 | R94: 767.59 | S94: 68.14887949
A95: 1810 | B95: Leasehold Improvements | C95: 0 | D95: 0 | E95: 0 | H95: 0 | I95: 0 | J95: 0 | K95: 0 | L95: 0 | M95: 0 | N95: 0 | O95: 0 | P95: 0 | Q95: 0 | R95: 0 | S95: 0
A96: 1815 | B96: Transformer Station Equipment >50 kV Protection Equip | C96: 6458011.74 | D96: 0 | E96: 6458011.74 | H96: 0 | I96: 0 | J96: 11.77 | K96: 0.0849617672 | L96: 20 | M96: 0.05 | N96: 548684.0901 | O96: 0 | P96: 0 | Q96: 548684.0901 | R96: 605754.45 | S96: 57070.35994
A97: 1815 | B97: Transformer Station Equipment >50 kV Batteries | C97: 576240.29 | D97: 0 | E97: 576240.29 | H97: 0 | I97: 21484.13 | J97: 3.62 | K97: 0.2762430939 | L97: 8 | M97: 0.125 | N97: 159182.4006 | O97: 0 | P97: 1342.758125 | Q97: 160525.1587 | R97: 163679.55 | S97: 3154.391323
A98: 1815 | B98: Transformer Station Equipment >50 kV Transformer Stations | C98: 4629706.52 | D98: 0 | E98: 4629706.52 | H98: 0 | I98: 0 | J98: 35.76 | K98: 0.02796420582 | L98: 45 | M98: 0.02222222222 | N98: 129466.066 | O98: 0 | P98: 0 | Q98: 129466.066 | R98: 150507.05 | S98: 21040.984
A99: 1815 | B99: Transformer Station Equipment >50 kV Ford Annex | C99: 10566157.8 | D99: 0 | E99: 10566157.8 | H99: 0 | I99: 0 | J99: 32.87 | K99: 0.030422878 | L99: 45 | M99: 0.02222222222 | N99: 321452.9297 | O99: 0 | P99: 0 | Q99: 321452.9297 | R99: 386688.43 | S99: 65235.50028
A100: 1820 | B100: Distribution Station Equipment <50 kV Batteries | C100: 3531.95 | D100: 1349.67 | E100: 2182.28 | H100: 0 | I100: 0 | J100: 2.26 | K100: 0.4424778761 | L100: 8 | M100: 0.125 | N100: 965.6106195 | O100: 0 | P100: 0 | Q100: 965.6106195 | R100: 2072.94 | S100: 1107.329381
A101: 1820 | B101: Distribution Station Equipment <50 kV Transformer Stations | C101: 1129879.02 | D101: 0 | E101: 1129879.02 | H101: 0 | I101: 0 | J101: 34.96 | K101: 0.02860411899 | L101: 45 | M101: 0.02222222222 | N101: 32319.19394 | O101: 0 | P101: 0 | Q101: 32319.19394 | R101: 31972.33 | S101: -346.8639359
A102: 1825 | B102: Storage Battery Equipment | C102: 0 | D102: 0 | E102: 0 | H102: 0 | I102: 0 | J102: 0 | K102: 0 | L102: 0 | M102: 0 | N102: 0 | O102: 0 | P102: 0 | Q102: 0 | R102: 0 | S102: 0
A103: 1830 | B103: Poles, Towers & Fixtures - Wood Poles | C103: 31975159.63 | D103: 4168.86 | E103: 31970990.77 | H103: 0 | I103: 862871.3 | J103: 37.74 | K103: 0.02649708532 | L103: 45 | M103: 0.02222222222 | N103: 847138.0702 | O103: 0 | P103: 9587.458889 | Q103: 856725.5291 | R103: 871455.4 | S103: 14729.87089
A104: 1830 | B104: Poles, Towers & Fixtures - Concrete Poles | C104: 0 | D104: 0 | E104: 0 | H104: 0 | I104: 668107.35 | J104: 0 | K104: 0 | L104: 50 | M104: 0.02 | N104: 0 | O104: 0 | P104: 6681.0735 | Q104: 6681.0735 | R104: 1113.51 | S104: -5567.5635
A105: 1830 | B105: Poles, Towers & Fixtures - Composite Poles | C105: 0 | D105: 0 | E105: 0 | H105: 0 | I105: 39377.84 | J105: 0 | K105: 0 | L105: 80 | M105: 0.0125 | N105: 0 | O105: 0 | P105: 246.1115 | Q105: 246.1115 | R105: 41.02 | S105: -205.0915
A106: 1830 | B106: Poles, Towers & Fixtures - OH Switches | C106: 3336605.1 | D106: 0 | E106: 3336605.1 | H106: 0 | I106: 253057.53 | J106: 38.18 | K106: 0.02619172342 | L106: 45 | M106: 0.02222222222 | N106: 87391.43793 | O106: 0 | P106: 2811.750333 | Q106: 90203.18826 | R106: 88594.93 | S106: -1608.258259
A107: 1830 | B107: Poles, Towers & Fixtures - OH Conductors | C107: 16333699.01 | D107: 0 | E107: 16333699.01 | H107: 0 | I107: 3367382.33 | J107: 53.22 | K107: 0.0187899286 | L107: 60 | M107: 0.01666666667 | N107: 306909.0381 | O107: 0 | P107: 28061.51942 | Q107: 334970.5576 | R107: 323143.49 | S107: -11827.06756
A108: 1835 | B108: Overhead Conductors & Devices | C108: 0 | D108: 0 | E108: 0 | H108: 0 | I108: 0 | J108: 0 | K108: 0 | L108: 0 | M108: 0 | N108: 0 | O108: 0 | P108: 0 | Q108: 0 | R108: 0 | S108: 0
A109: 1840 | B109: Underground Conduit - UG Switches | C109: 5299579.39 | D109: 0 | E109: 5299579.39 | H109: 0 | I109: 357340.47 | J109: 21.7 | K109: 0.04608294931 | L109: 30 | M109: 0.03333333333 | N109: 244220.2484 | O109: 0 | P109: 5955.6745 | Q109: 250175.9229 | R109: 252664.09 | S109: 2488.167113
A110: 1840 | B110: Underground Conduit - UG Cable | C110: 12748936.66 | D110: 0 | E110: 12748936.66 | H110: 0 | I110: 456308.7 | J110: 29.69 | K110: 0.0336813742 | L110: 40 | M110: 0.025 | N110: 429401.7063 | O110: 0 | P110: 5703.85875 | Q110: 435105.565 | R110: 458121.45 | S110: 23015.88495
A111: 1840 | B111: Underground Conduit - Manholes | C111: 19284948.74 | D111: 0 | E111: 19284948.74 | H111: 0 | I111: 461389.83 | J111: 39.09 | K111: 0.02558199028 | L111: 50 | M111: 0.02 | N111: 493347.3712 | O111: 0 | P111: 4613.8983 | Q111: 497961.2695 | R111: 508539.99 | S111: 10578.72051
A112: 1845 | B112: Underground Conductors & Devices | C112: 0 | D112: 0 | E112: 0 | H112: 0 | I112: 0 | J112: 0 | K112: 0 | L112: 0 | M112: 0 | N112: 0 | O112: 0 | P112: 0 | Q112: 0 | R112: 0 | S112: 0
A113: 1850 | B113: Line Transformers | C113: 32430143.2 | D113: 419127.85 | E113: 32011015.35 | H113: 0 | I113: 2211689.2 | J113: 31.79 | K113: 0.03145643284 | L113: 40 | M113: 0.025 | N113: 1006952.355 | O113: 0 | P113: 27646.115 | Q113: 1034598.47 | R113: 1079568.74 | S113: 44970.27049
A114: 1855 | B114: Services (Overhead & Underground) | C114: 3397428.33 | D114: 0 | E114: 3397428.33 | H114: 0 | I114: 1187589.41 | J114: 58.84 | K114: 0.01699524133 | L114: 60 | M114: 0.01666666667 | N114: 57740.11438 | O114: 0 | P114: 9896.578417 | Q114: 67636.69279 | R114: 61447.8 | S114: -6188.892795
A115: 1860 | B115: Meters | C115: 2734088.35 | D115: 1234622.42 | E115: 1499465.93 | H115: 0 | I115: 71101.02 | J115: 17.69 | K115: 0.05652911249 | L115: 25 | M115: 0.04 | N115: 84763.47824 | O115: 0 | P115: 1422.0204 | Q115: 86185.49864 | R115: 130154.29 | S115: 43968.79136
A116: 1860 | B116: Meters - Wholesale | C116: 740785.94 | D116: 0 | E116: 740785.94 | H116: 0 | I116: 335612.18 | J116: 10.44 | K116: 0.09578544061 | L116: 15 | M116: 0.06666666667 | N116: 70956.50766 | O116: 0 | P116: 11187.07267 | Q116: 82143.58033 | R116: 76944.99 | S116: -5198.59033
A117: 1860 | B117: Meters (Smart Meters) | C117: 0 | D117: 0 | E117: 0 | H117: 0 | I117: 0 | J117: 0 | K117: 0 | L117: 0 | M117: 0 | N117: 0 | O117: 0 | P117: 0 | Q117: 0 | R117: 0 | S117: 0
A118: 1905 | B118: Land | C118: 1322514.43 | D118: 0 | E118: 1322514.43 | H118: 0 | I118: 0 | J118: 0 | K118: 0 | L118: 0 | M118: 0 | N118: 0 | O118: 0 | P118: 0 | Q118: 0 | R118: 0 | S118: 0
A119: 1908 | B119: Buildings & Fixtures - Fixtures | C119: 426281.92 | D119: 0 | E119: 426281.92 | H119: 0 | I119: 127268.25 | J119: 5.82 | K119: 0.1718213058 | L119: 10 | M119: 0.1 | N119: 73244.31615 | O119: 0 | P119: 6363.4125 | Q119: 79607.72865 | R119: 121752.24 | S119: 42144.51135
A120: 1908 | B120: Buildings & Fixtures - Roof | C120: 3839534.78 | D120: 0 | E120: 3839534.78 | H120: 0 | I120: 0 | J120: 9.51 | K120: 0.1051524711 | L120: 20 | M120: 0.05 | N120: 403736.5699 | O120: 0 | P120: 0 | Q120: 403736.5699 | R120: 408083.2 | S120: 4346.630074
A121: 1908 | B121: Buildings & Fixtures - Structure | C121: 12929524.03 | D121: 0 | E121: 12929524.03 | H121: 0 | I121: 198282.51 | J121: 39.57 | K121: 0.02527167046 | L121: 50 | M121: 0.02 | N121: 326750.6705 | O121: 0 | P121: 1982.8251 | Q121: 328733.4956 | R121: 327500.55 | S121: -1232.945557
A122: 1910 | B122: Leasehold Improvements | C122: 0 | D122: 0 | E122: 0 | H122: 0 | I122: 0 | J122: 0 | K122: 0 | L122: 0 | M122: 0 | N122: 0 | O122: 0 | P122: 0 | Q122: 0 | R122: 0 | S122: 0
A123: 1915 | B123: Office Furniture & Equipment (10 years) | C123: 388841.89 | D123: 2951.36 | E123: 385890.53 | H123: 0 | I123: 39511.75 | J123: 7.2 | K123: 0.1388888889 | L123: 10 | M123: 0.1 | N123: 53595.90694 | O123: 0 | P123: 1975.5875 | Q123: 55571.49444 | R123: 66340.91 | S123: 10769.41556
A124: 1915 | B124: Office Furniture & Equipment (5 years) | C124: 0 | D124: 0 | E124: 0 | H124: 0 | I124: 0 | J124: 0 | K124: 0 | L124: 0 | M124: 0 | N124: 0 | O124: 0 | P124: 0 | Q124: 0 | R124: 0 | S124: 0
A125: 1920 | B125: Computer Equipment - Hardware | C125: 0 | D125: 0 | E125: 0 | H125: 0 | I125: 0 | J125: 0 | K125: 0 | L125: 0 | M125: 0 | N125: 0 | O125: 0 | P125: 0 | Q125: 0 | R125: 0 | S125: 0
A126: 1920 | B126: Computer Equip.-Hardware(Post Mar. 22/04) | C126: 28140.87 | D126: 0 | E126: 28140.87 | H126: 0 | I126: 0 | J126: 0.87 | K126: 1.149425287 | L126: 0 | M126: 0 | N126: 32345.82759 | O126: 0 | P126: 0 | Q126: 32345.82759 | R126: 28140.87 | S126: -4204.957586
A127: 1920 | B127: Computer Equip.-Hardware(Post Mar. 19/07) | C127: 1837564.76 | D127: 0 | E127: 1837564.76 | H127: 0 | I127: 201136.9 | J127: 4.04 | K127: 0.2475247525 | L127: 5 | M127: 0.2 | N127: 454842.7624 | O127: 0 | P127: 20113.69 | Q127: 474956.4524 | R127: 473177.93 | S127: -1778.522376
A128: 1930 | B128: Transportation Equipment Classes 4 & 5 | C128: 0 | D128: 0 | E128: 0 | H128: 0 | I128: 3.05 | J128: 0 | K128: 0 | L128: 7 | M128: 0.1428571429 | N128: 0 | O128: 0 | P128: 0.2178571429 | Q128: 0.2178571429 | R128: 0.22 | S128: 0.002142857143
A129: 1930 | B129: Transportation Equipment Class 7 | C129: 0 | D129: 0 | E129: 0 | H129: 0 | I129: 2 | J129: 0 | K129: 0 | L129: 9 | M129: 0.1111111111 | N129: 0 | O129: 0 | P129: 0.1111111111 | Q129: 0.1111111111 | R129: 0.09 | S129: -0.02111111111
A130: 1930 | B130: Transportation Equipment Class 9 | C130: 190357.2 | D130: 0 | E130: 190357.2 | H130: 0 | I130: 0.01 | J130: 12.22 | K130: 0.08183306056 | L130: 15 | M130: 0.06666666667 | N130: 15577.51227 | O130: 0 | P130: 0.0003333333333 | Q130: 15577.51261 | R130: 15706.59 | S130: 129.0773917
A131: 1930 | B131: Transportation Equipment Specialty Equipment | C131: 1105069.03 | D131: 0 | E131: 1105069.03 | H131: 0 | I131: 6266.5 | J131: 18.17 | K131: 0.05503577325 | L131: 20 | M131: 0.05 | N131: 60818.32856 | O131: 0 | P131: 156.6625 | Q131: 60974.99106 | R131: 118323.25 | S131: 57348.25894
A132: 1935 | B132: Stores Equipment | C132: 19276.03 | D132: 0 | E132: 19276.03 | H132: 0 | I132: 66333.08 | J132: 9.38 | K132: 0.1066098081 | L132: 10 | M132: 0.1 | N132: 2055.013859 | O132: 0 | P132: 3316.654 | Q132: 5371.667859 | R132: 7522.9 | S132: 2151.232141
A133: 1940 | B133: Tools, Shop & Garage Equipment | C133: 59984.62 | D133: 2046.56 | E133: 57938.06 | H133: 0 | I133: 20921.99 | J133: 5.44 | K133: 0.1838235294 | L133: 10 | M133: 0.1 | N133: 10650.37868 | O133: 0 | P133: 1046.0995 | Q133: 11696.47818 | R133: 17227.31 | S133: 5530.831824
A134: 1945 | B134: Measurement & Testing Equipment | C134: 21867.03 | D134: 1089.97 | E134: 20777.06 | H134: 0 | I134: 0 | J134: 2.59 | K134: 0.3861003861 | L134: 10 | M134: 0.1 | N134: 8022.030888 | O134: 0 | P134: 0 | Q134: 8022.030888 | R134: 9845.06 | S134: 1823.029112
A135: 1945 | B135: Measurement & Testing Equipment - SCADA Hardware & Software | C135: 869755.79 | D135: 0 | E135: 869755.79 | H135: 0 | I135: 242469.27 | J135: 7.26 | K135: 0.1377410468 | L135: 15 | M135: 0.06666666667 | N135: 119801.073 | O135: 0 | P135: 8082.309 | Q135: 127883.382 | R135: 144213.31 | S135: 16329.928
A136: 1950 | B136: Power Operated Equipment | C136: 175.19 | D136: 0 | E136: 175.19 | H136: 0 | I136: 0 | J136: 1.42 | K136: 0.7042253521 | L136: 10 | M136: 0.1 | N136: 123.3732394 | O136: 0 | P136: 0 | Q136: 123.3732394 | R136: 123.66 | S136: 0.2867605634
A137: 1955 | B137: Communications Equipment | C137: 362155.4 | D137: 0 | E137: 362155.4 | H137: 0 | I137: 29217.52 | J137: 6.99 | K137: 0.1430615165 | L137: 8 | M137: 0.125 | N137: 51810.50072 | O137: 0 | P137: 1826.095 | Q137: 53636.59572 | R137: 52891.22 | S137: -745.3757153
A138: 1955 | B138: Communication Equipment (Smart Meters) | C138: 0 | D138: 0 | E138: 0 | H138: 0 | I138: 0 | J138: 0 | K138: 0 | L138: 0 | M138: 0 | N138: 0 | O138: 0 | P138: 0 | Q138: 0 | R138: 0 | S138: 0
A139: 1960 | B139: Miscellaneous Equipment | C139: 1033828.16 | D139: 51780.77 | E139: 982047.39 | H139: 0 | I139: 52465.54 | J139: 6.02 | K139: 0.1661129568 | L139: 10 | M139: 0.1 | N139: 163130.7957 | O139: 0 | P139: 2623.277 | Q139: 165754.0727 | R139: 218871.47 | S139: 53117.39732
A140: 1970 | B140: Load Management Controls Customer Premises | E140: 0 | H140: 0 | I140: 0 | J140: 0 | K140: 0 | L140: 0 | M140: 0 | N140: 0 | O140: 0 | P140: 0 | Q140: 0 | R140: 0 | S140: 0
A141: 1975 | B141: Load Management Controls Utility Premises | E141: 0 | H141: 0 | I141: 0 | J141: 0 | K141: 0 | L141: 0 | M141: 0 | N141: 0 | O141: 0 | P141: 0 | Q141: 0 | R141: 0 | S141: 0
A142: 1980 | B142: System Supervisor Equipment | E142: 0 | H142: 0 | I142: 0 | J142: 0 | K142: 0 | L142: 0 | M142: 0 | N142: 0 | O142: 0 | P142: 0 | Q142: 0 | R142: 0 | S142: 0
A143: 1985 | B143: Miscellaneous Fixed Assets | E143: 0 | H143: 0 | I143: 0 | J143: 0 | K143: 0 | L143: 0 | M143: 0 | N143: 0 | O143: 0 | P143: 0 | Q143: 0 | R143: 0 | S143: 0
A144: 1990 | B144: Other Tangible Property | E144: 0 | H144: 0 | I144: 0 | J144: 0 | K144: 0 | L144: 0 | M144: 0 | N144: 0 | O144: 0 | P144: 0 | Q144: 0 | R144: 0 | S144: 0
A145: 1995 | B145: Contributions & Grants - Poles | C145: -1872280.2 | D145: 0 | E145: -1872280.2 | H145: 0 | I145: -96295.41 | J145: 41.72 | K145: 0.02396931927 | L145: 45 | M145: 0.02222222222 | N145: -44877.28188 | O145: 0 | P145: -1069.949 | Q145: -45947.23088 | R145: -46127.42 | S145: -180.1891208
A146: 1995 | B146: Contributions & Grants - OH Conductor | C146: -246833.5 | D146: 0 | E146: -246833.5 | H146: 0 | I146: -128582.87 | J146: 55.2 | K146: 0.01811594203 | L146: 60 | M146: 0.01666666667 | N146: -4471.621377 | O146: 0 | P146: -1071.523917 | Q146: -5543.145293 | R146: -5895.97 | S146: -352.8247065
A147: 1995 | B147: Contributions & Grants - UG Cable | C147: -3397062.94 | D147: 0 | E147: -3397062.94 | H147: 0 | I147: -39703.66 | J147: 33.62 | K147: 0.02974419988 | L147: 40 | M147: 0.025 | N147: -101042.9191 | O147: 0 | P147: -496.29575 | Q147: -101539.2148 | R147: -100750.13 | S147: 789.0848458
A148: 1995 | B148: Contributions & Grants - UG Switch | C148: 0 | D148: 0 | E148: 0 | H148: 0 | I148: -6730.26 | J148: 0 | K148: 0 | L148: 30 | M148: 0.03333333333 | N148: 0 | O148: 0 | P148: -112.171 | Q148: -112.171 | R148: -186.95 | S148: -74.779
A149: 1995 | B149: Contributions & Grants - Services | C149: -1089100.82 | D149: 0 | E149: -1089100.82 | H149: 0 | I149: -3215.13 | J149: 56.3 | K149: 0.01776198934 | L149: 60 | M149: 0.01666666667 | N149: -19344.59716 | O149: 0 | P149: -26.79275 | Q149: -19371.38991 | R149: -19392.56 | S149: -21.17009192
A150: 1995 | B150: Contributions & Grants - Transformers | C150: -2617776.25 | D150: -5373.15 | E150: -2612403.1 | H150: 0 | I150: -54614.35 | J150: 38.92 | K150: 0.02569373073 | L150: 45 | M150: 0.02222222222 | N150: -67122.38181 | O150: 0 | P150: -606.8261111 | Q150: -67729.20792 | R150: -67926.9 | S150: -197.6920801
A151: 1995 | B151: Contributions & Grants - Meters | C151: -209267.91 | D151: 0 | E151: -209267.91 | H151: 0 | I151: -3420.85 | J151: 20.76 | K151: 0.04816955684 | L151: 25 | M151: 0.04 | N151: -10080.34249 | O151: 0 | P151: -68.417 | Q151: -10148.75949 | R151: -10398.23 | S151: -249.4705145
A152: 2005 | B152: Property Under Capital Lease | E152: 0 | H152: 0 | K152: 0 | M152: 0 | N152: 0 | O152: 0 | P152: 0 | Q152: 0 | R152: 0 | S152: 0
A153: 2440 | B153: Deferred Revenue | E153: 0 | H153: 0 | K153: 0 | M153: 0 | N153: 0 | O153: 0 | P153: 0 | Q153: 0 | R153: 0 | S153: 0
B154: Total | C154: =SUM(C88:C153) -> 179295700.6 | D154: 1746215.68 | E154: 177549484.9 | F154: 0 | G154: 0 | H154: 0 | I154: 11732692.14 | N154: =SUM(N88:N153) -> 9353462.418 | O154: 0 | P154: 236203.5665 | Q154: 9589665.984 | R154: 9956675.94 | S154: 367009.9558
A156: Scenario that applies | C156: Applicable Years and Accounting Standard | R156: Year Reflected in Schedule Below | S156: Accounting Standard Reflected in Schedule Below | Y156: 2012
A157: Rebasing for the first time with depreciation policy changes made in 2012. | C157: This appendix must be duplicated and completed for the years 2012 to 2018. The appendix for 2012 is to be completed under CGAAP (prior to changes in depreciation policies). The appendix for 2012 to 2014 must be completed under Revised CGAAP (after changes in depreciation policies). The appendix for 2014 to 2018 is to be completed under MIFRS (2014 if changes to MIFRS are material). | R157: 2012 | S157: MIFRS | Y157: 2013
A158: Rebasing for the first time with depreciation policy changes made in 2013. | C158: This appendix must be duplicated and completed for the years 2013 to 2018. The appendix for 2013 is to be completed under CGAAP (prior to changes in depreciation policies). The appendix for 2013 to 2014 must be completed under Revised CGAAP (after changes in depreciation policies). The appendix for 2014 to 2018 is to be completed under MIFRS (2014 if changes to MIFRS are material). | Y158: 2014
A159: Already rebased with depreciation policy changes in a prior rate application | C159: This appendix must be completed for 2014 to 2018. The appendix for 2014 is to be completed under Revised CGAAP (after changes in depreciation policies). The appendix for 2014 to 2018 is to be completed under MIFRS (2014 if changes to MIFRS are material). | Y159: 2015
Y160: 2016
Y161: 2017
C162: Book Values | J162: Service Lives | N162: Depreciation Expense | Y162: 2018
A163: Account | B163: Description | C163: Opening Net Book Value of Existing Assets as at Date of Policy Change (Jan. 1) 1 | D163: Less Fully Depreciated 7 | E163: Net Amount of Existing Assets Before Policy Change to be Depreciated | F163: Opening Gross Book Value of Assets Acquired After Policy Change 2 | G163: Less Fully Depreciated 8 | H163: Net Amount of Assets Acquired After Policy Change to be Depreciated | I163: Current Year Additions | J163: Average Remaining Life of Assets Existing Before Policy Change 3 | K163: Depreciation Rate Assets Acquired After Policy Change | L163: Life of Assets Acquired After Policy Change 4 | M163: Depreciation Rate on New Additions | N163: Depreciation Expense on Assets Existing Before Policy Change | O163: Depreciation Expense on Assets Acquired After Policy Change | P163: Depreciation Expense on Current Year Additions 5 | Q163: Total Current Year Depreciation Expense | R163: Depreciation Expense per Appendix 2-BA Fixed Assets, Column J | S163: Variance 6
C164: a | D164: b | E164: c = a-b | F164: d | G164: e | H164: f = d- e | I164: g | J164: h | K164: i = 1/h | L164: j | M164: k = 1/j | N164: l = c/h | O164: m = f/j | P164: n = g*0.5/j | Q164: o = l+m+n | R164: p | S164: q = p-o
A165: 1611 | B165: Computer Software (Formally known as Account 1925) | C165: 886621.57 | D165: 73050.54 | E165: =C165-D165 -> 813571.03 | F165: 582653.12 | H165: =F165-G165 -> 582653.12 | I165: 466153.04 | J165: 3.52 | K165: =IF(J165=0,0,1/J165) -> 0.2840909091 | L165: 5 | M165: =IF(L165=0,0,1/L165) -> 0.2 | N165: =IF(J165=0,0,+E165/J165) -> 231128.1335 | O165: =IF(L165=0,0,+H165/L165) -> 116530.624 | P165: =IF(L165=0,0,+(I165*0.5)/L165) -> 46615.304 | Q165: =IF(ISERROR(+N165+O165+P165), 0, +N165+O165+P165) -> 394274.0615 | R165: 392876.11 | S165: =IF(ISERROR(+R165-122), 0, +R165-Q165) -> -1397.951523
A166: 1611 | B166: Computer Software (Formally known as Account 1925) | E166: =C166-D166 -> 0 | F166: 11772883.93 | H166: =F166-G166 -> 11772883.93 | I166: 0 | J166: 0 | K166: =IF(J166=0,0,1/J166) -> 0 | L166: 10 | M166: =IF(L166=0,0,1/L166) -> 0.1 | N166: =IF(J166=0,0,+E166/J166) -> 0 | O166: =IF(L166=0,0,+H166/L166) -> 1177288.393 | P166: =IF(L166=0,0,+(I166*0.5)/L166) -> 0 | Q166: =IF(ISERROR(+N166+O166+P166), 0, +N166+O166+P166) -> 1177288.393 | R166: 1086790.58 | S166: =IF(ISERROR(+R166-122), 0, +R166-Q166) -> -90497.813
A167: 1612 | B167: Land Rights (Formally known as Account 1906) | C167: 30889.4 | E167: =C167-D167 -> 30889.4 | H167: =F167-G167 -> 0 | I167: 0 | J167: 0 | K167: =IF(J167=0,0,1/J167) -> 0 | M167: =IF(L167=0,0,1/L167) -> 0 | N167: =IF(J167=0,0,+E167/J167) -> 0 | O167: =IF(L167=0,0,+H167/L167) -> 0 | P167: =IF(L167=0,0,+(I167*0.5)/L167) -> 0 | Q167: =IF(ISERROR(+N167+O167+P167), 0, +N167+O167+P167) -> 0 | S167: =IF(ISERROR(+R167-122), 0, +R167-Q167) -> 0
A168: 1805 | B168: Land | C168: 100519.4 | D168: 6108.06 | E168: 94411.34 | H168: 0 | I168: 0 | J168: 0 | K168: 0 | M168: 0 | N168: 0 | O168: =IF(L168=0,0,+H168/L168) -> 0 | P168: 0 | Q168: 0 | S168: 0
A169: 1808 | B169: Buildings - Fixtures | E169: 0 | F169: 24089.71 | H169: 24089.71 | I169: 0 | J169: 0 | K169: 0 | L169: 10 | M169: 0.1 | N169: 0 | O169: 2408.971 | P169: 0 | Q169: 2408.971 | R169: 2408 | S169: -0.971
A170: 1808 | B170: Buildings - Roof | C170: 7385.26 | D170: 578.33 | E170: =C170-D170 -> 6806.93 | H170: =F170-G170 -> 0 | I170: 0 | J170: 9 | K170: =IF(J170=0,0,1/J170) -> 0.1111111111 | L170: 20 | M170: =IF(L170=0,0,1/L170) -> 0.05 | N170: =IF(J170=0,0,+E170/J170) -> 756.3255556 | O170: =IF(L170=0,0,+H170/L170) -> 0 | P170: =IF(L170=0,0,+(I170*0.5)/L170) -> 0 | Q170: =IF(ISERROR(+N170+O170+P170), 0, +N170+O170+P170) -> 756.3255556 | R170: 1236.2 | S170: =IF(ISERROR(+R170-122), 0, +R170-Q170) -> 479.8744444
A171: 1808 | B171: Buildings - Structure | C171: 24724.55 | E171: 24724.55 | F171: 6547.83 | H171: 6547.83 | I171: 0 | J171: 39 | K171: 0.02564102564 | L171: 50 | M171: 0.02 | N171: 633.9628205 | O171: 130.9566 | P171: 0 | Q171: 764.9194205 | R171: 767.58 | S171: 2.660579487
A172: 1810 | B172: Leasehold Improvements | E172: 0 | H172: 0 | I172: 0 | J172: 0 | K172: 0 | M172: 0 | N172: 0 | O172: 0 | P172: 0 | Q172: 0 | S172: 0
A173: 1815 | B173: Transformer Station Equipment >50 kV Protection Equip | C173: 6458011.74 | E173: 6458011.74 | H173: 0 | I173: 0 | J173: 11.77 | K173: 0.0849617672 | L173: 20 | M173: 0.05 | N173: 548684.0901 | O173: 0 | P173: 0 | Q173: 548684.0901 | R173: 600079.97 | S173: 51395.87994
A174: 1815 | B174: Transformer Station Equipment >50 kV Batteries | C174: 576240.29 | E174: =C174-D174 -> 576240.29 | F174: 21484.13 | H174: =F174-G174 -> 21484.13 | I174: 0 | J174: 3.62 | K174: =IF(J174=0,0,1/J174) -> 0.2762430939 | L174: 8 | M174: =IF(L174=0,0,1/L174) -> 0.125 | N174: =IF(J174=0,0,+E174/J174) -> 159182.4006 | O174: =IF(L174=0,0,+H174/L174) -> 2685.51625 | P174: =IF(L174=0,0,+(I174*0.5)/L174) -> 0 | Q174: =IF(ISERROR(+N174+O174+P174), 0, +N174+O174+P174) -> 161867.9168 | R174: 166141.25 | S174: =IF(ISERROR(+R174-122), 0, +R174-Q174) -> 4273.333198
A175: 1815 | B175: Transformer Station Equipment >50 kV Transformer Stations | C175: 4629706.52 | E175: 4629706.52 | H175: 0 | I175: 0 | J175: 35.76 | K175: 0.02796420582 | L175: 45 | M175: 0.02222222222 | N175: 129466.066 | O175: 0 | P175: 0 | Q175: 129466.066 | R175: 150507.05 | S175: 21040.984
A176: 1815 | B176: Transformer Station Equipment >50 kV Ford Annex | C176: 10566157.8 | E176: 10566157.8 | H176: 0 | I176: 0 | J176: 32.87 | K176: 0.030422878 | L176: 45 | M176: 0.02222222222 | N176: 321452.9297 | O176: 0 | P176: 0 | Q176: 321452.9297 | R176: 386688.43 | S176: 65235.50028
A177: 1820 | B177: Distribution Station Equipment <50 kV Batteries | C177: 3531.95 | D177: 1369.67 | E177: 2162.28 | H177: 0 | I177: 0 | J177: 3.03 | K177: 0.3300330033 | L177: 8 | M177: 0.125 | N177: 713.6237624 | O177: 0 | P177: 0 | Q177: 713.6237624 | R177: 723.28 | S177: 9.656237624
A178: 1820 | B178: Distribution Station Equipment <50 kV Transformer Stations | C178: 1129879.02 | D178: 0 | E178: =C178-D178 -> 1129879.02 | H178: =F178-G178 -> 0 | I178: 0 | J178: 34.96 | K178: =IF(J178=0,0,1/J178) -> 0.02860411899 | L178: 45 | M178: =IF(L178=0,0,1/L178) -> 0.02222222222 | N178: =IF(J178=0,0,+E178/J178) -> 32319.19394 | O178: =IF(L178=0,0,+H178/L178) -> 0 | P178: =IF(L178=0,0,+(I178*0.5)/L178) -> 0 | Q178: =IF(ISERROR(+N178+O178+P178), 0, +N178+O178+P178) -> 32319.19394 | R178: 31972.31 | S178: =IF(ISERROR(+R178-122), 0, +R178-Q178) -> -346.8839359
A179: 1825 | B179: Storage Battery Equipment | E179: 0 | H179: 0 | I179: 0 | J179: 0 | K179: 0 | M179: 0 | N179: 0 | O179: 0 | P179: 0 | Q179: 0 | S179: 0
A180: 1830 | B180: Poles, Towers & Fixtures - Wood Poles | C180: 31975159.63 | D180: =4168.86+12034.56 -> 16203.42 | E180: 31958956.21 | F180: 862871.3 | H180: 862871.3 | I180: 1702078.39 | J180: 37.73 | K180: 0.02650410814 | L180: 45 | M180: 0.02222222222 | N180: 847043.6313 | O180: 19174.91778 | P180: 18911.98211 | Q180: 885130.5312 | R180: 900942.13 | S180: 15811.59878
A181: 1830 | B181: Poles, Towers & Fixtures - Concrete Poles | C181: 0 | D181: 0 | E181: =C181-D181 -> 0 | F181: 668107.35 | H181: =F181-G181 -> 668107.35 | I181: 620175.06 | J181: 0 | K181: =IF(J181=0,0,1/J181) -> 0 | L181: 50 | M181: =IF(L181=0,0,1/L181) -> 0.02 | N181: =IF(J181=0,0,+E181/J181) -> 0 | O181: =IF(L181=0,0,+H181/L181) -> 13362.147 | P181: =IF(L181=0,0,+(I181*0.5)/L181) -> 6201.7506 | Q181: =IF(ISERROR(+N181+O181+P181), 0, +N181+O181+P181) -> 19563.8976 | R181: 16606.31 | S181: =IF(ISERROR(+R181-122), 0, +R181-Q181) -> -2957.5876
A182: 1830 | B182: Poles, Towers & Fixtures - Composite Poles | C182: 0 | D182: 0 | E182: 0 | F182: 39377.84 | H182: 39377.84 | I182: 74657.74 | J182: 0 | K182: 0 | L182: 80 | M182: 0.0125 | N182: 0 | O182: 492.223 | P182: 466.610875 | Q182: 958.833875 | R182: 1040.02 | S182: 81.186125
A183: 1830 | B183: Poles, Towers & Fixtures - OH Switches | C183: 3336605.1 | D183: 0 | E183: 3336605.1 | F183: 253057.53 | H183: 253057.53 | I183: 220016.41 | J183: 38.18 | K183: 0.02619172342 | L183: 45 | M183: 0.02222222222 | N183: 87391.43793 | O183: 5623.500667 | P183: 2444.626778 | Q183: 95459.56537 | R183: 95645.22 | S183: 185.6546299
A184: 1830 | B184: Poles, Towers & Fixtures - OH Conductors | C184: 16333699.01 | D184: 0 | E184: 16333699.01 | F184: 3367382.33 | H184: 3367382.33 | I184: 2175951.67 | J184: 53.22 | K184: 0.0187899286 | L184: 60 | M184: 0.01666666667 | N184: 306909.0381 | O184: 56123.03883 | P184: 18132.93058 | Q184: 381165.0076 | R184: 376089.43 | S184: -5075.57756
A185: 1835 | B185: Overhead Conductors & Devices | E185: 0 | H185: 0 | I185: 0 | J185: 0 | K185: 0 | M185: 0 | N185: 0 | O185: 0 | P185: 0 | Q185: 0 | S185: 0
A186: 1840 | B186: Underground Conduit - UG Switches | C186: 5299579.39 | D186: 0 | E186: 5299579.39 | F186: 357340.47 | H186: 357340.47 | I186: 54047.51 | J186: 21.7 | K186: 0.04608294931 | L186: 30 | M186: 0.03333333333 | N186: 244220.2484 | O186: 11911.349 | P186: 900.7918333 | Q186: 257032.3892 | R186: 261476.22 | S186: 4443.83078
A187: 1840 | B187: Underground Conduit - UG Cable | C187: 12748936.66 | D187: 0 | E187: =C187-D187 -> 12748936.66 | F187: 456308.7 | H187: =F187-G187 -> 456308.7 | I187: 1349148.06 | J187: 29.69 | K187: =IF(J187=0,0,1/J187) -> 0.0336813742 | L187: 40 | M187: =IF(L187=0,0,1/L187) -> 0.025 | N187: =IF(J187=0,0,+E187/J187) -> 429401.7063 | O187: =IF(L187=0,0,+H187/L187) -> 11407.7175 | P187: =IF(L187=0,0,+(I187*0.5)/L187) -> 16864.35075 | Q187: =IF(ISERROR(+N187+O187+P187), 0, +N187+O187+P187) -> 457673.7745 | R187: 480464.58 | S187: =IF(ISERROR(+R187-122), 0, +R187-Q187) -> 22790.80545
A188: 1840 | B188: Underground Conduit - Manholes | C188: 19284948.74 | D188: 0 | E188: 19284948.74 | F188: 461389.83 | H188: 461389.83 | I188: 793158.97 | J188: 39.09 | K188: 0.02558199028 | L188: 50 | M188: 0.02 | N188: 493347.3712 | O188: 9227.7966 | P188: 7931.5897 | Q188: 510506.7575 | R188: 518836.34 | S188: 8329.582505
A189: 1845 | B189: Underground Conductors & Devices | E189: 0 | H189: 0 | I189: 0 | J189: 0 | K189: 0 | M189: 0 | N189: 0 | O189: 0 | P189: 0 | Q189: 0 | S189: 0
A190: 1850 | B190: Line Transformers | C190: =32409923.16+20220.04 -> 32430143.2 | D190: =419127.85+278161.54 -> 697289.39 | E190: 31732853.81 | F190: 2211689.2 | G190: 36252.43 | H190: 2175436.77 | I190: 2185623.81 | J190: 31.37 | K190: 0.03187759005 | L190: 40 | M190: 0.025 | N190: 1011566.905 | O190: 54385.91925 | P190: 27320.29762 | Q190: 1093273.122 | R190: 1116467.55 | S190: 23194.42812
A191: 1855 | B191: Services (Overhead) | C191: 3397428.33 | D191: 0 | E191: 3397428.33 | F191: 1187589.41 | G191: 0 | H191: 1187589.41 | I191: 990145.86 | J191: 58.84 | K191: 0.01699524133 | L191: 60 | M191: 0.01666666667 | N191: 57740.11438 | O191: 19793.15683 | P191: 8251.2155 | Q191: 85784.48671 | R191: 82164.57 | S191: -3619.916711
A192: 1855 | B192: Services (Underground) | C192: 0 | D192: 0 | E192: =C192-D192 -> 0 | F192: 0 | G192: 0 | H192: =F192-G192 -> 0 | I192: 686643.31 | J192: 0 | K192: =IF(J192=0,0,1/J192) -> 0 | L192: 35 | M192: =IF(L192=0,0,1/L192) -> 0.02857142857 | N192: =IF(J192=0,0,+E192/J192) -> 0 | O192: =IF(L192=0,0,+H192/L192) -> 0 | P192: =IF(L192=0,0,+(I192*0.5)/L192) -> 9809.190143 | Q192: =IF(ISERROR(+N192+O192+P192), 0, +N192+O192+P192) -> 9809.190143 | R192: 2943.88 | S192: =IF(ISERROR(+R192-122), 0, +R192-Q192) -> -6865.310143
A193: 1860 | B193: Meters | C193: 2734088.35 | D193: =1234622.42+157818.14 -> 1392440.56 | E193: 1341647.79 | F193: 71101.02 | G193: 3613.07 | H193: 67487.95 | I193: 90191.06 | J193: 10.99 | K193: 0.09099181074 | L193: 25 | M193: 0.04 | N193: 122078.9618 | O193: 2699.518 | P193: 1803.8212 | Q193: 126582.301 | R193: 103378.57 | S193: -23203.73098
A194: 1860 | B194: Meters - Wholesale | C194: 740785.94 | D194: 0 | E194: =C194-D194 -> 740785.94 | F194: 335612.18 | G194: 0 | H194: =F194-G194 -> 335612.18 | I194: 838617.27 | J194: 10.44 | K194: =IF(J194=0,0,1/J194) -> 0.09578544061 | L194: 15 | M194: =IF(L194=0,0,1/L194) -> 0.06666666667 | N194: =IF(J194=0,0,+E194/J194) -> 70956.50766 | O194: =IF(L194=0,0,+H194/L194) -> 22374.14533 | P194: =IF(L194=0,0,+(I194*0.5)/L194) -> 27953.909 | Q194: =IF(ISERROR(+N194+O194+P194), 0, +N194+O194+P194) -> 121284.562 | R194: 104069.31 | S194: =IF(ISERROR(+R194-122), 0, +R194-Q194) -> -17215.252
A195: 1860 | B195: Meters (Smart Meters) | C195: 0 | D195: 0 | E195: 0 | F195: 0 | G195: 0 | H195: 0 | I195: 196072.05 | J195: 0 | K195: 0 | L195: 15 | M195: 0.06666666667 | N195: 0 | O195: 0 | P195: 6535.735 | Q195: 6535.735 | R195: -61344.38 | S195: -67880.115
A196: 1905 | B196: Land | C196: 1322514.43 | D196: 0 | E196: 1322514.43 | F196: 0 | G196: 0 | H196: 0 | I196: 0 | J196: 0 | K196: 0 | L196: 0 | M196: 0 | N196: 0 | O196: 0 | P196: 0 | Q196: 0 | R196: 0 | S196: 0
A197: 1908 | B197: Buildings & Fixtures - Fixtures | C197: 426281.92 | D197: 95813.65 | E197: 330468.27 | F197: 127268.25 | G197: 0 | H197: 127268.25 | I197: 213056.34 | J197: 5.82 | K197: 0.1718213058 | L197: 10 | M197: 0.1 | N197: 56781.48969 | O197: 12726.825 | P197: 10652.817 | Q197: 80161.13169 | R197: 131978.66 | S197: 51817.52831
A198: 1908 | B198: Buildings & Fixtures - Roof | C198: 3839534.78 | D198: 0 | E198: =C198-D198 -> 3839534.78 | F198: 0 | G198: 0 | H198: =F198-G198 -> 0 | I198: 112399.04 | J198: 9.51 | K198: =IF(J198=0,0,1/J198) -> 0.1051524711 | L198: 20 | M198: =IF(L198=0,0,1/L198) -> 0.05 | N198: =IF(J198=0,0,+E198/J198) -> 403736.5699 | O198: =IF(L198=0,0,+H198/L198) -> 0 | P198: =IF(L198=0,0,+(I198*0.5)/L198) -> 2809.976 | Q198: =IF(ISERROR(+N198+O198+P198), 0, +N198+O198+P198) -> 406546.5459 | R198: 410226.99 | S198: =IF(ISERROR(+R198-122), 0, +R198-Q198) -> 3680.444074
A199: 1908 | B199: Buildings & Fixtures - Structure | C199: 12929524.03 | D199: 0 | E199: 12929524.03 | F199: 198282.51 | G199: 0 | H199: 198282.51 | I199: 270240.92 | J199: 39.57 | K199: 0.02527167046 | L199: 50 | M199: 0.02 | N199: 326750.6705 | O199: 3965.6502 | P199: 2702.4092 | Q199: 333418.7299 | R199: 332765 | S199: -653.7298574
A200: 1910 | B200: Leasehold Improvements | C200: 0 | D200: 0 | E200: 0 | F200: 0 | G200: 0 | H200: 0 | I200: 0 | J200: 0 | K200: 0 | L200: 0 | M200: 0 | N200: 0 | O200: 0 | P200: 0 | Q200: 0 | R200: 0 | S200: 0
A201: 1915 | B201: Office Furniture & Equipment (10 years) | C201: 388841.89 | D201: 15231.91 | E201: 373609.98 | F201: 39511.75 | G201: 0 | H201: 39511.75 | I201: 60777.13 | J201: 7.25 | K201: 0.1379310345 | L201: 10 | M201: 0.1 | N201: 51532.41103 | O201: 3951.175 | P201: 3038.8565 | Q201: 58522.44253 | R201: 68936.94 | S201: 10414.49747
A202: 1915 | B202: Office Furniture & Equipment (5 years) | C202: 0 | D202: 0 | E202: 0 | F202: 0 | G202: 0 | H202: 0 | I202: 0 | J202: 0 | K202: 0 | L202: 0 | M202: 0 | N202: 0 | O202: 0 | P202: 0 | Q202: 0 | R202: 0 | S202: 0
A203: 1920 | B203: Computer Equipment - Hardware | C203: 0 | D203: 0 | E203: 0 | F203: 0 | G203: 0 | H203: 0 | I203: 0 | J203: 0 | K203: 0 | L203: 0 | M203: 0 | N203: 0 | O203: 0 | P203: 0 | Q203: 0 | R203: 0 | S203: 0
A204: 1920 | B204: Computer Equip.-Hardware(Post Mar. 22/04) | C204: 28140.87 | D204: 28140.87 | E204: 0 | F204: 0 | G204: 0 | H204: 0 | I204: 0 | J204: 0 | K204: 0 | L204: 0 | M204: 0 | N204: 0 | O204: 0 | P204: 0 | Q204: 0 | R204: 0 | S204: 0
A205: 1920 | B205: Computer Equip.-Hardware(Post Mar. 19/07) | C205: 1837564.76 | D205: 0 | E205: 1837564.76 | F205: 201136.9 | G205: 0 | H205: 201136.9 | I205: 306044.02 | J205: 4.04 | K205: 0.2475247525 | L205: 5 | M205: 0.2 | N205: 454842.7624 | O205: 40227.38 | P205: 30604.402 | Q205: 525674.5444 | R205: 493064.41 | S205: -32610.13438
A206: 1930 | B206: Transportation Equipment Classes 4 & 5 | C206: 0 | D206: 0 | E206: 0 | F206: 3.05 | H206: 3.05 | I206: 1399 | J206: 0 | K206: 0 | L206: 7 | M206: 0.1428571429 | N206: 0 | O206: 0.4357142857 | P206: 99.92857143 | Q206: 100.3642857 | R206: 200.1 | S206: 99.73571429
A207: 1930 | B207: Transportation Equipment Class 7 | C207: 0 | D207: 0 | E207: =C207-D207 -> 0 | F207: 2 | H207: =F207-G207 -> 2 | I207: 0 | J207: 0 | K207: =IF(J207=0,0,1/J207) -> 0 | L207: 9 | M207: =IF(L207=0,0,1/L207) -> 0.1111111111 | N207: =IF(J207=0,0,+E207/J207) -> 0 | O207: =IF(L207=0,0,+H207/L207) -> 0.2222222222 | P207: =IF(L207=0,0,+(I207*0.5)/L207) -> 0 | Q207: =IF(ISERROR(+N207+O207+P207), 0, +N207+O207+P207) -> 0.2222222222 | R207: 0.22 | S207: =IF(ISERROR(+R207-122), 0, +R207-Q207) -> -0.002222222222
A208: 1930 | B208: Transportation Equipment Class 9 | C208: 190357.2 | D208: 0 | E208: 190357.2 | F208: 0.01 | H208: 0.01 | I208: 0 | J208: 12.22 | K208: 0.08183306056 | L208: 15 | M208: 0.06666666667 | N208: 15577.51227 | O208: 0.0006666666667 | P208: 0 | Q208: 15577.51294 | R208: 15706.56 | S208: 129.0470584
A209: 1930 | B209: Transportation Equipment Specialty Equipment | C209: 1105069.03 | D209: 5629.25 | E209: 1099439.78 | F209: 6266.5 | H209: 6266.5 | I209: 17460.18 | J209: 18.17 | K209: 0.05503577325 | L209: 20 | M209: 0.05 | N209: 60508.51844 | O209: 313.325 | P209: 436.5045 | Q209: 61258.34794 | R209: 116832.2 | S209: 55573.85206
A210: 1935 | B210: Stores Equipment | C210: 19276.03 | D210: 0 | E210: 19276.03 | F210: 66333.08 | H210: 66333.08 | I210: 28479.29 | J210: 9.38 | K210: 0.1066098081 | L210: 10 | M210: 0.1 | N210: 2055.013859 | O210: 6633.308 | P210: 1423.9645 | Q210: 10112.28636 | R210: 10950.22 | S210: 837.9336407
A211: 1940 | B211: Tools, Shop & Garage Equipment | C211: 59984.62 | D211: 12087.11 | E211: 47897.51 | F211: 20921.99 | H211: 20921.99 | I211: 58945.18 | J211: 5.41 | K211: 0.1848428835 | L211: 10 | M211: 0.1 | N211: 8853.513863 | O211: 2092.199 | P211: 2947.259 | Q211: 13892.97186 | R211: 18431.44 | S211: 4538.468137
A212: 1945 | B212: Measurement & Testing Equipment | C212: 21867.03 | D212: 1089.97 | E212: 20777.06 | F212: 0 | H212: 0 | I212: 14295.45 | J212: 2.54 | K212: 0.3937007874 | L212: 10 | M212: 0.1 | N212: 8179.944882 | O212: 0 | P212: 714.7725 | Q212: 8894.717382 | R212: 8974.27 | S212: 79.55261811
A213: 1945 | B213: Measurement & Testing Equipment - SCADA Hardware & Software | C213: 869755.79 | D213: 0 | E213: =C213-D213 -> 869755.79 | F213: 242469.27 | H213: =F213-G213 -> 242469.27 | I213: 107251.58 | J213: 7.26 | K213: =IF(J213=0,0,1/J213) -> 0.1377410468 | L213: 15 | M213: =IF(L213=0,0,1/L213) -> 0.06666666667 | N213: =IF(J213=0,0,+E213/J213) -> 119801.073 | O213: =IF(L213=0,0,+H213/L213) -> 16164.618 | P213: =IF(L213=0,0,+(I213*0.5)/L213) -> 3575.052667 | Q213: =IF(ISERROR(+N213+O213+P213), 0, +N213+O213+P213) -> 139540.7437 | R213: 158898.4 | S213: =IF(ISERROR(+R213-122), 0, +R213-Q213) -> 19357.65633
A214: 1950 | B214: Power Operated Equipment | C214: 175.19 | D214: 0 | E214: 175.19 | F214: 0 | H214: 0 | I214: 0 | J214: 1.42 | K214: 0.7042253521 | L214: 10 | M214: 0.1 | N214: 123.3732394 | O214: 0 | P214: 0 | Q214: 123.3732394 | R214: 51.53 | S214: -71.84323944
... 737 more rows

Sheet App.2-D_Overhead
M1: File Number: | N1: =EBNUMBER -> EB-2019-0032
M2: Exhibit:
M3: Tab:
M4: Schedule:
M5: Page:
M7: Date: | N7: 2019-09-24
A9: Appendix 2-D
A10: Overhead Expense
A12: Applicants are to provide a breakdown of OM&A before capitalization in the below table. OM&A before capitalization may be broken down by cost center, program, drivers or another format best suited to focus on capitalized vs. uncapitalized OM&A.
A14: OM&A Before Capitalization
B15: =F15-4 -> 2009 | C15: 2010 | D15: 2011 | E15: 2012 | F15: 2013 | G15: 2014 | H15: 2015 | I15: =M15-4 -> 2016 | J15: =M15-3 -> 2017 | K15: =M15-2 -> 2018 | L15: =M15-1 -> 2019 | M15: =TestYear -> 2020
B16: Historical Year | C16: Historical Year | D16: Historical Year | E16: Historical Year | F16: Historical Year | G16: Historical Year | H16: Historical Year | I16: Historical Year | J16: Historical Year | K16: Historical Year | L16: Bridge Year | M16: Test Year
A17: Operational Costs | B17: 2428126.007 | C17: 2179669.663 | D17: 2168957.94 | E17: 2215695.819 | F17: 2241488.06 | G17: 2446147.746 | H17: 2648198.355 | I17: 2602507.575 | J17: 7269858.87 | K17: 7099903.17 | L17: 7698671.017 | M17: 7729064.672
A18: Maintenance Costs | B18: 2527892.741 | C18: 2574238.616 | D18: 2083371.212 | E18: 1941199.92 | F18: 1987679.11 | G18: 2014312.35 | H18: 1750044.01 | I18: 2028985.208 | J18: 2487236.04 | K18: 2586197.23 | L18: 3243162.37 | M18: 3174613.34
A19: Billing and Collecting | B19: 1265825.833 | C19: 648427.1326 | D19: 1277901.462 | E19: 1382907.732 | F19: 1215699.135 | G19: 1559074.867 | H19: 1347818.168 | I19: 1618089.485 | J19: 2472105.4 | K19: 2625276.89 | L19: 3049494.241 | M19: 3122687.139
A20: Community Relations | B20: 39117.41613 | C20: 53370.31456 | D20: 106603.168 | E20: 39924.73289 | F20: 48191.98003 | G20: 61327.1228 | H20: 48725.17851 | I20: 55286.48964 | J20: 132384.86 | K20: 147722.56 | L20: 182709.3417 | M20: 147723.19
A21: Administrative and General | B21: 13687875.86 | C21: 16002773.98 | D21: 17142681.66 | E21: 20836210.38 | F21: 17520812.99 | G21: 18998118.84 | H21: 19598339.5 | I21: 19803284.02 | J21: 14396981.2 | K21: 14073749.13 | L21: 14599323.76 | M21: =15173727.5142172-1250000 -> 13923727.51
A22: Direct Labour | B22: 1440592 | C22: 1377200 | D22: 1622568.17 | E22: 2141865 | F22: 2412663 | G22: 2603970 | H22: 2651533 | I22: 2622969 | J22: 2431605 | K22: 2941577.8 | L22: 2709388 | M22: 2965271
A23: Labour Burden | B23: 1668876.573 | C23: 1884371.668 | D23: 1938644.749 | E23: 1157453.403 | F23: 1417734.256 | G23: 1476562.371 | H23: 1518076.643 | I23: 1437067.778 | J23: 1300196.545 | K23: 1826279.62 | L23: 1800920.632 | M23: 1970479.626
A24: Material Burden | B24: 1025693.254 | C24: 1315541.078 | D24: 459895.5153 | E24: 239109.0347 | F24: 260269.3 | G24: 282964.0538 | H24: 424416.8562 | I24: 218396.6 | J24: 281604.5492 | K24: 314395.5408 | L24: 555473.97 | M24: 489392.5293
A25: Trucking Burden | B25: 813025.9741 | C25: 782640.48 | D25: 768388.5071 | E25: 464713.7829 | F25: 457416.27 | G25: 556541.2367 | H25: 577048.0833 | I25: 513170.86 | J25: 510483.6952 | K25: 518213.8048 | L25: 519999.55 | M25: 569684.3486
A26: Total OM&A Before Capitalization (B) | B26: =SUM(B17:B25) -> 24897025.66 | C26: 26818232.93 | D26: 27569012.38 | E26: 30419079.8 | F26: 27561954.1 | G26: 29999018.59 | H26: 30564199.79 | I26: 30899757.02 | J26: 31282456.16 | K26: 32133315.75 | L26: 34359142.88 | M26: 34092643.36
A28: Applicants are to provide a breakdown of capitalized OM&A in the below table. Capitalized OM&A may be broken down using the categories listed in the table below if possible. Otherwise, applicants are to provide its own break down of capitalized OM&A.
A30: Capitalized OM&A | N30: Directly | O30: Explanation for Change in Overhead Capitalized
B31: =F31-4 -> 2009 | C31: 2010 | D31: 2011 | E31: 2012 | F31: 2013 | G31: 2014 | H31: 2015 | I31: =M31-4 -> 2016 | J31: =M31-3 -> 2017 | K31: =M31-2 -> 2018 | L31: =M31-1 -> 2019 | M31: =TestYear -> 2020 | N31: Attributable?
B32: Historical Year | C32: Historical Year | D32: Historical Year | E32: Historical Year | F32: Historical Year | G32: Historical Year | H32: Historical Year | I32: Historical Year | J32: Historical Year | K32: Historical Year | L32: Bridge Year | M32: Test Year | N32: (Yes/No)
A33: employee benefits
A34: costs of site preparation
A35: initial delivery and handling costs
A36: costs of testing whether the asset is functioning properly
A37: professional fees
A39: costs of opening a new facility
A40: costs of introducing a new product or service (including costs of advertising and promotional activities)
A41: costs of conducting business in a new location or with a new class of customer (including costs of staff training)
A42: administration and other general overhead costs
A43: Direct Labour | B43: =+B22 -> 1440592 | C43: =+C22 -> 1377200 | D43: 1622568.17 | E43: 2141865 | F43: 2412663 | G43: 2603970 | H43: 2651533 | I43: 2622969 | J43: 2431605 | K43: 2941577.8 | L43: 2709388 | M43: 2965271 | N43: Yes
A44: Labour Burden | B44: 1668876.573 | C44: 1884371.668 | D44: 1938644.749 | E44: 1157453.403 | F44: 1417734.256 | G44: 1476562.371 | H44: 1518076.643 | I44: 1437067.778 | J44: 1300196.545 | K44: 1826279.62 | L44: 1800920.632 | M44: 1970479.626 | N44: Yes | O44: Change from CGAAP to IFRS in 2012. Removed all indirect costs
A45: Material Burden | B45: 1025693.254 | C45: 1315541.078 | D45: 459895.5153 | E45: 239109.0347 | F45: 260269.3 | G45: 282964.0538 | H45: 424416.8562 | I45: 218396.6 | J45: 281604.5492 | K45: 314395.5408 | L45: 555473.97 | M45: 489392.5293 | N45: Yes | O45: Change from CGAAP to IFRS in 2012. Removed all indirect costs
A46: Trucking Burden | B46: 813025.9741 | C46: 782640.48 | D46: 768388.5071 | E46: 464713.7829 | F46: 457416.27 | G46: 556541.2367 | H46: 577048.0833 | I46: 513170.86 | J46: 510483.6952 | K46: 518213.8048 | L46: 519999.55 | M46: 569684.3486 | N46: Yes | O46: Change from CGAAP to IFRS in 2012. Removed all indirect costs
A47: Total Capitalized OM&A (A) | B47: =SUM(B33:B46) -> 4948187.801 | C47: =SUM(C33:C46) -> 5359753.226 | D47: 4789496.941 | E47: 4003141.22 | F47: 4548082.826 | G47: 4920037.662 | H47: 5171074.582 | I47: =SUM(I33:I46) -> 4791604.238 | J47: =SUM(J33:J46) -> 4523889.789 | K47: =SUM(K33:K46) -> 5600466.766 | L47: =SUM(L33:L46) -> 5585782.152 | M47: =SUM(M33:M46) -> 5994827.504
A49: % of Capitalized OM&A (=A/B) | B49: =IF(ISERROR(B47/B26),"0%",B47/B26) -> 0.1987461422 | C49: 0.1998548242 | D49: 0.1737275487 | E49: 0.1315996817 | F49: 0.165013076 | G49: 0.1640066207 | H49: 0.1691873047 | I49: =IF(ISERROR(I47/I26),"0%",I47/I26) -> 0.1550693177 | J49: =IF(ISERROR(J47/J26),"0%",J47/J26) -> 0.1446142773 | K49: =IF(ISERROR(K47/K26),"0%",K47/K26) -> 0.1742884802 | L49: =IF(ISERROR(L47/L26),"0%",L47/L26) -> 0.1625704742 | M49: =IF(ISERROR(M47/M26),"0%",M47/M26) -> 0.1758393282

Sheet App.2-EA_Account 1575 (2015)
M1: File Number: | N1: =EBNUMBER -> EB-2019-0032
M2: Exhibit:
M3: Tab:
M4: Schedule:
M5: Page:
M7: Date: | N7: 2019-09-24
A9: Appendix 2-EA
A10: Account 1575 - IFRS-CGAAP Transitional PP&E Amounts
A11: 2015 Adopters of IFRS for Financial Reporting Purposes
A13: For applicants that adopted IFRS on January 1, 2012 for financial reporting purposes
B17: 2011 | C17: 2012 | D17: 2013 | E17: 2014 | F17: 2015 | G17: 2016 | H17: =TestYear-3 -> 2017 | I17: =TestYear-2 -> 2018 | J17: =CONCATENATE(TestYear-1," Bridge Year") -> 2019 Bridge Year | K17: =CONCATENATE(TestYear," Rebasing Year") -> 2020 Rebasing Year
A18: Reporting Basis | B18: CGAAP | C18: MIFRS | D18: MIFRS | E18: MIFRS | F18: MIFRS | G18: MIFRS | H18: MIFRS | I18: MIFRS | J18: MIFRS | K18: MIFRS
B19: Actual | C19: Actual | D19: Actual | E19: Actual | F19: Actual | G19: Actual | H19: Actual | I19: Actual | J19: Forecast | K19: Forecast
B20: $ | C20: $ | D20: $ | E20: $ | F20: $ | G20: $ | H20: $ | I20: $ | J20: $
A21: PP&E Values under CGAAP
A22: Opening net PP&E - Note 1 | B22: 179295700.7 | C22: =+B25 -> 176254688.7 | D22: =+C25 -> 174929662.7 | E22: 173054148.7 | F22: 191207788.7 | G22: 195208432.6 | H22: 196803073.9 | I22: =+H25 -> 194588324.8 | J22: =+I25 -> 196097008.4
A23: Net Additions - Note 4 | B23: 10378060.95 | C23: 13676737.79 | D23: 11820684.31 | E23: 36299515.71 | F23: 20656340.62 | G23: 18701285.75 | H23: 15425837.61 | I23: 19392004.34 | J23: =22738363-2910000 -> 19828363
A24: Net Depreciation (amounts should be negative) - Note 4 | B24: -13419072.91 | C24: -15001763.82 | D24: -13696198.3 | E24: -18145875.65 | F24: -16655696.78 | G24: -17106644.46 | H24: -17640586.72 | I24: -17883320.75 | J24: -16602829.57
A25: Closing net PP&E (1) | B25: =SUM(B22:B24) -> 176254688.7 | C25: 174929662.7 | D25: 173054148.7 | E25: =SUM(E22:E24) -> 191207788.7 | F25: 195208432.6 | G25: 196803073.9 | H25: 194588324.8 | I25: 196097008.4 | J25: 199322541.8
A27: PP&E Values under MIFRS (Starts from 2014, the transition year)
A28: Opening net PP&E - Note 1 | B28: 179295700.7 | C28: =+B31 -> 179636724.2 | D28: =+C31 -> 182701204.6 | E28: 183423198.9 | F28: 203842666.2 | G28: 209777579.3 | H28: 213743584.9 | I28: =+H31 -> 213809169.6 | J28: =+I31 -> 217691620
A29: Net Additions - Note 4 | B29: 10260981.26 | C29: 11592870.75 | D29: 9631582.95 | E29: 33774429.56 | F29: 17671696.17 | G29: 16334278.19 | H29: 13213067.39 | I29: 17251893.22 | J29: =21081038-2910000 -> 18171038
A30: Net Depreciation (amounts should be negative) - Note 4 | B30: -9919957.75 | C30: -8528390.32 | D30: -8909588.66 | E30: -13354962.27 | F30: -11736783.02 | G30: -12368272.59 | H30: -13147482.72 | I30: -13369442.84 | J30: -12729002
A31: Closing net PP&E (2) | B31: =SUM(B28:B30) -> 179636724.2 | C31: 182701204.6 | D31: 183423198.9 | E31: =SUM(E28:E30) -> 203842666.2 | F31: 209777579.3 | G31: 213743584.9 | H31: 213809169.6 | I31: 217691620 | J31: 223133656
A33: Difference in Closing net PP&E, former CGAAP vs. revised CGAAP | B33: =B25-B31 -> -3382035.47 | C33: -7771541.93 | D33: -10369050.21 | E33: =E25-E31 -> -12634877.44 | F33: -14569146.75 | G33: -16940511.06 | H33: -19220844.84 | I33: -21594611.63 | J33: -23811114.2
A36: Effect on Deferral and Variance Account Rate Riders
A37: Closing balance in Account 1575 | K37: =IF(ISERROR(J33), 0, J33) -> -23811114.2 | M37: WACC | N37: 0.060176
A38: Return on Rate Base Associated with Account 1575 balance at WACC - Note 2 | K38: =J33*N37*N38 -> -7164288.042 | L38: # of years of rate rider disposition period | N38: 5
A39: Amount included in Deferral and Variance Account Rate Rider Calculation | K39: =K37+K38 -> -30975402.25
A41: Notes:
A42: 1 For an applicant that adopted IFRS on January 1, 2015, the PP&E values as of January 1, 2014 under both CGAAP and MIFRS should be the same.
A43: 2 Return on rate base associated with deferred balance is calculated as:
A44: the deferral account closing balance as of 2017 x WACC X # of years of rate rider disposition period
A45: * Please note that the calculation should be adjusted once WACC is updated and finalized in the rate application.
A46: 3 The PP&E deferral account is cleared by including the total balance in the deferral and variance account rate rider calculation.
A47: 4 Net additions are additions net of disposals; Net depreciation is additions to depreciation net of disposals.

Sheet App.2-EB_Account 1576 (2012) (hidden)
K1: File Number: | L1: =EBNUMBER -> EB-2019-0032
K2: Exhibit:
K3: Tab:
K4: Schedule:
K5: Page:
K7: Date:
A9: Appendix 2-EB
A10: Account 1576 - Accounting Changes under CGAAP
A11: 2012 Changes in Accounting Policies under CGAAP
A13: For applicants with a balance in Account 1576 and made capitalization and depreciation expense accounting policy changes under CGAAP effective January 1, 2012. This is the first time the applicant is rebasing with changes in these accounting policies.
B17: Prior Years Rebasing | C17: 2012 | D17: 2013 | E17: 2014 | F17: 2015 | G17: 2016 | H17: 2017 | I17: 2018 Rebasing Year
A18: Reporting Basis | B18: CGAAP | C18: CGAAP | D18: CGAAP | E18: CGAAP | F18: MIFRS - Note 5 | G18: MIFRS | H18: MIFRS | I18: MIFRS
B19: Forecast | C19: Actual | D19: Actual | E19: Actual | F19: Actual | G19: Actual | H19: Forecast | I19: Forecast
C20: $ | D20: $ | E20: $ | F20: $ | G20: $ | H20: $
A21: PP&E Values under former CGAAP
A22: Opening net PP&E - Note 1 | D22: =+C25 -> 0 | E22: =+D25 -> 0 | F22: =+E25 -> 0 | G22: =+F25 -> 0 | H22: =+G25 -> 0
A23: Net Additions - Note 4
A24: Net Depreciation (amounts should be negative) - Note 4
A25: Closing net PP&E (1) | C25: =C22+C23+C24 -> 0 | D25: 0 | E25: 0 | F25: 0 | G25: 0 | H25: 0
A27: PP&E Values under revised CGAAP (Starts from 2012)
A28: Opening net PP&E - Note 1 | D28: =+C31 -> 0 | E28: =+D31 -> 0 | F28: =+E31 -> 0 | G28: =+F31 -> 0 | H28: =+G31 -> 0
A29: Net Additions - Note 4
A30: Net Depreciation (amounts should be negative) - Note 4
A31: Closing net PP&E (2) | C31: =SUM(C28:C30) -> 0 | D31: 0 | E31: 0 | F31: 0 | G31: 0 | H31: 0
A33: Difference in Closing net PP&E, former CGAAP vs. revised CGAAP | C33: =C25-C31 -> 0 | D33: 0 | E33: 0 | F33: 0 | G33: 0 | H33: 0
A36: Effect on Deferral and Variance Account Rate Riders
A37: Closing balance in Account 1576 | I37: =IF(ISERROR(H33), 0, H33) -> 0 | K37: WACC
A38: Return on Rate Base Associated with Account 1576 balance at WACC - Note 2 | I38: =H33*L37*L38 -> 0 | J38: # of years of rate rider disposition period
A39: Amount included in Deferral and Variance Account Rate Rider Calculation | I39: =I37+I38 -> 0
A41: Notes:
A42: 1 For an applicant that made the capitalization and depreciation expense accounting policy changes on January 1, 2012, the PP&E values as of January 1, 2012 under both former CGAAP and revised CGAAP should be the same.
A43: 2 Return on rate base associated with Account 1576 balance is calculated as:
A44: the variance account ending balance as of 2017 x WACC X # of years of rate rider disposition period
A45: * Please note that the calculation should be adjusted once WACC is updated and finalized in the rate application.
A46: 3 Account 1576 is cleared by including the total balance in the deferral and variance account rate rider calculation.
A47: 4 Net additions are additions net of disposals; Net depreciation is additions to depreciation net of disposals.
A48: 5 Differences due to the adoption of MIFRS are to be shown separately in Account 1575 in Appendix 2-EA as Accounts 1575 and 1576 cannot be used interchangably.

Sheet App.2-EC_Account 1576 (2013) (hidden)
J1: File Number: | K1: =EBNUMBER -> EB-2019-0032
J2: Exhibit:
J3: Tab:
J4: Schedule:
J5: Page:
J7: Date:
A9: Appendix 2-EC
A10: Account 1576 - Accounting Changes under CGAAP
A11: 2013 Changes in Accounting Policies under CGAAP
A13: For applicants with a balance in Account 1576 and made capitalization and depreciation expense accounting policy changes under CGAAP effective January 1, 2013. This is the first time the applicant is rebasing with changes in these accounting policies.
B17: Prior Years Rebasing | C17: 2013 | D17: 2014 | E17: 2015 | F17: 2016 | G17: 2017 | H17: 2018 Rebasing Year
A18: Reporting Basis | B18: CGAAP | C18: CGAAP | D18: CGAAP | E18: MIFRS - Note 5 | F18: MIFRS | G18: MIFRS | H18: MIFRS
B19: Actual | C19: Actual | D19: Actual | E19: Actual | F19: Actual | G19: Forecast | H19: Forecast
C20: $ | D20: $ | F20: $
A21: PP&E Values under former CGAAP
A22: Opening net PP&E - Note 1 | D22: =+C25 -> 0 | E22: =+D25 -> 0 | F22: =+E25 -> 0 | G22: =+F25 -> 0
A23: Net Additions - Note 4
A24: Net Depreciation (amounts should be negative) - Note 4
A25: Closing net PP&E (1) | C25: =C22+C23+C24 -> 0 | D25: =D22+D23+D24 -> 0 | E25: =E22+E23+E24 -> 0 | F25: =F22+F23+F24 -> 0 | G25: =G22+G23+G24 -> 0
A27: PP&E Values under revised CGAAP (Starts from 2012)
A28: Opening net PP&E - Note 1 | D28: =+C31 -> 0 | E28: =+D31 -> 0 | F28: =+E31 -> 0 | G28: =+F31 -> 0
A29: Net Additions - Note 4
A30: Net Depreciation (amounts should be negative) - Note 4
A31: Closing net PP&E (2) | C31: =SUM(C28:C30) -> 0 | D31: =SUM(D28:D30) -> 0 | E31: =SUM(E28:E30) -> 0 | F31: =SUM(F28:F30) -> 0 | G31: =SUM(G28:G30) -> 0
A33: Difference in Closing net PP&E, former CGAAP vs. revised CGAAP | C33: =C25-C31 -> 0 | D33: =D25-D31 -> 0 | E33: =E25-E31 -> 0 | F33: =F25-F31 -> 0 | G33: =G25-G31 -> 0
A36: Effect on Deferral and Variance Account Rate Riders
A37: Closing balance in Account 1576 | H37: =IF(ISERROR(G33), 0, G33) -> 0 | J37: WACC
A38: Return on Rate Base Associated with Account 1576 balance at WACC - Note 2 | H38: =G33*K37*K38 -> 0 | I38: # of years of rate rider disposition period
A39: Amount included in Deferral and Variance Account Rate Rider Calculation | H39: =H37+H38 -> 0
A41: Notes:
A42: 1 For an applicant that made the capitalization and depreciation expense accounting policy changes on January 1, 2013, the PP&E values as of January 1, 2013 under both former CGAAP and revised CGAAP should be the same.
A43: 2 Return on rate base associated with Account 1576 balance is calculated as:
A44: the variance account ending balance as of 2017 x WACC X # of years of rate rider disposition period
A45: * Please note that the calculation should be adjusted once WACC is updated and finalized in the rate application.
A46: 3 Account 1576 is cleared by including the total balance in the deferral and variance account rate rider calculation.
A47: 4 Net additions are additions net of disposals; Net depreciation is additions to depreciation net of disposals.
A48: 5 Differences due to the adoption of MIFRS are to be shown separately in Account 1575 in Appendix 2-EA as Accounts 1575 and 1576 cannot be used interchangably.

Sheet App.2-FA Proposed REG Invest.
K1: File Number: | L1: =EBNUMBER -> EB-2019-0032
K2: Exhibit:
K3: Tab:
A4: TO BE UPDATED AT DRAFT RATE ORDER STAGE | K4: Schedule:
K5: Page:
K7: Date: | L7: 2019-09-24
A9: Appendix 2-FA
A10: Renewable Generation Connection Investment Summary (past investments or over the future rate setting period)
A12: Enter the details of the Renewable Generation Connection projects as described in the appropriate section of the Filing Requirements.
A13: All costs entered on this page will be transferred to the appropriate cells in the appendices that follow.
A14: For Part A, Renewable Enabling Improvements (REI), these amounts will be transferred to Appendix 2 - FB
A15: For Part B, Expansions, these amounts will be transferred to Appendix 2 - FC
A17: If there are more than five projects proposed to be in-service in a certain year, please amend the tables below and ensure that the formulae for the Total Amounts in any given rate year are updated.
A18: Based on the current methodology and allocation, amounts allocated represent 6% for REI Connection Investments and 17% for Expansion Investments. (EB-2009-0349, 6-10-2010, p. 15, note 9)
A20: There are two scenarios described below. Separate sets of spreadsheets (2-FA, 2-FB, 2-FC) should be submited for each scenario as required.
A21: Scenario 1: Past Investments with No Recovery. The distributor has made investments in the past (during the IRM Years), but has not received approval for these projects and therefore did not receive
A22: revenue from the IESO under Regulation 330/09 and did not receive ratepayer revenue for the direct benefit portion of the investment.
A23: The WCA percentage, debt percentages, interest rates, kWh, tax rates, amortization period, CCA Class and percentage should correspond to the distributor's last Cost of Service approval.
A24: The Direct Benefit portion of the calculated Revenue Requirement for each year should be summed and can be applied for recovery from the distributor's ratepayers through a rate rider.
A25: The Provincial Recovery portion of the calculated Revenue Requirement for each year should be summed and can be applied for recovery from the IESO through a separate order.
A27: Scenario 2: Investments in the Test Year and Beyond. Distributor plans to make investments in 2017 and/or beyond. These investments should be added to 2-FA in the appropriate year.
A28: The WCA percentage, debt percentages, interest rates, kWh, tax rates, amortization period, CCA Class and percentage should correspond to the distributor's current application.
A30: Part A | H30: Test Year
A31: REI Investments (Direct Benefit at 6%) | C31: =D31-1 -> 2015 | D31: =E31-1 -> 2016 | E31: =F31-1 -> 2017 | F31: =G31-1 -> 2018 | G31: =H31-1 -> 2019 | H31: =TestYear -> 2020 | I31: =H31+1 -> 2021 | J31: =I31+1 -> 2022 | K31: =J31+1 -> 2023 | L31: =K31+1 -> 2024
A32: Project 1
A33: Name: REI Connection Project
A34: Capital Costs | C34: 0 | D34: 0 | E34: 0 | F34: 0 | G34: 0 | H34: 0 | I34: 0 | J34: 0 | K34: 0 | L34: 0
A35: OM&A (Start-Up) | C35: 0 | D35: 0 | E35: 0 | F35: 0 | G35: 0 | H35: 0 | I35: 0 | J35: 0 | K35: 0 | L35: 0
A36: OM&A (Ongoing) | C36: 0 | D36: 0 | E36: 0 | F36: 0 | G36: 0 | H36: 0 | I36: 0 | J36: 0 | K36: 0 | L36: 0
A38: Project 2
A39: Name: REI Connection Project
A40: Capital Costs | C40: 0 | D40: 0 | E40: 0 | F40: 0 | G40: 0 | H40: 0 | I40: 0 | J40: 0 | K40: 0 | L40: 0
A41: OM&A (Start-Up) | C41: 0 | D41: 0 | E41: 0 | F41: 0 | G41: 0 | H41: 0 | I41: 0 | J41: 0 | K41: 0 | L41: 0
A42: OM&A (Ongoing) | C42: 0 | D42: 0 | E42: 0 | F42: 0 | G42: 0 | H42: 0 | I42: 0 | J42: 0 | K42: 0 | L42: 0
A44: Project 3
A45: Name: REI Connection Project
A46: Capital Costs | C46: 0 | D46: 0 | E46: 0 | F46: 0 | G46: 0 | H46: 0 | I46: 0 | J46: 0 | K46: 0 | L46: 0
A47: OM&A (Start-Up) | C47: 0 | D47: 0 | E47: 0 | F47: 0 | G47: 0 | H47: 0 | I47: 0 | J47: 0 | K47: 0 | L47: 0
A48: OM&A (Ongoing) | C48: 0 | D48: 0 | E48: 0 | F48: 0 | G48: 0 | H48: 0 | I48: 0 | J48: 0 | K48: 0 | L48: 0
A50: Project 4
A51: Name: REI Connection Project
A52: Capital Costs | C52: 0 | D52: 0 | E52: 0 | F52: 0 | G52: 0 | H52: 0 | I52: 0 | J52: 0 | K52: 0 | L52: 0
A53: OM&A (Start-Up) | C53: 0 | D53: 0 | E53: 0 | F53: 0 | G53: 0 | H53: 0 | I53: 0 | J53: 0 | K53: 0 | L53: 0
A54: OM&A (Ongoing) | C54: 0 | D54: 0 | E54: 0 | F54: 0 | G54: 0 | H54: 0 | I54: 0 | J54: 0 | K54: 0 | L54: 0
A56: Project 5
A57: Name: REI Connection Project
A58: Capital Costs | C58: 0 | D58: 0 | E58: 0 | F58: 0 | G58: 0 | H58: 0 | I58: 0 | J58: 0 | K58: 0 | L58: 0
A59: OM&A (Start-Up) | C59: 0 | D59: 0 | E59: 0 | F59: 0 | G59: 0 | H59: 0 | I59: 0 | J59: 0 | K59: 0 | L59: 0
A60: OM&A (Ongoing) | C60: 0 | D60: 0 | E60: 0 | F60: 0 | G60: 0 | H60: 0 | I60: 0 | J60: 0 | K60: 0 | L60: 0
A62: Total Capital Costs | C62: =SUM(C58,C52,C46,C40,C34) -> 0 | D62: =SUM(D58,D52,D46,D40,D34) -> 0 | E62: 0 | F62: 0 | G62: 0 | H62: =SUM(H58,H52,H46,H40,H34) -> 0 | I62: =SUM(I58,I52,I46,I40,I34) -> 0 | J62: 0 | K62: 0 | L62: 0
A63: Total OM&A (Start-Up) | C63: =SUM(C59,C53,C47,C41,C35) -> 0 | D63: 0 | E63: 0 | F63: 0 | G63: 0 | H63: =SUM(H59,H53,H47,H41,H35) -> 0 | I63: 0 | J63: 0 | K63: 0 | L63: 0
A64: Total OM&A (Ongoing) | C64: =SUM(C60,C54,C48,C42,C36) -> 0 | D64: 0 | E64: 0 | F64: 0 | G64: 0 | H64: =SUM(H60,H54,H48,H42,H36) -> 0 | I64: 0 | J64: 0 | K64: 0 | L64: 0
A67: Part B | H67: Test Year
A68: Expansion Investments (Direct Benefit at 17%) | C68: =D68-1 -> 2015 | D68: =E68-1 -> 2016 | E68: =F68-1 -> 2017 | F68: =G68-1 -> 2018 | G68: =H68-1 -> 2019 | H68: =TestYear -> 2020 | I68: =H68+1 -> 2021 | J68: =I68+1 -> 2022 | K68: =J68+1 -> 2023 | L68: =K68+1 -> 2024
A69: Project 1
A70: Name: Expansion Connection Project
A71: Capital Costs | C71: 0 | D71: 0 | E71: 0 | F71: 0 | G71: 0 | H71: 0 | I71: 0 | J71: 0 | K71: 0 | L71: 0
A72: OM&A (Start-Up) | C72: 0 | D72: 0 | E72: 0 | F72: 0 | G72: 0 | H72: 0 | I72: 0 | J72: 0 | K72: 0 | L72: 0
A73: OM&A (Ongoing) | C73: 0 | D73: 0 | E73: 0 | F73: 0 | G73: 0 | H73: 0 | I73: 0 | J73: 0 | K73: 0 | L73: 0
A75: Project 2
A76: Name: Expansion Connection Project
A77: Capital Costs | C77: 0 | D77: 0 | E77: 0 | F77: 0 | G77: 0 | H77: 0 | I77: 0 | J77: 0 | K77: 0 | L77: 0
A78: OM&A (Start-Up) | C78: 0 | D78: 0 | E78: 0 | F78: 0 | G78: 0 | H78: 0 | I78: 0 | J78: 0 | K78: 0 | L78: 0
A79: OM&A (Ongoing) | C79: 0 | D79: 0 | E79: 0 | F79: 0 | G79: 0 | H79: 0 | I79: 0 | J79: 0 | K79: 0 | L79: 0
A81: Project 3
A82: Name: Expansion Connection Project
A83: Capital Costs | C83: 0 | D83: 0 | E83: 0 | F83: 0 | G83: 0 | H83: 0 | I83: 0 | J83: 0 | K83: 0 | L83: 0
A84: OM&A (Start-Up) | C84: 0 | D84: 0 | E84: 0 | F84: 0 | G84: 0 | H84: 0 | I84: 0 | J84: 0 | K84: 0 | L84: 0
A85: OM&A (Ongoing) | C85: 0 | D85: 0 | E85: 0 | F85: 0 | G85: 0 | H85: 0 | I85: 0 | J85: 0 | K85: 0 | L85: 0
A87: Project 4
A88: Name: Expansion Connection Project
A89: Capital Costs | C89: 0 | D89: 0 | E89: 0 | F89: 0 | G89: 0 | H89: 0 | I89: 0 | J89: 0 | K89: 0 | L89: 0
A90: OM&A (Start-Up) | C90: 0 | D90: 0 | E90: 0 | F90: 0 | G90: 0 | H90: 0 | I90: 0 | J90: 0 | K90: 0 | L90: 0
A91: OM&A (Ongoing) | C91: 0 | D91: 0 | E91: 0 | F91: 0 | G91: 0 | H91: 0 | I91: 0 | J91: 0 | K91: 0 | L91: 0
A93: Project 5
A94: Name: Expansion Connection Project
A95: Capital Costs | C95: 0 | D95: 0 | E95: 0 | F95: 0 | G95: 0 | H95: 0 | I95: 0 | J95: 0 | K95: 0 | L95: 0
A96: OM&A (Start-Up) | C96: 0 | D96: 0 | E96: 0 | F96: 0 | G96: 0 | H96: 0 | I96: 0 | J96: 0 | K96: 0 | L96: 0
A97: OM&A (Ongoing) | C97: 0 | D97: 0 | E97: 0 | F97: 0 | G97: 0 | H97: 0 | I97: 0 | J97: 0 | K97: 0 | L97: 0
A99: Total Capital Costs | C99: =SUM(C95,C89,C83,C77,C71) -> 0 | D99: =SUM(D95,D89,D83,D77,D71) -> 0 | E99: 0 | F99: 0 | G99: 0 | H99: =SUM(H95,H89,H83,H77,H71) -> 0 | I99: =SUM(I95,I89,I83,I77,I71) -> 0 | J99: 0 | K99: 0 | L99: 0
A100: Total OM&A (Start-Up) | C100: =SUM(C96,C90,C84,C78,C72) -> 0 | D100: 0 | E100: 0 | F100: 0 | G100: 0 | H100: =SUM(H96,H90,H84,H78,H72) -> 0 | I100: 0 | J100: 0 | K100: 0 | L100: 0
A101: Total OM&A (Ongoing) | C101: =SUM(C97,C91,C85,C79,C73) -> 0 | D101: 0 | E101: 0 | F101: 0 | G101: 0 | H101: =SUM(H97,H91,H85,H79,H73) -> 0 | I101: 0 | J101: 0 | K101: 0 | L101: 0

Sheet Hidden_REG Invest. (hidden)
A1: Utility Name | B1: EB Number | C1: Test Year | D1: Bridge Year | E1: Last Rebasing Year | F1: Renewable Generation Connection Investment Summary | G1: Year | H1: Amount
A2: ='LDC Info'!$E$14 -> ENWIN Utilities Ltd. | B2: =EBNUMBER -> EB-2019-0032 | C2: =TestYear -> 2020 | D2: =BridgeYear -> 2019 | E2: =RebaseYear -> 2009 | F2: REI Investments_A_Total Capital Costs | G2: 2014 | H2: ='App.2-FA Proposed REG Invest.'!C62 -> 0
A3: ='LDC Info'!$E$14 -> ENWIN Utilities Ltd. | B3: EB-2019-0032 | C3: 2020 | D3: 2019 | E3: 2009 | F3: REI Investments_A_Total OM&A Start-Up | G3: 2014 | H3: ='App.2-FA Proposed REG Invest.'!C63 -> 0
A4: ='LDC Info'!$E$14 -> ENWIN Utilities Ltd. | B4: EB-2019-0032 | C4: 2020 | D4: 2019 | E4: 2009 | F4: REI Investments_A_Total OM&A Ongoing | G4: 2014 | H4: ='App.2-FA Proposed REG Invest.'!C64 -> 0
A5: ='LDC Info'!$E$14 -> ENWIN Utilities Ltd. | B5: EB-2019-0032 | C5: 2020 | D5: 2019 | E5: 2009 | F5: REI Investments_A_Total Capital Costs | G5: 2015 | H5: ='App.2-FA Proposed REG Invest.'!D62 -> 0
A6: ='LDC Info'!$E$14 -> ENWIN Utilities Ltd. | B6: EB-2019-0032 | C6: 2020 | D6: 2019 | E6: 2009 | F6: REI Investments_A_Total OM&A Start-Up | G6: 2015 | H6: ='App.2-FA Proposed REG Invest.'!D63 -> 0
A7: ='LDC Info'!$E$14 -> ENWIN Utilities Ltd. | B7: EB-2019-0032 | C7: 2020 | D7: 2019 | E7: 2009 | F7: REI Investments_A_Total OM&A Ongoing | G7: 2015 | H7: ='App.2-FA Proposed REG Invest.'!D64 -> 0
A8: ='LDC Info'!$E$14 -> ENWIN Utilities Ltd. | B8: EB-2019-0032 | C8: 2020 | D8: 2019 | E8: 2009 | F8: REI Investments_A_Total Capital Costs | G8: 2016 | H8: ='App.2-FA Proposed REG Invest.'!E62 -> 0
A9: ='LDC Info'!$E$14 -> ENWIN Utilities Ltd. | B9: EB-2019-0032 | C9: 2020 | D9: 2019 | E9: 2009 | F9: REI Investments_A_Total OM&A Start-Up | G9: 2016 | H9: ='App.2-FA Proposed REG Invest.'!E63 -> 0
A10: ='LDC Info'!$E$14 -> ENWIN Utilities Ltd. | B10: EB-2019-0032 | C10: 2020 | D10: 2019 | E10: 2009 | F10: REI Investments_A_Total OM&A Ongoing | G10: 2016 | H10: ='App.2-FA Proposed REG Invest.'!E64 -> 0
A11: ='LDC Info'!$E$14 -> ENWIN Utilities Ltd. | B11: EB-2019-0032 | C11: 2020 | D11: 2019 | E11: 2009 | F11: REI Investments_A_Total Capital Costs | G11: 2017 | H11: ='App.2-FA Proposed REG Invest.'!F62 -> 0
A12: ='LDC Info'!$E$14 -> ENWIN Utilities Ltd. | B12: EB-2019-0032 | C12: 2020 | D12: 2019 | E12: 2009 | F12: REI Investments_A_Total OM&A Start-Up | G12: 2017 | H12: ='App.2-FA Proposed REG Invest.'!F63 -> 0
A13: ='LDC Info'!$E$14 -> ENWIN Utilities Ltd. | B13: EB-2019-0032 | C13: 2020 | D13: 2019 | E13: 2009 | F13: REI Investments_A_Total OM&A Ongoing | G13: 2017 | H13: ='App.2-FA Proposed REG Invest.'!F64 -> 0
A14: ='LDC Info'!$E$14 -> ENWIN Utilities Ltd. | B14: EB-2019-0032 | C14: 2020 | D14: 2019 | E14: 2009 | F14: REI Investments_A_Total Capital Costs | G14: 2018 | H14: ='App.2-FA Proposed REG Invest.'!G62 -> 0
A15: ='LDC Info'!$E$14 -> ENWIN Utilities Ltd. | B15: EB-2019-0032 | C15: 2020 | D15: 2019 | E15: 2009 | F15: REI Investments_A_Total OM&A Start-Up | G15: 2018 | H15: ='App.2-FA Proposed REG Invest.'!G63 -> 0
A16: ='LDC Info'!$E$14 -> ENWIN Utilities Ltd. | B16: EB-2019-0032 | C16: 2020 | D16: 2019 | E16: 2009 | F16: REI Investments_A_Total OM&A Ongoing | G16: 2018 | H16: ='App.2-FA Proposed REG Invest.'!G64 -> 0
A17: ='LDC Info'!$E$14 -> ENWIN Utilities Ltd. | B17: EB-2019-0032 | C17: 2020 | D17: 2019 | E17: 2009 | F17: REI Investments_A_Total Capital Costs | G17: 2019 | H17: ='App.2-FA Proposed REG Invest.'!H62 -> 0
A18: ='LDC Info'!$E$14 -> ENWIN Utilities Ltd. | B18: EB-2019-0032 | C18: 2020 | D18: 2019 | E18: 2009 | F18: REI Investments_A_Total OM&A Start-Up | G18: 2019 | H18: ='App.2-FA Proposed REG Invest.'!H63 -> 0
A19: ='LDC Info'!$E$14 -> ENWIN Utilities Ltd. | B19: EB-2019-0032 | C19: 2020 | D19: 2019 | E19: 2009 | F19: REI Investments_A_Total OM&A Ongoing | G19: 2019 | H19: ='App.2-FA Proposed REG Invest.'!H64 -> 0
A20: ='LDC Info'!$E$14 -> ENWIN Utilities Ltd. | B20: EB-2019-0032 | C20: 2020 | D20: 2019 | E20: 2009 | F20: REI Investments_A_Total Capital Costs | G20: 2020 | H20: ='App.2-FA Proposed REG Invest.'!I62 -> 0
A21: ='LDC Info'!$E$14 -> ENWIN Utilities Ltd. | B21: EB-2019-0032 | C21: 2020 | D21: 2019 | E21: 2009 | F21: REI Investments_A_Total OM&A Start-Up | G21: 2020 | H21: ='App.2-FA Proposed REG Invest.'!I63 -> 0
A22: ='LDC Info'!$E$14 -> ENWIN Utilities Ltd. | B22: EB-2019-0032 | C22: 2020 | D22: 2019 | E22: 2009 | F22: REI Investments_A_Total OM&A Ongoing | G22: 2020 | H22: ='App.2-FA Proposed REG Invest.'!I64 -> 0
A23: ='LDC Info'!$E$14 -> ENWIN Utilities Ltd. | B23: EB-2019-0032 | C23: 2020 | D23: 2019 | E23: 2009 | F23: REI Investments_A_Total Capital Costs | G23: 2021 | H23: ='App.2-FA Proposed REG Invest.'!J62 -> 0
A24: ='LDC Info'!$E$14 -> ENWIN Utilities Ltd. | B24: EB-2019-0032 | C24: 2020 | D24: 2019 | E24: 2009 | F24: REI Investments_A_Total OM&A Start-Up | G24: 2021 | H24: ='App.2-FA Proposed REG Invest.'!J63 -> 0
A25: ='LDC Info'!$E$14 -> ENWIN Utilities Ltd. | B25: EB-2019-0032 | C25: 2020 | D25: 2019 | E25: 2009 | F25: REI Investments_A_Total OM&A Ongoing | G25: 2021 | H25: ='App.2-FA Proposed REG Invest.'!J64 -> 0
A26: ='LDC Info'!$E$14 -> ENWIN Utilities Ltd. | B26: EB-2019-0032 | C26: 2020 | D26: 2019 | E26: 2009 | F26: REI Investments_A_Total Capital Costs | G26: 2022 | H26: ='App.2-FA Proposed REG Invest.'!K62 -> 0
A27: ='LDC Info'!$E$14 -> ENWIN Utilities Ltd. | B27: EB-2019-0032 | C27: 2020 | D27: 2019 | E27: 2009 | F27: REI Investments_A_Total OM&A Start-Up | G27: 2022 | H27: ='App.2-FA Proposed REG Invest.'!K63 -> 0
A28: ='LDC Info'!$E$14 -> ENWIN Utilities Ltd. | B28: EB-2019-0032 | C28: 2020 | D28: 2019 | E28: 2009 | F28: REI Investments_A_Total OM&A Ongoing | G28: 2022 | H28: ='App.2-FA Proposed REG Invest.'!K64 -> 0
A29: ='LDC Info'!$E$14 -> ENWIN Utilities Ltd. | B29: EB-2019-0032 | C29: 2020 | D29: 2019 | E29: 2009 | F29: REI Investments_A_Total Capital Costs | G29: 2023 | H29: ='App.2-FA Proposed REG Invest.'!L62 -> 0
A30: ='LDC Info'!$E$14 -> ENWIN Utilities Ltd. | B30: EB-2019-0032 | C30: 2020 | D30: 2019 | E30: 2009 | F30: REI Investments_A_Total OM&A Start-Up | G30: 2023 | H30: ='App.2-FA Proposed REG Invest.'!L63 -> 0
A31: ='LDC Info'!$E$14 -> ENWIN Utilities Ltd. | B31: EB-2019-0032 | C31: 2020 | D31: 2019 | E31: 2009 | F31: REI Investments_A_Total OM&A Ongoing | G31: 2023 | H31: ='App.2-FA Proposed REG Invest.'!L64 -> 0
A32: ='LDC Info'!$E$14 -> ENWIN Utilities Ltd. | B32: EB-2019-0032 | C32: 2020 | D32: 2019 | E32: 2009 | F32: Expansion Investments_B_Total Capital Costs | G32: 2014 | H32: ='App.2-FA Proposed REG Invest.'!C99 -> 0
A33: ='LDC Info'!$E$14 -> ENWIN Utilities Ltd. | B33: EB-2019-0032 | C33: 2020 | D33: 2019 | E33: 2009 | F33: Expansion Investments_B_Total OM&A Start-Up | G33: 2014 | H33: ='App.2-FA Proposed REG Invest.'!C100 -> 0
A34: ='LDC Info'!$E$14 -> ENWIN Utilities Ltd. | B34: EB-2019-0032 | C34: 2020 | D34: 2019 | E34: 2009 | F34: Expansion Investments_B_Total OM&A Ongoing | G34: 2014 | H34: ='App.2-FA Proposed REG Invest.'!C101 -> 0
A35: ='LDC Info'!$E$14 -> ENWIN Utilities Ltd. | B35: EB-2019-0032 | C35: 2020 | D35: 2019 | E35: 2009 | F35: Expansion Investments_B_Total Capital Costs | G35: 2015 | H35: ='App.2-FA Proposed REG Invest.'!D99 -> 0
A36: ='LDC Info'!$E$14 -> ENWIN Utilities Ltd. | B36: EB-2019-0032 | C36: 2020 | D36: 2019 | E36: 2009 | F36: Expansion Investments_B_Total OM&A Start-Up | G36: 2015 | H36: ='App.2-FA Proposed REG Invest.'!D100 -> 0
A37: ='LDC Info'!$E$14 -> ENWIN Utilities Ltd. | B37: EB-2019-0032 | C37: 2020 | D37: 2019 | E37: 2009 | F37: Expansion Investments_B_Total OM&A Ongoing | G37: 2015 | H37: ='App.2-FA Proposed REG Invest.'!D101 -> 0
A38: ='LDC Info'!$E$14 -> ENWIN Utilities Ltd. | B38: EB-2019-0032 | C38: 2020 | D38: 2019 | E38: 2009 | F38: Expansion Investments_B_Total Capital Costs | G38: 2016 | H38: ='App.2-FA Proposed REG Invest.'!E99 -> 0
A39: ='LDC Info'!$E$14 -> ENWIN Utilities Ltd. | B39: EB-2019-0032 | C39: 2020 | D39: 2019 | E39: 2009 | F39: Expansion Investments_B_Total OM&A Start-Up | G39: 2016 | H39: ='App.2-FA Proposed REG Invest.'!E100 -> 0
A40: ='LDC Info'!$E$14 -> ENWIN Utilities Ltd. | B40: EB-2019-0032 | C40: 2020 | D40: 2019 | E40: 2009 | F40: Expansion Investments_B_Total OM&A Ongoing | G40: 2016 | H40: ='App.2-FA Proposed REG Invest.'!E101 -> 0
A41: ='LDC Info'!$E$14 -> ENWIN Utilities Ltd. | B41: EB-2019-0032 | C41: 2020 | D41: 2019 | E41: 2009 | F41: Expansion Investments_B_Total Capital Costs | G41: 2017 | H41: ='App.2-FA Proposed REG Invest.'!F99 -> 0
A42: ='LDC Info'!$E$14 -> ENWIN Utilities Ltd. | B42: EB-2019-0032 | C42: 2020 | D42: 2019 | E42: 2009 | F42: Expansion Investments_B_Total OM&A Start-Up | G42: 2017 | H42: ='App.2-FA Proposed REG Invest.'!F100 -> 0
A43: ='LDC Info'!$E$14 -> ENWIN Utilities Ltd. | B43: EB-2019-0032 | C43: 2020 | D43: 2019 | E43: 2009 | F43: Expansion Investments_B_Total OM&A Ongoing | G43: 2017 | H43: ='App.2-FA Proposed REG Invest.'!F101 -> 0
A44: ='LDC Info'!$E$14 -> ENWIN Utilities Ltd. | B44: EB-2019-0032 | C44: 2020 | D44: 2019 | E44: 2009 | F44: Expansion Investments_B_Total Capital Costs | G44: 2018 | H44: ='App.2-FA Proposed REG Invest.'!G99 -> 0
A45: ='LDC Info'!$E$14 -> ENWIN Utilities Ltd. | B45: EB-2019-0032 | C45: 2020 | D45: 2019 | E45: 2009 | F45: Expansion Investments_B_Total OM&A Start-Up | G45: 2018 | H45: ='App.2-FA Proposed REG Invest.'!G100 -> 0
A46: ='LDC Info'!$E$14 -> ENWIN Utilities Ltd. | B46: EB-2019-0032 | C46: 2020 | D46: 2019 | E46: 2009 | F46: Expansion Investments_B_Total OM&A Ongoing | G46: 2018 | H46: ='App.2-FA Proposed REG Invest.'!G101 -> 0
A47: ='LDC Info'!$E$14 -> ENWIN Utilities Ltd. | B47: EB-2019-0032 | C47: 2020 | D47: 2019 | E47: 2009 | F47: Expansion Investments_B_Total Capital Costs | G47: 2019 | H47: ='App.2-FA Proposed REG Invest.'!H99 -> 0
A48: ='LDC Info'!$E$14 -> ENWIN Utilities Ltd. | B48: EB-2019-0032 | C48: 2020 | D48: 2019 | E48: 2009 | F48: Expansion Investments_B_Total OM&A Start-Up | G48: 2019 | H48: ='App.2-FA Proposed REG Invest.'!H100 -> 0
A49: ='LDC Info'!$E$14 -> ENWIN Utilities Ltd. | B49: EB-2019-0032 | C49: 2020 | D49: 2019 | E49: 2009 | F49: Expansion Investments_B_Total OM&A Ongoing | G49: 2019 | H49: ='App.2-FA Proposed REG Invest.'!H101 -> 0
A50: ='LDC Info'!$E$14 -> ENWIN Utilities Ltd. | B50: EB-2019-0032 | C50: 2020 | D50: 2019 | E50: 2009 | F50: Expansion Investments_B_Total Capital Costs | G50: 2020 | H50: ='App.2-FA Proposed REG Invest.'!I99 -> 0
A51: ='LDC Info'!$E$14 -> ENWIN Utilities Ltd. | B51: EB-2019-0032 | C51: 2020 | D51: 2019 | E51: 2009 | F51: Expansion Investments_B_Total OM&A Start-Up | G51: 2020 | H51: ='App.2-FA Proposed REG Invest.'!I100 -> 0
A52: ='LDC Info'!$E$14 -> ENWIN Utilities Ltd. | B52: EB-2019-0032 | C52: 2020 | D52: 2019 | E52: 2009 | F52: Expansion Investments_B_Total OM&A Ongoing | G52: 2020 | H52: ='App.2-FA Proposed REG Invest.'!I101 -> 0
A53: ='LDC Info'!$E$14 -> ENWIN Utilities Ltd. | B53: EB-2019-0032 | C53: 2020 | D53: 2019 | E53: 2009 | F53: Expansion Investments_B_Total Capital Costs | G53: 2021 | H53: ='App.2-FA Proposed REG Invest.'!J99 -> 0
A54: ='LDC Info'!$E$14 -> ENWIN Utilities Ltd. | B54: EB-2019-0032 | C54: 2020 | D54: 2019 | E54: 2009 | F54: Expansion Investments_B_Total OM&A Start-Up | G54: 2021 | H54: ='App.2-FA Proposed REG Invest.'!J100 -> 0
A55: ='LDC Info'!$E$14 -> ENWIN Utilities Ltd. | B55: EB-2019-0032 | C55: 2020 | D55: 2019 | E55: 2009 | F55: Expansion Investments_B_Total OM&A Ongoing | G55: 2021 | H55: ='App.2-FA Proposed REG Invest.'!J101 -> 0
A56: ='LDC Info'!$E$14 -> ENWIN Utilities Ltd. | B56: EB-2019-0032 | C56: 2020 | D56: 2019 | E56: 2009 | F56: Expansion Investments_B_Total Capital Costs | G56: 2022 | H56: ='App.2-FA Proposed REG Invest.'!K99 -> 0
A57: ='LDC Info'!$E$14 -> ENWIN Utilities Ltd. | B57: EB-2019-0032 | C57: 2020 | D57: 2019 | E57: 2009 | F57: Expansion Investments_B_Total OM&A Start-Up | G57: 2022 | H57: ='App.2-FA Proposed REG Invest.'!K100 -> 0
A58: ='LDC Info'!$E$14 -> ENWIN Utilities Ltd. | B58: EB-2019-0032 | C58: 2020 | D58: 2019 | E58: 2009 | F58: Expansion Investments_B_Total OM&A Ongoing | G58: 2022 | H58: ='App.2-FA Proposed REG Invest.'!K101 -> 0
A59: ='LDC Info'!$E$14 -> ENWIN Utilities Ltd. | B59: EB-2019-0032 | C59: 2020 | D59: 2019 | E59: 2009 | F59: Expansion Investments_B_Total Capital Costs | G59: 2023 | H59: ='App.2-FA Proposed REG Invest.'!L99 -> 0
A60: ='LDC Info'!$E$14 -> ENWIN Utilities Ltd. | B60: EB-2019-0032 | C60: 2020 | D60: 2019 | E60: 2009 | F60: Expansion Investments_B_Total OM&A Start-Up | G60: 2023 | H60: ='App.2-FA Proposed REG Invest.'!L100 -> 0
A61: ='LDC Info'!$E$14 -> ENWIN Utilities Ltd. | B61: EB-2019-0032 | C61: 2020 | D61: 2019 | E61: 2009 | F61: Expansion Investments_B_Total OM&A Ongoing | G61: 2023 | H61: ='App.2-FA Proposed REG Invest.'!L101 -> 0

Sheet App.2-FB Calc of REG Improvemnt
Q1: File Number: | R1: =EBNUMBER -> EB-2019-0032
Q2: Exhibit:
Q3: Tab:
A4: TO BE UPDATED AT DRAFT RATE ORDER STAGE | Q4: Schedule:
Q5: Page:
Q7: Date: | R7: 2019-09-24
A9: Appendix 2-FB
A10: Calculation of Renewable Generation Connection Direct Benefits/Provincial Amount: Renewable Enabling Improvement Investments
A12: This table will calculate the distributor/provincial shares of the investments entered in Part A of Appendix 2-FA.
A13: Enter values in green shaded cells: WCA percentage, debt percentages, interest rates, kWh, tax rates, amortization period, CCA Class and percentage.
A14: For historical investments, enter these variables for your last cost of service test year. For 2017 and beyond, enter variables as in the application.
A15: Rate Riders are not calculated for the Test Year as these assets and costs are already in the distributor's rate base/revenue requirement.
C17: =F17-1 -> 2015 | F17: =I17-1 -> 2016 | I17: =L17-1 -> 2017 | L17: =O17-1 -> 2018 | O17: =BridgeYear -> 2019 | R17: =CONCATENATE(TestYear," Test Year") -> 2020 Test Year | U17: =TestYear+1 -> 2021 | X17: =U17+1 -> 2022 | Y17: 2016 | AA17: =X17+1 -> 2023 | AD17: =AA17+1 -> 2024
D18: Direct Benefit | E18: Provincial | G18: Direct Benefit | H18: Provincial | J18: Direct Benefit | K18: Provincial | M18: Direct Benefit | N18: Provincial | P18: Direct Benefit | Q18: Provincial | S18: Direct Benefit | T18: Provincial | V18: Direct Benefit | W18: Provincial | Y18: Direct Benefit | Z18: Provincial | AB18: Direct Benefit | AC18: Provincial | AE18: Direct Benefit | AF18: Provincial
C19: Total | D19: 0.06 | E19: 0.94 | F19: Total | G19: 0.06 | H19: 0.94 | I19: Total | J19: 0.06 | K19: 0.94 | L19: Total | M19: 0.06 | N19: 0.94 | O19: Total | P19: 0.06 | Q19: 0.94 | R19: Total | S19: 0.06 | T19: 0.94 | U19: Total | V19: 0.06 | W19: 0.94 | X19: Total | Y19: 0.06 | Z19: 0.94 | AA19: Total | AB19: 0.06 | AC19: 0.94 | AD19: Total | AE19: 0.06 | AF19: 0.94
A20: Net Fixed Assets (average) | C20: =F82 -> 0 | D20: =C20*D19 -> 0 | E20: =C20*E19 -> 0 | F20: =G82 -> 0 | G20: =F20*G19 -> 0 | H20: =F20*H19 -> 0 | I20: =H82 -> 0 | J20: =I20*J19 -> 0 | K20: =I20*K19 -> 0 | L20: =I82 -> 0 | M20: =L20*M19 -> 0 | N20: =L20*N19 -> 0 | O20: =J82 -> 0 | P20: =O20*P19 -> 0 | Q20: =O20*Q19 -> 0 | R20: =K82 -> 0 | S20: =R20*S19 -> 0 | T20: =R20*T19 -> 0 | U20: =L82 -> 0 | V20: =U20*V19 -> 0 | W20: =U20*W19 -> 0 | X20: =M82 -> 0 | Y20: =X20*Y19 -> 0 | Z20: =X20*Z19 -> 0 | AA20: =N82 -> 0 | AB20: =AA20*AB19 -> 0 | AC20: =AA20*AC19 -> 0 | AD20: =O82 -> 0 | AE20: =AD20*AE19 -> 0 | AF20: =AD20*AF19 -> 0
A21: Incremental OM&A (on-going, N/A for Provincial Recovery) | C21: ='App.2-FA Proposed REG Invest.'!C64 -> 0 | D21: =C21 -> 0 | F21: ='App.2-FA Proposed REG Invest.'!D64 -> 0 | G21: =F21 -> 0 | I21: ='App.2-FA Proposed REG Invest.'!E64 -> 0 | J21: =I21 -> 0 | L21: ='App.2-FA Proposed REG Invest.'!F64 -> 0 | M21: =L21 -> 0 | O21: ='App.2-FA Proposed REG Invest.'!G64 -> 0 | P21: =O21 -> 0 | R21: ='App.2-FA Proposed REG Invest.'!H64 -> 0 | S21: =R21 -> 0 | U21: ='App.2-FA Proposed REG Invest.'!I64 -> 0 | V21: =U21 -> 0 | X21: ='App.2-FA Proposed REG Invest.'!J64 -> 0 | Y21: =X21 -> 0 | AA21: ='App.2-FA Proposed REG Invest.'!K64 -> 0 | AB21: =AA21 -> 0 | AD21: ='App.2-FA Proposed REG Invest.'!L64 -> 0 | AE21: =AD21 -> 0
A22: Incremental OM&A (start-up, applicable for Provincial Recovery) | C22: ='App.2-FA Proposed REG Invest.'!C63 -> 0 | D22: =C22*D19 -> 0 | E22: =C22*E19 -> 0 | F22: ='App.2-FA Proposed REG Invest.'!D63 -> 0 | G22: =F22*G19 -> 0 | H22: =F22*H19 -> 0 | I22: ='App.2-FA Proposed REG Invest.'!E63 -> 0 | J22: =I22*J19 -> 0 | K22: =I22*K19 -> 0 | L22: ='App.2-FA Proposed REG Invest.'!F63 -> 0 | M22: =L22*M19 -> 0 | N22: =L22*N19 -> 0 | O22: ='App.2-FA Proposed REG Invest.'!G63 -> 0 | P22: =O22*P19 -> 0 | Q22: =O22*Q19 -> 0 | R22: ='App.2-FA Proposed REG Invest.'!H63 -> 0 | S22: =R22*S19 -> 0 | T22: =R22*T19 -> 0 | U22: ='App.2-FA Proposed REG Invest.'!I63 -> 0 | V22: =U22*V19 -> 0 | W22: =U22*W19 -> 0 | X22: ='App.2-FA Proposed REG Invest.'!J63 -> 0 | Y22: =X22*Y19 -> 0 | Z22: =X22*Z19 -> 0 | AA22: ='App.2-FA Proposed REG Invest.'!K63 -> 0 | AB22: =AA22*AB19 -> 0 | AC22: =AA22*AC19 -> 0 | AD22: ='App.2-FA Proposed REG Invest.'!L63 -> 0 | AE22: =AD22*AE19 -> 0 | AF22: =AD22*AF19 -> 0
A23: WCA | D23: =(D21+D22)*$B$23 -> 0 | E23: =E22*$B$23 -> 0 | G23: =(G21+G22)*$B$23 -> 0 | H23: =H22*$B$23 -> 0 | J23: =(J21+J22)*$B$23 -> 0 | K23: =K22*$B$23 -> 0 | M23: =(M21+M22)*$B$23 -> 0 | N23: =N22*$B$23 -> 0 | P23: =(P21+P22)*$B$23 -> 0 | Q23: =Q22*$B$23 -> 0 | S23: =(S21+S22)*$B$23 -> 0 | T23: =T22*$B$23 -> 0 | V23: =(V21+V22)*$B$23 -> 0 | W23: =W22*$B$23 -> 0 | Y23: =(Y21+Y22)*$B$23 -> 0 | Z23: =Z22*$B$23 -> 0 | AB23: =(AB21+AB22)*$B$23 -> 0 | AC23: =AC22*$B$23 -> 0 | AE23: =(AE21+AE22)*$B$23 -> 0 | AF23: =AF22*$B$23 -> 0
A24: Rate Base | D24: =SUM(D20+D23) -> 0 | E24: =SUM(E20+E23) -> 0 | G24: =SUM(G20+G23) -> 0 | H24: =SUM(H20+H23) -> 0 | J24: =SUM(J20+J23) -> 0 | K24: =SUM(K20+K23) -> 0 | M24: =SUM(M20+M23) -> 0 | N24: =SUM(N20+N23) -> 0 | P24: =SUM(P20+P23) -> 0 | Q24: =SUM(Q20+Q23) -> 0 | S24: =SUM(S20+S23) -> 0 | T24: =SUM(T20+T23) -> 0 | V24: =SUM(V20+V23) -> 0 | W24: =SUM(W20+W23) -> 0 | Y24: =SUM(Y20+Y23) -> 0 | Z24: =SUM(Z20+Z23) -> 0 | AB24: =SUM(AB20+AB23) -> 0 | AC24: =SUM(AC20+AC23) -> 0 | AE24: =SUM(AE20+AE23) -> 0 | AF24: =SUM(AF20+AF23) -> 0
A27: Deemed ST Debt | D27: =D24*$B$27 -> 0 | E27: =E24*$B$27 -> 0 | G27: =G24*$B$27 -> 0 | H27: =H24*$B$27 -> 0 | J27: =J24*$B$27 -> 0 | K27: =K24*$B$27 -> 0 | M27: =M24*$B$27 -> 0 | N27: =N24*$B$27 -> 0 | P27: =P24*$B$27 -> 0 | Q27: =Q24*$B$27 -> 0 | S27: =S24*$B$27 -> 0 | T27: =T24*$B$27 -> 0 | V27: =V24*$B$27 -> 0 | W27: =W24*$B$27 -> 0 | Y27: =Y24*$B$27 -> 0 | Z27: =Z24*$B$27 -> 0 | AB27: =AB24*$B$27 -> 0 | AC27: =AC24*$B$27 -> 0 | AE27: =AE24*$B$27 -> 0 | AF27: =AF24*$B$27 -> 0
A28: Deemed LT Debt | D28: =D24*$B$28 -> 0 | E28: =E24*$B$28 -> 0 | G28: =G24*$B$28 -> 0 | H28: =H24*$B$28 -> 0 | J28: =J24*$B$28 -> 0 | K28: =K24*$B$28 -> 0 | M28: =M24*$B$28 -> 0 | N28: =N24*$B$28 -> 0 | P28: =P24*$B$28 -> 0 | Q28: =Q24*$B$28 -> 0 | S28: =S24*$B$28 -> 0 | T28: =T24*$B$28 -> 0 | V28: =V24*$B$28 -> 0 | W28: =W24*$B$28 -> 0 | Y28: =Y24*$B$28 -> 0 | Z28: =Z24*$B$28 -> 0 | AB28: =AB24*$B$28 -> 0 | AC28: =AC24*$B$28 -> 0 | AE28: =AE24*$B$28 -> 0 | AF28: =AF24*$B$28 -> 0
A29: Deemed Equity | D29: =D24*$B$29 -> 0 | E29: =E24*$B$29 -> 0 | G29: =G24*$B$29 -> 0 | H29: =H24*$B$29 -> 0 | J29: =J24*$B$29 -> 0 | K29: =K24*$B$29 -> 0 | M29: =M24*$B$29 -> 0 | N29: =N24*$B$29 -> 0 | P29: =P24*$B$29 -> 0 | Q29: =Q24*$B$29 -> 0 | S29: =S24*$B$29 -> 0 | T29: =T24*$B$29 -> 0 | V29: =V24*$B$29 -> 0 | W29: =W24*$B$29 -> 0 | Y29: =Y24*$B$29 -> 0 | Z29: =Z24*$B$29 -> 0 | AB29: =AB24*$B$29 -> 0 | AC29: =AC24*$B$29 -> 0 | AE29: =AE24*$B$29 -> 0 | AF29: =AF24*$B$29 -> 0
A31: ST Interest | D31: =D27*$B31 -> 0 | E31: 0 | G31: =G27*$B31 -> 0 | H31: 0 | J31: =J27*$B31 -> 0 | K31: 0 | M31: =M27*$B31 -> 0 | N31: 0 | P31: =P27*$B31 -> 0 | Q31: 0 | S31: =S27*$B31 -> 0 | T31: 0 | V31: =V27*$B31 -> 0 | W31: 0 | Y31: =Y27*$B31 -> 0 | Z31: 0 | AB31: =AB27*$B31 -> 0 | AC31: 0 | AE31: =AE27*$B31 -> 0 | AF31: 0
A32: LT Interest | D32: =D28*$B32 -> 0 | E32: 0 | G32: 0 | H32: 0 | J32: 0 | K32: 0 | M32: 0 | N32: 0 | P32: 0 | Q32: 0 | S32: 0 | T32: 0 | V32: 0 | W32: 0 | Y32: 0 | Z32: 0 | AB32: 0 | AC32: 0 | AE32: 0 | AF32: 0
A33: ROE | D33: =D29*$B33 -> 0 | E33: 0 | G33: 0 | H33: 0 | J33: 0 | K33: 0 | M33: 0 | N33: 0 | P33: 0 | Q33: 0 | S33: 0 | T33: 0 | V33: 0 | W33: 0 | Y33: 0 | Z33: 0 | AB33: 0 | AC33: 0 | AE33: 0 | AF33: 0
A34: Cost of Capital Total | D34: =SUM(D31:D33) -> 0 | E34: =SUM(E31:E33) -> 0 | G34: =SUM(G31:G33) -> 0 | H34: =SUM(H31:H33) -> 0 | J34: =SUM(J31:J33) -> 0 | K34: =SUM(K31:K33) -> 0 | M34: =SUM(M31:M33) -> 0 | N34: =SUM(N31:N33) -> 0 | P34: =SUM(P31:P33) -> 0 | Q34: =SUM(Q31:Q33) -> 0 | S34: =SUM(S31:S33) -> 0 | T34: =SUM(T31:T33) -> 0 | V34: =SUM(V31:V33) -> 0 | W34: =SUM(W31:W33) -> 0 | Y34: =SUM(Y31:Y33) -> 0 | Z34: =SUM(Z31:Z33) -> 0 | AB34: =SUM(AB31:AB33) -> 0 | AC34: =SUM(AC31:AC33) -> 0 | AE34: =SUM(AE31:AE33) -> 0 | AF34: =SUM(AF31:AF33) -> 0
A36: OM&A | D36: =D21+D22 -> 0 | E36: =E22 -> 0 | G36: =G21+G22 -> 0 | H36: =H22 -> 0 | J36: =J21+J22 -> 0 | K36: =K22 -> 0 | M36: =M21+M22 -> 0 | N36: =N22 -> 0 | P36: =P21+P22 -> 0 | Q36: =Q22 -> 0 | S36: =S21+S22 -> 0 | T36: =T22 -> 0 | V36: =V21+V22 -> 0 | W36: =W22 -> 0 | Y36: =Y21+Y22 -> 0 | Z36: =Z22 -> 0 | AB36: =AB21+AB22 -> 0 | AC36: =AC22 -> 0 | AE36: =AE21+AE22 -> 0 | AF36: =AF22 -> 0
A37: Amortization | C37: =D77 -> 0 | D37: =C37*D$19 -> 0 | E37: =C37*E$19 -> 0 | F37: =G77 -> 0 | G37: =F37*G$19 -> 0 | H37: =F37*H$19 -> 0 | I37: =H77 -> 0 | J37: =I37*J$19 -> 0 | K37: =I37*K$19 -> 0 | L37: =I77 -> 0 | M37: =L37*M$19 -> 0 | N37: =L37*N$19 -> 0 | O37: =J77 -> 0 | P37: =O37*P$19 -> 0 | Q37: =O37*Q$19 -> 0 | R37: =K77 -> 0 | S37: =R37*S$19 -> 0 | T37: =R37*T$19 -> 0 | U37: =L76+L77 -> 0 | V37: =U37*V$19 -> 0 | W37: =U37*W$19 -> 0 | X37: =M76+M77 -> 0 | Y37: =X37*Y$19 -> 0 | Z37: =X37*Z$19 -> 0 | AA37: =N76+N77 -> 0 | AB37: =AA37*AB$19 -> 0 | AC37: =AA37*AC$19 -> 0 | AD37: =O76+O77 -> 0 | AE37: =AD37*AE$19 -> 0 | AF37: =AD37*AF$19 -> 0
A38: Grossed-up PILs | D38: =D65 -> 0 | E38: =E65 -> 0 | G38: =G65 -> 0 | H38: =H65 -> 0 | J38: =J65 -> 0 | K38: =K65 -> 0 | M38: =M65 -> 0 | N38: =N65 -> 0 | P38: =P65 -> 0 | Q38: =Q65 -> 0 | S38: =S65 -> 0 | T38: =T65 -> 0 | V38: =V65 -> 0 | W38: =W65 -> 0 | Y38: =Y65 -> 0 | Z38: =Z65 -> 0 | AB38: =AB65 -> 0 | AC38: =AC65 -> 0 | AE38: =AE65 -> 0 | AF38: =AF65 -> 0
A40: Revenue Requirement | D40: =SUM(D34:D38) -> 0 | E40: =SUM(E34:E38) -> 0 | G40: =SUM(G34:G38) -> 0 | H40: =SUM(H34:H38) -> 0 | J40: =SUM(J34:J38) -> 0 | K40: =SUM(K34:K38) -> 0 | M40: =SUM(M34:M38) -> 0 | N40: =SUM(N34:N38) -> 0 | P40: =SUM(P34:P38) -> 0 | Q40: =SUM(Q34:Q38) -> 0 | S40: =SUM(S34:S38) -> 0 | T40: =SUM(T34:T38) -> 0 | V40: =SUM(V34:V38) -> 0 | W40: =SUM(W34:W38) -> 0 | Y40: =SUM(Y34:Y38) -> 0 | Z40: =SUM(Z34:Z38) -> 0 | AB40: =SUM(AB34:AB38) -> 0 | AC40: =SUM(AC34:AC38) -> 0 | AE40: =SUM(AE34:AE38) -> 0 | AF40: =SUM(AF34:AF38) -> 0
A43: Provincial Rate Protection | E43: =E40 -> 0 | H43: =H40 -> 0 | K43: =K40 -> 0 | N43: =N40 -> 0 | Q43: =Q40 -> 0 | T43: =T40 -> 0 | W43: =W40 -> 0 | Z43: =Z40 -> 0 | AC43: =AC40 -> 0 | AF43: =AF40 -> 0
A45: Monthly Amount Paid by IESO | E45: =E43/12 -> 0 | H45: =H43/12 -> 0 | K45: =K43/12 -> 0 | N45: =N43/12 -> 0 | Q45: =Q43/12 -> 0 | T45: =T43/12 -> 0 | W45: =W43/12 -> 0 | Z45: =Z43/12 -> 0 | AC45: =AC43/12 -> 0 | AF45: =AF43/12 -> 0
A47: Note 1: The difference between the actual costs of approved eligible investments and revenue received from the IESO should be recorded in a variance account. The Board may provide
A48: regulatory accounting guidance regarding a variance account either in an individual proceeding or on a generic basis.
A49: Note 2: For the 2016 Test Year, Costs and Revenues of the Direct Benefit are to be included in the test year applicant Rate Base and Revenues.
A51: PILs Calculation
D52: =F17-1 -> 2015 | G52: =F17 -> 2016 | J52: =I17 -> 2017 | M52: =L17 -> 2018 | P52: =O17 -> 2019 | S52: =R17 -> 2020 Test Year | V52: =U17 -> 2021 | Y52: =X17 -> 2022 | AB52: =AA17 -> 2023 | AE52: =AD17 -> 2024
A53: Income Tax | D53: Direct Benefit | E53: Provincial | G53: Direct Benefit | H53: Provincial | J53: Direct Benefit | K53: Provincial | M53: Direct Benefit | N53: Provincial | P53: Direct Benefit | Q53: Provincial | S53: Direct Benefit | T53: Provincial | V53: Direct Benefit | W53: Provincial | Y53: Direct Benefit | Z53: Provincial | AB53: Direct Benefit | AC53: Provincial | AE53: Direct Benefit | AF53: Provincial
AA54: Total | AD54: Total
A55: Net Income - ROE on Rate Base | D55: =D33 -> 0 | E55: =E33 -> 0 | G55: =G33 -> 0 | H55: =H33 -> 0 | J55: =J33 -> 0 | K55: =K33 -> 0 | M55: =M33 -> 0 | N55: =N33 -> 0 | P55: =P33 -> 0 | Q55: =Q33 -> 0 | S55: =S33 -> 0 | T55: =T33 -> 0 | V55: =V33 -> 0 | W55: =W33 -> 0 | Y55: =Y33 -> 0 | Z55: =Z33 -> 0 | AB55: =AB33 -> 0 | AC55: =AC33 -> 0 | AE55: =AE33 -> 0 | AF55: =AF33 -> 0
A56: Amortization (6% DB and 94% P) | D56: =D37 -> 0 | E56: =E37 -> 0 | G56: =G37 -> 0 | H56: =H37 -> 0 | J56: =J37 -> 0 | K56: =K37 -> 0 | M56: =M37 -> 0 | N56: =N37 -> 0 | P56: =P37 -> 0 | Q56: =Q37 -> 0 | S56: =S37 -> 0 | T56: =T37 -> 0 | V56: =V37 -> 0 | W56: =W37 -> 0 | Y56: =Y37 -> 0 | Z56: =Z37 -> 0 | AB56: =AB37 -> 0 | AC56: =AC37 -> 0 | AE56: =AE37 -> 0 | AF56: =AF37 -> 0
A57: CCA (6% DB and 94% P) | D57: =-D94*D$19 -> 0 | E57: =-D94*E$19 -> 0 | G57: =-G94*G$19 -> 0 | H57: =-G94*H$19 -> 0 | J57: =-H94*J19 -> 0 | K57: =-H94*K$19 -> 0 | M57: =-I94*M$19 -> 0 | N57: =-I94*N$19 -> 0 | P57: =-J94*P$19 -> 0 | Q57: =-J94*Q$19 -> 0 | S57: =-K94*S$19 -> 0 | T57: =-K94*T$19 -> 0 | V57: =-L94*V$19 -> 0 | W57: =-L94*W$19 -> 0 | Y57: =-M94*Y$19 -> 0 | Z57: =-M94*Z$19 -> 0 | AB57: =-N94*AB$19 -> 0 | AC57: =-N94*AC$19 -> 0 | AE57: =-O94*AE$19 -> 0 | AF57: =-O94*AF$19 -> 0
A58: Taxable income | D58: =SUM(D55:D57) -> 0 | E58: =SUM(E55:E57) -> 0 | G58: =SUM(G55:G57) -> 0 | H58: =SUM(H55:H57) -> 0 | J58: =SUM(J55:J57) -> 0 | K58: =SUM(K55:K57) -> 0 | M58: =SUM(M55:M57) -> 0 | N58: =SUM(N55:N57) -> 0 | P58: =SUM(P55:P57) -> 0 | Q58: =SUM(Q55:Q57) -> 0 | S58: =SUM(S55:S57) -> 0 | T58: =SUM(T55:T57) -> 0 | V58: =SUM(V55:V57) -> 0 | W58: =SUM(W55:W57) -> 0 | Y58: =SUM(Y55:Y57) -> 0 | Z58: =SUM(Z55:Z57) -> 0 | AB58: =SUM(AB55:AB57) -> 0 | AC58: =SUM(AC55:AC57) -> 0 | AE58: =SUM(AE55:AE57) -> 0 | AF58: =SUM(AF55:AF57) -> 0
A60: Tax Rate (to be entered)
A62: Income Taxes Payable | D62: =D58*D60 -> 0 | E62: =E58*E60 -> 0 | G62: =G58*G60 -> 0 | H62: =H58*H60 -> 0 | J62: =J58*J60 -> 0 | K62: =K58*K60 -> 0 | M62: =M58*M60 -> 0 | N62: =N58*N60 -> 0 | P62: =P58*P60 -> 0 | Q62: =Q58*Q60 -> 0 | S62: =S58*S60 -> 0 | T62: =T58*T60 -> 0 | V62: =V58*V60 -> 0 | W62: =W58*W60 -> 0 | Y62: =Y58*Y60 -> 0 | Z62: =Z58*Z60 -> 0 | AB62: =AB58*AB60 -> 0 | AC62: =AC58*AC60 -> 0 | AE62: =AE58*AE60 -> 0 | AF62: =AF58*AF60 -> 0
A63: Gross Up
A64: Income Taxes Payable | D64: =D62/(1-D60) -> 0 | E64: =E62/(1-E60) -> 0 | G64: =G62/(1-G60) -> 0 | H64: =H62/(1-H60) -> 0 | J64: =J62/(1-J60) -> 0 | K64: =K62/(1-K60) -> 0 | M64: =M62/(1-M60) -> 0 | N64: =N62/(1-N60) -> 0 | P64: =P62/(1-P60) -> 0 | Q64: =Q62/(1-Q60) -> 0 | S64: =S62/(1-S60) -> 0 | T64: =T62/(1-T60) -> 0 | V64: =V62/(1-V60) -> 0 | W64: =W62/(1-W60) -> 0 | Y64: =Y62/(1-Y60) -> 0 | Z64: =Z62/(1-Z60) -> 0 | AB64: =AB62/(1-AB60) -> 0 | AC64: =AC62/(1-AC60) -> 0 | AE64: =AE62/(1-AE60) -> 0 | AF64: =AF62/(1-AF60) -> 0
A65: Grossed Up PILs | D65: =SUM(D64:D64) -> 0 | E65: =SUM(E64:E64) -> 0 | G65: =SUM(G64:G64) -> 0 | H65: =SUM(H64:H64) -> 0 | J65: =SUM(J64:J64) -> 0 | K65: =SUM(K64:K64) -> 0 | M65: =SUM(M64:M64) -> 0 | N65: =SUM(N64:N64) -> 0 | P65: =SUM(P64:P64) -> 0 | Q65: =SUM(Q64:Q64) -> 0 | S65: =SUM(S64:S64) -> 0 | T65: =SUM(T64:T64) -> 0 | V65: =SUM(V64:V64) -> 0 | W65: =SUM(W64:W64) -> 0 | Y65: =SUM(Y64:Y64) -> 0 | Z65: =SUM(Z64:Z64) -> 0 | AB65: =SUM(AB64:AB64) -> 0 | AC65: =SUM(AC64:AC64) -> 0 | AE65: =SUM(AE64:AE64) -> 0 | AF65: =SUM(AF64:AF64) -> 0
F68: =G68-1 -> 2015 | G68: =H68-1 -> 2016 | H68: =I68-1 -> 2017 | I68: =J68-1 -> 2018 | J68: =K68-1 -> 2019 | K68: =TestYear -> 2020 | L68: =K68+1 -> 2021 | M68: =L68+1 -> 2022 | N68: =M68+1 -> 2023 | O68: =N68+1 -> 2024
A69: Net Fixed Assets
B70: Enter applicable amortization in years: | C70: 25
A71: Opening Gross Fixed Assets | G71: =F73 -> 0 | H71: =G73 -> 0 | I71: 0 | J71: 0 | K71: 0 | L71: 0 | M71: 0 | N71: 0 | O71: 0
A72: Gross Capital Additions | F72: ='App.2-FA Proposed REG Invest.'!C62 -> 0 | G72: ='App.2-FA Proposed REG Invest.'!D62 -> 0 | H72: ='App.2-FA Proposed REG Invest.'!E62 -> 0 | I72: ='App.2-FA Proposed REG Invest.'!F62 -> 0 | J72: ='App.2-FA Proposed REG Invest.'!G62 -> 0 | K72: ='App.2-FA Proposed REG Invest.'!H62 -> 0 | L72: ='App.2-FA Proposed REG Invest.'!I62 -> 0 | M72: ='App.2-FA Proposed REG Invest.'!J62 -> 0 | N72: ='App.2-FA Proposed REG Invest.'!K62 -> 0 | O72: ='App.2-FA Proposed REG Invest.'!L62 -> 0
A73: Closing Gross Fixed Assets | F73: =SUM(F71:F72) -> 0 | G73: =SUM(G71:G72) -> 0 | H73: 0 | I73: 0 | J73: 0 | K73: 0 | L73: 0 | M73: 0 | N73: 0 | O73: 0
A75: Opening Accumulated Amortization | H75: =+G78 -> 0 | I75: =H78 -> 0 | J75: 0 | K75: 0 | L75: 0 | M75: 0 | N75: 0 | O75: 0
A76: Current Year Amortization (before additions) | F76: =IF(ISERROR(F71/$C$70), 0, F71/$C$70) -> 0 | G76: 0 | H76: 0 | I76: 0 | J76: 0 | K76: 0 | L76: 0 | M76: 0 | N76: 0 | O76: 0
A77: Additions (half year) | F77: =F72/$C$70/2 -> 0 | G77: 0 | H77: 0 | I77: 0 | J77: 0 | K77: 0 | L77: =L72/C70/2 -> 0 | M77: =M72/C70/2 -> 0 | N77: =N72/C70/2 -> 0 | O77: =O72/C70/2 -> 0
A78: Closing Accumulated Amortization | F78: =SUM(F75+F76+F77) -> 0 | G78: 0 | H78: 0 | I78: 0 | J78: 0 | K78: 0 | L78: =SUM(L75:L77) -> 0 | M78: =SUM(M75:M77) -> 0 | N78: =SUM(N75:N77) -> 0 | O78: =SUM(O75:O77) -> 0
A80: Opening Net Fixed Assets | F80: =F71-F75 -> 0 | G80: 0 | H80: 0 | I80: 0 | J80: 0 | K80: 0 | L80: =K81 -> 0 | M80: =L81 -> 0 | N80: =M81 -> 0 | O80: =N81 -> 0
A81: Closing Net Fixed Assets | F81: =F73-F78 -> 0 | G81: =G73-G78 -> 0 | H81: 0 | I81: 0 | J81: 0 | K81: 0 | L81: 0 | M81: 0 | N81: 0 | O81: 0
A82: Average Net Fixed Assets | F82: =SUM(F80:F81)/2 -> 0 | G82: =SUM(G80:G81)/2 -> 0 | H82: 0 | I82: 0 | J82: 0 | K82: 0 | L82: 0 | M82: 0 | N82: 0 | O82: 0
A84: UCC for PILs Calculation
F85: =F68 -> 2015 | G85: =G68 -> 2016 | H85: =H68 -> 2017 | I85: 2018 | J85: 2019 | K85: 2020 | L85: 2021 | M85: 2022 | N85: 2023 | O85: 2024
A87: Opening UCC | G87: =F95 -> 0 | H87: =G95 -> 0 | I87: 0 | J87: 0 | K87: 0 | L87: 0 | M87: 0 | N87: 0 | O87: 0
A88: Capital Additions (from Appendix 2-FA) | F88: =F72 -> 0 | G88: =G72 -> 0 | H88: 0 | I88: 0 | J88: 0 | K88: 0 | L88: 0 | M88: 0 | N88: 0 | O88: 0
A89: UCC Before Half Year Rule | F89: =SUM(F87:F88) -> 0 | G89: =SUM(G87:G88) -> 0 | H89: 0 | I89: 0 | J89: 0 | K89: 0 | L89: 0 | M89: 0 | N89: 0 | O89: 0
A90: Half Year Rule (1/2 Additions - Disposals) | F90: =F88/2 -> 0 | G90: =G88/2 -> 0 | H90: 0 | I90: 0 | J90: 0 | K90: 0 | L90: 0 | M90: 0 | N90: 0 | O90: 0
A91: Reduced UCC | F91: =F89-F90 -> 0 | G91: =G89-G90 -> 0 | H91: 0 | I91: 0 | J91: 0 | K91: 0 | L91: 0 | M91: 0 | N91: 0 | O91: 0
A92: CCA Rate Class (to be entered) | C92: 47 | F92: =C92 -> 47 | G92: =C92 -> 47 | H92: =G92 -> 47 | I92: 47 | J92: 47 | K92: 47 | L92: 47 | M92: 47 | N92: 47 | O92: 47
A93: CCA Rate (to be entered) | C93: 0.08 | F93: =C93 -> 0.08 | G93: =C93 -> 0.08 | H93: 0.08 | I93: 0.08 | J93: 0.08 | K93: 0.08 | L93: 0.08 | M93: 0.08 | N93: 0.08 | O93: 0.08
A94: CCA | F94: =F91*F93 -> 0 | G94: =G91*G93 -> 0 | H94: 0 | I94: 0 | J94: 0 | K94: 0 | L94: 0 | M94: 0 | N94: 0 | O94: 0
A95: Closing UCC | F95: =F89-F94 -> 0 | G95: =G89-G94 -> 0 | H95: 0 | I95: 0 | J95: 0 | K95: 0 | L95: 0 | M95: 0 | N95: 0 | O95: 0

Sheet Hidden_REG Improvement (hidden)
A1: Utility Name | B1: EB Number | C1: Test Year | D1: Bridge Year | E1: Last Rebasing Year | F1: Renewable Generation Connection Direct Benefits/Provincial Amount Renewable Enabling Improvement Investments | G1: Year | H1: Amount
A2: ='LDC Info'!$E$14 -> ENWIN Utilities Ltd. | B2: =EBNUMBER -> EB-2019-0032 | C2: =TestYear -> 2020 | D2: =BridgeYear -> 2019 | E2: =RebaseYear -> 2009 | F2: Provincial Rate Protection | G2: 2014 | H2: ='App.2-FB Calc of REG Improvemnt'!E43 -> 0
A3: ='LDC Info'!$E$14 -> ENWIN Utilities Ltd. | B3: EB-2019-0032 | C3: 2020 | D3: 2019 | E3: 2009 | F3: Provincial Rate Protection | G3: 2015 | H3: ='App.2-FB Calc of REG Improvemnt'!H43 -> 0
A4: ='LDC Info'!$E$14 -> ENWIN Utilities Ltd. | B4: EB-2019-0032 | C4: 2020 | D4: 2019 | E4: 2009 | F4: Provincial Rate Protection | G4: 2016 | H4: ='App.2-FB Calc of REG Improvemnt'!K43 -> 0
A5: ='LDC Info'!$E$14 -> ENWIN Utilities Ltd. | B5: EB-2019-0032 | C5: 2020 | D5: 2019 | E5: 2009 | F5: Provincial Rate Protection | G5: 2017 | H5: ='App.2-FB Calc of REG Improvemnt'!N43 -> 0
A6: ='LDC Info'!$E$14 -> ENWIN Utilities Ltd. | B6: EB-2019-0032 | C6: 2020 | D6: 2019 | E6: 2009 | F6: Provincial Rate Protection | G6: 2018 | H6: ='App.2-FB Calc of REG Improvemnt'!Q43 -> 0
A7: ='LDC Info'!$E$14 -> ENWIN Utilities Ltd. | B7: EB-2019-0032 | C7: 2020 | D7: 2019 | E7: 2009 | F7: Provincial Rate Protection | G7: 2019 | H7: ='App.2-FB Calc of REG Improvemnt'!T43 -> 0
A8: ='LDC Info'!$E$14 -> ENWIN Utilities Ltd. | B8: EB-2019-0032 | C8: 2020 | D8: 2019 | E8: 2009 | F8: Provincial Rate Protection | G8: 2020 | H8: ='App.2-FB Calc of REG Improvemnt'!W43 -> 0
A9: ='LDC Info'!$E$14 -> ENWIN Utilities Ltd. | B9: EB-2019-0032 | C9: 2020 | D9: 2019 | E9: 2009 | F9: Provincial Rate Protection | G9: 2021 | H9: ='App.2-FB Calc of REG Improvemnt'!Z43 -> 0
A10: ='LDC Info'!$E$14 -> ENWIN Utilities Ltd. | B10: EB-2019-0032 | C10: 2020 | D10: 2019 | E10: 2009 | F10: Provincial Rate Protection | G10: 2022 | H10: ='App.2-FB Calc of REG Improvemnt'!AC43 -> 0
A11: ='LDC Info'!$E$14 -> ENWIN Utilities Ltd. | B11: EB-2019-0032 | C11: 2020 | D11: 2019 | E11: 2009 | F11: Provincial Rate Protection | G11: 2023 | H11: ='App.2-FB Calc of REG Improvemnt'!AF43 -> 0

Sheet App.2-FC Calc of REG Expansion
Q1: File Number: | R1: =EBNUMBER -> EB-2019-0032
Q2: Exhibit:
Q3: Tab:
A4: TO BE UPDATED AT THE DRAFT RATE ORDER STAGE | Q4: Schedule:
Q5: Page:
Q7: Date: | R7: 2019-09-24
A9: Appendix 2-FC
A10: Calculation of Renewable Generation Connection Direct Benefits/Provincial Amount: Renewable Expansion Investments
A12: This table will calculate the distributor/provincial shares of the investments entered in Part B of Appendix 2-FA.
A13: Enter values in green shaded cells: WCA percentage, debt percentages, interest rates, kWh, tax rates, amortization period, CCA Class and percentage.
A14: For historical investments, enter these variables for your last cost of service test year. For 2016 and beyond, enter variables as in the application.
A15: Rate Riders are not calculated for the Test Year as these assets and costs are already in the distributor's rate base.
D18: =G18-1 -> 2015 | G18: =J18-1 -> 2016 | J18: =M18-1 -> 2017 | M18: =P18-1 -> 2018 | P18: =BridgeYear -> 2019 | S18: =CONCATENATE(TestYear," Test Year") -> 2020 Test Year | V18: =TestYear+1 -> 2021 | W18: 2016 | Y18: =V18+1 -> 2022 | AB18: =Y18+1 -> 2023 | AE18: =AB18+1 -> 2024
E19: Direct Benefit | F19: Provincial | H19: Direct Benefit | I19: Provincial | K19: Direct Benefit | L19: Provincial | N19: Direct Benefit | O19: Provincial | Q19: Direct Benefit | R19: Provincial | T19: Direct Benefit | U19: Provincial | W19: Direct Benefit | X19: Provincial | Z19: Direct Benefit | AA19: Provincial | AC19: Direct Benefit | AD19: Provincial | AF19: Direct Benefit | AG19: Provincial
D20: Total | E20: 0.17 | F20: 0.83 | G20: Total | H20: 0.17 | I20: 0.83 | J20: Total | K20: 0.17 | L20: 0.83 | M20: Total | N20: 0.17 | O20: 0.83 | P20: Total | Q20: 0.17 | R20: 0.83 | S20: Total | T20: 0.17 | U20: 0.83 | V20: Total | W20: 0.17 | X20: 0.83 | Y20: Total | Z20: 0.17 | AA20: 0.83 | AB20: Total | AC20: 0.17 | AD20: 0.83 | AE20: Total | AF20: 0.17 | AG20: 0.83
A21: Net Fixed Assets (average) | D21: =J82 -> 0 | E21: =D21*E20 -> 0 | F21: =D21*F20 -> 0 | G21: =G82 -> 0 | H21: =G21*H20 -> 0 | I21: =G21*I20 -> 0 | J21: =H82 -> 0 | K21: =J21*K20 -> 0 | L21: =J21*L20 -> 0 | M21: =I82 -> 0 | N21: =M21*N20 -> 0 | O21: =M21*O20 -> 0 | P21: =J82 -> 0 | Q21: =P21*Q20 -> 0 | R21: =P21*R20 -> 0 | S21: =K82 -> 0 | T21: =S21*T20 -> 0 | U21: =S21*U20 -> 0 | V21: =L82 -> 0 | W21: =V21*W20 -> 0 | X21: =V21*X20 -> 0 | Y21: =M82 -> 0 | Z21: =Y21*Z20 -> 0 | AA21: =Y21*AA20 -> 0 | AB21: =N82 -> 0 | AC21: =AB21*AC20 -> 0 | AD21: =AB21*AD20 -> 0 | AE21: =O82 -> 0 | AF21: =AE21*AF20 -> 0 | AG21: =AE21*AG20 -> 0
A22: Incremental OM&A (on-going, N/A for Provincial Recovery) | D22: ='App.2-FA Proposed REG Invest.'!C$101 -> 0 | E22: =D22 -> 0 | G22: ='App.2-FA Proposed REG Invest.'!D$101 -> 0 | H22: =G22 -> 0 | J22: ='App.2-FA Proposed REG Invest.'!E$101 -> 0 | K22: =J22 -> 0 | M22: ='App.2-FA Proposed REG Invest.'!F$101 -> 0 | N22: =M22 -> 0 | P22: ='App.2-FA Proposed REG Invest.'!G$101 -> 0 | Q22: =P22 -> 0 | S22: ='App.2-FA Proposed REG Invest.'!H$101 -> 0 | T22: =S22 -> 0 | V22: ='App.2-FA Proposed REG Invest.'!I$101 -> 0 | W22: =V22 -> 0 | Y22: ='App.2-FA Proposed REG Invest.'!J$101 -> 0 | Z22: =Y22 -> 0 | AB22: ='App.2-FA Proposed REG Invest.'!K$101 -> 0 | AC22: =AB22 -> 0 | AE22: ='App.2-FA Proposed REG Invest.'!L$101 -> 0 | AF22: =AE22 -> 0
A23: Incremental OM&A (start-up, applicable for Provincial Recovery) | D23: ='App.2-FA Proposed REG Invest.'!C$100 -> 0 | E23: =D23*E20 -> 0 | F23: =D23*F20 -> 0 | G23: ='App.2-FA Proposed REG Invest.'!D$100 -> 0 | H23: =G23*H20 -> 0 | I23: =G23*I20 -> 0 | J23: ='App.2-FA Proposed REG Invest.'!E$100 -> 0 | K23: =J23*K20 -> 0 | L23: =J23*L20 -> 0 | M23: ='App.2-FA Proposed REG Invest.'!F$100 -> 0 | N23: =M23*N20 -> 0 | O23: =M23*O20 -> 0 | P23: ='App.2-FA Proposed REG Invest.'!G$100 -> 0 | Q23: =P23*Q20 -> 0 | R23: =P23*R20 -> 0 | S23: ='App.2-FA Proposed REG Invest.'!H$100 -> 0 | T23: =S23*T20 -> 0 | U23: =S23*U20 -> 0 | V23: ='App.2-FA Proposed REG Invest.'!I$100 -> 0 | W23: =V23*W20 -> 0 | X23: =V23*X20 -> 0 | Y23: ='App.2-FA Proposed REG Invest.'!J$100 -> 0 | Z23: =Y23*Z20 -> 0 | AA23: =Y23*AA20 -> 0 | AB23: ='App.2-FA Proposed REG Invest.'!K$100 -> 0 | AC23: =AB23*AC20 -> 0 | AD23: =AB23*AD20 -> 0 | AE23: ='App.2-FA Proposed REG Invest.'!L$100 -> 0 | AF23: =AE23*AF20 -> 0 | AG23: =AE23*AG20 -> 0
A24: WCA | E24: =(E22+E23)*$B$24 -> 0 | F24: =F23*$B$24 -> 0 | H24: =(H22+H23)*$B$24 -> 0 | I24: =I23*$B$24 -> 0 | K24: =(K22+K23)*$B$24 -> 0 | L24: =L23*$B$24 -> 0 | N24: =(N22+N23)*$B$24 -> 0 | O24: =O23*$B$24 -> 0 | Q24: =(Q22+Q23)*$B$24 -> 0 | R24: =R23*$B$24 -> 0 | T24: =(T22+T23)*$B$24 -> 0 | U24: =U23*$B$24 -> 0 | W24: =(W22+W23)*$B$24 -> 0 | X24: =X23*$B$24 -> 0 | Z24: =(Z22+Z23)*$B$24 -> 0 | AA24: =AA23*$B$24 -> 0 | AC24: =(AC22+AC23)*$B$24 -> 0 | AD24: =AD23*$B$24 -> 0 | AF24: =(AF22+AF23)*$B$24 -> 0 | AG24: =AG23*$B$24 -> 0
A25: Rate Base | E25: =SUM(E21+E24) -> 0 | F25: =SUM(F21+F24) -> 0 | H25: =SUM(H21+H24) -> 0 | I25: =SUM(I21+I24) -> 0 | K25: =SUM(K21+K24) -> 0 | L25: =SUM(L21+L24) -> 0 | N25: =SUM(N21+N24) -> 0 | O25: =SUM(O21+O24) -> 0 | Q25: =SUM(Q21+Q24) -> 0 | R25: =SUM(R21+R24) -> 0 | T25: =SUM(T21+T24) -> 0 | U25: =SUM(U21+U24) -> 0 | W25: =SUM(W21+W24) -> 0 | X25: =SUM(X21+X24) -> 0 | Z25: =SUM(Z21+Z24) -> 0 | AA25: =SUM(AA21+AA24) -> 0 | AC25: =SUM(AC21+AC24) -> 0 | AD25: =SUM(AD21+AD24) -> 0 | AF25: =SUM(AF21+AF24) -> 0 | AG25: =SUM(AG21+AG24) -> 0
A28: Deemed ST Debt | E28: =E25*$B$28 -> 0 | F28: =F25*$B$28 -> 0 | H28: =H25*$B$28 -> 0 | I28: =I25*$B$28 -> 0 | K28: =K25*$B$28 -> 0 | L28: =L25*$B$28 -> 0 | N28: =N25*$B$28 -> 0 | O28: =O25*$B$28 -> 0 | Q28: =Q25*$B$28 -> 0 | R28: =R25*$B$28 -> 0 | T28: =T25*$B$28 -> 0 | U28: =U25*$B$28 -> 0 | W28: =W25*$B$28 -> 0 | X28: =X25*$B$28 -> 0 | Z28: =Z25*$B$28 -> 0 | AA28: =AA25*$B$28 -> 0 | AC28: =AC25*$B$28 -> 0 | AD28: =AD25*$B$28 -> 0 | AF28: =AF25*$B$28 -> 0 | AG28: =AG25*$B$28 -> 0
A29: Deemed LT Debt | E29: =E25*$B$29 -> 0 | F29: =F25*$B$29 -> 0 | H29: =H25*$B$29 -> 0 | I29: =I25*$B$29 -> 0 | K29: =K25*$B$29 -> 0 | L29: =L25*$B$29 -> 0 | N29: =N25*$B$29 -> 0 | O29: =O25*$B$29 -> 0 | Q29: =Q25*$B$29 -> 0 | R29: =R25*$B$29 -> 0 | T29: =T25*$B$29 -> 0 | U29: =U25*$B$29 -> 0 | W29: =W25*$B$29 -> 0 | X29: =X25*$B$29 -> 0 | Z29: =Z25*$B$29 -> 0 | AA29: =AA25*$B$29 -> 0 | AC29: =AC25*$B$29 -> 0 | AD29: =AD25*$B$29 -> 0 | AF29: =AF25*$B$29 -> 0 | AG29: =AG25*$B$29 -> 0
A30: Deemed Equity | E30: =E25*$B$30 -> 0 | F30: =F25*$B$30 -> 0 | H30: =H25*$B$30 -> 0 | I30: =I25*$B$30 -> 0 | K30: =K25*$B$30 -> 0 | L30: =L25*$B$30 -> 0 | N30: =N25*$B$30 -> 0 | O30: =O25*$B$30 -> 0 | Q30: =Q25*$B$30 -> 0 | R30: =R25*$B$30 -> 0 | T30: =T25*$B$30 -> 0 | U30: =U25*$B$30 -> 0 | W30: =W25*$B$30 -> 0 | X30: =X25*$B$30 -> 0 | Z30: =Z25*$B$30 -> 0 | AA30: =AA25*$B$30 -> 0 | AC30: =AC25*$B$30 -> 0 | AD30: =AD25*$B$30 -> 0 | AF30: =AF25*$B$30 -> 0 | AG30: =AG25*$B$30 -> 0
A32: ST Interest | E32: =E28*$B$32 -> 0 | F32: =F28*$B$32 -> 0 | H32: =H28*$B$32 -> 0 | I32: =I28*$B$32 -> 0 | K32: =K28*$B$32 -> 0 | L32: =L28*$B$32 -> 0 | N32: =N28*$B$32 -> 0 | O32: =O28*$B$32 -> 0 | Q32: =Q28*$B$32 -> 0 | R32: =R28*$B$32 -> 0 | T32: =T28*$B$32 -> 0 | U32: =U28*$B$32 -> 0 | W32: =W28*$B$32 -> 0 | X32: =X28*$B$32 -> 0 | Z32: =Z28*$B$32 -> 0 | AA32: =AA28*$B$32 -> 0 | AC32: =AC28*$B$32 -> 0 | AD32: =AD28*$B$32 -> 0 | AF32: =AF28*$B$32 -> 0 | AG32: =AG28*$B$32 -> 0
A33: LT Interest | E33: =E29*$B$33 -> 0 | F33: =F29*$B$33 -> 0 | H33: =H29*$B$33 -> 0 | I33: =I29*$B$33 -> 0 | K33: =K29*$B$33 -> 0 | L33: =L29*$B$33 -> 0 | N33: =N29*$B$33 -> 0 | O33: =O29*$B$33 -> 0 | Q33: =Q29*$B$33 -> 0 | R33: =R29*$B$33 -> 0 | T33: =T29*$B$33 -> 0 | U33: =U29*$B$33 -> 0 | W33: =W29*$B$33 -> 0 | X33: =X29*$B$33 -> 0 | Z33: =Z29*$B$33 -> 0 | AA33: =AA29*$B$33 -> 0 | AC33: =AC29*$B$33 -> 0 | AD33: =AD29*$B$33 -> 0 | AF33: =AF29*$B$33 -> 0 | AG33: =AG29*$B$33 -> 0
A34: ROE | E34: =E30*$B$34 -> 0 | F34: =F30*$B$34 -> 0 | H34: =H30*$B$34 -> 0 | I34: =I30*$B$34 -> 0 | K34: =K30*$B$34 -> 0 | L34: =L30*$B$34 -> 0 | N34: =N30*$B$34 -> 0 | O34: =O30*$B$34 -> 0 | Q34: =Q30*$B$34 -> 0 | R34: =R30*$B$34 -> 0 | T34: =T30*$B$34 -> 0 | U34: =U30*$B$34 -> 0 | W34: =W30*$B$34 -> 0 | X34: =X30*$B$34 -> 0 | Z34: =Z30*$B$34 -> 0 | AA34: =AA30*$B$34 -> 0 | AC34: =AC30*$B$34 -> 0 | AD34: =AD30*$B$34 -> 0 | AF34: =AF30*$B$34 -> 0 | AG34: =AG30*$B$34 -> 0
A35: Cost of Capital Total | E35: =SUM(E32:E34) -> 0 | F35: =SUM(F32:F34) -> 0 | H35: =SUM(H32:H34) -> 0 | I35: =SUM(I32:I34) -> 0 | K35: =SUM(K32:K34) -> 0 | L35: =SUM(L32:L34) -> 0 | N35: =SUM(N32:N34) -> 0 | O35: =SUM(O32:O34) -> 0 | Q35: =SUM(Q32:Q34) -> 0 | R35: =SUM(R32:R34) -> 0 | T35: =SUM(T32:T34) -> 0 | U35: =SUM(U32:U34) -> 0 | W35: =SUM(W32:W34) -> 0 | X35: =SUM(X32:X34) -> 0 | Z35: =SUM(Z32:Z34) -> 0 | AA35: =SUM(AA32:AA34) -> 0 | AC35: =SUM(AC32:AC34) -> 0 | AD35: =SUM(AD32:AD34) -> 0 | AF35: =SUM(AF32:AF34) -> 0 | AG35: =SUM(AG32:AG34) -> 0
A37: OM&A | E37: =E22+E23 -> 0 | F37: =F23 -> 0 | H37: =H22+H23 -> 0 | I37: =I23 -> 0 | K37: =K22+K23 -> 0 | L37: =L23 -> 0 | N37: =N22+N23 -> 0 | O37: =O23 -> 0 | Q37: =Q22+Q23 -> 0 | R37: =R23 -> 0 | T37: =T22+T23 -> 0 | U37: =U23 -> 0 | W37: =W22+W23 -> 0 | X37: =X23 -> 0 | Z37: =Z22+Z23 -> 0 | AA37: =AA23 -> 0 | AC37: =AC22+AC23 -> 0 | AD37: =AD23 -> 0 | AF37: =AF22+AF23 -> 0 | AG37: =AG23 -> 0
A38: Amortization | D38: =D78 -> 0 | E38: =D38*E$20 -> 0 | F38: =D38*F$20 -> 0 | G38: =G78 -> 0 | H38: =G38*H$20 -> 0 | I38: =G38*I$20 -> 0 | J38: =H78 -> 0 | K38: =J38*K$20 -> 0 | L38: =J38*L$20 -> 0 | M38: =I78 -> 0 | N38: =M38*N$20 -> 0 | O38: =M38*O$20 -> 0 | P38: =J78 -> 0 | Q38: =P38*Q$20 -> 0 | R38: =P38*R$20 -> 0 | S38: =K76+K77 -> 0 | T38: =S38*T$20 -> 0 | U38: =S38*U$20 -> 0 | V38: =L76+L77 -> 0 | W38: =V38*W$20 -> 0 | X38: =V38*X$20 -> 0 | Y38: =M76+M77 -> 0 | Z38: =Y38*Z$20 -> 0 | AA38: =Y38*AA$20 -> 0 | AB38: =N76+N77 -> 0 | AC38: =AB38*AC$20 -> 0 | AD38: =AB38*AD$20 -> 0 | AE38: =O76+O77 -> 0 | AF38: =AE38*AF$20 -> 0 | AG38: =AE38*AG$20 -> 0
A39: Grossed-up PILs | E39: =E66 -> 0 | F39: =F66 -> 0 | H39: =H66 -> 0 | I39: =I66 -> 0 | K39: =K66 -> 0 | L39: =L66 -> 0 | N39: =N66 -> 0 | O39: =O66 -> 0 | Q39: =Q66 -> 0 | R39: =R66 -> 0 | T39: =T66 -> 0 | U39: =U66 -> 0 | W39: =W66 -> 0 | X39: =X66 -> 0 | Z39: =Z66 -> 0 | AA39: =AA66 -> 0 | AC39: =AC66 -> 0 | AD39: =AD66 -> 0 | AF39: =AF66 -> 0 | AG39: =AG66 -> 0
A41: Revenue Requirement | E41: =SUM(E35:E39) -> 0 | F41: =SUM(F35:F39) -> 0 | H41: =SUM(H35:H39) -> 0 | I41: =SUM(I35:I39) -> 0 | K41: =SUM(K35:K39) -> 0 | L41: =SUM(L35:L39) -> 0 | N41: =SUM(N35:N39) -> 0 | O41: =SUM(O35:O39) -> 0 | Q41: =SUM(Q35:Q39) -> 0 | R41: =SUM(R35:R39) -> 0 | T41: =SUM(T35:T39) -> 0 | U41: =SUM(U35:U39) -> 0 | W41: =SUM(W35:W39) -> 0 | X41: =SUM(X35:X39) -> 0 | Z41: =SUM(Z35:Z39) -> 0 | AA41: =SUM(AA35:AA39) -> 0 | AC41: =SUM(AC35:AC39) -> 0 | AD41: =SUM(AD35:AD39) -> 0 | AF41: =SUM(AF35:AF39) -> 0 | AG41: =SUM(AG35:AG39) -> 0
A44: Provincial Rate Protection | F44: =F41 -> 0 | I44: =I41 -> 0 | L44: =L41 -> 0 | O44: =O41 -> 0 | R44: =R41 -> 0 | U44: =U41 -> 0 | X44: =X41 -> 0 | AA44: =AA41 -> 0 | AD44: =AD41 -> 0 | AG44: =AG41 -> 0
A46: Monthly Amount Paid by IESO | F46: =F44/12 -> 0 | I46: =I44/12 -> 0 | L46: =L44/12 -> 0 | O46: =O44/12 -> 0 | R46: =R44/12 -> 0 | U46: =U44/12 -> 0 | X46: =X44/12 -> 0 | AA46: =AA44/12 -> 0 | AD46: =AD44/12 -> 0 | AG46: =AG44/12 -> 0
A48: Note 1: The difference between the actual costs of approved eligible investments and revenue received from the IESO should be recorded in a variance account. The Board may provide
A49: regulatory accounting guidance regarding a variance account either in an individual proceeding or on a generic basis.
A50: Note 2: For the 2016 Test Year, Costs and Revenues of the Direct Benefit are to be included in the test year applicant Rate Base and Revenues.
A52: PILs Calculation
E53: 2014 | H53: =G18 -> 2016 | K53: =J18 -> 2017 | N53: =M18 -> 2018 | Q53: =P18 -> 2019 | T53: =S18 -> 2020 Test Year | W53: =V18 -> 2021 | Z53: =Y18 -> 2022 | AC53: =AB18 -> 2023 | AF53: =AE18 -> 2024
A54: Income Tax | E54: Direct Benefit | F54: Provincial | H54: Direct Benefit | I54: Provincial | K54: Direct Benefit | L54: Provincial | N54: Direct Benefit | O54: Provincial | Q54: Direct Benefit | R54: Provincial | T54: Direct Benefit | U54: Provincial | W54: Direct Benefit | X54: Provincial | Z54: Direct Benefit | AA54: Provincial | AC54: Direct Benefit | AD54: Provincial | AF54: Direct Benefit | AG54: Provincial
Y55: Total | AB55: Total | AE55: Total
A56: Net Income - ROE on Rate Base | E56: =E34 -> 0 | F56: =F34 -> 0 | H56: =H34 -> 0 | I56: =I34 -> 0 | K56: =K34 -> 0 | L56: =L34 -> 0 | N56: =N34 -> 0 | O56: =O34 -> 0 | Q56: =Q34 -> 0 | R56: =R34 -> 0 | T56: =T34 -> 0 | U56: =U34 -> 0 | W56: =W34 -> 0 | X56: =X34 -> 0 | Z56: =Z34 -> 0 | AA56: =AA34 -> 0 | AC56: =AC34 -> 0 | AD56: =AD34 -> 0 | AF56: =AF34 -> 0 | AG56: =AG34 -> 0
A57: Amortization (17% DB and 83% P) | E57: =E38 -> 0 | F57: =F38 -> 0 | H57: =H38 -> 0 | I57: =I38 -> 0 | K57: =K38 -> 0 | L57: =L38 -> 0 | N57: =N38 -> 0 | O57: =O38 -> 0 | Q57: =Q38 -> 0 | R57: =R38 -> 0 | T57: =T38 -> 0 | U57: =U38 -> 0 | W57: =W38 -> 0 | X57: =X38 -> 0 | Z57: =Z38 -> 0 | AA57: =AA38 -> 0 | AC57: =AC38 -> 0 | AD57: =AD38 -> 0 | AF57: =AF38 -> 0 | AG57: =AG38 -> 0
A58: CCA (17% DB and 83% P) | E58: =-D94*E$20 -> 0 | F58: =-D94*F$20 -> 0 | H58: =-G94*H$20 -> 0 | I58: =-G94*I$20 -> 0 | K58: =-H94*K$20 -> 0 | L58: =-H94*L$20 -> 0 | N58: =-I94*N$20 -> 0 | O58: =-I94*O$20 -> 0 | Q58: =-J94*Q$20 -> 0 | R58: =-J94*R$20 -> 0 | T58: =-K94*T$20 -> 0 | U58: =-K94*U$20 -> 0 | W58: =-L94*W$20 -> 0 | X58: =-L94*X$20 -> 0 | Z58: =-M94*Z$20 -> 0 | AA58: =-M94*AA$20 -> 0 | AC58: =-N94*AC$20 -> 0 | AD58: =-N94*AD$20 -> 0 | AF58: =-O94*AF$20 -> 0 | AG58: =-O94*AG$20 -> 0
A59: Taxable income | E59: =SUM(E56:E58) -> 0 | F59: =SUM(F56:F58) -> 0 | H59: =SUM(H56:H58) -> 0 | I59: =SUM(I56:I58) -> 0 | K59: =SUM(K56:K58) -> 0 | L59: =SUM(L56:L58) -> 0 | N59: =SUM(N56:N58) -> 0 | O59: =SUM(O56:O58) -> 0 | Q59: =SUM(Q56:Q58) -> 0 | R59: =SUM(R56:R58) -> 0 | T59: =SUM(T56:T58) -> 0 | U59: =SUM(U56:U58) -> 0 | W59: =SUM(W56:W58) -> 0 | X59: =SUM(X56:X58) -> 0 | Z59: =SUM(Z56:Z58) -> 0 | AA59: =SUM(AA56:AA58) -> 0 | AC59: =SUM(AC56:AC58) -> 0 | AD59: =SUM(AD56:AD58) -> 0 | AF59: =SUM(AF56:AF58) -> 0 | AG59: =SUM(AG56:AG58) -> 0
A61: Tax Rate (to be entered)
A63: Income Taxes Payable | E63: =E59*E61 -> 0 | F63: =F59*F61 -> 0 | H63: =H59*H61 -> 0 | I63: =I59*I61 -> 0 | K63: =K59*K61 -> 0 | L63: =L59*L61 -> 0 | N63: =N59*N61 -> 0 | O63: =O59*O61 -> 0 | Q63: =Q59*Q61 -> 0 | R63: =R59*R61 -> 0 | T63: =T59*T61 -> 0 | U63: =U59*U61 -> 0 | W63: =W59*W61 -> 0 | X63: =X59*X61 -> 0 | Z63: =Z59*Z61 -> 0 | AA63: =AA59*AA61 -> 0 | AC63: =AC59*AC61 -> 0 | AD63: =AD59*AD61 -> 0 | AF63: =AF59*AF61 -> 0 | AG63: =AG59*AG61 -> 0
A64: Gross Up
A65: Income Taxes Payable | E65: =E63/(1-E61) -> 0 | F65: =F63/(1-F61) -> 0 | H65: =H63/(1-H61) -> 0 | I65: =I63/(1-I61) -> 0 | K65: =K63/(1-K61) -> 0 | L65: =L63/(1-L61) -> 0 | N65: =N63/(1-N61) -> 0 | O65: =O63/(1-O61) -> 0 | Q65: =Q63/(1-Q61) -> 0 | R65: =R63/(1-R61) -> 0 | T65: =T63/(1-T61) -> 0 | U65: =U63/(1-U61) -> 0 | W65: =W63/(1-W61) -> 0 | X65: =X63/(1-X61) -> 0 | Z65: =Z63/(1-Z61) -> 0 | AA65: =AA63/(1-AA61) -> 0 | AC65: =AC63/(1-AC61) -> 0 | AD65: =AD63/(1-AD61) -> 0 | AF65: =AF63/(1-AF61) -> 0 | AG65: =AG63/(1-AG61) -> 0
A66: Grossed Up PILs | E66: =SUM(E65:E65) -> 0 | F66: =SUM(F65:F65) -> 0 | H66: =SUM(H65:H65) -> 0 | I66: =SUM(I65:I65) -> 0 | K66: =SUM(K65:K65) -> 0 | L66: =SUM(L65:L65) -> 0 | N66: =SUM(N65:N65) -> 0 | O66: =SUM(O65:O65) -> 0 | Q66: =SUM(Q65:Q65) -> 0 | R66: =SUM(R65:R65) -> 0 | T66: =SUM(T65:T65) -> 0 | U66: =SUM(U65:U65) -> 0 | W66: =SUM(W65:W65) -> 0 | X66: =SUM(X65:X65) -> 0 | Z66: =SUM(Z65:Z65) -> 0 | AA66: =SUM(AA65:AA65) -> 0 | AC66: =SUM(AC65:AC65) -> 0 | AD66: =SUM(AD65:AD65) -> 0 | AF66: =SUM(AF65:AF65) -> 0 | AG66: =SUM(AG65:AG65) -> 0
A69: Net Fixed Assets | F69: 2014 | G69: 2015 | H69: 2016 | I69: 2017 | J69: 2018 | K69: 2019 | L69: 2020 | M69: 2021 | N69: 2022 | O69: 2023
A70: Enter applicable amortization in years: | B70: 25
A71: Opening Gross Fixed Assets | G71: =F73 -> 0 | H71: =G73 -> 0 | I71: =H73 -> 0 | J71: =I73 -> 0 | K71: 0 | L71: 0 | M71: =L73 -> 0 | N71: 0 | O71: 0
A72: Gross Capital Additions | F72: ='App.2-FA Proposed REG Invest.'!C99 -> 0 | G72: ='App.2-FA Proposed REG Invest.'!D99 -> 0 | H72: ='App.2-FA Proposed REG Invest.'!E99 -> 0 | I72: ='App.2-FA Proposed REG Invest.'!F99 -> 0 | J72: ='App.2-FA Proposed REG Invest.'!G99 -> 0 | K72: ='App.2-FA Proposed REG Invest.'!H99 -> 0 | L72: ='App.2-FA Proposed REG Invest.'!I99 -> 0 | M72: ='App.2-FA Proposed REG Invest.'!J99 -> 0 | N72: ='App.2-FA Proposed REG Invest.'!K99 -> 0 | O72: ='App.2-FA Proposed REG Invest.'!L99 -> 0
A73: Closing Gross Fixed Assets | F73: =SUM(F71:F72) -> 0 | G73: =SUM(G71:G72) -> 0 | H73: 0 | I73: 0 | J73: 0 | K73: 0 | L73: 0 | M73: 0 | N73: 0 | O73: 0
A75: Opening Accumulated Amortization | G75: =+F78 -> 0 | H75: =+G78 -> 0 | I75: =H78 -> 0 | J75: =I78 -> 0 | K75: 0 | L75: 0 | M75: 0 | N75: 0 | O75: 0
A76: Current Year Amortization (before additions) | F76: =IF(ISERROR(F71/$B$70), 0, F71/$B$70) -> 0 | G76: =IF(ISERROR(G71/$B$70), 0, G71/$B$70) -> 0 | H76: =IF(ISERROR(H71/$B$70), 0, H71/$B$70) -> 0 | I76: =IF(ISERROR(I71/$B$70), 0, I71/$B$70) -> 0 | J76: =IF(ISERROR(J71/$B$70), 0, J71/$B$70) -> 0 | K76: =K71/$B$70 -> 0 | L76: =L71/$B$70 -> 0 | M76: =M71/$B$70 -> 0 | N76: =N71/$B$70 -> 0 | O76: =O71/$B$70 -> 0
A77: Additions (half year) | F77: =F72/B70/2 -> 0 | G77: =G72/B70/2 -> 0 | H77: =H72/B70/2 -> 0 | I77: =I72/B70/2 -> 0 | J77: =J72/B70/2 -> 0 | K77: =K72/B70/2 -> 0 | L77: =L72/B70/2 -> 0 | M77: =M72/B70/2 -> 0 | N77: =N72/B70/2 -> 0 | O77: =O72/B70/2 -> 0
A78: Closing Accumulated Amortization | F78: =SUM(F75+F77) -> 0 | G78: =SUM(G75+G77) -> 0 | H78: =SUM(H75:H77) -> 0 | I78: 0 | J78: 0 | K78: 0 | L78: 0 | M78: 0 | N78: 0 | O78: 0
A80: Opening Net Fixed Assets | F80: =F71-F75 -> 0 | G80: =G71-G75 -> 0 | H80: =H71-H75 -> 0 | I80: =I71-I75 -> 0 | J80: =J71-J75 -> 0 | K80: =J81 -> 0 | L80: =K81 -> 0 | M80: =L81 -> 0 | N80: =M81 -> 0 | O80: =N81 -> 0
A81: Closing Net Fixed Assets | F81: =F73-F78 -> 0 | G81: =G73-G78 -> 0 | H81: 0 | I81: 0 | J81: 0 | K81: 0 | L81: 0 | M81: 0 | N81: 0 | O81: 0
A82: Average Net Fixed Assets | F82: =SUM(F80:F81)/2 -> 0 | G82: =SUM(G80:G81)/2 -> 0 | H82: 0 | I82: 0 | J82: 0 | K82: 0 | L82: 0 | M82: 0 | N82: 0 | O82: 0
A84: UCC for PILs Calculation
F85: 2014 | G85: 2015 | H85: 2016 | I85: 2017 | J85: 2018 | K85: 2019 | L85: 2020 | M85: 2021 | N85: 2022 | O85: 2023
A87: Opening UCC | G87: =F95 -> 0 | H87: 0 | I87: 0 | J87: =I95 -> 0 | K87: 0 | L87: 0 | M87: 0 | N87: 0 | O87: 0
A88: Capital Additions (from Appendix 2-FA) | F88: =F72 -> 0 | G88: =G72 -> 0 | H88: =H72 -> 0 | I88: 0 | J88: 0 | K88: 0 | L88: 0 | M88: 0 | N88: 0 | O88: 0
A89: UCC Before Half Year Rule | F89: =SUM(F87:F88) -> 0 | G89: =SUM(G87:G88) -> 0 | H89: =SUM(H87:H88) -> 0 | I89: 0 | J89: 0 | K89: 0 | L89: 0 | M89: 0 | N89: 0 | O89: 0
A90: Half Year Rule (1/2 Additions - Disposals) | F90: =F88/2 -> 0 | G90: =G88/2 -> 0 | H90: 0 | I90: 0 | J90: 0 | K90: 0 | L90: 0 | M90: 0 | N90: 0 | O90: 0
A91: Reduced UCC | F91: =F89-F90 -> 0 | G91: =G89-G90 -> 0 | H91: 0 | I91: 0 | J91: 0 | K91: 0 | L91: 0 | M91: 0 | N91: 0 | O91: 0
A92: CCA Rate Class (to be entered) | B92: 47 | F92: =$B$92 -> 47 | G92: 47 | H92: 47 | I92: 47 | J92: 47 | K92: 47 | L92: 47 | M92: 47 | N92: 47 | O92: 47
A93: CCA Rate (to be entered) | B93: 0.08 | F93: =$B$93 -> 0.08 | G93: 0.08 | H93: 0.08 | I93: 0.08 | J93: 0.08 | K93: 0.08 | L93: 0.08 | M93: 0.08 | N93: 0.08 | O93: 0.08
A94: CCA | F94: =F91*F$93 -> 0 | G94: =G91*G$93 -> 0 | H94: 0 | I94: 0 | J94: 0 | K94: 0 | L94: 0 | M94: 0 | N94: 0 | O94: 0
A95: Closing UCC | F95: =F89-F94 -> 0 | G95: =G89-G94 -> 0 | H95: =H89-H94 -> 0 | I95: 0 | J95: 0 | K95: 0 | L95: 0 | M95: 0 | N95: 0 | O95: 0

Sheet Hidden_REG Expansion (hidden)
A1: Utility Name | B1: EB Number | C1: Test Year | D1: Bridge Year | E1: Last Rebasing Year | F1: Calculation of Renewable Generation Connection Direct Benefits/Provincial Amount Renewable Expansion Investments | G1: Year | H1: Amount
A2: ='LDC Info'!$E$14 -> ENWIN Utilities Ltd. | B2: =EBNUMBER -> EB-2019-0032 | C2: =TestYear -> 2020 | D2: =BridgeYear -> 2019 | E2: =RebaseYear -> 2009 | F2: Provincial Rate Protection | G2: 2014 | H2: ='App.2-FC Calc of REG Expansion'!F44 -> 0
A3: ='LDC Info'!$E$14 -> ENWIN Utilities Ltd. | B3: EB-2019-0032 | C3: 2020 | D3: 2019 | E3: 2009 | F3: Provincial Rate Protection | G3: 2015 | H3: ='App.2-FC Calc of REG Expansion'!I44 -> 0
A4: ='LDC Info'!$E$14 -> ENWIN Utilities Ltd. | B4: EB-2019-0032 | C4: 2020 | D4: 2019 | E4: 2009 | F4: Provincial Rate Protection | G4: 2016 | H4: ='App.2-FC Calc of REG Expansion'!L44 -> 0
A5: ='LDC Info'!$E$14 -> ENWIN Utilities Ltd. | B5: EB-2019-0032 | C5: 2020 | D5: 2019 | E5: 2009 | F5: Provincial Rate Protection | G5: 2017 | H5: ='App.2-FC Calc of REG Expansion'!O44 -> 0
A6: ='LDC Info'!$E$14 -> ENWIN Utilities Ltd. | B6: EB-2019-0032 | C6: 2020 | D6: 2019 | E6: 2009 | F6: Provincial Rate Protection | G6: 2018 | H6: ='App.2-FC Calc of REG Expansion'!R44 -> 0
A7: ='LDC Info'!$E$14 -> ENWIN Utilities Ltd. | B7: EB-2019-0032 | C7: 2020 | D7: 2019 | E7: 2009 | F7: Provincial Rate Protection | G7: 2019 | H7: ='App.2-FC Calc of REG Expansion'!U44 -> 0
A8: ='LDC Info'!$E$14 -> ENWIN Utilities Ltd. | B8: EB-2019-0032 | C8: 2020 | D8: 2019 | E8: 2009 | F8: Provincial Rate Protection | G8: 2020 | H8: ='App.2-FC Calc of REG Expansion'!X44 -> 0
A9: ='LDC Info'!$E$14 -> ENWIN Utilities Ltd. | B9: EB-2019-0032 | C9: 2020 | D9: 2019 | E9: 2009 | F9: Provincial Rate Protection | G9: 2021 | H9: ='App.2-FC Calc of REG Expansion'!AA44 -> 0
A10: ='LDC Info'!$E$14 -> ENWIN Utilities Ltd. | B10: EB-2019-0032 | C10: 2020 | D10: 2019 | E10: 2009 | F10: Provincial Rate Protection | G10: 2022 | H10: ='App.2-FC Calc of REG Expansion'!AD44 -> 0
A11: ='LDC Info'!$E$14 -> ENWIN Utilities Ltd. | B11: EB-2019-0032 | C11: 2020 | D11: 2019 | E11: 2009 | F11: Provincial Rate Protection | G11: 2023 | H11: ='App.2-FC Calc of REG Expansion'!AG44 -> 0

Sheet App.2-G SQI
O1: File Number: | Q1: =EBNUMBER -> EB-2019-0032
O2: Exhibit:
O3: Tab:
O4: Schedule:
O5: Page:
O7: Date: | Q7: 2019-09-24
A9: Appendix 2-G
A10: Service Reliability and Quality Indicators
A11: 2013 - 2018
A13: Service Reliability
A15: Index | B15: Including outages caused by loss of supply | H15: Excluding outages caused by loss of supply | N15: Excluding Major Event Days
B16: =TestYear-7 -> 2013 | C16: =TestYear-6 -> 2014 | D16: =TestYear-5 -> 2015 | E16: =TestYear-4 -> 2016 | F16: =TestYear-3 -> 2017 | G16: =TestYear-2 -> 2018 | H16: =B16 -> 2013 | I16: 2014 | J16: 2015 | K16: 2016 | L16: 2017 | M16: 2018 | N16: =H16 -> 2013 | O16: 2014 | P16: 2015 | Q16: 2016 | R16: 2017 | S16: 2018
A17: SAIDI | B17: 1.019 | C17: 0.813 | D17: 1.066 | E17: 0.968 | F17: 0.73 | G17: 1.325 | H17: 0.942 | I17: 0.808 | J17: 1.061 | K17: 0.645 | L17: 0.724 | M17: 1.277 | N17: 0.881 | O17: 0.813 | P17: 1.06634 | Q17: 0.802 | R17: 0.73 | S17: 1.156
A18: SAIFI | B18: 2.428 | C18: 1.911 | D18: 1.996 | E18: 2.119 | F18: 1.751 | G18: 2.968 | H18: 2.292 | I18: 1.849 | J18: 1.8776 | K18: 1.47 | L18: 1.697 | M18: 2.748 | N18: 2.198 | O18: 1.911 | P18: 1.99607 | Q18: 1.882 | R18: 1.751 | S18: 2.445
A20: 5 Year Historical Average
A21: SAIDI | F21: =IF(ISERROR(AVERAGE(C17:G17)), "", AVERAGE(C17:G17)) -> 0.9804 | L21: =IF(ISERROR(AVERAGE(I17:M17)), "", AVERAGE(I17:M17)) -> 0.903 | R21: =IF(ISERROR(AVERAGE(O17:S17)), "", AVERAGE(O17:S17)) -> 0.913468
A22: SAIFI | F22: =IF(ISERROR(AVERAGE(C18:G18)), "", AVERAGE(C18:G18)) -> 2.149 | L22: =IF(ISERROR(AVERAGE(I18:M18)), "", AVERAGE(I18:M18)) -> 1.92832 | R22: =IF(ISERROR(AVERAGE(O18:S18)), "", AVERAGE(O18:S18)) -> 1.997014
A24: SAIDI = System Average Interruption Duration Index
A25: SAIFI = System Average Interruption Frequency Index
A27: Service Quality
A29: Indicator | E29: OEB Minimum Standard | G29: =B16 -> 2013 | H29: 2014 | I29: 2015 | J29: 2016 | K29: 2017 | L29: 2018
A30: Low Voltage Connections | E30: 0.9 | G30: 0.997 | H30: 1 | I30: 0.991 | J30: 1 | K30: 1 | L30: 1
A31: High Voltage Connections | E31: 0.9 | G31: N/A | H31: 1 | I31: N/A | J31: N/A | K31: N/A | L31: N/A
A32: Telephone Accessibility | E32: 0.65 | G32: 0.822 | H32: 0.868 | I32: 0.755 | J32: 0.707 | K32: 0.7821 | L32: 0.7693
A33: Appointments Met | E33: 0.9 | G33: 1 | H33: 1 | I33: 1 | J33: 1 | K33: 0.9976 | L33: 0.9971
A34: Written Response to Enquires | E34: 0.8 | G34: 0.999 | H34: 0.992 | I34: 1 | J34: 1 | K34: 0.9999 | L34: 0.9999
A35: Emergency Urban Response | E35: 0.8 | G35: 0.98 | H35: 0.98 | I35: 1 | J35: 1 | K35: 1 | L35: 1
A36: Emergency Rural Response | E36: 0.8 | G36: N/A | H36: N/A | I36: N/A | J36: N/A | K36: N/A | L36: N/A
A37: Telephone Call Abandon Rate | E37: 0.1 | G37: 0.021 | H37: 0.013 | I37: 0.028 | J37: 0.038 | K37: 0.0388 | L37: 0.0286
A38: Appointment Scheduling | E38: 0.9 | G38: 1 | H38: 1 | I38: 1 | J38: 1 | K38: 0.9853 | L38: 0.9484
A39: Rescheduling a Missed Appointment | E39: 1 | G39: 1 | H39: N/A | I39: 1 | J39: N/A | K39: 1 | L39: 0.9993
A40: Reconnection Performance Standard | E40: 0.85 | G40: 1 | H40: 1 | I40: 1 | J40: 1 | K40: 1 | L40: 1

Sheet App.2-H_Other_Oper_Rev
M1: File Number: | N1: =EBNUMBER -> EB-2019-0032
M2: Exhibit:
M3: Tab:
A4: TO BE UPDATED AT THE DRAFT RATE ORDER STAGE | M4: Schedule:
M5: Page:
M7: Date: | N7: 2019-09-24
A9: Appendix 2-H
A10: Other Operating Revenue
A12: USoA # | B12: USoA Description | C12: =D13 - 1 &" Actual"&CHAR(178) -> 2009 Actual² | D12: 2010 Actual² | E12: 2011 Actual² | F12: 2012 Actual² | G12: 2013 Actual² | H12: 2014 Actual² | I12: =J13 - 1 &" Actual"&CHAR(178) -> 2015 Actual² | J12: =K13 - 1 &" Actual"&CHAR(178) -> 2016 Actual² | K12: =K13 & " Actual" & CHAR(178) -> 2017 Actual² | L12: 2018 Actual | M12: Bridge Year | N12: Test Year | P12: CGAAP
C13: =D13-1 -> 2009 | D13: 2010 | E13: 2011 | F13: =G13-1 -> 2012 | G13: =H13-1 -> 2013 | H13: =I13-1 -> 2014 | I13: =J13-1 -> 2015 | J13: =K13-1 -> 2016 | K13: =L13-1 -> 2017 | L13: 2018 | M13: =BridgeYear -> 2019 | N13: =TestYear -> 2020 | P13: 2011
B14: Reporting Basis | C14: CGAAP | D14: CGAAP | E14: MIFRS | F14: MIFRS | G14: MIFRS | H14: MIFRS | I14: MIFRS | J14: MIFRS | K14: MIFRS | L14: MIFRS | M14: MIFRS | N14: MIFRS | P14: CGAAP
A15: 4235 | B15: Specific Service Charges | C15: 695961.5753 | D15: 811478.0474 | E15: 827231.4333 | F15: 774718.8731 | G15: 823525.833 | H15: 730943.5214 | I15: 775921.2732 | J15: 1152888.08 | K15: 903510.82 | L15: 768761.77 | M15: 598434.48 | N15: 675108.486 | P15: 827231.4333
A16: 4225 | B16: Late Payment Charges | C16: 1409968.76 | D16: 1196728.96 | E16: 1007582.5 | F16: 1132027.97 | G16: 1117254.58 | H16: 552868.47 | I16: 397181.74 | J16: 404244.82 | K16: 365696.31 | L16: 378243.38 | M16: 384000 | N16: 384000 | P16: 1007582.5
A17: 4082 | B17: Retail Services Revenues | C17: 0 | D17: 0 | E17: 0 | F17: 0 | G17: 0 | H17: 0 | I17: 0 | J17: 0 | P17: 0
A18: 4210 | B18: Rent from Electric Property | C18: 450700.53 | D18: 472486.63 | E18: 490634.88 | F18: 509687.09 | G18: 516699.28 | H18: 550082.26 | I18: 568105.71 | J18: 599025.2 | K18: 628275.04 | L18: 732128.84 | M18: 759211.89 | N18: 1485453.703 | P18: 490634.88
A19: 4215 | B19: Other Utility Operating income | C19: 2410.109183 | D19: 2336.322907 | E19: 2636.39163 | F19: 9631.264656 | G19: 2469.771538 | H19: 4990.473593 | I19: 6416.992793 | J19: 2369.197533 | K19: 1459.28 | L19: 2779.79 | M19: 0 | N19: 0 | P19: 2636.39163
A20: 4245 | B20: Government Assistance Directly | C20: 0 | D20: 0 | E20: 0 | F20: 24118.51 | G20: 57924.22 | H20: 95530.46 | I20: 218972.34 | J20: 269948.81 | K20: 316767.84 | L20: 353872.1 | M20: 423835.3897 | N20: 512060.259 | P20: 0
A21: 4310 | B21: Regulatory Credit | C21: 0 | D21: 0 | E21: -3382035 | F21: -4389506.46 | G21: -2597507.87 | H21: -2265826.69 | I21: -1934269.26 | J21: -2371364.09 | K21: -2280327.72 | L21: =+'[22]App.2-EA_Account 1575 (2015)'!I33-'[22]App.2-EA_Account 1575 (2015)'!H33 -> -2373766.79 | M21: -2216822 | N21: 0 | P21: 0
A22: 4355 | B22: Gain-Disposition of Util. & Other Prop | C22: 67300.45676 | D22: -296638.6024 | E22: 115033 | F22: 51561.80427 | G22: 159804.5779 | H22: 249599.8553 | I22: 397950.5249 | J22: 614523.0517 | K22: 522381.71 | L22: 346960.63 | M22: 0 | N22: 576061.66 | P22: -155058.6324
A23: 4360 | B23: Loss-Disposition of Util. & Other Prop. | C23: 0 | D23: 0 | E23: -270091.6324 | F23: -578572.14 | G23: -452881.5555 | H23: -435715.89 | I23: -471150.7577 | J23: -477104.5348 | K23: -458577.04 | L23: -509809.02 | M23: 0 | N23: 0 | P23: 0
A24: 4375 | B24: Revenues from Non-Utility Operations | C24: 12506799.68 | D24: 15364811.42 | E24: 15730172.9 | F24: 16262590.9 | G24: 22319943 | H24: 25112317.2 | I24: 25175905.89 | J24: 24617951.01 | K24: 23066217.08 | L24: 23529194.54 | M24: 23583937.38 | N24: =22875054.47+117000 -> 22992054.47 | P24: 15730172.9
A25: 4380 | B25: Expenses of Non-Utility Operations | C25: -11006320.18 | D25: -13275259.77 | E25: -13982449.85 | F25: -14079870.46 | G25: -22700585.98 | H25: -23767956.07 | I25: -23500181.47 | J25: -23528544.78 | K25: -22038804.19 | L25: -22773953.06 | M25: -22903727.06 | N25: -22224671.76 | P25: -13982449.85
A26: 4390 | B26: Miscellaneous Non-Operating income | C26: 295910.8 | D26: 456774.85 | E26: 288328.54 | F26: 356943.87 | G26: 519514.16 | H26: 207572.98 | I26: 187926.65 | J26: 131893.33 | K26: 85943.67 | L26: 123539.06 | M26: 102280 | N26: 102280 | P26: 288328.54
A27: 4398 | B27: Foreign Exchange G&L, incl. Amortization | C27: 1533.952894 | D27: 388.4325385 | E27: 1633.296273 | F27: -1324.015666 | G27: -5571.528375 | H27: -4513.387337 | I27: -4244.699763 | J27: -14237.92259 | K27: 2754.28 | L27: -471.22 | M27: 0 | N27: 0 | P27: 1633.296273
A28: 4405 | B28: Interest and Dividend Income | C28: -183361.25 | D28: 0 | E28: 0 | F28: 0 | G28: 0 | H28: 0 | I28: 0 | J28: 352385.16 | K28: 456662.82 | L28: 651387.98 | M28: 440000 | N28: 440000 | P28: 0
A53: Specific Service Charges | C53: =C15 -> 695961.5753 | D53: 811478.0474 | E53: =E15 -> 827231.4333 | F53: 774718.8731 | G53: 823525.833 | H53: 730943.5214 | I53: 775921.2732 | J53: 1152888.08 | K53: 903510.82 | L53: 768761.77 | M53: 598434.48 | N53: 675108.486 | P53: =P15 -> 827231.4333
A54: Late Payment Charges | C54: =C16 -> 1409968.76 | D54: 1196728.96 | E54: =E16 -> 1007582.5 | F54: 1132027.97 | G54: 1117254.58 | H54: 552868.47 | I54: 397181.74 | J54: 404244.82 | K54: 365696.31 | L54: 378243.38 | M54: 384000 | N54: 384000 | P54: =P16 -> 1007582.5
A55: Other Operating Revenues | C55: 453110.6392 | D55: 474822.9529 | E55: 493271.2716 | F55: 543436.8647 | G55: 577093.2715 | H55: 650603.1936 | I55: 793495.0428 | J55: 871343.2075 | K55: 946502.16 | L55: 1088780.73 | M55: 1183047.28 | N55: 1997513.962 | P55: 493271.2716
A56: Other Income or Deductions | C56: 1681863.456 | D56: 2250076.331 | E56: -1499408.746 | F56: -2378176.5 | G56: -2757285.197 | H56: -904522.0024 | I56: -148063.1206 | J56: -674498.7765 | K56: -643749.39 | L56: -1006919.57 | M56: -994331.6845 | N56: =1768724.37248622+117000 -> 1885724.372 | P56: 1882626.254
A57: Total | C57: =SUM(C53:C56) -> 4240904.431 | D57: 4733106.292 | E57: 828676.4586 | F57: 72007.20731 | G57: -239411.5122 | H57: 1029893.183 | I57: =SUM(I53:I56) -> 1818534.935 | J57: 1753977.331 | K57: 1571959.9 | L57: 1228866.31 | M57: 1171150.075 | N57: 4942346.82 | P57: =SUM(P53:P56) -> 4210711.459
A59: Description Account(s)
A60: Specific Service Charges: 4235
A61: Late Payment Charges: 4225
A62: Other Distribution Revenues: 4082, 4084, 4090, 4205, 4210, 4215, 4220, 4230, 4240, 4245
A63: Other Income and Expenses: 4305, 4310, 4315, 4320, 4325, 4330, 4335, 4340, 4345, 4350, 4355, 4357, 4360, 4362, 4365, 4370, 4375, 4380, 4385, 4390, 4395, 4398, 4405, 4410, 4415, 4420
A66: Note: Add all applicable accounts listed above to the table and include all relevant information.
A68: Account Breakdown Details
A70: For each "Other Operating Revenue" and "Other Income or Deductions" Account, a detailed breakdown of the account components is required. See the example below for Account 4405, Interest and Dividend Income.
A73: Account 4235 - Specific Service Charges
C74: =C$12 -> 2009 Actual² | D74: =D$12 -> 2010 Actual² | E74: 2011 Actual² | F74: 2012 Actual² | G74: 2013 Actual² | H74: 2014 Actual² | I74: 2015 Actual² | J74: 2016 Actual² | K74: 2017 Actual² | L74: 2018 Actual | M74: Bridge Year | N74: Test Year | P74: =$P$12 -> CGAAP
C75: =C$13 -> 2009 | D75: =D$13 -> 2010 | E75: 2011 | F75: 2012 | G75: 2013 | H75: 2014 | I75: 2015 | J75: 2016 | K75: 2017 | L75: 2018 | M75: 2019 | N75: 2020 | P75: =$P$13 -> 2011
A76: Reporting Basis | C76: =IF(C$14=0, "", C$14) -> CGAAP | D76: =IF(D$14=0, "", D$14) -> CGAAP | E76: MIFRS | F76: MIFRS | G76: MIFRS | H76: MIFRS | I76: MIFRS | J76: MIFRS | K76: MIFRS | L76: MIFRS | M76: MIFRS | N76: MIFRS | P76: =IF(P$14=0, "", P$14) -> CGAAP
A77: Missed Service Appt - Other | C77: 65 | D77: 0 | E77: 0 | F77: 0 | G77: 0 | H77: 0 | I77: 0 | J77: 0 | K77: 0 | L77: 0 | M77: 0 | N77: 0 | P77: 0
A78: Change of Occupancy | C78: 379770 | D78: 366720 | E78: 359820 | F78: 371580 | G78: 358860 | H78: 316401 | I78: 380370 | J78: 416550 | K78: 402982.2 | L78: 372151.1 | M78: 376000 | N78: 376000 | P78: 359820
A79: Customer Trouble Calls | C79: 3501.88 | D79: 4295 | E79: 0 | F79: 0 | G79: 30 | H79: 60 | I79: 160 | J79: 90 | K79: 125 | L79: 225 | M79: 0 | N79: 0 | P79: 0
A80: After Hours Connection | C80: 20930 | D80: 15405 | E80: 13780 | F80: 11765 | G80: 11570 | H80: 9880 | I80: 10820 | J80: 14235 | K80: 15080 | L80: 14300 | M80: 14658 | N80: 14658 | P80: 13780
A81: Lawyer Statement fee | C81: 7015.696147 | D81: 19557.19966 | E81: 7326.511368 | F81: 7142.395317 | G81: 7133.677517 | H81: 6914.580515 | I81: 6771.954237 | J81: 6216.972233 | K81: 5327.01 | L81: 5570.21 | M81: 4774.52 | N81: 4774.52 | P81: 7326.511368
A82: History Billing fees | C82: 4691.679846 | D82: 7248.271518 | E82: 894.0257467 | F82: 376.4255152 | G82: 765.5810805 | H82: 230.0010402 | I82: 94.34543012 | J82: 671.2987414 | K82: 243.79 | L82: 234.7 | M82: 567.08 | N82: 567.08 | P82: 894.0257467
A83: Reconnection Charges | C83: 91780 | D83: 80015 | E83: 54445 | F83: 52910 | G83: 45175 | H83: 32695 | I83: 75205 | J83: 123240 | K83: 44135 | L83: 33605 | M83: 68133 | N83: 68133 | P83: 54445
A84: NSF Cheque Charges | C84: 6347.261561 | D84: 9480.624202 | E84: 4159.990679 | F84: 3246.670069 | G84: 3224.879209 | H84: 2394.101737 | I84: 2358.635753 | J84: 2003.488492 | K84: 2562.36 | L84: 2294.87 | M84: 2638.8 | N84: 2638.8 | P84: 4159.990679
A85: Credit Check Revenue | C85: 7322.964892 | D85: 18510.00907 | E85: 6124.407486 | F85: 5541.820085 | G85: 2333.449184 | H85: 1657.052949 | I85: 2295.7388 | J85: 2653.971768 | K85: 2256.33 | L85: 2039.31 | M85: 2216.4 | N85: 2216.4 | P85: 6124.407486
A86: Missed Service App't | C86: 4160 | D86: 3640 | E86: 5590 | F86: 4355 | G86: 1885 | H86: 585 | I86: 1655 | J86: 4160 | K86: 1040 | L86: 1040 | M86: 2080 | N86: 2080 | P86: 5590
A87: Special Meter Reads | C87: 3000 | D87: 1320 | E87: 540 | F87: 2910 | G87: 3300 | H87: 4560 | I87: 8550 | J87: 3780 | K87: 8670 | L87: 4080 | M87: 5770 | N87: 5770 | P87: 540
A88: Meter Dispute Charge | C88: 360 | D88: 450 | E88: 270 | F88: 30 | G88: 240 | H88: 0 | I88: 0 | J88: 0 | K88: 0 | L88: 0 | M88: 0 | N88: 0 | P88: 270
A89: Dispute Test Revenue | C89: 50 | D89: 100 | E89: 0 | F89: 0 | G89: 0 | H89: 120 | I89: 60 | J89: 450 | K89: 90 | L89: 0 | M89: 0 | N89: 0 | P89: 0
A90: Dispute Test Com TT | C90: 0 | D90: 0 | E90: 0 | F90: 540 | G90: 0 | H90: 180 | I90: 0 | J90: 0 | K90: 0 | L90: 180 | M90: 0 | N90: 0 | P90: 0
A91: Dispute test rev - commercial | C91: 105 | D91: 0 | E91: 0 | F91: 0 | G91: 0 | H91: 30 | I91: 105 | J91: 105 | K91: 0 | L91: 0 | M91: 0 | N91: 0 | P91: 0
A92: Same Day Open Trench | C92: 688.5 | D92: 0 | E92: 170 | F92: 170 | G92: 170 | H92: 680 | I92: 1530 | J92: 7650 | K92: 4080 | L92: 3400 | M92: 0 | N92: 0 | P92: 170
A93: Pulling Post-Dated Cheques | C93: 5.189911334 | D93: 5.253645098 | E93: 15 | F93: 0 | G93: 0 | H93: 0 | I93: 0 | J93: 0 | K93: 0 | L93: 0 | M93: 0 | N93: 0 | P93: 15
A94: Miscellaneous Revenue | C94: 166168.403 | D94: 284575.7593 | E94: 371938.428 | F94: 307208.9221 | G94: 375250.626 | H94: 337294.5152 | I94: 265672.3789 | J94: 540535.2689 | K94: 381612.13 | L94: 285533.3 | M94: 79476.68 | N94: 79476.68 | P94: 371938.428
A95: Microfit - fixed Monthly Charge | C95: 0 | D95: 155.93 | E95: 2158.07 | F95: 6942.64 | G95: 13587.62 | H95: 17262.27 | I95: 20273.22 | J95: 30547.08 | K95: 35307 | L95: 44108.28 | M95: 42120 | N95: 44544.006 | P95: 2158.07
A96: Cellular Meter Read Charge | N96: 74250
A97: Total | C97: =SUM(C77:C96) -> 695961.5753 | D97: 811478.0474 | E97: 827231.4333 | F97: 774718.8731 | G97: 823525.833 | H97: =SUM(H77:H96) -> 730943.5214 | I97: 775921.2732 | J97: 1152888.08 | K97: 903510.82 | L97: =SUM(L77:L96) -> 768761.77 | M97: 598434.48 | N97: 675108.486 | P97: =SUM(P77:P96) -> 827231.4333
C98: =+C97-C15 -> 0 | D98: =+D97-D15 -> 0 | E98: 0 | F98: 0 | G98: 0 | H98: 0 | I98: 0 | J98: 0 | K98: 0 | L98: 0 | M98: 0 | N98: 0 | P98: 0
A99: Account 4225 - Late Payment Charges
C100: =C$12 -> 2009 Actual² | D100: =D$12 -> 2010 Actual² | E100: 2011 Actual² | F100: 2012 Actual² | G100: 2013 Actual² | H100: 2014 Actual² | I100: 2015 Actual² | J100: 2016 Actual² | K100: 2017 Actual² | L100: 2018 Actual | M100: Bridge Year | N100: Test Year | P100: =$P$12 -> CGAAP
C101: =C$13 -> 2009 | D101: =D$13 -> 2010 | E101: 2011 | F101: 2012 | G101: 2013 | H101: 2014 | I101: 2015 | J101: 2016 | K101: 2017 | L101: 2018 | M101: 2019 | N101: 2020 | P101: =$P$13 -> 2011
A102: Reporting Basis | C102: =IF(C$14=0, "", C$14) -> CGAAP | D102: =IF(D$14=0, "", D$14) -> CGAAP | E102: MIFRS | F102: MIFRS | G102: MIFRS | H102: MIFRS | I102: MIFRS | J102: MIFRS | K102: MIFRS | L102: MIFRS | M102: MIFRS | N102: MIFRS | P102: =IF(P$14=0, "", P$14) -> CGAAP
A103: Late Payment Charges | C103: 726457.76 | D103: 592138.96 | E103: 450692.5 | F103: 441636.47 | G103: 461658.58 | H103: 396531.47 | I103: 397896.74 | J103: 405154.82 | K103: 363476.31 | L103: 374428.38 | M103: 384000 | N103: 384000 | P103: 450692.5
A104: Collection Charges | C104: 683511 | D104: 604590 | E104: 556890 | F104: 690391.5 | G104: 655596 | H104: 156337 | I104: -715 | J104: -910 | K104: 2220 | L104: 3815 | M104: 0 | N104: 0 | P104: 556890
A106: Total | C106: =SUM(C103:C105) -> 1409968.76 | D106: =SUM(D103:D105) -> 1196728.96 | E106: 1007582.5 | F106: 1132027.97 | G106: 1117254.58 | H106: 552868.47 | I106: 397181.74 | J106: 404244.82 | K106: 365696.31 | L106: 378243.38 | M106: 384000 | N106: 384000 | P106: 1007582.5
C107: =+C106-C$16 -> 0 | D107: =+D106-D16 -> 0 | E107: 0 | F107: 0 | G107: 0 | H107: 0 | I107: 0 | J107: 0 | K107: 0 | L107: 0 | M107: 0 | N107: 0 | P107: 0
A108: Account 4210 - Rent from Electric Property
C109: =C$12 -> 2009 Actual² | D109: =D$12 -> 2010 Actual² | E109: 2011 Actual² | F109: 2012 Actual² | G109: 2013 Actual² | H109: 2014 Actual² | I109: 2015 Actual² | J109: 2016 Actual² | K109: 2017 Actual² | L109: 2018 Actual | M109: Bridge Year | N109: Test Year | P109: =$P$12 -> CGAAP
C110: =C$13 -> 2009 | D110: =D$13 -> 2010 | E110: 2011 | F110: 2012 | G110: 2013 | H110: 2014 | I110: 2015 | J110: 2016 | K110: 2017 | L110: 2018 | M110: 2019 | N110: 2020 | P110: =$P$13 -> 2011
A111: Reporting Basis | C111: =IF(C$14=0, "", C$14) -> CGAAP | D111: =IF(D$14=0, "", D$14) -> CGAAP | E111: MIFRS | F111: MIFRS | G111: MIFRS | H111: MIFRS | I111: MIFRS | J111: MIFRS | K111: MIFRS | L111: MIFRS | M111: MIFRS | N111: MIFRS | P111: =IF(P$14=0, "", P$14) -> CGAAP
A112: Rental income - Poles | C112: 440865 | D112: 464359.03 | E112: 482507.28 | F112: 501559.49 | G112: 508571.68 | H112: 541954.66 | I112: 559978.11 | J112: 588134.82 | K112: 618331.46 | L112: 716420.36 | M112: 743503.41 | N112: 1469745.223 | P112: 482507.28
A113: Rental income - Property | C113: 9835.53 | D113: 8127.6 | E113: 8127.6 | F113: 8127.6 | G113: 8127.6 | H113: 8127.6 | I113: 8127.6 | J113: 10890.38 | K113: 9943.58 | L113: 15708.48 | M113: 15708.48 | N113: 15708.48 | P113: 8127.6
A116: Total | C116: =SUM(C112:C115) -> 450700.53 | D116: 472486.63 | E116: 490634.88 | F116: 509687.09 | G116: 516699.28 | H116: 550082.26 | I116: 568105.71 | J116: 599025.2 | K116: 628275.04 | L116: 732128.84 | M116: 759211.89 | N116: 1485453.703 | P116: =SUM(P112:P115) -> 490634.88
C117: =+C116-C$18 -> 0 | D117: =+D116-D$18 -> 0 | E117: 0 | F117: 0 | G117: 0 | H117: 0 | I117: 0 | J117: 0 | K117: 0 | L117: 0 | M117: 0 | N117: 0 | P117: 0
A118: Account 4215 - Other Utility Operating income
C119: =C$12 -> 2009 Actual² | D119: =D$12 -> 2010 Actual² | E119: 2011 Actual² | F119: 2012 Actual² | G119: 2013 Actual² | H119: 2014 Actual² | I119: 2015 Actual² | J119: 2016 Actual² | K119: 2017 Actual² | L119: 2018 Actual | M119: Bridge Year | N119: Test Year | P119: =$P$12 -> CGAAP
C120: =C$13 -> 2009 | D120: =D$13 -> 2010 | E120: 2011 | F120: 2012 | G120: 2013 | H120: 2014 | I120: 2015 | J120: 2016 | K120: 2017 | L120: 2018 | M120: 2019 | N120: 2020 | P120: =$P$13 -> 2011
A121: Reporting Basis | C121: =IF(C$14=0, "", C$14) -> CGAAP | D121: =IF(D$14=0, "", D$14) -> CGAAP | E121: MIFRS | F121: MIFRS | G121: MIFRS | H121: MIFRS | I121: MIFRS | J121: MIFRS | K121: MIFRS | L121: MIFRS | M121: MIFRS | N121: MIFRS | P121: =IF(P$14=0, "", P$14) -> CGAAP
A122: Discounts Earned | C122: 2410.109183 | D122: 2336.322907 | E122: 2636.39163 | F122: 9631.264656 | G122: 2469.771538 | H122: 4990.473593 | I122: 6416.992793 | J122: 2369.197533 | K122: 1459.28 | L122: 2779.79 | M122: 0 | N122: 0 | P122: 2636.39163
A126: Total | C126: =SUM(C122:C125) -> 2410.109183 | D126: 2336.322907 | E126: 2636.39163 | F126: 9631.264656 | G126: 2469.771538 | H126: 4990.473593 | I126: 6416.992793 | J126: 2369.197533 | K126: 1459.28 | L126: 2779.79 | M126: 0 | N126: 0 | P126: =SUM(P122:P125) -> 2636.39163
C127: =+C126-C$19 -> 0 | D127: =+D126-D$19 -> 0 | E127: 0 | F127: 0 | G127: 0 | H127: 0 | I127: 0 | J127: 0 | K127: 0 | L127: 0 | M127: 0 | N127: 0 | P127: 0
A128: Account 4245 - Government Assistance Directly
C129: =C$12 -> 2009 Actual² | D129: =D$12 -> 2010 Actual² | E129: 2011 Actual² | F129: 2012 Actual² | G129: 2013 Actual² | H129: 2014 Actual² | I129: 2015 Actual² | J129: 2016 Actual² | K129: 2017 Actual² | L129: 2018 Actual | M129: Bridge Year | N129: Test Year | P129: =$P$12 -> CGAAP
C130: =C$13 -> 2009 | D130: =D$13 -> 2010 | E130: 2011 | F130: 2012 | G130: 2013 | H130: 2014 | I130: 2015 | J130: 2016 | K130: 2017 | L130: 2018 | M130: 2019 | N130: 2020 | P130: =$P$13 -> 2011
A131: Reporting Basis | C131: =IF(C$14=0, "", C$14) -> CGAAP | D131: =IF(D$14=0, "", D$14) -> CGAAP | E131: MIFRS | F131: MIFRS | G131: MIFRS | H131: MIFRS | I131: MIFRS | J131: MIFRS | K131: MIFRS | L131: MIFRS | M131: MIFRS | N131: MIFRS | P131: =IF(P$14=0, "", P$14) -> CGAAP
A132: Deferred Revenue Depreciation | C132: 0 | D132: 0 | E132: 0 | F132: 24118.51 | G132: 57924.22 | H132: 95530.46 | I132: 218972.34 | J132: 269948.81 | K132: 316767.84 | L132: 353872.1 | M132: 423835.3897 | N132: 512060.259 | P132: 0
A137: Total | C137: =SUM(C132:C136) -> 0 | D137: 0 | E137: =SUM(E132:E136) -> 0 | F137: 24118.51 | G137: 57924.22 | H137: =SUM(H132:H136) -> 95530.46 | I137: 218972.34 | J137: 269948.81 | K137: 316767.84 | L137: 353872.1 | M137: 423835.3897 | N137: 512060.259 | P137: =SUM(P132:P136) -> 0
C138: =+C137-C$20 -> 0
A139: Account 4310 - Regulatory Credit
C140: =+C$12 -> 2009 Actual² | D140: =+D$12 -> 2010 Actual² | E140: =+E$12 -> 2011 Actual² | F140: 2012 Actual² | G140: 2013 Actual² | H140: 2014 Actual² | I140: 2015 Actual² | J140: 2016 Actual² | K140: 2017 Actual² | L140: 2018 Actual | M140: Bridge Year | N140: Test Year | P140: =+P$12 -> CGAAP
C141: =+C$13 -> 2009 | D141: =+D$13 -> 2010 | E141: =+E$13 -> 2011 | F141: 2012 | G141: 2013 | H141: =+H$13 -> 2014 | I141: 2015 | J141: 2016 | K141: 2017 | L141: 2018 | M141: 2019 | N141: 2020 | P141: =+P$13 -> 2011
A142: Reporting Basis | C142: =+C$14 -> CGAAP | D142: =+D$14 -> CGAAP | E142: =+E$14 -> MIFRS | F142: MIFRS | G142: MIFRS | H142: MIFRS | I142: MIFRS | J142: MIFRS | K142: MIFRS | L142: MIFRS | M142: MIFRS | N142: MIFRS | P142: =+P$14 -> CGAAP
A143: Regulatory PP&E Adjustment due to conversion to MIFRS | C143: 0 | D143: 0 | E143: -3382035 | F143: -4389506.46 | G143: -2597507.87 | H143: -2265826.69 | I143: -1934269.26 | J143: -2371364.09 | K143: -2280327.72 | L143: -2373766.79 | M143: -2216822 | N143: 0 | P143: 0
A148: Total | C148: =SUM(C143:C147) -> 0 | D148: 0 | E148: =SUM(E143:E147) -> -3382035 | F148: -4389506.46 | G148: -2597507.87 | H148: =SUM(H143:H147) -> -2265826.69 | I148: -1934269.26 | J148: -2371364.09 | K148: -2280327.72 | L148: =SUM(L143:L147) -> -2373766.79 | M148: -2216822 | N148: 0 | P148: =SUM(P143:P147) -> 0
C149: =+C148-C$21 -> 0 | D149: =+D148-D$21 -> 0 | E149: 0 | F149: 0 | G149: 0 | H149: 0 | I149: 0 | J149: 0 | K149: 0 | M149: 0 | N149: 0 | P149: 0
A150: Account 4355 - Gain-Disposition of Util. & Other Prop
C151: =+C$12 -> 2009 Actual² | D151: =+D$12 -> 2010 Actual² | E151: =+E$12 -> 2011 Actual² | F151: 2012 Actual² | G151: 2013 Actual² | H151: 2014 Actual² | I151: 2015 Actual² | J151: 2016 Actual² | K151: 2017 Actual² | L151: 2018 Actual | M151: Bridge Year | N151: Test Year | P151: =+P$12 -> CGAAP
C152: =+C$13 -> 2009 | D152: =+D$13 -> 2010 | E152: =+E$13 -> 2011 | F152: 2012 | G152: 2013 | H152: =+H$13 -> 2014 | I152: 2015 | J152: 2016 | K152: 2017 | L152: 2018 | M152: 2019 | N152: 2020 | P152: =+P$13 -> 2011
A153: Reporting Basis | C153: =+C$14 -> CGAAP | D153: =+D$14 -> CGAAP | E153: =+E$14 -> MIFRS | F153: MIFRS | G153: MIFRS | H153: MIFRS | I153: MIFRS | J153: MIFRS | K153: MIFRS | L153: MIFRS | M153: MIFRS | N153: MIFRS | P153: =+P$14 -> CGAAP
A154: Gain or loss on Sale of Assets | C154: 67300.45676 | D154: -296638.6024 | E154: 0 | F154: 0 | G154: 0 | H154: 0 | I154: 0 | J154: 0 | P154: -155058.6324
A155: Asset Retirement Revenue | C155: 0 | D155: 0 | E155: 115033 | F155: 51561.80427 | G155: 159804.5779 | H155: 249599.8553 | I155: 397950.5249 | J155: 614523.0517 | K155: 522381.71 | L155: 346960.63 | M155: 0 | N155: 576061.66 | P155: 0
A159: Total | C159: =SUM(C154:C158) -> 67300.45676 | D159: -296638.6024 | E159: =SUM(E154:E158) -> 115033 | F159: 51561.80427 | G159: 159804.5779 | H159: =SUM(H154:H158) -> 249599.8553 | I159: 397950.5249 | J159: 614523.0517 | K159: 522381.71 | L159: 346960.63 | M159: 0 | N159: 576061.66 | P159: =SUM(P154:P158) -> -155058.6324
C160: =+C159-C$22 -> 0 | D160: =+D159-D$22 -> 0 | E160: 0 | F160: 0 | G160: 0 | H160: 0 | I160: 0 | J160: 0 | K160: 0 | L160: 0 | M160: 0 | N160: 0 | P160: 0
A161: Account 4360 - Loss-Disposition of Util. & Other Prop
C162: =+C$12 -> 2009 Actual² | D162: =+D$12 -> 2010 Actual² | E162: =+E$12 -> 2011 Actual² | F162: 2012 Actual² | G162: 2013 Actual² | H162: =+H$12 -> 2014 Actual² | I162: 2015 Actual² | J162: 2016 Actual² | K162: 2017 Actual² | L162: 2018 Actual | M162: Bridge Year | N162: Test Year | P162: =+P$12 -> CGAAP
C163: =+C$13 -> 2009 | D163: =+D$13 -> 2010 | E163: =+E$13 -> 2011 | F163: 2012 | G163: 2013 | H163: =+H$13 -> 2014 | I163: 2015 | J163: 2016 | K163: 2017 | L163: 2018 | M163: 2019 | N163: 2020 | P163: =+P$13 -> 2011
A164: Reporting Basis | C164: =+C$14 -> CGAAP | D164: =+D$14 -> CGAAP | E164: =+E$14 -> MIFRS | F164: MIFRS | G164: MIFRS | H164: =+H$14 -> MIFRS | I164: MIFRS | J164: MIFRS | K164: MIFRS | L164: MIFRS | M164: MIFRS | N164: MIFRS | P164: =+P$14 -> CGAAP
A165: Deferred Revenue Gain or loss | C165: 0 | D165: 0 | E165: 0 | F165: 0 | G165: 0 | H165: 0 | I165: 30557.72 | J165: 0 | K165: 0 | L165: 0 | M165: 0 | N165: 0 | P165: 0
A166: Gain or loss on Sale of Assets | C166: 0 | D166: 0 | E166: -270091.6324 | F166: -578572.14 | G166: -452881.5555 | H166: -435715.89 | I166: -501708.4777 | J166: -477104.5348 | K166: -458577.04 | L166: -509809.02 | M166: 0 | N166: 0 | P166: 0
A170: Total | C170: =SUM(C165:C169) -> 0 | D170: 0 | E170: =SUM(E165:E169) -> -270091.6324 | F170: -578572.14 | G170: -452881.5555 | H170: =SUM(H165:H169) -> -435715.89 | I170: -471150.7577 | J170: -477104.5348 | K170: -458577.04 | L170: -509809.02 | M170: 0 | N170: 0 | P170: =SUM(P165:P169) -> 0
C171: =+C170-C$23 -> 0 | D171: =+D170-D$23 -> 0 | E171: 0 | F171: 0 | G171: 0 | H171: 0 | I171: 0 | J171: 0 | K171: 0 | L171: 0 | M171: 0 | N171: 0 | P171: 0
A172: Account 4375 - Revenues from Non-Utility Operations
C173: =+C$12 -> 2009 Actual² | D173: =+D$12 -> 2010 Actual² | E173: =+E$12 -> 2011 Actual² | F173: 2012 Actual² | G173: 2013 Actual² | H173: =+H$12 -> 2014 Actual² | I173: 2015 Actual² | J173: 2016 Actual² | K173: 2017 Actual² | L173: 2018 Actual | M173: Bridge Year | N173: Test Year | P173: =+P$12 -> CGAAP
C174: =+C$13 -> 2009 | D174: =+D$13 -> 2010 | E174: =+E$13 -> 2011 | F174: 2012 | G174: 2013 | H174: =+H$13 -> 2014 | I174: 2015 | J174: 2016 | K174: 2017 | L174: 2018 | M174: 2019 | N174: 2020 | P174: =+P$13 -> 2011
A175: Reporting Basis | C175: =+C$14 -> CGAAP | D175: =+D$14 -> CGAAP | E175: =+E$14 -> MIFRS | F175: MIFRS | G175: MIFRS | H175: =+H$14 -> MIFRS | I175: MIFRS | J175: MIFRS | K175: MIFRS | L175: MIFRS | M175: MIFRS | N175: MIFRS | P175: =+P$14 -> CGAAP
A176: Shared Services Cost Allocation recovery | C176: 10852216.55 | D176: 12825867.04 | E176: 13116857.49 | F176: 13494836.53 | G176: 20668252.14 | H176: 23021091.71 | I176: 23059208.7 | J176: 23051679.37 | K176: 21684366.25 | L176: 22432617.26 | M176: 22514505.09 | N176: 21861824.47 | P176: 13116857.49
A177: Return on Non-Regulated Assets | C177: 1448572.7 | D177: 2022850.18 | E177: 1793467.89 | F177: 2215050.37 | G177: 1092568.86 | H177: 1261633.49 | I177: 1201948.5 | J177: 1171126.62 | K177: 710306.92 | L177: 585225.29 | M177: 640005.75 | N177: 611717.09 | P177: 1793467.89
A178: Services Provided To Others | C178: 206010.43 | D178: 516094.2 | E178: 367173.11 | F178: 255466 | G178: 190623 | H178: 397414 | I178: 615441.69 | J178: 83663.02 | K178: 393462.69 | L178: 262451.2 | M178: 89412 | N178: =89412+117000 -> 206412 | P178: 367173.11
A179: CDM Related | E179: 452674.41 | F179: 297238 | G179: 368499 | H179: 432178 | I179: 299307 | J179: 311482 | K179: 278081.22 | L179: 248900.79 | M179: 340014.54 | N179: 312100.91 | P179: 452674.41
P180: =+E180 -> 0
A182: Total | C182: =SUM(C176:C181) -> 12506799.68 | D182: 15364811.42 | E182: 15730172.9 | F182: 16262590.9 | G182: 22319943 | H182: 25112317.2 | I182: 25175905.89 | J182: 24617951.01 | K182: 23066217.08 | L182: 23529194.54 | M182: 23583937.38 | N182: 22992054.47 | P182: =SUM(P176:P181) -> 15730172.9
C183: =+C182-C$24 -> 0 | D183: =+D182-D$24 -> 0 | E183: 0 | F183: 0 | G183: 0 | H183: 0 | I183: 0 | J183: 0 | K183: 0 | L183: 0 | M183: 0 | N183: 0 | P183: 0
A184: Account 4380 - Expenses of Non-Utility Operations
C185: =+C$12 -> 2009 Actual² | D185: =+D$12 -> 2010 Actual² | E185: =+E$12 -> 2011 Actual² | F185: 2012 Actual² | G185: 2013 Actual² | H185: =+H$12 -> 2014 Actual² | I185: 2015 Actual² | J185: 2016 Actual² | K185: 2017 Actual² | L185: 2018 Actual | M185: Bridge Year | N185: Test Year | P185: =+P$12 -> CGAAP
C186: =+C$13 -> 2009 | D186: =+D$13 -> 2010 | E186: =+E$13 -> 2011 | F186: 2012 | G186: 2013 | H186: =+H$13 -> 2014 | I186: 2015 | J186: 2016 | K186: 2017 | L186: 2018 | M186: 2019 | N186: 2020 | P186: =+P$13 -> 2011
A187: Reporting Basis | C187: =+C$14 -> CGAAP | D187: =+D$14 -> CGAAP | E187: =+E$14 -> MIFRS | F187: MIFRS | G187: MIFRS | H187: =+H$14 -> MIFRS | I187: MIFRS | J187: MIFRS | K187: MIFRS | L187: MIFRS | M187: MIFRS | N187: MIFRS | P187: =+P$14 -> CGAAP
A188: Shared Services Cost Allocation | C188: -10006045.55 | D188: -11372268.04 | E188: -11224330.45 | F188: -12144758.04 | G188: -19331062.42 | H188: -21232698.65 | I188: -21154607.43 | J188: -21075470.54 | K188: -19608013.84 | L188: -20285785.09 | M188: -20881524.96 | N188: -20631215.24 | P188: -11224330.45
A189: Shared Services Cost Allocation - Depreciation | C189: -639424 | D189: -1476592 | E189: -1880471.74 | F189: -1323515.67 | G189: -1275133.72 | H189: -1760417.06 | I189: -1881105.17 | J189: -1955305.965 | K189: -2044677.51 | L189: -2089013.7 | M189: -1598019.64 | N189: -1195648.74 | P189: -1880471.74
A190: Shared Services Cost Allocation - interest | C190: -206747 | D190: 22993 | E190: -12055.3 | F190: -26562.82 | G190: -62056 | H190: -27976 | I190: -23496.1038 | J190: -20902.8652 | K190: -31674.9 | L190: -57818.47 | M190: -34960.49 | N190: -34960.49 | P190: -12055.3
A191: Expenses of Non-utility Operations | C191: -154103.63 | D191: -449392.73 | E191: =+E25-E188-E189-E190-E192 -> -441147.8602 | F191: =+F25-F188-F189-F190-F192 -> -315407.9691 | G191: -1703886.521 | H191: -347780.8203 | I191: -162346.3842 | J191: -187170.2808 | K191: -89286.46 | L191: -111556.46 | M191: -70634.0045 | N191: -71675.88751 | P191: =+P25-P188-P189-P190-P192 -> -441147.8602
A192: CDM Related | E192: -424444.5 | F192: -269625.96 | G192: -328447.32 | H192: -399083.54 | I192: -278626.38 | J192: -289695.13 | K192: -265151.48 | L192: -229779.34 | M192: -318587.97 | N192: -291171.4 | P192: -424444.5
A193: Total | C193: =SUM(C188:C192) -> -11006320.18 | D193: -13275259.77 | E193: -13982449.85 | F193: -14079870.46 | G193: -22700585.98 | H193: -23767956.07 | I193: -23500181.47 | J193: -23528544.78 | K193: -22038804.19 | L193: -22773953.06 | M193: -22903727.06 | N193: -22224671.76 | P193: =SUM(P188:P192) -> -13982449.85
C194: =+C193-C$25 -> 0 | D194: =+D193-D$25 -> 0 | E194: 0 | F194: 0 | G194: 0 | H194: 0 | I194: 0 | J194: 0 | K194: 0 | L194: 0 | M194: 0 | N194: 0 | P194: 0
A195: Account 4390 - Miscellaneous Non-Operating income
C196: =+C$12 -> 2009 Actual² | D196: =+D$12 -> 2010 Actual² | E196: =+E$12 -> 2011 Actual² | F196: 2012 Actual² | G196: 2013 Actual² | H196: =+H$12 -> 2014 Actual² | I196: 2015 Actual² | J196: 2016 Actual² | K196: 2017 Actual² | L196: 2018 Actual | M196: Bridge Year | N196: Test Year | P196: =+P$12 -> CGAAP
C197: =+C$13 -> 2009 | D197: =+D$13 -> 2010 | E197: =+E$13 -> 2011 | F197: 2012 | G197: 2013 | H197: =+H$13 -> 2014 | I197: 2015 | J197: 2016 | K197: 2017 | L197: 2018 | M197: 2019 | N197: 2020 | P197: =+P$13 -> 2011
A198: Reporting Basis | C198: =+C$14 -> CGAAP | D198: =+D$14 -> CGAAP | E198: =+E$14 -> MIFRS | F198: MIFRS | G198: MIFRS | H198: =+H$14 -> MIFRS | I198: MIFRS | J198: MIFRS | K198: MIFRS | L198: MIFRS | M198: MIFRS | N198: MIFRS | P198: =+P$14 -> CGAAP
A199: Disposal Of Concrete Poles | C199: 1995 | D199: 1520 | E199: 3800 | F199: 2287.33 | G199: 3515 | H199: 3230 | I199: 3800 | J199: 3705 | K199: 3610 | L199: 7125 | M199: 2280 | N199: 2280 | P199: 3800
A200: Sale Of Scrap material | C200: 290315.8 | D200: 454954.85 | E200: 284528.54 | F200: 354656.54 | G200: 515999.16 | H200: 204342.98 | I200: 184126.65 | J200: 128188.33 | K200: 82333.67 | L200: 116414.06 | M200: 100000 | N200: 100000 | P200: 284528.54
A201: Utilismart Web Charge | C201: 3600 | D201: 300 | E201: 0 | F201: 0 | G201: 0 | H201: 0 | I201: 0 | J201: 0 | K201: 0 | L201: 0 | M201: 0 | N201: 0 | P201: 0
A204: Total | C204: =SUM(C199:C203) -> 295910.8 | D204: 456774.85 | E204: =SUM(E199:E203) -> 288328.54 | F204: 356943.87 | G204: 519514.16 | H204: =SUM(H199:H203) -> 207572.98 | I204: 187926.65 | J204: 131893.33 | K204: 85943.67 | L204: =SUM(L199:L203) -> 123539.06 | M204: 102280 | N204: 102280 | P204: =SUM(P199:P203) -> 288328.54
C205: =+C204-C$26 -> 0 | D205: =+D204-D$26 -> 0 | E205: 0 | F205: 0 | G205: 0 | H205: 0 | I205: 0 | J205: 0 | K205: 0 | L205: 0 | M205: 0 | N205: 0 | P205: 0
A206: Account 4398 - Foreign Exchange G&L, incl. Amortization
C207: =+C$12 -> 2009 Actual² | D207: =+D$12 -> 2010 Actual² | E207: =+E$12 -> 2011 Actual² | F207: 2012 Actual² | G207: 2013 Actual² | H207: =+H$12 -> 2014 Actual² | I207: 2015 Actual² | J207: 2016 Actual² | K207: 2017 Actual² | L207: 2018 Actual | M207: Bridge Year | N207: Test Year | P207: =+P$12 -> CGAAP
